Workbook

Sheet Documentation
B3: Date | C3: 2018-12-19
B4: Subject | C4: Estimate of Future Friant Division Supplies for use in Groundwater Sustainability Plans, California
B5: Contents | C5: This workbook contains a summary of the analysis performed using the CalSim-II model to simulate the potential future Friant Division water supply under a variety
C6: of conditions of the San Joaquin River Restoration Program (SJRRP) Implementation and climate change.
B8: Summary Sheets
B9: Table Summary | C9: Contains the simulation summary table with Millerton Inflow, Class 1, Class 2/Other, 16B, Recapture Class 1, Recapture Class 2, Total Recapture, Total Delivery, and Millerton Spill by SJRRP Water Year Type and Long-Term Average
C10: In the Table Summary sheet, select between a Friant Contractor or Total Friant Contractors to update the summarized results, see the drop down menu in Cell E1.
B11: Delivery Summary | C11: Contains charts of potentital changes in long-term annual average Class 1, Class 2, Other, and Recapture under climate change with and without 16B.
B12: Each CalSim-II simulation has a separate sheet with monthly and annual total by contract year and summarized by SJRRP Water Year Type and Long-Term Average for the following:
B13: Class 1, Class 2/Other, 16B, Delta Pumping, SJRRP Recapture Class 1, SJRRP Recapture Class 2, SJRRP Recapture Total, SJRRP Release, Millerton Spill, San Joaquin Inflow
B15: Model Run Sheet | C15: Climate Condition | D15: SJRRS Settlement Implementation | F15: Benchmark CalSim-II Model Used
D16: Restoration Goal | E16: Water Management Goal
B17: 2015.a | C17: 2015 Conditions (historical modified for recent changes) | D17: Pre-SJRRS | E17: Pre-SJRRS | F17: DWR Delivery Capacility Report, 2015 climate
B18: 2015.b | D18: Limited SJRRS | E18: Limited Access
B19: 2015.c | E19: Full Access
B20: 2030.a | C20: Near-Future (DWR 2030 Central Tendency) | D20: Pre-SJRRS | E20: Pre-SJRRS | F20: Water Commission, 2030 climate
B21: 2030.b | D21: Full SJRRS | E21: Limited Access | F21: 2030
B22: 2030.c | E22: Full Access
B23: 2070.a | C23: Late-future (DWR 2070 Central Tendency) | D23: Pre-SJRRS | E23: Pre-SJRRS | F23: Water Commission, 2070 climate
B24: 2070.b | D24: Full SJRRS | E24: Limited Access | F24: 2070
B25: 2070.c | E25: Full Access
B26: DEW.a | C26: Late-future, 2070 Drier/ Extreme Warming | D26: Pre-SJRRS | E26: Pre-SJRRS | F26: Water Commission, 2070 DEW climate
B27: DEW.b | D27: Full SJRRS | E27: Limited Access | F27: 2070
B28: DEW.c | E28: Full Access
B29: WMW.a | C29: Late-future, 2070 Wetter/Moderate Warming | D29: Pre-SJRRS | E29: Pre-SJRRS | F29: Water Commission, 2070 WMW climate
B30: WMW.b | D30: Full SJRRS | E30: Limited Access | F30: 2070
B31: WMW.c | E31: Full Access
B32: Notes:
B33: CalSim-II simulates the system using hydrology based on the period October 1921 to September 2003. The tables are formatted by contract year (March – February).
B34: The data for the months October 1921 – February 1922 and March 2003 – September 2003 represents two partial delivery year and were not included in the contract year or long term average summary computations.
B35: For water year type classification summation, the Critical SJRRP water year type represents the Critical High and Critical Low years in the 82-year CalSim simulation period.
B37: CalSim simulations and post processing to get potential surface water supply
B38: Computed the CalSim simulations with redefined SJRRS water year types to generate new SJRRP hydrographs and time series for the 2030, 2070, DEW, and WMW climate change conditions (see Millerton Inflow sheet)
B39: This was computed by taking the unimpaired inflow from the CalSim SV files, redefining SJRRP water year types based on this unimpaired inflow, used Reclamations spreadsheet to generate SJRRP hydrographs and time series, and then ran CalSim with the new hydrographs.
B41: CalSim Post-Processing
B42: From the CalSim outputs, compute the total Friant Class 1, Class 2, 215 ("Other"), and 16B delivery
B43: For this analysis, summed Class 2 and Other to get Class 2/Other delivery category
B44: If Class 1 deliveries were above 800 TAF, adjusted any excess to Class 2/Other to set Class 1 maximum delivery to 800 TAF
B45: If Class 1 deliveries were less than 800 TAF and Class 2/Other deliveries were greater than zero, allocate Class 2/Other deliveries to make Class 1 equal up to 800 TAF
B46: Class 1 and Class 2/Other deliveries were assigned to Friant Contractors based on Contract Amounts (see Friant Contractors sheet)
B47: Assigned 16b deliveries to Friant Contractors based on long-term average annual total Class 1 and Class 2/Other percentage loss. These percentages come from either the Mediator's Report or calculated from the CalSim simulations (see Delivery Impacts sheet)
B48: The percentages in the Delivery Impact sheet were calculated in this analysis by taking the total Class 1 and Class 2/Other deliveries from post-processing pre-SJRRS and SJRRS with no 16 b simulations (Model Runs .a and .b)
B49: First, compute the total reduction in the long-term average annual yield by Friant Contractor
B50: Second, compute the percentage of total reduction to each Friant Contractor
B51: Third, these impacts by volume and percentage are summarized in the Delivery Impacts sheet.

Sheet Table Summary
A1: Select by Friant Contractor or Total Friant Contractors | I1: Distribution of 16b by Impacts to Long-Term Average Delivery
B2: 33 | I2: Note: This allows the user to select proportion of total impact per Friant Contractor using percentages developed in the Mediator's Report or the Calculated Impacts of total Class 1 and Class 2/Other per climate change condition computed in this analysis. See the Delivery Impact sheet for impacts per Friant Contractor. This will update the 16b deliveries per climate change condition.
B3: Summary of Simulations by SJRRP WY Type and Long-Term Average
B4: Model Run | C4: Climate Condition | D4: SJRRS Settlement Implementation | F4: Benchmark CalSim II Model Used | G4: SJRRP Water Year Type | H4: Number of Years (% of Total Years) | I4: Millerton Inflow (TAF/yr) | J4: SJRRP Releases (TAF/yr) | K4: Class 1 (TAF/yr) | L4: Class 2/Other (TAF/yr) | M4: 16B (TAF/yr) | N4: Recapture Class 1 (TAF/yr) | O4: Recapture Class 2/Other (TAF/yr) | P4: Recapture Total (TAF/yr) | Q4: Total Delivery (TAF/yr) | R4: Millerton Spill (TAF/yr)
D5: Restoration Goal | E5: Water Management Goal
B6: 2015.a | C6: =Documentation!C17 -> 2015 Conditions (historical modified for recent changes) | D6: =Documentation!D17 -> Pre-SJRRS | E6: =Documentation!E17 -> Pre-SJRRS | F6: =Documentation!F17 -> DWR Delivery Capacility Report, 2015 climate | G6: Wet | H6: ='SJRRP WY Types'!$C$3 -> 16 (20%) | I6: ='2015.a'!$O$102 -> 2947.810765 | J6: ='2015.a'!$O$82 -> 116.7879324 | K6: ='2015.a'!$O$12 -> 800 | L6: ='2015.a'!$O$22 -> 698.6036242 | M6: ='2015.a'!$O$32 -> 0 | N6: ='2015.a'!$C$52 -> -6.394884622e-14 | O6: ='2015.a'!$C$62 -> 6.394884622e-14 | P6: ='2015.a'!$C$72 -> 0 | Q6: =SUM(K6:O6) -> 1498.603624 | R6: ='2015.a'!$O$92 -> 967.4627939
G7: Normal-Wet | H7: ='SJRRP WY Types'!$C$4 -> 25 (30%) | I7: ='2015.a'!$O$103 -> 1922.718047 | J7: ='2015.a'!$O$83 -> 116.7919555 | K7: ='2015.a'!$O$13 -> 800 | L7: ='2015.a'!$O$23 -> 466.7994669 | M7: ='2015.a'!$O$33 -> 0 | N7: ='2015.a'!$C$53 -> -6.158037043e-14 | O7: ='2015.a'!$C$63 -> 6.158037043e-14 | P7: ='2015.a'!$C$73 -> 0 | Q7: 1266.799467 | R7: ='2015.a'!$O$93 -> 205.3488239
G8: Normal-Dry | H8: ='SJRRP WY Types'!$C$5 -> 24 (29%) | I8: ='2015.a'!$O$104 -> 1317.577228 | J8: ='2015.a'!$O$84 -> 116.8000014 | K8: ='2015.a'!$O$14 -> 796.2654623 | L8: ='2015.a'!$O$24 -> 195.3970299 | M8: ='2015.a'!$O$34 -> 0 | N8: ='2015.a'!$C$54 -> -9.473903143e-14 | O8: ='2015.a'!$C$64 -> 9.473903143e-14 | P8: ='2015.a'!$C$74 -> 0 | Q8: 991.6624923 | R8: ='2015.a'!$O$94 -> 61.42571132
G9: Dry | H9: ='SJRRP WY Types'!$C$6 -> 12 (15%) | I9: ='2015.a'!$O$105 -> 1002.850124 | J9: ='2015.a'!$O$85 -> 116.8000014 | K9: ='2015.a'!$O$15 -> 705.0760203 | L9: ='2015.a'!$O$25 -> 16.63388295 | M9: ='2015.a'!$O$35 -> 0 | N9: ='2015.a'!$C$55 -> -9.473903143e-15 | O9: ='2015.a'!$C$65 -> 9.473903143e-15 | P9: ='2015.a'!$C$75 -> 0 | Q9: 721.7099032 | R9: ='2015.a'!$O$95 -> 63.5727478
G10: Critical | H10: ='SJRRP WY Types'!$C$7 -> 5 (6%) | I10: ='2015.a'!$O$106 -> 694.0882384 | J10: ='2015.a'!$O$86 -> 116.8000014 | K10: ='2015.a'!$O$16 -> 403.7890988 | L10: ='2015.a'!$O$26 -> 0 | M10: ='2015.a'!$O$36 -> 0 | N10: ='2015.a'!$C$56 -> 0 | O10: ='2015.a'!$C$66 -> 0 | P10: ='2015.a'!$C$76 -> 0 | Q10: 403.7890988 | R10: ='2015.a'!$O$96 -> 35.23635613
G11: Long-Term | H11: ='SJRRP WY Types'!$C$8 -> 82 | I11: ='2015.a'!$O$107 -> 1733.786439 | J11: ='2015.a'!$O$87 -> 116.7952334 | K11: ='2015.a'!$O$17 -> 760.3731955 | L11: ='2015.a'!$O$27 -> 336.666426 | M11: ='2015.a'!$O$37 -> 0 | N11: ='2015.a'!$C$57 -> -6.035227188e-14 | O11: ='2015.a'!$C$67 -> 6.035227188e-14 | P11: ='2015.a'!$C$77 -> 0 | Q11: 1097.039621 | R11: ='2015.a'!$O$97 -> 281.7413371
B12: 2015.b | C12: =Documentation!C17 -> 2015 Conditions (historical modified for recent changes) | D12: =Documentation!D18 -> Limited SJRRS | E12: =Documentation!E18 -> Limited Access | F12: =Documentation!F17 -> DWR Delivery Capacility Report, 2015 climate | G12: Wet | H12: ='SJRRP WY Types'!$C$3 -> 16 (20%) | I12: ='2015.b'!$O$102 -> 2947.810765 | J12: ='2015.b'!$O$82 -> 501.4785129 | K12: ='2015.b'!$O$12 -> 800 | L12: ='2015.b'!$O$22 -> 689.0649634 | M12: ='2015.b'!$O$32 -> 0 | N12: ='2015.b'!$C$52 -> -7.105427358e-14 | O12: ='2015.b'!$C$62 -> 58.19797509 | P12: ='2015.b'!$C$72 -> 58.19797509 | Q12: 1547.262939 | R12: ='2015.b'!$O$92 -> 687.2141361
G13: Normal-Wet | H13: ='SJRRP WY Types'!$C$4 -> 25 (30%) | I13: ='2015.b'!$O$103 -> 1922.718047 | J13: ='2015.b'!$O$83 -> 358.3239678 | K13: ='2015.b'!$O$13 -> 800 | L13: ='2015.b'!$O$23 -> 427.5100431 | M13: ='2015.b'!$O$33 -> 0 | N13: ='2015.b'!$C$53 -> 0 | O13: ='2015.b'!$C$63 -> 45.85927607 | P13: ='2015.b'!$C$73 -> 45.85927607 | Q13: 1273.369319 | R13: ='2015.b'!$O$93 -> 124.6627141
G14: Normal-Dry | H14: ='SJRRP WY Types'!$C$5 -> 24 (29%) | I14: ='2015.b'!$O$104 -> 1317.577228 | J14: ='2015.b'!$O$84 -> 331.6322322 | K14: ='2015.b'!$O$14 -> 766.1188136 | L14: ='2015.b'!$O$24 -> 66.83715209 | M14: ='2015.b'!$O$34 -> 0 | N14: ='2015.b'!$C$54 -> 11.21003481 | O14: ='2015.b'!$C$64 -> 38.21475585 | P14: ='2015.b'!$C$74 -> 49.42479066 | Q14: 882.3807564 | R14: ='2015.b'!$O$94 -> 42.95628155
G15: Dry | H15: ='SJRRP WY Types'!$C$6 -> 12 (15%) | I15: ='2015.b'!$O$105 -> 1002.850124 | J15: ='2015.b'!$O$85 -> 287.1570254 | K15: ='2015.b'!$O$15 -> 571.4098444 | L15: ='2015.b'!$O$25 -> 0.3770987001 | M15: ='2015.b'!$O$35 -> 0 | N15: ='2015.b'!$C$55 -> 32.55494504 | O15: ='2015.b'!$C$65 -> 7.57443829 | P15: ='2015.b'!$C$75 -> 40.12938333 | Q15: 611.9163265 | R15: ='2015.b'!$O$95 -> 29.68622522
G16: Critical | H16: ='SJRRP WY Types'!$C$7 -> 5 (6%) | I16: ='2015.b'!$O$106 -> 694.0882384 | J16: ='2015.b'!$O$86 -> 227.8726932 | K16: ='2015.b'!$O$16 -> 347.5316011 | L16: ='2015.b'!$O$26 -> 0 | M16: ='2015.b'!$O$36 -> 0 | N16: ='2015.b'!$C$56 -> 21.44419463 | O16: ='2015.b'!$C$66 -> 0 | P16: ='2015.b'!$C$76 -> 21.44419463 | Q16: 368.9757957 | R16: ='2015.b'!$O$96 -> 17.24626898
G17: Long-Term | H17: ='SJRRP WY Types'!$C$8 -> 82 | I17: ='2015.b'!$O$107 -> 1733.786439 | J17: ='2015.b'!$O$87 -> 360.0969479 | K17: ='2015.b'!$O$17 -> 728.1657736 | L17: ='2015.b'!$O$27 -> 282.6407072 | M17: ='2015.b'!$O$37 -> 0 | N17: ='2015.b'!$C$57 -> 9.468162336 | O17: ='2015.b'!$C$67 -> 37.52885959 | P17: ='2015.b'!$C$77 -> 46.99702193 | Q17: 1057.803503 | R17: ='2015.b'!$O$97 -> 190.8734336
B18: 2015.c | C18: =Documentation!C17 -> 2015 Conditions (historical modified for recent changes) | D18: =Documentation!D18 -> Limited SJRRS | E18: =Documentation!E19 -> Full Access | F18: =Documentation!F17 -> DWR Delivery Capacility Report, 2015 climate | G18: Wet | H18: ='SJRRP WY Types'!$C$3 -> 16 (20%) | I18: ='2015.c'!$O$102 -> 2947.810765 | J18: ='2015.c'!$O$82 -> 501.4785129 | K18: ='2015.c'!$O$12 -> 800 | L18: ='2015.c'!$O$22 -> 692.4542456 | M18: ='2015.c'!$O$32 -> 321.8765478 | N18: ='2015.c'!$C$52 -> -8.526512829e-14 | O18: ='2015.c'!$C$62 -> 59.21005259 | P18: ='2015.c'!$C$72 -> 59.21005259 | Q18: 1873.540846 | R18: ='2015.c'!$O$92 -> 501.0041481
G19: Normal-Wet | H19: ='SJRRP WY Types'!$C$4 -> 25 (30%) | I19: ='2015.c'!$O$103 -> 1922.718047 | J19: ='2015.c'!$O$83 -> 358.3239678 | K19: ='2015.c'!$O$13 -> 800 | L19: ='2015.c'!$O$23 -> 427.4849293 | M19: ='2015.c'!$O$33 -> 179.4308359 | N19: ='2015.c'!$C$53 -> 0 | O19: ='2015.c'!$C$63 -> 42.89051371 | P19: ='2015.c'!$C$73 -> 42.89051371 | Q19: 1449.806279 | R19: ='2015.c'!$O$93 -> 73.82074226
G20: Normal-Dry | H20: ='SJRRP WY Types'!$C$5 -> 24 (29%) | I20: ='2015.c'!$O$104 -> 1317.577228 | J20: ='2015.c'!$O$84 -> 331.6322322 | K20: ='2015.c'!$O$14 -> 762.9587834 | L20: ='2015.c'!$O$24 -> 66.99838634 | M20: ='2015.c'!$O$34 -> 45.33556889 | N20: ='2015.c'!$C$54 -> 12.94997134 | O20: ='2015.c'!$C$64 -> 33.92410223 | P20: ='2015.c'!$C$74 -> 46.87407357 | Q20: 922.1668122 | R20: ='2015.c'!$O$94 -> 21.20185893
G21: Dry | H21: ='SJRRP WY Types'!$C$6 -> 12 (15%) | I21: ='2015.c'!$O$105 -> 1002.850124 | J21: ='2015.c'!$O$85 -> 287.1570254 | K21: ='2015.c'!$O$15 -> 558.4724632 | L21: ='2015.c'!$O$25 -> 0 | M21: ='2015.c'!$O$35 -> 39.64201993 | N21: ='2015.c'!$C$55 -> 40.95537449 | O21: ='2015.c'!$C$65 -> 2.821489407 | P21: ='2015.c'!$C$75 -> 43.7768639 | Q21: 641.891347 | R21: ='2015.c'!$O$95 -> 21.36801145
G22: Critical | H22: ='SJRRP WY Types'!$C$7 -> 5 (6%) | I22: ='2015.c'!$O$106 -> 694.0882384 | J22: ='2015.c'!$O$86 -> 227.8841938 | K22: ='2015.c'!$O$16 -> 353.1536011 | L22: ='2015.c'!$O$26 -> 0 | M22: ='2015.c'!$O$36 -> 13.56791655 | N22: ='2015.c'!$C$56 -> 20.47102023 | O22: ='2015.c'!$C$66 -> 0 | P22: ='2015.c'!$C$76 -> 20.47102023 | Q22: 387.1925379 | R22: ='2015.c'!$O$96 -> 17.24626763
G23: Long-Term | H23: ='SJRRP WY Types'!$C$8 -> 82 | I23: ='2015.c'!$O$107 -> 1733.786439 | J23: ='2015.c'!$O$87 -> 360.0976578 | K23: ='2015.c'!$O$17 -> 725.6598564 | L23: ='2015.c'!$O$27 -> 283.2946605 | M23: ='2015.c'!$O$37 -> 136.8884235 | N23: ='2015.c'!$C$57 -> 11.16813466 | O23: ='2015.c'!$C$67 -> 34.87369749 | P23: ='2015.c'!$C$77 -> 46.04183215 | Q23: 1191.884773 | R23: ='2015.c'!$O$97 -> 131.3488429
B24: 2030.a | C24: =Documentation!C20 -> Near-Future (DWR 2030 Central Tendency) | D24: =Documentation!D20 -> Pre-SJRRS | E24: =Documentation!E20 -> Pre-SJRRS | F24: =Documentation!F20 -> Water Commission, 2030 climate | G24: Wet | H24: ='SJRRP WY Types'!$D$3 -> 18 (22%) | I24: ='2030.a'!$O$102 -> 2499.115267 | J24: ='2030.a'!$O$82 -> 116.7892734 | K24: ='2030.a'!$O$12 -> 800 | L24: ='2030.a'!$O$22 -> 516.7214292 | M24: ='2030.a'!$O$32 -> 0 | N24: ='2030.a'!$C$52 -> -8.842309601e-14 | O24: ='2030.a'!$C$62 -> 8.842309601e-14 | P24: ='2030.a'!$C$72 -> 0 | Q24: 1316.721429 | R24: ='2030.a'!$O$92 -> 794.9178782
G25: Normal-Wet | H25: ='SJRRP WY Types'!$D$4 -> 21 (26%) | I25: ='2030.a'!$O$103 -> 2043.429339 | J25: ='2030.a'!$O$83 -> 116.8000014 | K25: ='2030.a'!$O$13 -> 800 | L25: ='2030.a'!$O$23 -> 270.051845 | M25: ='2030.a'!$O$33 -> 0 | N25: ='2030.a'!$C$53 -> -7.579122515e-14 | O25: ='2030.a'!$C$63 -> 7.579122515e-14 | P25: ='2030.a'!$C$73 -> 0 | Q25: 1070.051845 | R25: ='2030.a'!$O$93 -> 531.1070802
G26: Normal-Dry | H26: ='SJRRP WY Types'!$D$5 -> 25 (30%) | I26: ='2030.a'!$O$104 -> 1438.213359 | J26: ='2030.a'!$O$84 -> 116.7919554 | K26: ='2030.a'!$O$14 -> 797.319739 | L26: ='2030.a'!$O$24 -> 116.5725639 | M26: ='2030.a'!$O$34 -> 0 | N26: ='2030.a'!$C$54 -> -9.000207986e-14 | O26: ='2030.a'!$C$64 -> 9.000207986e-14 | P26: ='2030.a'!$C$74 -> 0 | Q26: 913.8923029 | R26: ='2030.a'!$O$94 -> 205.2967011
G27: Dry | H27: ='SJRRP WY Types'!$D$6 -> 11 (13%) | I27: ='2030.a'!$O$105 -> 1235.837141 | J27: ='2030.a'!$O$85 -> 116.8000012 | K27: ='2030.a'!$O$15 -> 760.3653387 | L27: ='2030.a'!$O$25 -> 0.07969296578 | M27: ='2030.a'!$O$35 -> 0 | N27: ='2030.a'!$C$55 -> -1.033516707e-14 | O27: ='2030.a'!$C$65 -> 1.033516707e-14 | P27: ='2030.a'!$C$75 -> 0 | Q27: 760.4450317 | R27: ='2030.a'!$O$95 -> 223.4648997
G28: Critical | H28: ='SJRRP WY Types'!$D$7 -> 7 (9%) | I28: ='2030.a'!$O$106 -> 915.7031245 | J28: ='2030.a'!$O$86 -> 116.8000014 | K28: ='2030.a'!$O$16 -> 480.7316375 | L28: ='2030.a'!$O$26 -> 0 | M28: ='2030.a'!$O$36 -> 0 | N28: ='2030.a'!$C$56 -> 0 | O28: ='2030.a'!$C$66 -> 0 | P28: ='2030.a'!$C$76 -> 0 | Q28: 480.7316375 | R28: ='2030.a'!$O$96 -> 138.2242511
G29: Long-Term | H29: ='SJRRP WY Types'!$D$8 -> 82 | I29: ='2030.a'!$O$107 -> 1758.23879 | J29: ='2030.a'!$O$87 -> 116.7952334 | K29: ='2030.a'!$O$17 -> 766.2322707 | L29: ='2030.a'!$O$27 -> 219.391267 | M29: ='2030.a'!$O$37 -> 0 | N29: ='2030.a'!$C$57 -> -6.736997791e-14 | O29: ='2030.a'!$C$67 -> 6.736997791e-14 | P29: ='2030.a'!$C$77 -> 0 | Q29: 985.6235377 | R29: ='2030.a'!$O$97 -> 417.4638885
B30: 2030.b | C30: =Documentation!C20 -> Near-Future (DWR 2030 Central Tendency) | D30: =Documentation!D21 -> Full SJRRS | E30: =Documentation!E21 -> Limited Access | F30: =Documentation!F20 -> Water Commission, 2030 climate | G30: Wet | H30: ='SJRRP WY Types'!$D$3 -> 18 (22%) | I30: ='2030.b'!$O$102 -> 2499.115267 | J30: ='2030.b'!$O$82 -> 624.1813485 | K30: ='2030.b'!$O$12 -> 800 | L30: ='2030.b'!$O$22 -> 445.9344233 | M30: ='2030.b'!$O$32 -> 0 | N30: ='2030.b'!$C$52 -> 1.010549669e-13 | O30: ='2030.b'!$C$62 -> 44.82660872 | P30: ='2030.b'!$C$72 -> 44.82660872 | Q30: 1290.761032 | R30: ='2030.b'!$O$92 -> 490.1039108
G31: Normal-Wet | H31: ='SJRRP WY Types'!$D$4 -> 21 (26%) | I31: ='2030.b'!$O$103 -> 2043.429339 | J31: ='2030.b'!$O$83 -> 430.3551334 | K31: ='2030.b'!$O$13 -> 800 | L31: ='2030.b'!$O$23 -> 230.2919706 | M31: ='2030.b'!$O$33 -> 0 | N31: ='2030.b'!$C$53 -> 1.353414735e-13 | O31: ='2030.b'!$C$63 -> 59.87179963 | P31: ='2030.b'!$C$73 -> 59.87179963 | Q31: 1090.16377 | R31: ='2030.b'!$O$93 -> 347.5886483
G32: Normal-Dry | H32: ='SJRRP WY Types'!$D$5 -> 25 (30%) | I32: ='2030.b'!$O$104 -> 1438.213359 | J32: ='2030.b'!$O$84 -> 359.3349668 | K32: ='2030.b'!$O$14 -> 743.0434554 | L32: ='2030.b'!$O$24 -> 20.47875272 | M32: ='2030.b'!$O$34 -> 0 | N32: ='2030.b'!$C$54 -> 20.87915787 | O32: ='2030.b'!$C$64 -> 42.4470067 | P32: ='2030.b'!$C$74 -> 63.32616456 | Q32: 826.8483727 | R32: ='2030.b'!$O$94 -> 159.3991207
G33: Dry | H33: ='SJRRP WY Types'!$D$6 -> 11 (13%) | I33: ='2030.b'!$O$105 -> 1235.837141 | J33: ='2030.b'!$O$85 -> 292.7268941 | K33: ='2030.b'!$O$15 -> 635.2850022 | L33: ='2030.b'!$O$25 -> 0 | M33: ='2030.b'!$O$35 -> 0 | N33: ='2030.b'!$C$55 -> 64.66040255 | O33: ='2030.b'!$C$65 -> 12.89555745 | P33: ='2030.b'!$C$75 -> 77.55596 | Q33: 712.8409622 | R33: ='2030.b'!$O$95 -> 183.7174669
G34: Critical | H34: ='SJRRP WY Types'!$D$7 -> 7 (9%) | I34: ='2030.b'!$O$106 -> 915.7031245 | J34: ='2030.b'!$O$86 -> 238.8864201 | K34: ='2030.b'!$O$16 -> 402.3462914 | L34: ='2030.b'!$O$26 -> 0 | M34: ='2030.b'!$O$36 -> 0 | N34: ='2030.b'!$C$56 -> 38.92851183 | O34: ='2030.b'!$C$66 -> 0 | P34: ='2030.b'!$C$76 -> 38.92851183 | Q34: 441.2748032 | R34: ='2030.b'!$O$96 -> 99.13593153
G35: Long-Term | H35: ='SJRRP WY Types'!$D$8 -> 82 | I35: ='2030.b'!$O$107 -> 1758.23879 | J35: ='2030.b'!$O$87 -> 417.1476797 | K35: ='2030.b'!$O$17 -> 726.3901481 | L35: ='2030.b'!$O$27 -> 164.8696428 | M35: ='2030.b'!$O$37 -> 0 | N35: ='2030.b'!$C$57 -> 18.33165185 | O35: ='2030.b'!$C$67 -> 39.81192644 | P35: ='2030.b'!$C$77 -> 58.14357829 | Q35: 949.4033692 | R35: ='2030.b'!$O$97 -> 279.7735131
B36: 2030.c | C36: =Documentation!C20 -> Near-Future (DWR 2030 Central Tendency) | D36: =Documentation!D21 -> Full SJRRS | E36: =Documentation!E22 -> Full Access | F36: =Documentation!F20 -> Water Commission, 2030 climate | G36: Wet | H36: ='SJRRP WY Types'!$D$3 -> 18 (22%) | I36: ='2030.c'!$O$102 -> 2499.115267 | J36: ='2030.c'!$O$82 -> 624.1813485 | K36: ='2030.c'!$O$12 -> 799.8789474 | L36: ='2030.c'!$O$22 -> 448.3739678 | M36: ='2030.c'!$O$32 -> 220.9930071 | N36: ='2030.c'!$C$52 -> 0.1210525523 | O36: ='2030.c'!$C$62 -> 43.45659847 | P36: ='2030.c'!$C$72 -> 43.57765103 | Q36: 1512.823573 | R36: ='2030.c'!$O$92 -> 353.5726439
G37: Normal-Wet | H37: ='SJRRP WY Types'!$D$4 -> 21 (26%) | I37: ='2030.c'!$O$103 -> 2043.429339 | J37: ='2030.c'!$O$83 -> 430.3551334 | K37: ='2030.c'!$O$13 -> 794.024817 | L37: ='2030.c'!$O$23 -> 225.7092405 | M37: ='2030.c'!$O$33 -> 299.5588197 | N37: ='2030.c'!$C$53 -> 1.395494992 | O37: ='2030.c'!$C$63 -> 78.68264297 | P37: ='2030.c'!$C$73 -> 80.07813796 | Q37: 1399.371015 | R37: ='2030.c'!$O$93 -> 200.9909949
G38: Normal-Dry | H38: ='SJRRP WY Types'!$D$5 -> 25 (30%) | I38: ='2030.c'!$O$104 -> 1438.213359 | J38: ='2030.c'!$O$84 -> 359.3350134 | K38: ='2030.c'!$O$14 -> 717.8413257 | L38: ='2030.c'!$O$24 -> 18.3823116 | M38: ='2030.c'!$O$34 -> 102.0217288 | N38: ='2030.c'!$C$54 -> 32.78384518 | O38: ='2030.c'!$C$64 -> 27.68625151 | P38: ='2030.c'!$C$74 -> 60.47009669 | Q38: =SUM(K38:O38) -> 898.7154627 | R38: ='2030.c'!$O$94 -> 117.1120435
G39: Dry | H39: ='SJRRP WY Types'!$D$6 -> 11 (13%) | I39: ='2030.c'!$O$105 -> 1235.837141 | J39: ='2030.c'!$O$85 -> 292.7268941 | K39: ='2030.c'!$O$15 -> 534.9765508 | L39: ='2030.c'!$O$25 -> 0 | M39: ='2030.c'!$O$35 -> 188.3426492 | N39: ='2030.c'!$C$55 -> 70.05538533 | O39: ='2030.c'!$C$65 -> 0 | P39: ='2030.c'!$C$75 -> 70.05538533 | Q39: 793.3745853 | R39: ='2030.c'!$O$95 -> 94.71712172
G40: Critical | H40: ='SJRRP WY Types'!$D$7 -> 7 (9%) | I40: ='2030.c'!$O$106 -> 915.7031245 | J40: ='2030.c'!$O$86 -> 238.8864201 | K40: ='2030.c'!$O$16 -> 359.8387576 | L40: ='2030.c'!$O$26 -> 0 | M40: ='2030.c'!$O$36 -> 104.3368438 | N40: ='2030.c'!$C$56 -> 31.07376817 | O40: ='2030.c'!$C$66 -> 0 | P40: ='2030.c'!$C$76 -> 31.07376817 | Q40: 495.2493696 | R40: ='2030.c'!$O$96 -> 40.04412726
G41: Long-Term | H41: ='SJRRP WY Types'!$D$8 -> 82 | I41: ='2030.c'!$O$107 -> 1758.23879 | J41: ='2030.c'!$O$87 -> 417.1476935 | K41: ='2030.c'!$O$17 -> 700.0512023 | L41: ='2030.c'!$O$27 -> 163.6024809 | M41: ='2030.c'!$O$37 -> 191.5957763 | N41: ='2030.c'!$C$57 -> 22.30150915 | O41: ='2030.c'!$C$67 -> 38.2595594 | P41: ='2030.c'!$C$77 -> 60.56106854 | Q41: 1115.810528 | R41: ='2030.c'!$O$97 -> 181.7037624
B42: 2070.a | C42: =Documentation!C23 -> Late-future (DWR 2070 Central Tendency) | D42: =Documentation!D23 -> Pre-SJRRS | E42: =Documentation!E23 -> Pre-SJRRS | F42: =Documentation!F23 -> Water Commission, 2070 climate | G42: Wet | H42: ='SJRRP WY Types'!$E$3 -> 19 (23%) | I42: ='2070.a'!$O$102 -> 2471.818103 | J42: ='2070.a'!$O$82 -> 116.789838 | K42: ='2070.a'!$O$12 -> 800 | L42: ='2070.a'!$O$22 -> 343.9372173 | M42: ='2070.a'!$O$32 -> 0 | N42: ='2070.a'!$C$52 -> -5.385165997e-14 | O42: ='2070.a'!$C$62 -> 5.385165997e-14 | P42: ='2070.a'!$C$72 -> 0 | Q42: 1143.937217 | R42: ='2070.a'!$O$92 -> 969.9180027
G43: Normal-Wet | H43: ='SJRRP WY Types'!$E$4 -> 20 (24%) | I43: ='2070.a'!$O$103 -> 1961.389129 | J43: ='2070.a'!$O$83 -> 116.8000015 | K43: ='2070.a'!$O$13 -> 800 | L43: ='2070.a'!$O$23 -> 157.9912579 | M43: ='2070.a'!$O$33 -> 0 | N43: ='2070.a'!$C$53 -> -3.410605132e-14 | O43: ='2070.a'!$C$63 -> 3.410605132e-14 | P43: ='2070.a'!$C$73 -> 0 | Q43: 957.9912579 | R43: ='2070.a'!$O$93 -> 604.0978279
G44: Normal-Dry | H44: ='SJRRP WY Types'!$E$5 -> 20 (24%) | I44: ='2070.a'!$O$104 -> 1439.214371 | J44: ='2070.a'!$O$84 -> 116.7898381 | K44: ='2070.a'!$O$14 -> 800 | L44: ='2070.a'!$O$24 -> 63.43236373 | M44: ='2070.a'!$O$34 -> 0 | N44: ='2070.a'!$C$54 -> -8.376924885e-14 | O44: ='2070.a'!$C$64 -> 8.376924885e-14 | P44: ='2070.a'!$C$74 -> 0 | Q44: 863.4323637 | R44: ='2070.a'!$O$94 -> 241.5088177
G45: Dry | H45: ='SJRRP WY Types'!$E$6 -> 16 (20%) | I45: ='2070.a'!$O$105 -> 1283.722804 | J45: ='2070.a'!$O$85 -> 116.8000013 | K45: ='2070.a'!$O$15 -> 726.4751604 | L45: ='2070.a'!$O$25 -> 0 | M45: ='2070.a'!$O$35 -> 0 | N45: ='2070.a'!$C$55 -> 0 | O45: ='2070.a'!$C$65 -> 0 | P45: ='2070.a'!$C$75 -> 0 | Q45: 726.4751604 | R45: ='2070.a'!$O$95 -> 340.2377111
G46: Critical | H46: ='SJRRP WY Types'!$E$7 -> 7 (9%) | I46: ='2070.a'!$O$106 -> 950.5749205 | J46: ='2070.a'!$O$86 -> 116.8000014 | K46: ='2070.a'!$O$16 -> 359.9308337 | L46: ='2070.a'!$O$26 -> 0 | M46: ='2070.a'!$O$36 -> 0 | N46: ='2070.a'!$C$56 -> 0 | O46: ='2070.a'!$C$66 -> 0 | P46: ='2070.a'!$C$76 -> 0 | Q46: 359.9308337 | R46: ='2070.a'!$O$96 -> 268.1892713
G47: Long-Term | H47: ='SJRRP WY Types'!$E$8 -> 82 | I47: ='2070.a'!$O$107 -> 1737.419616 | J47: ='2070.a'!$O$87 -> 116.7952334 | K47: ='2070.a'!$O$17 -> 747.4459062 | L47: ='2070.a'!$O$27 -> 134.5660148 | M47: ='2070.a'!$O$37 -> 0 | N47: ='2070.a'!$C$57 -> -4.070269499e-14 | O47: ='2070.a'!$C$67 -> 4.070269499e-14 | P47: ='2070.a'!$C$77 -> 0 | Q47: 882.011921 | R47: ='2070.a'!$O$97 -> 523.706104
B48: 2070.b | C48: =Documentation!C23 -> Late-future (DWR 2070 Central Tendency) | D48: =Documentation!D24 -> Full SJRRS | E48: =Documentation!E24 -> Limited Access | F48: =Documentation!F23 -> Water Commission, 2070 climate | G48: Wet | H48: ='SJRRP WY Types'!$E$3 -> 19 (23%) | I48: ='2070.b'!$O$102 -> 2471.818103 | J48: ='2070.b'!$O$82 -> 622.5144311 | K48: ='2070.b'!$O$12 -> 788.0595818 | L48: ='2070.b'!$O$22 -> 243.8561051 | M48: ='2070.b'!$O$32 -> 0 | N48: ='2070.b'!$C$52 -> 10.60036988 | O48: ='2070.b'!$C$62 -> 26.269884 | P48: ='2070.b'!$C$72 -> 36.87025388 | Q48: 1068.785941 | R48: ='2070.b'!$O$92 -> 685.114237
G49: Normal-Wet | H49: ='SJRRP WY Types'!$E$4 -> 20 (24%) | I49: ='2070.b'!$O$103 -> 1961.389129 | J49: ='2070.b'!$O$83 -> 430.1960308 | K49: ='2070.b'!$O$13 -> 788.126284 | L49: ='2070.b'!$O$23 -> 116.2411717 | M49: ='2070.b'!$O$33 -> 0 | N49: ='2070.b'!$C$53 -> 6.554918077 | O49: ='2070.b'!$C$63 -> 53.0022209 | P49: ='2070.b'!$C$73 -> 59.55713898 | Q49: 963.9245947 | R49: ='2070.b'!$O$93 -> 425.5859725
G50: Normal-Dry | H50: ='SJRRP WY Types'!$E$5 -> 20 (24%) | I50: ='2070.b'!$O$104 -> 1439.214371 | J50: ='2070.b'!$O$84 -> 356.149829 | K50: ='2070.b'!$O$14 -> 758.0047082 | L50: ='2070.b'!$O$24 -> 5.413871695 | M50: ='2070.b'!$O$34 -> 0 | N50: ='2070.b'!$C$54 -> 30.50033589 | O50: ='2070.b'!$C$64 -> 34.07878426 | P50: ='2070.b'!$C$74 -> 64.57912015 | Q50: 827.9977001 | R50: ='2070.b'!$O$94 -> 184.7070402
G51: Dry | H51: ='SJRRP WY Types'!$E$6 -> 16 (20%) | I51: ='2070.b'!$O$105 -> 1283.722804 | J51: ='2070.b'!$O$85 -> 294.114181 | K51: ='2070.b'!$O$15 -> 584.2095753 | L51: ='2070.b'!$O$25 -> 0 | M51: ='2070.b'!$O$35 -> 0 | N51: ='2070.b'!$C$55 -> 60.93788833 | O51: ='2070.b'!$C$65 -> 0.7820134219 | P51: ='2070.b'!$C$75 -> 61.71990175 | Q51: 645.9294771 | R51: ='2070.b'!$O$95 -> 292.8344582
G52: Critical | H52: ='SJRRP WY Types'!$E$7 -> 7 (9%) | I52: ='2070.b'!$O$106 -> 950.5749205 | J52: ='2070.b'!$O$86 -> 238.6608003 | K52: ='2070.b'!$O$16 -> 290.5723704 | L52: ='2070.b'!$O$26 -> 0 | M52: ='2070.b'!$O$36 -> 0 | N52: ='2070.b'!$C$56 -> 14.75839878 | O52: ='2070.b'!$C$66 -> 0 | P52: ='2070.b'!$C$76 -> 14.75839878 | Q52: 305.3307692 | R52: ='2070.b'!$O$96 -> 209.056261
G53: Long-Term | H53: ='SJRRP WY Types'!$E$8 -> 82 | I53: ='2070.b'!$O$107 -> 1737.419616 | J53: ='2070.b'!$O$87 -> 414.5060995 | K53: ='2070.b'!$O$17 -> 697.766753 | L53: ='2070.b'!$O$27 -> 87.17225918 | M53: ='2070.b'!$O$37 -> 0 | N53: ='2070.b'!$C$57 -> 24.5719355 | O53: ='2070.b'!$C$67 -> 27.39730037 | P53: ='2070.b'!$C$77 -> 51.96923587 | Q53: 836.908248 | R53: ='2070.b'!$O$97 -> 385.0255417
B54: 2070.c | C54: =Documentation!C23 -> Late-future (DWR 2070 Central Tendency) | D54: =Documentation!D24 -> Full SJRRS | E54: =Documentation!E25 -> Full Access | F54: =Documentation!F23 -> Water Commission, 2070 climate | G54: Wet | H54: ='SJRRP WY Types'!$E$3 -> 19 (23%) | I54: ='2070.c'!$O$102 -> 2471.818103 | J54: ='2070.c'!$O$82 -> 622.5157983 | K54: ='2070.c'!$O$12 -> 773.4365182 | L54: ='2070.c'!$O$22 -> 238.9807189 | M54: ='2070.c'!$O$32 -> 275.6679629 | N54: ='2070.c'!$C$52 -> 12.67026885 | O54: ='2070.c'!$C$62 -> 22.83103284 | P54: ='2070.c'!$C$72 -> 35.5013017 | Q54: 1323.586502 | R54: ='2070.c'!$O$92 -> 495.9901512
G55: Normal-Wet | H55: ='SJRRP WY Types'!$E$4 -> 20 (24%) | I55: ='2070.c'!$O$103 -> 1961.389129 | J55: ='2070.c'!$O$83 -> 430.1960308 | K55: ='2070.c'!$O$13 -> 773.6444783 | L55: ='2070.c'!$O$23 -> 110.7599797 | M55: ='2070.c'!$O$33 -> 289.420957 | N55: ='2070.c'!$C$53 -> 8.701197688 | O55: ='2070.c'!$C$63 -> 37.21091614 | P55: ='2070.c'!$C$73 -> 45.91211383 | Q55: 1219.737529 | R55: ='2070.c'!$O$93 -> 259.1036285
G56: Normal-Dry | H56: ='SJRRP WY Types'!$E$5 -> 20 (24%) | I56: ='2070.c'!$O$104 -> 1439.214371 | J56: ='2070.c'!$O$84 -> 356.1504047 | K56: ='2070.c'!$O$14 -> 697.1731734 | L56: ='2070.c'!$O$24 -> 4.43717536 | M56: ='2070.c'!$O$34 -> 159.0547701 | N56: ='2070.c'!$C$54 -> 38.07758188 | O56: ='2070.c'!$C$64 -> 26.99725984 | P56: ='2070.c'!$C$74 -> 65.07484171 | Q56: 925.7399606 | R56: ='2070.c'!$O$94 -> 111.0379102
G57: Dry | H57: ='SJRRP WY Types'!$E$6 -> 16 (20%) | I57: ='2070.c'!$O$105 -> 1283.722804 | J57: ='2070.c'!$O$85 -> 294.114181 | K57: ='2070.c'!$O$15 -> 498.5671343 | L57: ='2070.c'!$O$25 -> 0 | M57: ='2070.c'!$O$35 -> 198.6077708 | N57: ='2070.c'!$C$55 -> 40.97049288 | O57: ='2070.c'!$C$65 -> 0 | P57: ='2070.c'!$C$75 -> 40.97049288 | Q57: 738.145398 | R57: ='2070.c'!$O$95 -> 180.7926824
G58: Critical | H58: ='SJRRP WY Types'!$E$7 -> 7 (9%) | I58: ='2070.c'!$O$106 -> 950.5749205 | J58: ='2070.c'!$O$86 -> 238.6608003 | K58: ='2070.c'!$O$16 -> 245.3784514 | L58: ='2070.c'!$O$26 -> 0 | M58: ='2070.c'!$O$36 -> 138.0572675 | N58: ='2070.c'!$C$56 -> 29.89959829 | O58: ='2070.c'!$C$66 -> 0 | P58: ='2070.c'!$C$76 -> 29.89959829 | Q58: 413.3353172 | R58: ='2070.c'!$O$96 -> 132.0222757
G59: Long-Term | H59: ='SJRRP WY Types'!$E$8 -> 82 | I59: ='2070.c'!$O$107 -> 1737.419616 | J59: ='2070.c'!$O$87 -> 414.5065552 | K59: ='2070.c'!$O$17 -> 655.6690989 | L59: ='2070.c'!$O$27 -> 84.44616772 | M59: ='2070.c'!$O$37 -> 224.5960034 | N59: ='2070.c'!$C$57 -> 24.72911348 | O59: ='2070.c'!$C$67 -> 20.87599857 | P59: ='2070.c'!$C$77 -> 45.60511205 | Q59: 1010.316382 | R59: ='2070.c'!$O$97 -> 253.4869702
B60: DEW.a | C60: =Documentation!C26 -> Late-future, 2070 Drier/ Extreme Warming | D60: =Documentation!D26 -> Pre-SJRRS | E60: =Documentation!E26 -> Pre-SJRRS | F60: =Documentation!F26 -> Water Commission, 2070 DEW climate | G60: Wet | H60: ='SJRRP WY Types'!$F$3 -> 21 (26%) | I60: =DEW.a!$O$102 -> 2187.299357 | J60: =DEW.a!$O$82 -> 116.790806 | K60: =DEW.a!$O$12 -> 795.3147592 | L60: =DEW.a!$O$22 -> 135.9333508 | M60: =DEW.a!$O$32 -> 0 | N60: =DEW.a!$C$52 -> -4.872293045e-14 | O60: =DEW.a!$C$62 -> 4.872293045e-14 | P60: =DEW.a!$C$72 -> 0 | Q60: 931.24811 | R60: =DEW.a!$O$92 -> 985.3459799
G61: Normal-Wet | H61: ='SJRRP WY Types'!$F$4 -> 12 (15%) | I61: =DEW.a!$O$103 -> 1964.520797 | J61: =DEW.a!$O$83 -> 116.8000014 | K61: =DEW.a!$O$13 -> 786.4574203 | L61: =DEW.a!$O$23 -> 50.92124312 | M61: =DEW.a!$O$33 -> 0 | N61: =DEW.a!$C$53 -> -7.579122515e-14 | O61: =DEW.a!$C$63 -> 7.579122515e-14 | P61: =DEW.a!$C$73 -> 0 | Q61: 837.3786634 | R61: =DEW.a!$O$93 -> 843.3014295
G62: Normal-Dry | H62: ='SJRRP WY Types'!$F$5 -> 11 (13%) | I62: =DEW.a!$O$104 -> 1324.370288 | J62: =DEW.a!$O$84 -> 116.7806912 | K62: =DEW.a!$O$14 -> 771.8402761 | L62: =DEW.a!$O$24 -> 24.95567715 | M62: =DEW.a!$O$34 -> 0 | N62: =DEW.a!$C$54 -> -5.684341886e-14 | O62: =DEW.a!$C$64 -> 5.684341886e-14 | P62: =DEW.a!$C$74 -> 0 | Q62: 796.7959533 | R62: =DEW.a!$O$94 -> 294.8340167
G63: Dry | H63: ='SJRRP WY Types'!$F$6 -> 20 (24%) | I63: =DEW.a!$O$105 -> 1180.687175 | J63: =DEW.a!$O$85 -> 116.8000014 | K63: =DEW.a!$O$15 -> 725.0203182 | L63: =DEW.a!$O$25 -> 0 | M63: =DEW.a!$O$35 -> 0 | N63: =DEW.a!$C$55 -> -5.684341886e-15 | O63: =DEW.a!$C$65 -> 5.684341886e-15 | P63: =DEW.a!$C$75 -> 0 | Q63: 725.0203182 | R63: =DEW.a!$O$95 -> 168.7889167
G64: Critical | H64: ='SJRRP WY Types'!$F$7 -> 18 (22%) | I64: =DEW.a!$O$106 -> 1224.945512 | J64: =DEW.a!$O$86 -> 116.8000011 | K64: =DEW.a!$O$16 -> 311.9414893 | L64: =DEW.a!$O$26 -> 0 | M64: =DEW.a!$O$36 -> 0 | N64: =DEW.a!$C$56 -> 0 | O64: =DEW.a!$C$66 -> 0 | P64: =DEW.a!$C$76 -> 0 | Q64: 311.9414893 | R64: =DEW.a!$O$96 -> 602.7585004
G65: Long-Term | H65: ='SJRRP WY Types'!$F$8 -> 82 | I65: =DEW.a!$O$107 -> 1585.358045 | J65: =DEW.a!$O$87 -> 116.7952334 | K65: =DEW.a!$O$17 -> 666.3315422 | L65: =DEW.a!$O$27 -> 45.86681552 | M65: =DEW.a!$O$37 -> 0 | N65: =DEW.a!$C$57 -> -3.228144775e-14 | O65: =DEW.a!$C$67 -> 3.228144775e-14 | P65: =DEW.a!$C$77 -> 0 | Q65: 712.1983577 | R65: =DEW.a!$O$97 -> 592.4154844
B66: DEW.b | C66: =Documentation!C26 -> Late-future, 2070 Drier/ Extreme Warming | D66: =Documentation!D27 -> Full SJRRS | E66: =Documentation!E27 -> Limited Access | F66: =Documentation!F26 -> Water Commission, 2070 DEW climate | G66: Wet | H66: ='SJRRP WY Types'!$F$3 -> 21 (26%) | I66: =DEW.b!$O$102 -> 2187.299357 | J66: =DEW.b!$O$82 -> 606.0666103 | K66: =DEW.b!$O$12 -> 716.4176037 | L66: =DEW.b!$O$22 -> 51.24248376 | M66: =DEW.b!$O$32 -> 0 | N66: =DEW.b!$C$52 -> 21.01138424 | O66: =DEW.b!$C$62 -> 23.91236426 | P66: =DEW.b!$C$72 -> 44.9237485 | Q66: 812.583836 | R66: =DEW.b!$O$92 -> 739.2463028
G67: Normal-Wet | H67: ='SJRRP WY Types'!$F$4 -> 12 (15%) | I67: =DEW.b!$O$103 -> 1964.520797 | J67: =DEW.b!$O$83 -> 413.1638998 | K67: =DEW.b!$O$13 -> 758.6176396 | L67: =DEW.b!$O$23 -> 24.09068618 | M67: =DEW.b!$O$33 -> 0 | N67: =DEW.b!$C$53 -> 6.476970033 | O67: =DEW.b!$C$63 -> 29.80839954 | P67: =DEW.b!$C$73 -> 36.28536958 | Q67: 818.9936954 | R67: =DEW.b!$O$93 -> 667.7298739
G68: Normal-Dry | H68: ='SJRRP WY Types'!$F$5 -> 11 (13%) | I68: =DEW.b!$O$104 -> 1324.370288 | J68: =DEW.b!$O$84 -> 339.0637938 | K68: =DEW.b!$O$14 -> 698.1184905 | L68: =DEW.b!$O$24 -> 3.303261894 | M68: =DEW.b!$O$34 -> 0 | N68: =DEW.b!$C$54 -> 27.51240867 | O68: =DEW.b!$C$64 -> 22.2568872 | P68: =DEW.b!$C$74 -> 49.76929587 | Q68: 751.1910483 | R68: =DEW.b!$O$94 -> 207.4826799
G69: Dry | H69: ='SJRRP WY Types'!$F$6 -> 20 (24%) | I69: =DEW.b!$O$105 -> 1180.687175 | J69: =DEW.b!$O$85 -> 287.7971578 | K69: =DEW.b!$O$15 -> 569.9145396 | L69: =DEW.b!$O$25 -> 0 | M69: =DEW.b!$O$35 -> 0 | N69: =DEW.b!$C$55 -> 47.29823612 | O69: =DEW.b!$C$65 -> 0 | P69: =DEW.b!$C$75 -> 47.29823612 | Q69: 617.2127758 | R69: =DEW.b!$O$95 -> 130.3769207
G70: Critical | H70: ='SJRRP WY Types'!$F$7 -> 18 (22%) | I70: =DEW.b!$O$106 -> 1224.945512 | J70: =DEW.b!$O$86 -> 201.6084483 | K70: =DEW.b!$O$16 -> 289.4131793 | L70: =DEW.b!$O$26 -> 0 | M70: =DEW.b!$O$36 -> 0 | N70: =DEW.b!$C$56 -> 41.86953849 | O70: =DEW.b!$C$66 -> 0 | P70: =DEW.b!$C$76 -> 41.86953849 | Q70: 331.2827177 | R70: =DEW.b!$O$96 -> 558.6502126
G71: Long-Term | H71: ='SJRRP WY Types'!$F$8 -> 82 | I71: =DEW.b!$O$107 -> 1585.358045 | J71: =DEW.b!$O$87 -> 376.0604787 | K71: =DEW.b!$O$17 -> 589.3468429 | L71: =DEW.b!$O$27 -> 17.26188904 | M71: =DEW.b!$O$37 -> 0 | N71: =DEW.b!$C$57 -> 30.7864594 | O71: =DEW.b!$C$67 -> 13.36332489 | P71: =DEW.b!$C$77 -> 44.14978429 | Q71: 650.7585163 | R71: =DEW.b!$O$97 -> 472.5308628
B72: DEW.c | C72: =Documentation!C26 -> Late-future, 2070 Drier/ Extreme Warming | D72: =Documentation!D27 -> Full SJRRS | E72: =Documentation!E28 -> Full Access | F72: =Documentation!F26 -> Water Commission, 2070 DEW climate | G72: Wet | H72: ='SJRRP WY Types'!$F$3 -> 21 (26%) | I72: =DEW.c!$O$102 -> 2187.299357 | J72: =DEW.c!$O$82 -> 606.0666103 | K72: =DEW.c!$O$12 -> 698.2215788 | L72: =DEW.c!$O$22 -> 47.3016514 | M72: =DEW.c!$O$32 -> 219.7426233 | N72: =DEW.c!$C$52 -> 21.21588921 | O72: =DEW.c!$C$62 -> 26.37191521 | P72: =DEW.c!$C$72 -> 47.58780442 | Q72: 1012.853658 | R72: =DEW.c!$O$92 -> 580.0108882
G73: Normal-Wet | H73: ='SJRRP WY Types'!$F$4 -> 12 (15%) | I73: =DEW.c!$O$103 -> 1964.520797 | J73: =DEW.c!$O$83 -> 413.1644399 | K73: =DEW.c!$O$13 -> 727.6572766 | L73: =DEW.c!$O$23 -> 10.73236887 | M73: =DEW.c!$O$33 -> 328.4755262 | N73: =DEW.c!$C$53 -> 9.324938213 | O73: =DEW.c!$C$63 -> 21.42057396 | P73: =DEW.c!$C$73 -> 30.74551217 | Q73: 1097.610684 | R73: =DEW.c!$O$93 -> 464.5007846
G74: Normal-Dry | H74: ='SJRRP WY Types'!$F$5 -> 11 (13%) | I74: =DEW.c!$O$104 -> 1324.370288 | J74: =DEW.c!$O$84 -> 339.0637938 | K74: =DEW.c!$O$14 -> 600.3556001 | L74: =DEW.c!$O$24 -> 2.23982971 | M74: =DEW.c!$O$34 -> 237.9727269 | N74: =DEW.c!$C$54 -> 59.35881179 | O74: =DEW.c!$C$64 -> 8.276551265 | P74: =DEW.c!$C$74 -> 67.63536305 | Q74: =SUM(K74:O74) -> 908.2035198 | R74: =DEW.c!$O$94 -> 83.79814483
G75: Dry | H75: ='SJRRP WY Types'!$F$6 -> 20 (24%) | I75: =DEW.c!$O$105 -> 1180.687175 | J75: =DEW.c!$O$85 -> 287.7970612 | K75: =DEW.c!$O$15 -> 504.7685196 | L75: =DEW.c!$O$25 -> 0 | M75: =DEW.c!$O$35 -> 114.7941743 | N75: =DEW.c!$C$55 -> 49.56710806 | O75: =DEW.c!$C$65 -> 0 | P75: =DEW.c!$C$75 -> 49.56710806 | Q75: 669.1298019 | R75: =DEW.c!$O$95 -> 82.99415376
G76: Critical | H76: ='SJRRP WY Types'!$F$7 -> 18 (22%) | I76: =DEW.c!$O$106 -> 1224.945512 | J76: =DEW.c!$O$86 -> 201.6084483 | K76: =DEW.c!$O$16 -> 241.6399001 | L76: =DEW.c!$O$26 -> 0 | M76: =DEW.c!$O$36 -> 199.7168387 | N76: =DEW.c!$C$56 -> 36.18203053 | O76: =DEW.c!$C$66 -> 0 | P76: =DEW.c!$C$76 -> 36.18203053 | Q76: 477.5387693 | R76: =DEW.c!$O$96 -> 408.1409673
G77: Long-Term | H77: ='SJRRP WY Types'!$F$8 -> 82 | I77: =DEW.c!$O$107 -> 1585.358045 | J77: =DEW.c!$O$87 -> 376.0605349 | K77: =DEW.c!$O$17 -> 541.2714206 | L77: =DEW.c!$O$27 -> 14.12989386 | M77: =DEW.c!$O$37 -> 207.7384599 | N77: =DEW.c!$C$57 -> 34.48937976 | O77: =DEW.c!$C$67 -> 11.03237802 | P77: =DEW.c!$C$77 -> 45.52175778 | Q77: 808.6615322 | R77: =DEW.c!$O$97 -> 340.7239506
B78: WMW.a | C78: =Documentation!C29 -> Late-future, 2070 Wetter/Moderate Warming | D78: =Documentation!D29 -> Pre-SJRRS | E78: =Documentation!E29 -> Pre-SJRRS | F78: =Documentation!F29 -> Water Commission, 2070 WMW climate | G78: Wet | H78: ='SJRRP WY Types'!$G$3 -> 35 (43%) | I78: =WMW.a!$O$102 -> 2963.939011 | J78: =WMW.a!$O$82 -> 116.7944842 | K78: =WMW.a!$O$12 -> 800 | L78: =WMW.a!$O$22 -> 457.3019417 | M78: =WMW.a!$O$32 -> 0 | N78: =WMW.a!$C$52 -> -7.470849336e-14 | O78: =WMW.a!$C$62 -> 7.470849336e-14 | P78: =WMW.a!$C$72 -> 0 | Q78: 1257.301942 | R78: =WMW.a!$O$92 -> 1229.942804
G79: Normal-Wet | H79: ='SJRRP WY Types'!$G$4 -> 21 (26%) | I79: =WMW.a!$O$103 -> 2094.677362 | J79: =WMW.a!$O$83 -> 116.7903463 | K79: =WMW.a!$O$13 -> 800 | L79: =WMW.a!$O$23 -> 246.4081861 | M79: =WMW.a!$O$33 -> 0 | N79: =WMW.a!$C$53 -> -6.252776075e-14 | O79: =WMW.a!$C$63 -> 6.252776075e-14 | P79: =WMW.a!$C$73 -> 0 | Q79: 1046.408186 | R79: =WMW.a!$O$93 -> 565.7098403
G80: Normal-Dry | H80: ='SJRRP WY Types'!$G$5 -> 15 (18%) | I80: =WMW.a!$O$104 -> 1692.324496 | J80: =WMW.a!$O$84 -> 116.8000012 | K80: =WMW.a!$O$14 -> 783.1960901 | L80: =WMW.a!$O$24 -> 99.52649895 | M80: =WMW.a!$O$34 -> 0 | N80: =WMW.a!$C$54 -> -9.094947018e-14 | O80: =WMW.a!$C$64 -> 9.094947018e-14 | P80: =WMW.a!$C$74 -> 0 | Q80: 882.7225891 | R80: =WMW.a!$O$94 -> 400.0943163
G81: Dry | H81: ='SJRRP WY Types'!$G$6 -> 9 (11%) | I81: =WMW.a!$O$105 -> 1411.558326 | J81: =WMW.a!$O$85 -> 116.8000014 | K81: =WMW.a!$O$15 -> 715.6790891 | L81: =WMW.a!$O$25 -> 0.1194723293 | M81: =WMW.a!$O$35 -> 0 | N81: =WMW.a!$C$55 -> -3.789561257e-14 | O81: =WMW.a!$C$65 -> 3.789561257e-14 | P81: =WMW.a!$C$75 -> 0 | Q81: 715.7985614 | R81: =WMW.a!$O$95 -> 458.245913
G82: Critical | H82: ='SJRRP WY Types'!$G$7 -> 2 (2%) | I82: =WMW.a!$O$106 -> 1328.830637 | J82: =WMW.a!$O$86 -> 116.8000013 | K82: =WMW.a!$O$16 -> 443.9487385 | L82: =WMW.a!$O$26 -> 0 | M82: =WMW.a!$O$36 -> 0 | N82: =WMW.a!$C$56 -> 0 | O82: =WMW.a!$C$66 -> 0 | P82: =WMW.a!$C$76 -> 0 | Q82: 443.9487385 | R82: =WMW.a!$O$96 -> 620.7880331
G83: Long-Term | H83: ='SJRRP WY Types'!$G$8 -> 82 | I83: =WMW.a!$O$107 -> 2300.962547 | J83: =WMW.a!$O$87 -> 116.7952334 | K83: =WMW.a!$O$17 -> 778.7277856 | L83: =WMW.a!$O$27 -> 276.8852397 | M83: =WMW.a!$O$37 -> 0 | N83: =WMW.a!$C$57 -> -6.877351912e-14 | O83: =WMW.a!$C$67 -> 6.877351912e-14 | P83: =WMW.a!$C$77 -> 0 | Q83: 1055.613025 | R83: =WMW.a!$O$97 -> 811.4740615
B84: WMW.b | C84: =Documentation!C29 -> Late-future, 2070 Wetter/Moderate Warming | D84: =Documentation!D30 -> Full SJRRS | E84: =Documentation!E30 -> Limited Access | F84: =Documentation!F29 -> Water Commission, 2070 WMW climate | G84: Wet | H84: ='SJRRP WY Types'!$G$3 -> 35 (43%) | I84: =WMW.b!$O$102 -> 2963.939011 | J84: =WMW.b!$O$82 -> 631.7515655 | K84: =WMW.b!$O$12 -> 793.7255563 | L84: =WMW.b!$O$22 -> 391.4991554 | M84: =WMW.b!$O$32 -> 0 | N84: =WMW.b!$C$52 -> 1.712109916 | O84: =WMW.b!$C$62 -> 54.93672598 | P84: =WMW.b!$C$72 -> 56.6488359 | Q84: 1241.873548 | R84: =WMW.b!$O$92 -> 892.5331123
G85: Normal-Wet | H85: ='SJRRP WY Types'!$G$4 -> 21 (26%) | I85: =WMW.b!$O$103 -> 2094.677362 | J85: =WMW.b!$O$83 -> 429.2967189 | K85: =WMW.b!$O$13 -> 798.7639502 | L85: =WMW.b!$O$23 -> 193.6145987 | M85: =WMW.b!$O$33 -> 0 | N85: =WMW.b!$C$53 -> 1.236049771 | O85: =WMW.b!$C$63 -> 59.27031878 | P85: =WMW.b!$C$73 -> 60.50636855 | Q85: 1052.884918 | R85: =WMW.b!$O$93 -> 404.2484667
G86: Normal-Dry | H86: ='SJRRP WY Types'!$G$5 -> 15 (18%) | I86: =WMW.b!$O$104 -> 1692.324496 | J86: =WMW.b!$O$84 -> 358.7046082 | K86: =WMW.b!$O$14 -> 763.7442985 | L86: =WMW.b!$O$24 -> 19.73728503 | M86: =WMW.b!$O$34 -> 0 | N86: =WMW.b!$C$54 -> 7.953611063 | O86: =WMW.b!$C$64 -> 55.42919582 | P86: =WMW.b!$C$74 -> 63.38280688 | Q86: 846.8643904 | R86: =WMW.b!$O$94 -> 312.6405217
G87: Dry | H87: ='SJRRP WY Types'!$G$6 -> 9 (11%) | I87: =WMW.b!$O$105 -> 1411.558326 | J87: =WMW.b!$O$85 -> 292.0622785 | K87: =WMW.b!$O$15 -> 576.2324778 | L87: =WMW.b!$O$25 -> 0 | M87: =WMW.b!$O$35 -> 0 | N87: =WMW.b!$C$55 -> 47.84440992 | O87: =WMW.b!$C$65 -> 4.290583911 | P87: =WMW.b!$C$75 -> 52.13499384 | Q87: 628.3674717 | R87: =WMW.b!$O$95 -> 389.6875601
G88: Critical | H88: ='SJRRP WY Types'!$G$7 -> 2 (2%) | I88: =WMW.b!$O$106 -> 1328.830637 | J88: =WMW.b!$O$86 -> 225.7239649 | K88: =WMW.b!$O$16 -> 426.8808982 | L88: =WMW.b!$O$26 -> 0 | M88: =WMW.b!$O$36 -> 0 | N88: =WMW.b!$C$56 -> 1.91765344 | O88: =WMW.b!$C$66 -> 0 | P88: =WMW.b!$C$76 -> 1.91765344 | Q88: 428.7985517 | R88: =WMW.b!$O$96 -> 547.5422646
G89: Long-Term | H89: ='SJRRP WY Types'!$G$8 -> 82 | I89: =WMW.b!$O$107 -> 2300.962547 | J89: =WMW.b!$O$87 -> 483.4298362 | K89: =WMW.b!$O$17 -> 756.193729 | L89: =WMW.b!$O$27 -> 220.6274282 | M89: =WMW.b!$O$37 -> 0 | N89: =WMW.b!$C$57 -> 7.881284008 | O89: =WMW.b!$C$67 -> 49.11413552 | P89: =WMW.b!$C$77 -> 56.99541953 | Q89: 1033.816577 | R89: =WMW.b!$O$97 -> 600.1914649
B90: WMW.c | C90: =Documentation!C29 -> Late-future, 2070 Wetter/Moderate Warming | D90: =Documentation!D30 -> Full SJRRS | E90: =Documentation!E31 -> Full Access | F90: =Documentation!F29 -> Water Commission, 2070 WMW climate | G90: Wet | H90: ='SJRRP WY Types'!$G$3 -> 35 (43%) | I90: =WMW.c!$O$102 -> 2963.939011 | J90: =WMW.c!$O$82 -> 631.7522149 | K90: =WMW.c!$O$12 -> 788.5256223 | L90: =WMW.c!$O$22 -> 389.6436859 | M90: =WMW.c!$O$32 -> 328.8960678 | N90: =WMW.c!$C$52 -> 1.99563488 | O90: =WMW.c!$C$62 -> 75.42120159 | P90: =WMW.c!$C$72 -> 77.41683647 | Q90: 1584.482212 | R90: =WMW.c!$O$92 -> 677.9488838
G91: Normal-Wet | H91: ='SJRRP WY Types'!$G$4 -> 21 (26%) | I91: =WMW.c!$O$103 -> 2094.677362 | J91: =WMW.c!$O$83 -> 429.2967189 | K91: =WMW.c!$O$13 -> 797.1825297 | L91: =WMW.c!$O$23 -> 186.3945199 | M91: =WMW.c!$O$33 -> 313.990113 | N91: =WMW.c!$C$53 -> 2.817470292 | O91: =WMW.c!$C$63 -> 77.84907675 | P91: =WMW.c!$C$73 -> 80.66654704 | Q91: 1378.23371 | R91: =WMW.c!$O$93 -> 265.9996828
G92: Normal-Dry | H92: ='SJRRP WY Types'!$G$5 -> 15 (18%) | I92: =WMW.c!$O$104 -> 1692.324496 | J92: =WMW.c!$O$84 -> 358.7046082 | K92: =WMW.c!$O$14 -> 718.7217485 | L92: =WMW.c!$O$24 -> 18.26447974 | M92: =WMW.c!$O$34 -> 252.2596184 | N92: =WMW.c!$C$54 -> 22.17490999 | O92: =WMW.c!$C$64 -> 34.65814908 | P92: =WMW.c!$C$74 -> 56.83305907 | Q92: 1046.078906 | R92: =WMW.c!$O$94 -> 183.8392613
G93: Dry | H93: ='SJRRP WY Types'!$G$6 -> 9 (11%) | I93: =WMW.c!$O$105 -> 1411.558326 | J93: =WMW.c!$O$85 -> 291.2350423 | K93: =WMW.c!$O$15 -> 513.2242805 | L93: =WMW.c!$O$25 -> 0 | M93: =WMW.c!$O$35 -> 220.3811464 | N93: =WMW.c!$C$55 -> 50.77526601 | O93: =WMW.c!$C$65 -> 0 | P93: =WMW.c!$C$75 -> 50.77526601 | Q93: 784.380693 | R93: =WMW.c!$O$95 -> 243.6074536
G94: Critical | H94: ='SJRRP WY Types'!$G$7 -> 2 (2%) | I94: =WMW.c!$O$106 -> 1328.830637 | J94: =WMW.c!$O$86 -> 225.7239649 | K94: =WMW.c!$O$16 -> 379.1133149 | L94: =WMW.c!$O$26 -> 0 | M94: =WMW.c!$O$36 -> 283.4530066 | N94: =WMW.c!$C$56 -> 0 | O94: =WMW.c!$C$66 -> 0 | P94: =WMW.c!$C$76 -> 0 | Q94: 662.5663215 | R94: =WMW.c!$O$96 -> 311.9507816
G95: Long-Term | H95: ='SJRRP WY Types'!$G$8 -> 82 | I95: =WMW.c!$O$107 -> 2300.962547 | J95: =WMW.c!$O$87 -> 483.3382016 | K95: =WMW.c!$O$17 -> 737.0385031 | L95: =WMW.c!$O$27 -> 217.7702049 | M95: =WMW.c!$O$37 -> 297.8443857 | N95: =WMW.c!$C$57 -> 11.30614408 | O95: =WMW.c!$C$67 -> 58.22957811 | P95: =WMW.c!$C$77 -> 69.53572219 | Q95: 1322.188816 | R95: =WMW.c!$O$97 -> 427.4341007
B96: Note: Critical SJRRP WY Type represents both Critical High and Critical Low water years

Sheet Delivery Summary
B2: =OFFSET('Friant Contractors'!$C$4,'Table Summary'!$B$2,0) -> Total Friant Contractors
T3: For Plotting Only
V4: Class 1 | W4: Class2/Other | X4: Recapture | Y4: Total
U5: Model Run | V5: TAF/yr | W5: TAF/yr | X5: TAF/yr | Y5: TAF/yr
U6: 2015.a | V6: ='Table Summary'!K11 -> 760.3731955 | W6: ='Table Summary'!L11 -> 336.666426 | X6: ='Table Summary'!P11 -> 0 | Y6: =SUM(V6:X6) -> 1097.039621
U7: 2015.b | V7: ='Table Summary'!K17 -> 728.1657736 | W7: ='Table Summary'!L17 -> 282.6407072 | X7: ='Table Summary'!P17 -> 46.99702193 | Y7: 1057.803503
U8: 2030.b | V8: ='Table Summary'!K35 -> 726.3901481 | W8: ='Table Summary'!L35 -> 164.8696428 | X8: ='Table Summary'!P35 -> 58.14357829 | Y8: 949.4033692
U9: 2070.b | V9: ='Table Summary'!K53 -> 697.766753 | W9: ='Table Summary'!L53 -> 87.17225918 | X9: ='Table Summary'!P53 -> 51.96923587 | Y9: 836.908248
U10: DEW.b | V10: ='Table Summary'!K71 -> 589.3468429 | W10: ='Table Summary'!L71 -> 17.26188904 | X10: ='Table Summary'!P71 -> 44.14978429 | Y10: 650.7585163
U11: WMW.b | V11: ='Table Summary'!K89 -> 756.193729 | W11: ='Table Summary'!L89 -> 220.6274282 | X11: ='Table Summary'!P89 -> 56.99541953 | Y11: 1033.816577
V13: Class 1 | W13: Class2/Other | X13: 16B | Y13: Recapture | Z13: Total
U14: Model Run | V14: TAF/yr | W14: TAF/yr | X14: TAF/yr | Y14: TAF/yr | Z14: TAF/yr
U15: 2015.a | V15: ='Table Summary'!K11 -> 760.3731955 | W15: ='Table Summary'!L11 -> 336.666426 | X15: ='Table Summary'!M11 -> 0 | Y15: ='Table Summary'!P11 -> 0 | Z15: ='Table Summary'!Q11 -> 1097.039621
U16: 2015.c | V16: ='Table Summary'!K23 -> 725.6598564 | W16: ='Table Summary'!L23 -> 283.2946605 | X16: ='Table Summary'!M23 -> 136.8884235 | Y16: ='Table Summary'!P23 -> 46.04183215 | Z16: ='Table Summary'!Q23 -> 1191.884773
U17: 2030.c | V17: ='Table Summary'!K41 -> 700.0512023 | W17: ='Table Summary'!L41 -> 163.6024809 | X17: ='Table Summary'!M41 -> 191.5957763 | Y17: ='Table Summary'!P41 -> 60.56106854 | Z17: ='Table Summary'!Q41 -> 1115.810528
U18: 2070.c | V18: ='Table Summary'!K59 -> 655.6690989 | W18: ='Table Summary'!L59 -> 84.44616772 | X18: ='Table Summary'!M59 -> 224.5960034 | Y18: ='Table Summary'!P59 -> 45.60511205 | Z18: ='Table Summary'!Q59 -> 1010.316382
U19: DEW.c | V19: ='Table Summary'!K77 -> 541.2714206 | W19: ='Table Summary'!L77 -> 14.12989386 | X19: ='Table Summary'!M77 -> 207.7384599 | Y19: ='Table Summary'!P77 -> 45.52175778 | Z19: ='Table Summary'!Q77 -> 808.6615322
U20: WMW.c | V20: ='Table Summary'!K95 -> 737.0385031 | W20: ='Table Summary'!L95 -> 217.7702049 | X20: ='Table Summary'!M95 -> 297.8443857 | Y20: ='Table Summary'!P95 -> 69.53572219 | Z20: ='Table Summary'!Q95 -> 1322.188816

Sheet 2015.a
B1: =OFFSET('Friant Contractors'!$C$4,'Table Summary'!$B$2,0) -> Total Friant Contractors | U1: Class 1 Delivery | AJ1: Class 2/Other | AY1: 16B | BN1: Delta Pumping | CC1: SJRRP Recapture | CI1: Recapture | CJ1: Recapture | CK1: Recapture | CN1: SJRRP Release | DC1: Millerton Spill | DR1: San Joaquin Inflow | EG1: CalSim Output | FB1: CalSim Monthly Timeseries | FP1: Class 1 and Class2/Other Delivery Adjustments | GB1: Selected Friant Contractor Class 1 and Class2/Other Delivery
B2: Model Run | E2: =Documentation!B17 -> 2015.a | U2: Mar | V2: Apr | W2: May | X2: Jun | Y2: Jul | Z2: Aug | AA2: Sep | AB2: Oct | AC2: Nov | AD2: Dec | AE2: Jan | AF2: Feb | AG2: Total | AJ2: Mar | AK2: Apr | AL2: May | AM2: Jun | AN2: Jul | AO2: Aug | AP2: Sep | AQ2: Oct | AR2: Nov | AS2: Dec | AT2: Jan | AU2: Feb | AV2: Total | AY2: Mar | AZ2: Apr | BA2: May | BB2: Jun | BC2: Jul | BD2: Aug | BE2: Sep | BF2: Oct | BG2: Nov | BH2: Dec | BI2: Jan | BJ2: Feb | BK2: Total | BN2: Mar | BO2: Apr | BP2: May | BQ2: Jun | BR2: Jul | BS2: Aug | BT2: Sep | BU2: Oct | BV2: Nov | BW2: Dec | BX2: Jan | BY2: Feb | BZ2: Total | CI2: Class 1 | CJ2: Class2/Other | CK2: Total | CN2: Mar | CO2: Apr | CP2: May | CQ2: Jun | CR2: Jul | CS2: Aug | CT2: Sep | CU2: Oct | CV2: Nov | CW2: Dec | CX2: Jan | CY2: Feb | CZ2: Total | DC2: Mar | DD2: Apr | DE2: May | DF2: Jun | DG2: Jul | DH2: Aug | DI2: Sep | DJ2: Oct | DK2: Nov | DL2: Dec | DM2: Jan | DN2: Feb | DO2: Total | DR2: Mar | DS2: Apr | DT2: May | DU2: Jun | DV2: Jul | DW2: Aug | DX2: Sep | DY2: Oct | DZ2: Nov | EA2: Dec | EB2: Jan | EC2: Feb | ED2: Total
B3: Climate Condition | E3: =Documentation!C17 -> 2015 Conditions (historical modified for recent changes) | U3: TAF | V3: TAF | W3: TAF | X3: TAF | Y3: TAF | Z3: TAF | AA3: TAF | AB3: TAF | AC3: TAF | AD3: TAF | AE3: TAF | AF3: TAF | AG3: TAF | AJ3: TAF | AK3: TAF | AL3: TAF | AM3: TAF | AN3: TAF | AO3: TAF | AP3: TAF | AQ3: TAF | AR3: TAF | AS3: TAF | AT3: TAF | AU3: TAF | AV3: TAF | AY3: TAF | AZ3: TAF | BA3: TAF | BB3: TAF | BC3: TAF | BD3: TAF | BE3: TAF | BF3: TAF | BG3: TAF | BH3: TAF | BI3: TAF | BJ3: TAF | BK3: TAF | BN3: TAF | BO3: TAF | BP3: TAF | BQ3: TAF | BR3: TAF | BS3: TAF | BT3: TAF | BU3: TAF | BV3: TAF | BW3: TAF | BX3: TAF | BY3: TAF | BZ3: TAF | CI3: TAF | CJ3: TAF | CK3: TAF | CN3: TAF | CO3: TAF | CP3: TAF | CQ3: TAF | CR3: TAF | CS3: TAF | CT3: TAF | CU3: TAF | CV3: TAF | CW3: TAF | CX3: TAF | CY3: TAF | CZ3: TAF | DC3: TAF | DD3: TAF | DE3: TAF | DF3: TAF | DG3: TAF | DH3: TAF | DI3: TAF | DJ3: TAF | DK3: TAF | DL3: TAF | DM3: TAF | DN3: TAF | DO3: TAF | DR3: TAF | DS3: TAF | DT3: TAF | DU3: TAF | DV3: TAF | DW3: TAF | DX3: TAF | DY3: TAF | DZ3: TAF | EA3: TAF | EB3: TAF | EC3: TAF | ED3: TAF | EG3: DCR2015_PreSJRRP | EH3: DCR2015_PreSJRRP | EI3: DCR2015_PreSJRRP | EJ3: DCR2015_PreSJRRP | EK3: DCR2015_PreSJRRP | EL3: DCR2015_PreSJRRP | EM3: DCR2015_PreSJRRP | EN3: DCR2015_PreSJRRP | EO3: DCR2015_PreSJRRP | EP3: DCR2015_PreSJRRP | EQ3: DCR2015_PreSJRRP | ER3: DCR2015_PreSJRRP | ES3: DCR2015_PreSJRRP | ET3: DCR2015_PreSJRRP | EU3: DCR2015_PreSJRRP | EV3: DCR2015_PreSJRRP | EW3: DCR2015_PreSJRRP | EX3: DCR2015_PreSJRRP | EY3: DCR2015_PreSJRRP | EZ3: DCR2015_PreSJRRP | FW3: These are adjusted. CalSim updates allocation | GC3: =B1 -> Total Friant Contractors
B4: Restoration Goal | E4: =Documentation!D17 -> Pre-SJRRS | T4: Wet | U4: =AVERAGEIF($S$14:$S$94,$T4,U$14:U$94) -> 16.08884394 | V4: 28.09474899 | W4: 51.60850147 | X4: 123.4224033 | Y4: 189.9249969 | Z4: 181.4847176 | AA4: 106.2663899 | AB4: 48.49975561 | AC4: 12.17898207 | AD4: 6.377289695 | AE4: 6.298751162 | AF4: 29.75461931 | AG4: =SUM(U4:AF4) -> 800 | AI4: Wet | AJ4: =AVERAGEIF($S$14:$S$94,$T4,AJ$14:AJ$94) -> 34.14347164 | AK4: =AVERAGEIF($S$14:$S$94,$T4,AK$14:AK$94) -> 57.89576185 | AL4: 113.0423329 | AM4: 131.5870241 | AN4: 107.2375318 | AO4: 94.33379687 | AP4: 58.33596931 | AQ4: 29.91556041 | AR4: 7.758769927 | AS4: 12.43241337 | AT4: 11.65909417 | AU4: 40.26189789 | AV4: =SUM(AJ4:AU4) -> 698.6036242 | AX4: Wet | AY4: =AVERAGEIF($S$14:$S$94,$T4,AY$14:AY$94) -> 0 | AZ4: =AVERAGEIF($S$14:$S$94,$T4,AZ$14:AZ$94) -> 0 | BA4: 0 | BB4: 0 | BC4: 0 | BD4: 0 | BE4: 0 | BF4: 0 | BG4: 0 | BH4: 0 | BI4: 0 | BJ4: 0 | BK4: =SUM(AY4:BJ4) -> 0 | BM4: Wet | BN4: =AVERAGEIF($S$14:$S$94,$T4,BN$14:BN$94) -> 592.154604 | BO4: =AVERAGEIF($S$14:$S$94,$T4,BO$14:BO$94) -> 219.3777439 | BP4: 250.8171013 | BQ4: 551.174898 | BR4: 702.3986206 | BS4: 719.9462083 | BT4: 639.5599849 | BU4: 479.9566747 | BV4: 407.6167368 | BW4: 645.6422705 | BX4: 462.2687747 | BY4: 445.5611409 | BZ4: =SUM(BN4:BY4) -> 6116.474759 | CH4: Wet | CI4: =AVERAGEIF($S$14:$S$94,$CH4,CI$14:CI$94) -> -6.394884622e-14 | CJ4: 6.394884622e-14 | CK4: =CI4+CJ4 -> 0 | CM4: Wet | CN4: =AVERAGEIF($S$14:$S$94,$T4,CN$14:CN$94) -> 8.000000111 | CO4: =AVERAGEIF($S$14:$S$94,$T4,CO$14:CO$94) -> 8.899999899 | CP4: 11.69999994 | CQ4: 11.2999996 | CR4: 14.10000082 | CS4: 14.10000082 | CT4: 12.4999999 | CU4: 9.800000535 | CV4: 7.300000101 | CW4: 7.400000126 | CX4: 6.099999768 | CY4: 5.58793082 | CZ4: =SUM(CN4:CY4) -> 116.7879324 | DB4: Wet | DC4: =AVERAGEIF($S$14:$S$94,$T4,DC$14:DC$94) -> 148.0853315 | DD4: 186.9617846 | DE4: 227.0792728 | DF4: 208.3528303 | DG4: 95.06656831 | DH4: 0 | DI4: 0 | DJ4: 3.701307907 | DK4: 7.913160352 | DL4: 25.72804062 | DM4: 28.18924731 | DN4: 36.3852503 | DO4: =SUM(DC4:DN4) -> 967.4627939 | DQ4: Wet | DR4: =AVERAGEIF($S$14:$S$94,$T4,DR$14:DR$94) -> 247.8592405 | DS4: 307.702879 | DT4: 481.591095 | DU4: 642.3241501 | DV4: 427.8771448 | DW4: 210.9732423 | DX4: 132.8832994 | DY4: 94.32412148 | DZ4: 74.38831711 | EA4: 81.54643607 | EB4: 114.0812709 | EC4: 132.2595687 | ED4: =SUM(DR4:EC4) -> 2947.810765 | EG4: D18A | EH4: D18A_C1 | EI4: D18A_C2 | EJ4: D18A_215 | EK4: D18A_16B | EL4: D18A_LOSS | EM4: D18B | EN4: D18B_C1 | EO4: D18B_C2 | EP4: D18B_215 | EQ4: D18B_16B | ER4: D18B_LOSS | ES4: D18F | ET4: C18 | EU4: C18M | EV4: C18F | EW4: C18A | EX4: D418 | EY4: D419 | EZ4: I18 | FW4: within the year and does not always make up
B5: Water Management Goal | E5: =Documentation!E17 -> Pre-SJRRS | T5: Normal-Wet | U5: 26.17419359 | V5: 46.31537094 | W5: 74.95298597 | X5: 149.8241792 | Y5: 189.2595406 | Z5: 165.2365145 | AA5: 84.01772815 | AB5: 28.88488267 | AC5: 4.678854955 | AD5: 4.520581662 | AE5: 4.520581662 | AF5: 21.61458613 | AG5: =SUM(U5:AF5) -> 800 | AI5: Normal-Wet | AJ5: 29.84019388 | AK5: 73.33527726 | AL5: 94.78869722 | AM5: 85.23925927 | AN5: 71.2140134 | AO5: 62.25526562 | AP5: 28.18140576 | AQ5: 4.009108528 | AR5: 0.5663141138 | AS5: 0.5511704852 | AT5: 0.4949440757 | AU5: 16.32381725 | AV5: =SUM(AJ5:AU5) -> 466.7994669 | AX5: Normal-Wet | AY5: 0 | AZ5: 0 | BA5: 0 | BB5: 0 | BC5: 0 | BD5: 0 | BE5: 0 | BF5: 0 | BG5: 0 | BH5: 0 | BI5: 0 | BJ5: 0 | BK5: =SUM(AY5:BJ5) -> 0 | BM5: Normal-Wet | BN5: 518.3725487 | BO5: 100.6883505 | BP5: 100.0907843 | BQ5: 334.9667019 | BR5: 678.321352 | BS5: 672.7810309 | BT5: 623.6909013 | BU5: 487.4806697 | BV5: 508.2829201 | BW5: 595.3698578 | BX5: 459.5242016 | BY5: 448.2039919 | BZ5: =SUM(BN5:BY5) -> 5527.773311 | CH5: Normal-Wet | CI5: -6.158037043e-14 | CJ5: 6.158037043e-14 | CK5: =CI5+CJ5 -> 0 | CM5: Normal-Wet | CN5: 8.000000111 | CO5: 8.899999899 | CP5: 11.69999994 | CQ5: 11.2999996 | CR5: 14.10000082 | CS5: 14.10000082 | CT5: 12.4999999 | CU5: 9.800000535 | CV5: 7.300000101 | CW5: 7.400000126 | CX5: 6.099999768 | CY5: 5.591953877 | CZ5: =SUM(CN5:CY5) -> 116.7919555 | DB5: Normal-Wet | DC5: 24.49368206 | DD5: 22.62750626 | DE5: 38.02720948 | DF5: 13.7993442 | DG5: 0 | DH5: 0 | DI5: 0 | DJ5: 0 | DK5: 0 | DL5: 9.247484282 | DM5: 50.69714222 | DN5: 46.45645544 | DO5: =SUM(DC5:DN5) -> 205.3488239 | DQ5: Normal-Wet | DR5: 156.7595784 | DS5: 226.0009346 | DT5: 304.2219989 | DU5: 337.6638915 | DV5: 188.3859396 | DW5: 119.3489447 | DX5: 103.5124648 | DY5: 77.87373479 | DZ5: 83.07986657 | EA5: 84.45091661 | EB5: 113.7515928 | EC5: 127.6681843 | ED5: =SUM(DR5:EC5) -> 1922.718047 | EG5: FLOW-DELIVERY | EH5: FLOW-DELIVERY | EI5: FLOW-DELIVERY | EJ5: FLOW-DELIVERY | EK5: FLOW-DELIVERY | EL5: FLOW-LOSS | EM5: FLOW-DELIVERY | EN5: FLOW-DELIVERY | EO5: FLOW-DELIVERY | EP5: FLOW-DELIVERY | EQ5: FLOW-DELIVERY | ER5: FLOW-LOSS | ES5: FLOW-DELIVERY | ET5: FLOW-CHANNEL | EU5: FLOW-MAIN | EV5: FLOW-FLOOD | EW5: FLOW-SNOWMELT | EX5: FLOW-DELIVERY | EY5: FLOW-DELIVERY | EZ5: FLOW-INFLOW | FW5: for previous months. Totals little bit outside | GC5: Class 1 | GD5: Class 2 | GE5: Impact
B6: CalSim II Model | E6: =Documentation!F17 -> DWR Delivery Capacility Report, 2015 climate | T6: Normal-Dry | U6: 32.86299038 | V6: 56.74638482 | W6: 92.13237625 | X6: 158.5666831 | Y6: 184.371097 | Z6: 152.5431462 | AA6: 67.89990569 | AB6: 20.87130729 | AC6: 3.561155443 | AD6: 3.557553789 | AE6: 3.448220472 | AF6: 19.70464188 | AG6: =SUM(U6:AF6) -> 796.2654623 | AI6: Normal-Dry | AJ6: 10.64768535 | AK6: 27.76352779 | AL6: 33.84870572 | AM6: 34.38482655 | AN6: 34.09749046 | AO6: 29.63232411 | AP6: 13.19223286 | AQ6: 3.460822049 | AR6: 0.4056973421 | AS6: 0.3897266807 | AT6: 0.4944607968 | AU6: 7.079530235 | AV6: =SUM(AJ6:AU6) -> 195.3970299 | AX6: Normal-Dry | AY6: 0 | AZ6: 0 | BA6: 0 | BB6: 0 | BC6: 0 | BD6: 0 | BE6: 0 | BF6: 0 | BG6: 0 | BH6: 0 | BI6: 0 | BJ6: 0 | BK6: =SUM(AY6:BJ6) -> 0 | BM6: Normal-Dry | BN6: 330.3060067 | BO6: 97.79580431 | BP6: 93.07520729 | BQ6: 219.9198595 | BR6: 626.5313052 | BS6: 523.4426417 | BT6: 525.8895766 | BU6: 400.321775 | BV6: 459.7713283 | BW6: 485.2510754 | BX6: 389.1975159 | BY6: 378.6069096 | BZ6: =SUM(BN6:BY6) -> 4530.109006 | CH6: Normal-Dry | CI6: -9.473903143e-14 | CJ6: 9.473903143e-14 | CK6: 0 | CM6: Normal-Dry | CN6: 8.000000111 | CO6: 8.899999899 | CP6: 11.69999994 | CQ6: 11.2999996 | CR6: 14.10000082 | CS6: 14.10000082 | CT6: 12.4999999 | CU6: 9.800000535 | CV6: 7.300000101 | CW6: 7.400000126 | CX6: 6.099999768 | CY6: 5.599999793 | CZ6: =SUM(CN6:CY6) -> 116.8000014 | DB6: Normal-Dry | DC6: 0.3883895217 | DD6: 0 | DE6: 0.4310462474 | DF6: 0 | DG6: 0 | DH6: 0 | DI6: 0 | DJ6: 0 | DK6: 0.6176789701 | DL6: 16.7675844 | DM6: 14.75672967 | DN6: 28.46428252 | DO6: =SUM(DC6:DN6) -> 61.42571132 | DQ6: Normal-Dry | DR6: 110.4726885 | DS6: 157.984609 | DT6: 172.3674057 | DU6: 170.8675537 | DV6: 111.737034 | DW6: 103.8550421 | DX6: 104.6523762 | DY6: 51.89870056 | DZ6: 55.48151652 | EA6: 86.79096437 | EB6: 81.4229722 | EC6: 110.0463646 | ED6: =SUM(DR6:EC6) -> 1317.577228 | EG6: 1MON | EH6: 1MON | EI6: 1MON | EJ6: 1MON | EK6: 1MON | EL6: 1MON | EM6: 1MON | EN6: 1MON | EO6: 1MON | EP6: 1MON | EQ6: 1MON | ER6: 1MON | ES6: 1MON | ET6: 1MON | EU6: 1MON | EV6: 1MON | EW6: 1MON | EX6: 1MON | EY6: 1MON | EZ6: 1MON | FW6: contract limits. This adjusts to contract limits. | GC6: =VLOOKUP($GC$3,'Friant Contractors'!$C$5:$G$37,4,FALSE) -> 1 | GD6: =VLOOKUP($GC$3,'Friant Contractors'!$C$5:$G$37,5,FALSE) -> 1 | GE6: 0
B7: Note: | C7: Critical SJRRP WY Type represents both Critical High and Critical Low | T7: Dry | U7: 29.66656424 | V7: 48.84264073 | W7: 81.72947558 | X7: 143.8712388 | Y7: 167.0976949 | Z7: 130.4966108 | AA7: 55.84481882 | AB7: 20.93648921 | AC7: 4.692976644 | AD7: 2.285853169 | AE7: 2.285853169 | AF7: 17.32580427 | AG7: =SUM(U7:AF7) -> 705.0760203 | AI7: Dry | AJ7: 0.5942124922 | AK7: 1.907149912 | AL7: 1.965833673 | AM7: 3.281250263 | AN7: 3.770024681 | AO7: 3.062985667 | AP7: 1.230218582 | AQ7: 0.3571602364 | AR7: 0.05952670458 | AS7: 0.05952670666 | AT7: 0.04942771765 | AU7: 0.2965663105 | AV7: =SUM(AJ7:AU7) -> 16.63388295 | AX7: Dry | AY7: 0 | AZ7: 0 | BA7: 0 | BB7: 0 | BC7: 0 | BD7: 0 | BE7: 0 | BF7: 0 | BG7: 0 | BH7: 0 | BI7: 0 | BJ7: 0 | BK7: =SUM(AY7:BJ7) -> 0 | BM7: Dry | BN7: 264.1286135 | BO7: 91.90001841 | BP7: 100.5219575 | BQ7: 100.969495 | BR7: 472.6403698 | BS7: 287.2945386 | BT7: 350.1397121 | BU7: 281.7829819 | BV7: 318.5052756 | BW7: 424.3601237 | BX7: 374.7373808 | BY7: 322.1638745 | BZ7: =SUM(BN7:BY7) -> 3389.144342 | CH7: Dry | CI7: -9.473903143e-15 | CJ7: 9.473903143e-15 | CK7: 0 | CM7: Dry | CN7: 8.000000111 | CO7: 8.899999899 | CP7: 11.69999994 | CQ7: 11.2999996 | CR7: 14.10000082 | CS7: 14.10000082 | CT7: 12.4999999 | CU7: 9.800000535 | CV7: 7.300000101 | CW7: 7.400000126 | CX7: 6.099999768 | CY7: 5.599999778 | CZ7: =SUM(CN7:CY7) -> 116.8000014 | DB7: Dry | DC7: 0 | DD7: 0.7084764654 | DE7: 0 | DF7: 0 | DG7: 0 | DH7: 0 | DI7: 0 | DJ7: 0 | DK7: 0 | DL7: 0 | DM7: 21.22317277 | DN7: 41.64109857 | DO7: =SUM(DC7:DN7) -> 63.5727478 | DQ7: Dry | DR7: 99.48809878 | DS7: 131.6301708 | DT7: 103.455864 | DU7: 84.51807833 | DV7: 77.19783497 | DW7: 83.25298754 | DX7: 87.69923147 | DY7: 39.13694843 | DZ7: 37.10570923 | EA7: 50.51158873 | EB7: 114.3453072 | EC7: 94.50830475 | ED7: =SUM(DR7:EC7) -> 1002.850124 | EG7: 2020D09E | EH7: 2020D09E | EI7: 2020D09E | EJ7: 2020D09E | EK7: 2020D09E | EL7: 2020D09E | EM7: 2020D09E | EN7: 2020D09E | EO7: 2020D09E | EP7: 2020D09E | EQ7: 2020D09E | ER7: 2020D09E | ES7: 2020D09E | ET7: 2020D09E | EU7: 2020D09E | EV7: 2020D09E | EW7: 2020D09E | EX7: 2020D09E | EY7: 2020D09E | EZ7: 2020D09E | FW7: This should be done in pre-proceser with these being
T8: Critical | U8: 16.72443389 | V8: 19.89179231 | W8: 36.36607497 | X8: 86.58835567 | Y8: 111.5471249 | Z8: 65.23547622 | AA8: 31.0073449 | AB8: 19.87008877 | AC8: 6.623362997 | AD8: 0 | AE8: 0 | AF8: 9.935044232 | AG8: =SUM(U8:AF8) -> 403.7890988 | AI8: Critical | AJ8: 0 | AK8: 0 | AL8: 0 | AM8: 0 | AN8: 0 | AO8: 0 | AP8: 0 | AQ8: 0 | AR8: 0 | AS8: 0 | AT8: 0 | AU8: 0 | AV8: =SUM(AJ8:AU8) -> 0 | AX8: Critical | AY8: 0 | AZ8: 0 | BA8: 0 | BB8: 0 | BC8: 0 | BD8: 0 | BE8: 0 | BF8: 0 | BG8: 0 | BH8: 0 | BI8: 0 | BJ8: 0 | BK8: =SUM(AY8:BJ8) -> 0 | BM8: Critical | BN8: 201.5243544 | BO8: 89.69209154 | BP8: 89.17055477 | BQ8: 28.19475728 | BR8: 299.9627873 | BS8: 220.9138865 | BT8: 258.3214558 | BU8: 248.3119808 | BV8: 256.7783315 | BW8: 441.3735325 | BX8: 374.1357425 | BY8: 396.6233515 | BZ8: =SUM(BN8:BY8) -> 2905.002826 | CH8: Critical | CI8: 0 | CJ8: 0 | CK8: 0 | CM8: Critical | CN8: 8.000000111 | CO8: 8.899999899 | CP8: 11.69999994 | CQ8: 11.2999996 | CR8: 14.10000082 | CS8: 14.10000082 | CT8: 12.4999999 | CU8: 9.800000535 | CV8: 7.300000101 | CW8: 7.400000126 | CX8: 6.099999768 | CY8: 5.59999979 | CZ8: =SUM(CN8:CY8) -> 116.8000014 | DB8: Critical | DC8: 0 | DD8: 0 | DE8: 0 | DF8: 0 | DG8: 0 | DH8: 0 | DI8: 0 | DJ8: 0 | DK8: 0 | DL8: 0 | DM8: 0 | DN8: 35.23635613 | DO8: =SUM(DC8:DN8) -> 35.23635613 | DQ8: Critical | DR8: 61.25960121 | DS8: 70.76938248 | DT8: 46.50222054 | DU8: 25.2429822 | DV8: 45.27528992 | DW8: 58.78915405 | DX8: 74.90397034 | DY8: 33.24966469 | DZ8: 23.87878361 | EA8: 50.94688301 | EB8: 69.42751656 | EC8: 133.8427898 | ED8: =SUM(DR8:EC8) -> 694.0882384 | EG8: PER-AVER | EH8: PER-AVER | EI8: PER-AVER | EJ8: PER-AVER | EK8: PER-AVER | EL8: PER-AVER | EM8: PER-AVER | EN8: PER-AVER | EO8: PER-AVER | EP8: PER-AVER | EQ8: PER-AVER | ER8: PER-AVER | ES8: PER-AVER | ET8: PER-AVER | EU8: PER-AVER | EV8: PER-AVER | EW8: PER-AVER | EX8: PER-AVER | EY8: PER-AVER | FW8: the inputs
C9: Class 1 Delivery | T9: Long Term | U9: =AVERAGE(U14:U94) -> 26.09796122 | V9: =AVERAGE(V14:V94) -> 44.55023176 | W9: 74.05393579 | X9: 142.4140221 | Y9: 179.8622619 | Z9: 153.3654821 | AA9: 76.19086421 | AB9: 28.65102424 | AC9: 5.951314783 | AD9: 3.991878073 | AE9: 3.943969233 | AF9: 21.30025005 | AG9: 760.3731955 | AI9: Long Term | AJ9: =AVERAGE(AJ14:AJ94) -> 18.8288296 | AK9: =AVERAGE(AK14:AK94) -> 41.6739421 | AL9: 60.73537039 | AM9: 61.92278332 | AN9: 52.94465304 | AO9: 46.31356458 | AP9: 23.96426493 | AQ9: 8.175471893 | AR9: 1.829418694 | AS9: 2.743388475 | AT9: 2.603510571 | AU9: 14.93122841 | AV9: 336.666426 | AX9: Long Term | AY9: =AVERAGE(AY14:AY94) -> 0 | AZ9: =AVERAGE(AZ14:AZ94) -> 0 | BA9: 0 | BB9: 0 | BC9: 0 | BD9: 0 | BE9: 0 | BF9: 0 | BG9: 0 | BH9: 0 | BI9: 0 | BJ9: 0 | BK9: 0 | BM9: Long Term | BN9: =AVERAGE(BN14:BN94) -> 419.9990633 | BO9: =AVERAGE(BO14:BO94) -> 121.2953617 | BP9: 127.1749837 | BQ9: 289.9837478 | BR9: 613.9054331 | BS9: 552.847054 | BT9: 534.7675933 | BU9: 414.9323599 | BV9: 430.3842558 | BW9: 537.8317021 | BX9: 421.3969 | BY9: 405.2039894 | BZ9: 4869.722444 | CH9: Long Term | CI9: =AVERAGE(CI$14:CI$94) -> -6.035227188e-14 | CJ9: =AVERAGE(CJ$14:CJ$94) -> 6.035227188e-14 | CK9: 0 | CM9: Long Term | CN9: =AVERAGE(CN14:CN94) -> 8.000000111 | CO9: 8.899999899 | CP9: 11.69999994 | CQ9: 11.2999996 | CR9: 14.10000082 | CS9: 14.10000082 | CT9: 12.4999999 | CU9: 9.800000535 | CV9: 7.300000101 | CW9: 7.400000126 | CX9: 6.099999768 | CY9: 5.595231821 | CZ9: 116.7952334 | DB9: Long Term | DC9: =AVERAGE(DC14:DC94) -> 36.62388915 | DD9: 43.74012867 | DE9: 56.25020373 | DF9: 45.2448092 | DG9: 18.77858139 | DH9: 0 | DI9: 0 | DJ9: 0.7311225495 | DK9: 1.746109394 | DL9: 12.7902506 | DM9: 28.10615994 | DN9: 37.73008246 | DO9: 281.7413371 | DQ9: Long Term | DR9: =AVERAGE(DR14:DR94) -> 146.6602154 | DS9: 198.4235564 | DT9: 254.5380827 | DU9: 291.6342338 | DV9: 187.675755 | DW9: 123.7709775 | DX9: 105.543205 | DY9: 64.93353206 | DZ9: 62.72035428 | EA9: 77.47434074 | EB9: 101.5897675 | EC9: 118.8224183 | ED9: 1733.786439 | EF9: Max | EG9: =MAX(EG13:EG996) -> 4488.99707 | EH9: =MAX(EH13:EH996) -> 2581.85376 | EI9: 2101.511963 | EJ9: 1200 | EK9: 0 | EL9: 113.8440857 | EM9: 1250 | EN9: 819.6774292 | EO9: 1217.473145 | EP9: 200 | EQ9: 0 | ER9: 65.05376434 | ES9: 714.6687012 | ET9: 10308.75977 | EU9: 229.3145294 | EV9: 10209.55273 | EW9: 6902.496094 | EX9: 4600 | EY9: 8500 | EZ9: 1119.348511 | FD9: Max | FE9: =MAX(FE13:FE996) -> 197.3600036 | FF9: =MAX(FF13:FF996) -> 165.9919474 | FG9: 86.08264463 | FH9: 225.6655688 | FI9: 0 | FJ9: 671.7041941 | FK9: 14.10000082 | FL9: 805.4876033 | FM9: 0 | FN9: 1119.348511 | GB9: Max | GC9: =MAX(GC13:GC996) -> 201.9417479 | GD9: =MAX(GD13:GD996) -> 165.5602849
C10: Mar | D10: Apr | E10: May | F10: Jun | G10: Jul | H10: Aug | I10: Sep | J10: Oct | K10: Nov | L10: Dec | M10: Jan | N10: Feb | O10: Total | S10: 2015 | CC10: Raw | CD10: Adjusted | CI10: Recapture | CJ10: Recapture | CK10: Recapture | EF10: Min | EG10: =MIN(EG13:EG996) -> 16.26344109 | EH10: =MIN(EH13:EH996) -> 0 | EI10: 0 | EJ10: 0 | EK10: 0 | EL10: 16.26344109 | EM10: 0 | EN10: 0 | EO10: 0 | EP10: 0 | EQ10: 0 | ER10: 0 | ES10: 0 | ET10: 97.35632324 | EU10: 97.35632324 | EV10: 0 | EW10: 0 | EX10: 89.76005554 | EY10: 45.259552 | EZ10: 4.877497196 | FD10: Min | FE10: =MIN(FE13:FE996) -> 0 | FF10: =MIN(FF13:FF996) -> 0 | FG10: 0 | FH10: 0 | FI10: 0 | FJ10: 0 | FK10: 5.40689663 | FL10: 8.034224581 | FM10: 0 | FN10: 4.877497196 | FQ10: Raw | FW10: Total CalSim Delivery | FY10: Difference | GB10: Min | GC10: =MIN(GC13:GC996) -> 0 | GD10: =MIN(GD13:GD996) -> 0
B11: SJRRP WY Type | C11: TAF | D11: TAF | E11: TAF | F11: TAF | G11: TAF | H11: TAF | I11: TAF | J11: TAF | K11: TAF | L11: TAF | M11: TAF | N11: TAF | O11: TAF | S11: SJRRP | T11: Month | U11: Mar | V11: Apr | W11: May | X11: Jun | Y11: Jul | Z11: Aug | AA11: Sep | AB11: Oct | AC11: Nov | AD11: Dec | AE11: Jan | AF11: Feb | AG11: Total | AI11: Month | AJ11: Mar | AK11: Apr | AL11: May | AM11: Jun | AN11: Jul | AO11: Aug | AP11: Sep | AQ11: Oct | AR11: Nov | AS11: Dec | AT11: Jan | AU11: Feb | AV11: Total | AX11: Month | AY11: Mar | AZ11: Apr | BA11: May | BB11: Jun | BC11: Jul | BD11: Aug | BE11: Sep | BF11: Oct | BG11: Nov | BH11: Dec | BI11: Jan | BJ11: Feb | BK11: Total | BM11: Month | BN11: Mar | BO11: Apr | BP11: May | BQ11: Jun | BR11: Jul | BS11: Aug | BT11: Sep | BU11: Oct | BV11: Nov | BW11: Dec | BX11: Jan | BY11: Feb | BZ11: Total | CC11: SJRRP Recapture | CD11: SJRRP Recapture | CG11: Class 1 | CH11: Class 2/Other | CI11: Class 1 | CJ11: Class2/Other | CK11: Total | CM11: Month | CN11: Mar | CO11: Apr | CP11: May | CQ11: Jun | CR11: Jul | CS11: Aug | CT11: Sep | CU11: Oct | CV11: Nov | CW11: Dec | CX11: Jan | CY11: Feb | CZ11: Total | DB11: Month | DC11: Mar | DD11: Apr | DE11: May | DF11: Jun | DG11: Jul | DH11: Aug | DI11: Sep | DJ11: Oct | DK11: Nov | DL11: Dec | DM11: Jan | DN11: Feb | DO11: Total | DQ11: Month | DR11: Mar | DS11: Apr | DT11: May | DU11: Jun | DV11: Jul | DW11: Aug | DX11: Sep | DY11: Oct | DZ11: Nov | EA11: Dec | EB11: Jan | EC11: Feb | ED11: Total | FE11: Class 1 | FF11: Class 2 | FG11: 215 | FH11: C2/Other | FI11: 16B | FJ11: Flood | FK11: SJRRP | FL11: Delta Pump | FM11: SJRRP Recapture | FN11: Inflow | FQ11: Class 1 | FR11: Class 2/Other | FS11: Extra | FT11: Short | FW11: Class 1 | FX11: Class 2/Other | FY11: Class 1 | FZ11: Class 2/Other | GC11: Class 1 | GD11: C2/Other
B12: Wet | C12: =U4 -> 16.08884394 | D12: =V4 -> 28.09474899 | E12: 51.60850147 | F12: 123.4224033 | G12: 189.9249969 | H12: 181.4847176 | I12: 106.2663899 | J12: 48.49975561 | K12: 12.17898207 | L12: 6.377289695 | M12: 6.298751162 | N12: 29.75461931 | O12: 800 | S12: WY Type | T12: Contract Year/Units | U12: TAF | V12: TAF | W12: TAF | X12: TAF | Y12: TAF | Z12: TAF | AA12: TAF | AB12: TAF | AC12: TAF | AD12: TAF | AE12: TAF | AF12: TAF | AG12: TAF | AI12: Contract Year/Units | AJ12: TAF | AK12: TAF | AL12: TAF | AM12: TAF | AN12: TAF | AO12: TAF | AP12: TAF | AQ12: TAF | AR12: TAF | AS12: TAF | AT12: TAF | AU12: TAF | AV12: TAF | AX12: Contract Year/Units | AY12: TAF | AZ12: TAF | BA12: TAF | BB12: TAF | BC12: TAF | BD12: TAF | BE12: TAF | BF12: TAF | BG12: TAF | BH12: TAF | BI12: TAF | BJ12: TAF | BK12: TAF | BM12: Contract Year/Units | BN12: TAF | BO12: TAF | BP12: TAF | BQ12: TAF | BR12: TAF | BS12: TAF | BT12: TAF | BU12: TAF | BV12: TAF | BW12: TAF | BX12: TAF | BY12: TAF | BZ12: TAF | CC12: TAF | CD12: TAF | CF12: Delivery Year/Units | CG12: TAF | CH12: TAF | CI12: TAF | CJ12: TAF | CK12: TAF | CM12: Contract Year/Units | CN12: TAF | CO12: TAF | CP12: TAF | CQ12: TAF | CR12: TAF | CS12: TAF | CT12: TAF | CU12: TAF | CV12: TAF | CW12: TAF | CX12: TAF | CY12: TAF | CZ12: TAF | DB12: Contract Year/Units | DC12: TAF | DD12: TAF | DE12: TAF | DF12: TAF | DG12: TAF | DH12: TAF | DI12: TAF | DJ12: TAF | DK12: TAF | DL12: TAF | DM12: TAF | DN12: TAF | DO12: TAF | DQ12: Contract Year/Units | DR12: TAF | DS12: TAF | DT12: TAF | DU12: TAF | DV12: TAF | DW12: TAF | DX12: TAF | DY12: TAF | DZ12: TAF | EA12: TAF | EB12: TAF | EC12: TAF | ED12: TAF | EF12: Date | EG12: CFS | EH12: CFS | EI12: CFS | EJ12: CFS | EK12: CFS | EL12: CFS | EM12: CFS | EN12: CFS | EO12: CFS | EP12: CFS | EQ12: CFS | ER12: CFS | ES12: CFS | ET12: CFS | EU12: CFS | EV12: CFS | EW12: CFS | EX12: CFS | EY12: CFS | EZ12: TAF | FB12: Delivery Year | FC12: Month | FD12: Date | FE12: TAF | FF12: TAF | FG12: TAF | FH12: TAF | FI12: TAF | FJ12: TAF | FK12: TAF | FL12: TAF | FM12: TAF | FN12: TAF | FQ12: TAF | FR12: TAF | FS12: TAF | FT12: TAF | FW12: TAF | FX12: TAF | FY12: % | FZ12: % | GB12: Date | GC12: TAF | GD12: TAF
B13: Normal-Wet | C13: 26.17419359 | D13: =V5 -> 46.31537094 | E13: 74.95298597 | F13: 149.8241792 | G13: 189.2595406 | H13: 165.2365145 | I13: 84.01772815 | J13: 28.88488267 | K13: 4.678854955 | L13: 4.520581662 | M13: 4.520581662 | N13: 21.61458613 | O13: 800 | S13: =VLOOKUP($T13,'SJRRP WY Types'!$B$13:$G$95,2,FALSE) -> Normal-Wet | T13: 1921 | AB13: =GC13 -> 0 | AC13: =GC14 -> 0 | AD13: =GC15 -> 0 | AE13: =GC16 -> 0 | AF13: =GC17 -> 0 | AG13: =SUM(U13:AF13) -> 0 | AI13: 1921 | AQ13: =GD13 -> 0 | AR13: =GD14 -> 0 | AS13: =GD15 -> 0 | AT13: =GD16 -> 0 | AU13: =GD17 -> 66.6446281 | AV13: =SUM(AJ13:AU13) -> 66.6446281 | AX13: 1921 | BF13: =FI13 -> 0 | BG13: =FI14 -> 0 | BH13: =FI15 -> 0 | BI13: =FI16 -> 0 | BJ13: =FI17 -> 0 | BK13: =SUM(AY13:BJ13) -> 0 | BM13: 1921 | BU13: =FL13 -> 578.3089531 | BV13: =FL14 -> 589.8010363 | BW13: =FL15 -> 724.3866555 | BX13: =FL16 -> 435.9290334 | BY13: =FL17 -> 351.072571 | BZ13: =SUM(BN13:BY13) -> 2679.498249 | CB13: 1921 | CC13: =SUMIF($FB$13:$FB$996,$CB13,$FM$13:$FM$996) -> 0 | CD13: =IF(CC13<0,0,IF(CD12=0,MIN(MAX(CC12+CC13,0),CC13),CC13))*$GE$6 -> 0 | CF13: 1921 | CG13: =AG13 -> 0 | CH13: =AV13 -> 66.6446281 | CI13: =IFERROR(IF((CG13/$GC$6)<=800,MIN(CD13,800-(CG13/$GC$6)),0),0) -> 0 | CJ13: =IF($GD$6>0,CD13-CI13,0) -> 0 | CK13: =CI13+CJ13 -> 0 | CM13: 1921 | CU13: =FK13 -> 9.800000535 | CV13: =FK14 -> 7.300000101 | CW13: =FK15 -> 7.400000126 | CX13: =FK16 -> 6.099999768 | CY13: =FK17 -> 5.599999718 | CZ13: =SUM(CN13:CY13) -> 36.20000025 | DB13: 1921 | DJ13: =FJ13 -> 0 | DK13: =FJ14 -> 0 | DL13: =FJ15 -> 0 | DM13: =FJ16 -> 0 | DN13: =FJ17 -> 21.56198112 | DO13: =SUM(DC13:DN13) -> 21.56198112 | DQ13: 1921 | DY13: =FN13 -> 66.38349915 | DZ13: =FN14 -> 50.65328979 | EA13: =FN15 -> 82.08763885 | EB13: =FN16 -> 90.26577759 | EC13: =FN17 -> 114.3815231 | ED13: =SUM(DR13:EC13) -> 403.7717285 | EF13: 1921-10-31 | EG13: 81.31720734 | EH13: 0 | EI13: 0 | EJ13: 0 | EK13: 0 | EL13: 81.31720734 | EM13: 0 | EN13: 0 | EO13: 0 | EP13: 0 | EQ13: 0 | ER13: 0 | ES13: 0 | ET13: 159.3817291 | EU13: 159.3817291 | EV13: 0 | EW13: 0 | EX13: 4600 | EY13: 4805.293457 | EZ13: 66.38349915 | FB13: =IF(FC13<3,YEAR(FD13)-1,YEAR(FD13)) -> 1921 | FC13: =MONTH(FD13) -> 10 | FD13: 1921-10-31 | FE13: =(EH13+EN13)*UnitConv!$B13 -> 0 | FF13: =(EI13+EO13)*UnitConv!$B13 -> 0 | FG13: =(EJ13+EP13)*UnitConv!$B13 -> 0 | FH13: =FF13+FG13 -> 0 | FI13: =(EK13+EQ13)*UnitConv!$B13 -> 0 | FJ13: =(ES13+EV13+EW13)*UnitConv!$B13 -> 0 | FK13: =EU13*UnitConv!$B13 -> 9.800000535 | FL13: =(EX13+EY13)*UnitConv!$B13 -> 578.3089531 | FM13: 0 | FN13: =EZ13 -> 66.38349915 | FP13: 1922 | FQ13: =SUMIF($FB$13:$FB$996,$FP13,$FE$13:$FE$996) -> 798.8480107 | FR13: =SUMIF($FB$13:$FB$996,$FP13,$FH$13:$FH$996) -> 1063.123998 | FS13: =MAX(0,FQ13-800) -> 0 | FT13: =MIN(IF(FQ13<800,800-FQ13,0),FR13) -> 1.15198931 | FV13: 1922 | FW13: =FQ13-FS13+FT13 -> 800 | FX13: =FR13+FS13-FT13 -> 1061.972009 | FY13: =IFERROR(FW13/FQ13,0) -> 1.001442063 | FZ13: =IFERROR(FX13/FR13,0) -> 0.9989164112 | GB13: 1921-10-31 | GC13: =IFERROR(FE13,0)*$GC$6 -> 0 | GD13: =IFERROR(FH13,0)*$GD$6 -> 0
B14: Normal-Dry | C14: 32.86299038 | D14: 56.74638482 | E14: 92.13237625 | F14: 158.5666831 | G14: 184.371097 | H14: 152.5431462 | I14: 67.89990569 | J14: 20.87130729 | K14: 3.561155443 | L14: 3.557553789 | M14: 3.448220472 | N14: 19.70464188 | O14: 796.2654623 | S14: =VLOOKUP($T14,'SJRRP WY Types'!$B$13:$G$95,2,FALSE) -> Normal-Wet | T14: 1922 | U14: =GC18 -> 22.33616326 | V14: =GC19 -> 37.44592027 | W14: =GC20 -> 59.78208541 | X14: =GC21 -> 138.1509346 | Y14: =GC22 -> 189.104314 | Z14: =GC23 -> 173.9945551 | AA14: =GC24 -> 97.83688474 | AB14: =GC25 -> 36.38839905 | AC14: =GC26 -> 5.543983336 | AD14: =GC27 -> 5.255568103 | AE14: =GC28 -> 5.255568103 | AF14: =GC29 -> 28.90562407 | AG14: =SUM(U14:AF14) -> 800 | AI14: 1922 | AJ14: =GD18 -> 34.72032479 | AK14: =GD19 -> 97.66182248 | AL14: =GD20 -> 133.1477275 | AM14: =GD21 -> 129.6247818 | AN14: =GD22 -> 105.9092491 | AO14: =GD23 -> 83.9000017 | AP14: =GD24 -> 29.18926566 | AQ14: =GD25 -> 0.900381827 | AR14: =GD26 -> 0.443739929 | AS14: =GD27 -> 0.4437399526 | AT14: =GD28 -> 0.4437399526 | AU14: =GD29 -> 16.65570267 | AV14: =SUM(AJ14:AU14) -> 633.0404775 | AX14: 1922 | AY14: =FI18 -> 0 | AZ14: =FI19 -> 0 | BA14: =FI20 -> 0 | BB14: =FI21 -> 0 | BC14: =FI22 -> 0 | BD14: =FI23 -> 0 | BE14: =FI24 -> 0 | BF14: =FI25 -> 0 | BG14: =FI26 -> 0 | BH14: =FI27 -> 0 | BI14: =FI28 -> 0 | BJ14: =FI29 -> 0 | BK14: =SUM(AY14:BJ14) -> 0 | BM14: 1922 | BN14: =FL18 -> 572.4660095 | BO14: =FL19 -> 115.0396032 | BP14: =FL20 -> 117.4277443 | BQ14: =FL21 -> 621.0589811 | BR14: =FL22 -> 713.5576017 | BS14: =FL23 -> 724.3239669 | BT14: =FL24 -> 671.2066116 | BU14: =FL25 -> 498.6848336 | BV14: =FL26 -> 604.6338359 | BW14: =FL27 -> 531.8699303 | BX14: =FL28 -> 437.7149061 | BY14: =FL29 -> 457.3062668 | BZ14: =SUM(BN14:BY14) -> 6065.290291 | CB14: 1922 | CC14: =SUMIF($FB$13:$FB$996,$CB14,$FM$13:$FM$996) -> 0 | CD14: 0 | CF14: 1922 | CG14: 800 | CH14: 633.0404775 | CI14: =IFERROR(IF((CG14/$GC$6)<=800,MIN(CD14,800-(CG14/$GC$6)),0),0) -> 0 | CJ14: =IF($GD$6>0,CD14-CI14,0) -> 0 | CK14: =CI14+CJ14 -> 0 | CM14: 1922 | CN14: =FK18 -> 8.000000111 | CO14: =FK19 -> 8.899999899 | CP14: =FK20 -> 11.69999994 | CQ14: =FK21 -> 11.2999996 | CR14: =FK22 -> 14.10000082 | CS14: =FK23 -> 14.10000082 | CT14: =FK24 -> 12.4999999 | CU14: =FK25 -> 9.800000535 | CV14: =FK26 -> 7.300000101 | CW14: =FK27 -> 7.400000126 | CX14: =FK28 -> 6.099999768 | CY14: =FK29 -> 5.599999718 | CZ14: =SUM(CN14:CY14) -> 116.8000013 | DB14: 1922 | DC14: =FJ18 -> 0.3213332956 | DD14: =FJ19 -> 107.6668001 | DE14: =FJ20 -> 96.9825908 | DF14: =FJ21 -> 42.63441747 | DG14: =FJ22 -> 0 | DH14: =FJ23 -> 0 | DI14: =FJ24 -> 0 | DJ14: =FJ25 -> 0 | DK14: =FJ26 -> 0 | DL14: =FJ27 -> 3.601805379 | DM14: =FJ28 -> 11.2550238 | DN14: =FJ29 -> 6.026841128 | DO14: =SUM(DC14:DN14) -> 268.488812 | DQ14: 1922 | DR14: =FN18 -> 107.9726868 | DS14: =FN19 -> 180.6772156 | DT14: =FN20 -> 405.8936768 | DU14: =FN21 -> 659.9800415 | DV14: =FN22 -> 305.6776123 | DW14: =FN23 -> 126.833374 | DX14: =FN24 -> 102.9753647 | DY14: =FN25 -> 76.09957886 | DZ14: =FN26 -> 67.62300873 | EA14: =FN27 -> 109.1074066 | EB14: =FN28 -> 95.19195557 | EC14: =FN29 -> 96.79645538 | ED14: 2334.828377 | EF14: 1921-11-30 | EG14: 67.22222137 | EH14: 0 | EI14: 0 | EJ14: 0 | EK14: 0 | EL14: 67.22222137 | EM14: 0 | EN14: 0 | EO14: 0 | EP14: 0 | EQ14: 0 | ER14: 0 | ES14: 0 | ET14: 122.6805573 | EU14: 122.6805573 | EV14: 0 | EW14: 0 | EX14: 3877.907715 | EY14: 6034.026367 | EZ14: 50.65328979 | FB14: =IF(FC14<3,YEAR(FD14)-1,YEAR(FD14)) -> 1921 | FC14: =MONTH(FD14) -> 11 | FD14: 1921-11-30 | FE14: =(EH14+EN14)*UnitConv!$B14 -> 0 | FF14: =(EI14+EO14)*UnitConv!$B14 -> 0 | FG14: =(EJ14+EP14)*UnitConv!$B14 -> 0 | FH14: =FF14+FG14 -> 0 | FI14: =(EK14+EQ14)*UnitConv!$B14 -> 0 | FJ14: =(ES14+EV14+EW14)*UnitConv!$B14 -> 0 | FK14: =EU14*UnitConv!$B14 -> 7.300000101 | FL14: =(EX14+EY14)*UnitConv!$B14 -> 589.8010363 | FM14: 0 | FN14: =EZ14 -> 50.65328979 | FP14: 1923 | FQ14: 798.8479969 | FR14: 621.7564812 | FS14: =MAX(0,FQ14-800) -> 0 | FT14: =MIN(IF(FQ14<800,800-FQ14,0),FR14) -> 1.152003111 | FV14: 1923 | FW14: =FQ14-FS14+FT14 -> 800 | FX14: =FR14+FS14-FT14 -> 620.6044781 | FY14: =IFERROR(FW14/FQ14,0) -> 1.00144208 | FZ14: =IFERROR(FX14/FR14,0) -> 0.9981471796 | GB14: 1921-11-30 | GC14: =IFERROR(FE14,0)*$GC$6 -> 0 | GD14: =IFERROR(FH14,0)*$GD$6 -> 0
B15: Dry | C15: 29.66656424 | D15: 48.84264073 | E15: 81.72947558 | F15: 143.8712388 | G15: 167.0976949 | H15: 130.4966108 | I15: 55.84481882 | J15: 20.93648921 | K15: 4.692976644 | L15: 2.285853169 | M15: 2.285853169 | N15: 17.32580427 | O15: 705.0760203 | S15: =VLOOKUP($T15,'SJRRP WY Types'!$B$13:$G$95,2,FALSE) -> Normal-Wet | T15: 1923 | U15: =GC30 -> 25.62089365 | V15: =GC31 -> 42.70148902 | W15: =GC32 -> 64.38070732 | X15: =GC33 -> 146.6912406 | Y15: =GC34 -> 187.1334706 | Z15: =GC35 -> 170.7098187 | AA15: =GC36 -> 95.20910238 | AB15: =GC37 -> 33.76061605 | AC15: =GC38 -> 4.887037418 | AD15: =GC39 -> 4.598621817 | AE15: =GC40 -> 4.598621817 | AF15: =GC41 -> 19.70838063 | AG15: =SUM(U15:AF15) -> 800 | AI15: 1923 | AJ15: =GD30 -> 36.15249756 | AK15: =GD31 -> 81.85922602 | AL15: =GD32 -> 111.9064843 | AM15: =GD33 -> 93.9049806 | AN15: =GD34 -> 79.90742346 | AO15: =GD35 -> 62.3277231 | AP15: =GD36 -> 19.75909578 | AQ15: =GD37 -> 0.2409803416 | AR15: =GD38 -> 0.5858172009 | AS15: =GD39 -> 0.5858172028 | AT15: =GD40 -> 0.5858172028 | AU15: =GD41 -> 21.71093641 | AV15: =SUM(AJ15:AU15) -> 509.5267992 | AX15: 1923 | AY15: =FI30 -> 0 | AZ15: =FI31 -> 0 | BA15: =FI32 -> 0 | BB15: =FI33 -> 0 | BC15: =FI34 -> 0 | BD15: =FI35 -> 0 | BE15: =FI36 -> 0 | BF15: =FI37 -> 0 | BG15: =FI38 -> 0 | BH15: =FI39 -> 0 | BI15: =FI40 -> 0 | BJ15: =FI41 -> 0 | BK15: =SUM(AY15:BJ15) -> 0 | BM15: 1923 | BN15: =FL30 -> 380.3050597 | BO15: =FL31 -> 101.484973 | BP15: =FL32 -> 92.23140496 | BQ15: =FL33 -> 340.3528571 | BR15: =FL34 -> 712.4259055 | BS15: =FL35 -> 682.3337734 | BT15: =FL36 -> 671.2066116 | BU15: =FL37 -> 607.4935876 | BV15: =FL38 -> 381.3202899 | BW15: =FL39 -> 373.1356592 | BX15: =FL40 -> 396.8700092 | BY15: =FL41 -> 240.3412636 | BZ15: =SUM(BN15:BY15) -> 4979.501395 | CB15: 1923 | CC15: 0 | CD15: 0 | CF15: 1923 | CG15: 800 | CH15: 509.5267992 | CI15: 0 | CJ15: 0 | CK15: 0 | CM15: 1923 | CN15: =FK30 -> 8.000000111 | CO15: =FK31 -> 8.899999899 | CP15: =FK32 -> 11.69999994 | CQ15: =FK33 -> 11.2999996 | CR15: =FK34 -> 14.10000082 | CS15: =FK35 -> 14.10000082 | CT15: =FK36 -> 12.4999999 | CU15: =FK37 -> 9.800000535 | CV15: =FK38 -> 7.300000101 | CW15: =FK39 -> 7.400000126 | CX15: =FK40 -> 6.099999768 | CY15: =FK41 -> 5.600000081 | CZ15: 116.8000017 | DB15: 1923 | DC15: =FJ30 -> 0 | DD15: =FJ31 -> 0 | DE15: =FJ32 -> 0 | DF15: =FJ33 -> 0 | DG15: =FJ34 -> 0 | DH15: =FJ35 -> 0 | DI15: =FJ36 -> 0 | DJ15: =FJ37 -> 0 | DK15: =FJ38 -> 0 | DL15: =FJ39 -> 0 | DM15: =FJ40 -> 0 | DN15: =FJ41 -> 0 | DO15: 0 | DQ15: 1923 | DR15: =FN30 -> 123.2811508 | DS15: =FN31 -> 218.8833313 | DT15: =FN32 -> 265.5421448 | DU15: =FN33 -> 213.3022919 | DV15: =FN34 -> 194.6710358 | DW15: =FN35 -> 127.288208 | DX15: =FN36 -> 115.0653381 | DY15: =FN37 -> 82.15656281 | DZ15: =FN38 -> 63.19744492 | EA15: =FN39 -> 41.06128311 | EB15: =FN40 -> 39.82500076 | EC15: =FN41 -> 44.29179764 | ED15: 1528.56559 | EF15: 1921-12-31 | EG15: 16.26344109 | EH15: 0 | EI15: 0 | EJ15: 0 | EK15: 0 | EL15: 16.26344109 | EM15: 0 | EN15: 0 | EO15: 0 | EP15: 0 | EQ15: 0 | ER15: 0 | ES15: 0 | ET15: 120.3494644 | EU15: 120.3494644 | EV15: 0 | EW15: 0 | EX15: 4600 | EY15: 7181.019531 | EZ15: 82.08763885 | FB15: 1921 | FC15: 12 | FD15: 1921-12-31 | FE15: =(EH15+EN15)*UnitConv!$B15 -> 0 | FF15: =(EI15+EO15)*UnitConv!$B15 -> 0 | FG15: =(EJ15+EP15)*UnitConv!$B15 -> 0 | FH15: 0 | FI15: =(EK15+EQ15)*UnitConv!$B15 -> 0 | FJ15: =(ES15+EV15+EW15)*UnitConv!$B15 -> 0 | FK15: =EU15*UnitConv!$B15 -> 7.400000126 | FL15: =(EX15+EY15)*UnitConv!$B15 -> 724.3866555 | FM15: 0 | FN15: 82.08763885 | FP15: 1924 | FQ15: 434.7181654 | FR15: 0 | FS15: 0 | FT15: 0 | FV15: 1924 | FW15: 434.7181654 | FX15: =FR15+FS15-FT15 -> 0 | FY15: 1 | FZ15: 0 | GB15: 1921-12-31 | GC15: 0 | GD15: 0
B16: Critical | C16: 16.72443389 | D16: 19.89179231 | E16: 36.36607497 | F16: 86.58835567 | G16: 111.5471249 | H16: 65.23547622 | I16: 31.0073449 | J16: 19.87008877 | K16: 6.623362997 | L16: 0 | M16: 0 | N16: 9.935044232 | O16: 403.7890988 | S16: =VLOOKUP($T16,'SJRRP WY Types'!$B$13:$G$95,2,FALSE) -> Critical | T16: 1924 | U16: =GC42 -> 17.87552974 | V16: =GC43 -> 21.43611486 | W16: =GC44 -> 39.17063472 | X16: =GC45 -> 93.16537541 | Y16: =GC46 -> 120.0199437 | Z16: =GC47 -> 72.22054706 | AA16: =GC48 -> 31.63451215 | AB16: =GC49 -> 21.37936802 | AC16: =GC50 -> 7.126456067 | AD16: =GC51 -> 0 | AE16: =GC52 -> 0 | AF16: =GC53 -> 10.68968371 | AG16: 434.7181654 | AI16: 1924 | AJ16: =GD42 -> 0 | AK16: =GD43 -> 0 | AL16: =GD44 -> 0 | AM16: =GD45 -> 0 | AN16: =GD46 -> 0 | AO16: =GD47 -> 0 | AP16: =GD48 -> 0 | AQ16: =GD49 -> 0 | AR16: =GD50 -> 0 | AS16: =GD51 -> 0 | AT16: =GD52 -> 0 | AU16: =GD53 -> 0 | AV16: 0 | AX16: 1924 | AY16: =FI42 -> 0 | AZ16: =FI43 -> 0 | BA16: =FI44 -> 0 | BB16: =FI45 -> 0 | BC16: =FI46 -> 0 | BD16: =FI47 -> 0 | BE16: =FI48 -> 0 | BF16: =FI49 -> 0 | BG16: =FI50 -> 0 | BH16: =FI51 -> 0 | BI16: =FI52 -> 0 | BJ16: =FI53 -> 0 | BK16: 0 | BM16: 1924 | BN16: =FL42 -> 67.63636364 | BO16: =FL43 -> 106.3596704 | BP16: =FL44 -> 87.80985933 | BQ16: =FL45 -> 32.99940317 | BR16: =FL46 -> 96.08064001 | BS16: =FL47 -> 106.0751677 | BT16: =FL48 -> 206.4489984 | BU16: =FL49 -> 337.3202412 | BV16: =FL50 -> 260.0238475 | BW16: =FL51 -> 454.4102315 | BX16: =FL52 -> 395.9818166 | BY16: =FL53 -> 258.9477079 | BZ16: 2410.093947 | CB16: 1924 | CC16: 0 | CD16: 0 | CF16: 1924 | CG16: 434.7181654 | CH16: 0 | CI16: 0 | CJ16: 0 | CK16: 0 | CM16: 1924 | CN16: =FK42 -> 8.000000111 | CO16: =FK43 -> 8.899999899 | CP16: =FK44 -> 11.69999994 | CQ16: =FK45 -> 11.2999996 | CR16: =FK46 -> 14.10000082 | CS16: =FK47 -> 14.10000082 | CT16: =FK48 -> 12.4999999 | CU16: =FK49 -> 9.800000535 | CV16: =FK50 -> 7.300000101 | CW16: =FK51 -> 7.400000126 | CX16: =FK52 -> 6.099999768 | CY16: =FK53 -> 5.599999718 | CZ16: 116.8000013 | DB16: 1924 | DC16: =FJ42 -> 0 | DD16: =FJ43 -> 0 | DE16: =FJ44 -> 0 | DF16: =FJ45 -> 0 | DG16: =FJ46 -> 0 | DH16: =FJ47 -> 0 | DI16: =FJ48 -> 0 | DJ16: =FJ49 -> 0 | DK16: =FJ50 -> 0 | DL16: =FJ51 -> 0 | DM16: =FJ52 -> 0 | DN16: =FJ53 -> 0 | DO16: 0 | DQ16: 1924 | DR16: =FN42 -> 81.22213745 | DS16: =FN43 -> 72.68158722 | DT16: =FN44 -> 52.14718246 | DU16: =FN45 -> 4.877497196 | DV16: =FN46 -> 37.4133873 | DW16: =FN47 -> 52.3717041 | DX16: =FN48 -> 69.82881165 | DY16: =FN49 -> 30.83887291 | DZ16: =FN50 -> 37.24936676 | EA16: =FN51 -> 38.59021378 | EB16: =FN52 -> 40.10510635 | EC16: =FN53 -> 89.9592514 | ED16: 607.2851186 | EF16: 1922-01-31 | EG16: 16.26344109 | EH16: 0 | EI16: 0 | EJ16: 0 | EK16: 0 | EL16: 16.26344109 | EM16: 0 | EN16: 0 | EO16: 0 | EP16: 0 | EQ16: 0 | ER16: 0 | ES16: 0 | ET16: 99.20698547 | EU16: 99.20698547 | EV16: 0 | EW16: 0 | EX16: 3544.853027 | EY16: 3544.853027 | EZ16: 90.26577759 | FB16: 1921 | FC16: 1 | FD16: 1922-01-31 | FE16: =(EH16+EN16)*UnitConv!$B16 -> 0 | FF16: =(EI16+EO16)*UnitConv!$B16 -> 0 | FG16: =(EJ16+EP16)*UnitConv!$B16 -> 0 | FH16: 0 | FI16: =(EK16+EQ16)*UnitConv!$B16 -> 0 | FJ16: =(ES16+EV16+EW16)*UnitConv!$B16 -> 0 | FK16: =EU16*UnitConv!$B16 -> 6.099999768 | FL16: =(EX16+EY16)*UnitConv!$B16 -> 435.9290334 | FM16: 0 | FN16: 90.26577759 | FP16: 1925 | FQ16: 800.0000052 | FR16: 263.4837161 | FS16: 5.180421681e-06 | FT16: 0 | FV16: 1925 | FW16: 800 | FX16: 263.4837213 | FY16: 0.9999999935 | FZ16: 1.00000002 | GB16: 1922-01-31 | GC16: 0 | GD16: 0
B17: Long Term | C17: 26.09796122 | D17: 44.55023176 | E17: 74.05393579 | F17: 142.4140221 | G17: 179.8622619 | H17: 153.3654821 | I17: 76.19086421 | J17: 28.65102424 | K17: 5.951314783 | L17: 3.991878073 | M17: 3.943969233 | N17: 21.30025005 | O17: 760.3731955 | S17: =VLOOKUP($T17,'SJRRP WY Types'!$B$13:$G$95,2,FALSE) -> Normal-Dry | T17: 1925 | U17: =GC54 -> 32.79999959 | V17: =GC55 -> 56.41600033 | W17: =GC56 -> 89.71199824 | X17: =GC57 -> 158.399999 | Y17: =GC58 -> 188.1600023 | Z17: =GC59 -> 151.9839978 | AA17: =GC60 -> 70.70400234 | AB17: =GC61 -> 20.99200049 | AC17: =GC62 -> 3.936000023 | AD17: =GC63 -> 3.935999856 | AE17: =GC64 -> 3.279999959 | AF17: =GC65 -> 19.68000011 | AG17: 800 | AI17: 1925 | AJ17: =GD54 -> 9.912722998 | AK17: =GD55 -> 28.99322012 | AL17: =GD56 -> 40.19386847 | AM17: =GD57 -> 53.98001502 | AN17: =GD58 -> 51.12963774 | AO17: =GD59 -> 43.96574636 | AP17: =GD60 -> 14.58604218 | AQ17: =GD61 -> 4.612635695 | AR17: =GD62 -> 0.3314392817 | AS17: =GD63 -> 0.3314392902 | AT17: =GD64 -> 0.9874392932 | AU17: =GD65 -> 14.45951483 | AV17: 263.4837213 | AX17: 1925 | AY17: =FI54 -> 0 | AZ17: =FI55 -> 0 | BA17: =FI56 -> 0 | BB17: =FI57 -> 0 | BC17: =FI58 -> 0 | BD17: =FI59 -> 0 | BE17: =FI60 -> 0 | BF17: =FI61 -> 0 | BG17: =FI62 -> 0 | BH17: =FI63 -> 0 | BI17: =FI64 -> 0 | BJ17: =FI65 -> 0 | BK17: 0 | BM17: 1925 | BN17: =FL54 -> 400.3515496 | BO17: =FL55 -> 110.4649761 | BP17: =FL56 -> 114.5099954 | BQ17: =FL57 -> 319.4345832 | BR17: =FL58 -> 645.4967094 | BS17: =FL59 -> 463.1627276 | BT17: =FL60 -> 441.7289111 | BU17: =FL61 -> 336.6493117 | BV17: =FL62 -> 380.3261525 | BW17: =FL63 -> 387.1623086 | BX17: =FL64 -> 391.6792756 | BY17: =FL65 -> 187.9770635 | BZ17: 4178.943564 | CB17: 1925 | CC17: 0 | CD17: 0 | CF17: 1925 | CG17: 800 | CH17: 263.4837213 | CI17: -2.273736754e-13 | CJ17: 2.273736754e-13 | CK17: 0 | CM17: 1925 | CN17: =FK54 -> 8.000000111 | CO17: =FK55 -> 8.899999899 | CP17: =FK56 -> 11.69999994 | CQ17: =FK57 -> 11.2999996 | CR17: =FK58 -> 14.10000082 | CS17: =FK59 -> 14.10000082 | CT17: =FK60 -> 12.4999999 | CU17: =FK61 -> 9.800000535 | CV17: =FK62 -> 7.300000101 | CW17: =FK63 -> 7.400000126 | CX17: =FK64 -> 6.099999768 | CY17: =FK65 -> 5.599999718 | CZ17: 116.8000013 | DB17: 1925 | DC17: =FJ54 -> 0 | DD17: =FJ55 -> 0 | DE17: =FJ56 -> 0 | DF17: =FJ57 -> 0 | DG17: =FJ58 -> 0 | DH17: =FJ59 -> 0 | DI17: =FJ60 -> 0 | DJ17: =FJ61 -> 0 | DK17: =FJ62 -> 0 | DL17: =FJ63 -> 0 | DM17: =FJ64 -> 0 | DN17: =FJ65 -> 0 | DO17: 0 | DQ17: 1925 | DR17: =FN54 -> 80.32684326 | DS17: =FN55 -> 187.7992096 | DT17: =FN56 -> 207.7732544 | DU17: =FN57 -> 201.373291 | DV17: =FN58 -> 154.7457886 | DW17: =FN59 -> 105.5435638 | DX17: =FN60 -> 88.88672638 | DY17: =FN61 -> 73.61367035 | DZ17: =FN62 -> 54.54426193 | EA17: =FN63 -> 46.90171051 | EB17: =FN64 -> 41.62717056 | EC17: =FN65 -> 75.10087585 | ED17: 1318.236366 | EF17: 1922-02-28 | EG17: 1236.011963 | EH17: 0 | EI17: 0 | EJ17: 1200 | EK17: 0 | EL17: 36.01190567 | EM17: 15.37413216 | EN17: 0 | EO17: 0 | EP17: 0 | EQ17: 0 | ER17: 0 | ES17: 15.37413216 | ET17: 473.7032166 | EU17: 100.8333282 | EV17: 219.6304626 | EW17: 153.2394104 | EX17: 3160.697998 | EY17: 3160.697998 | EZ17: 114.3815231 | FB17: 1921 | FC17: 2 | FD17: 1922-02-28 | FE17: =(EH17+EN17)*UnitConv!$B17 -> 0 | FF17: =(EI17+EO17)*UnitConv!$B17 -> 0 | FG17: =(EJ17+EP17)*UnitConv!$B17 -> 66.6446281 | FH17: 66.6446281 | FI17: =(EK17+EQ17)*UnitConv!$B17 -> 0 | FJ17: =(ES17+EV17+EW17)*UnitConv!$B17 -> 21.56198112 | FK17: =EU17*UnitConv!$B17 -> 5.599999718 | FL17: =(EX17+EY17)*UnitConv!$B17 -> 351.072571 | FM17: 0 | FN17: 114.3815231 | FP17: 1926 | FQ17: 790.1600019 | FR17: 277.5223467 | FS17: 0 | FT17: 9.839998103 | FV17: 1926 | FW17: 800 | FX17: 267.6823486 | FY17: 1.012453172 | FZ17: 0.9645434026 | GB17: 1922-02-28 | GC17: 0 | GD17: 66.6446281
S18: =VLOOKUP($T18,'SJRRP WY Types'!$B$13:$G$95,2,FALSE) -> Normal-Dry | T18: 1926 | U18: =GC66 -> 33.20846382 | V18: =GC67 -> 57.11855883 | W18: =GC68 -> 98.79923362 | X18: =GC69 -> 160.3725824 | Y18: =GC70 -> 183.8614958 | Z18: =GC71 -> 151.220003 | AA18: =GC72 -> 65.60696644 | AB18: =GC73 -> 19.92507829 | AC18: =GC74 -> 3.320846444 | AD18: =GC75 -> 3.320846382 | AE18: =GC76 -> 3.320846382 | AF18: =GC77 -> 19.92507866 | AG18: 800 | AI18: 1926 | AJ18: =GD66 -> 8.1163994 | AK18: =GD67 -> 25.06676178 | AL18: =GD68 -> 23.54620226 | AM18: =GD69 -> 19.86288211 | AN18: =GD70 -> 23.01187628 | AO18: =GD71 -> 18.53061636 | AP18: =GD72 -> 7.509138384 | AQ18: =GD73 -> 2.180072526 | AR18: =GD74 -> 0.3633454118 | AS18: =GD75 -> 0.363345421 | AT18: =GD76 -> 0.363345421 | AU18: =GD77 -> 2.180072562 | AV18: 131.0940579 | AX18: 1926 | AY18: =FI66 -> 0 | AZ18: =FI67 -> 0 | BA18: =FI68 -> 0 | BB18: =FI69 -> 0 | BC18: =FI70 -> 0 | BD18: =FI71 -> 0 | BE18: =FI72 -> 0 | BF18: =FI73 -> 0 | BG18: =FI74 -> 0 | BH18: =FI75 -> 0 | BI18: =FI76 -> 0 | BJ18: =FI77 -> 0 | BK18: 0 | BM18: 1926 | BN18: =FL66 -> 94.65380787 | BO18: =FL67 -> 105.0935733 | BP18: =FL68 -> 92.23140496 | BQ18: =FL69 -> 280.4997772 | BR18: =FL70 -> 643.2445608 | BS18: =FL71 -> 387.139641 | BT18: =FL72 -> 391.9693359 | BU18: =FL73 -> 302.323587 | BV18: =FL74 -> 671.2066116 | BW18: =FL75 -> 456.2571113 | BX18: =FL76 -> 287.6092552 | BY18: =FL77 -> 434.2303202 | BZ18: 4146.458986 | CB18: 1926 | CC18: 0 | CD18: 0 | CF18: 1926 | CG18: 800 | CH18: 131.0940579 | CI18: 0 | CJ18: 0 | CK18: 0 | CM18: 1926 | CN18: =FK66 -> 8.000000111 | CO18: =FK67 -> 8.899999899 | CP18: =FK68 -> 11.69999994 | CQ18: =FK69 -> 11.2999996 | CR18: =FK70 -> 14.10000082 | CS18: =FK71 -> 14.10000082 | CT18: =FK72 -> 12.4999999 | CU18: =FK73 -> 9.800000535 | CV18: =FK74 -> 7.300000101 | CW18: =FK75 -> 7.400000126 | CX18: =FK76 -> 6.099999768 | CY18: =FK77 -> 5.599999718 | CZ18: 116.8000013 | DB18: 1926 | DC18: =FJ66 -> 0 | DD18: =FJ67 -> 0 | DE18: =FJ68 -> 10.34510994 | DF18: =FJ69 -> 0 | DG18: =FJ70 -> 0 | DH18: =FJ71 -> 0 | DI18: =FJ72 -> 0 | DJ18: =FJ73 -> 0 | DK18: =FJ74 -> 0 | DL18: =FJ75 -> 0 | DM18: =FJ76 -> 0 | DN18: =FJ77 -> 3.76653571 | DO18: 14.11164565 | DQ18: 1926 | DR18: =FN66 -> 99.28487396 | DS18: =FN67 -> 232.4797668 | DT18: =FN68 -> 241.8592377 | DU18: =FN69 -> 128.7597198 | DV18: =FN70 -> 57.95531845 | DW18: =FN71 -> 76.70858002 | DX18: =FN72 -> 97.51551056 | DY18: =FN73 -> 50.45800018 | DZ18: =FN74 -> 74.41640472 | EA18: =FN75 -> 73.98894501 | EB18: =FN76 -> 66.13050079 | EC18: =FN77 -> 157.73526 | ED18: 1357.292118 | EF18: 1922-03-31 | EG18: 2176.814697 | EH18: 362.7397766 | EI18: 565.2844849 | EJ18: 1200 | EK18: 0 | EL18: 48.79032135 | EM18: 0 | EN18: 0 | EO18: 0 | EP18: 0 | EQ18: 0 | ER18: 0 | ES18: 0 | ET18: 135.3335114 | EU18: 130.1075287 | EV18: 0 | EW18: 5.22598505 | EX18: 4600 | EY18: 4710.26709 | EZ18: 107.9726868 | FB18: 1922 | FC18: 3 | FD18: 1922-03-31 | FE18: =(EH18+EN18)*UnitConv!$B18 -> 22.30399949 | FF18: =(EI18+EO18)*UnitConv!$B18 -> 34.75798816 | FG18: =(EJ18+EP18)*UnitConv!$B18 -> 73.78512397 | FH18: 108.5431121 | FI18: =(EK18+EQ18)*UnitConv!$B18 -> 0 | FJ18: =(ES18+EV18+EW18)*UnitConv!$B18 -> 0.3213332956 | FK18: =EU18*UnitConv!$B18 -> 8.000000111 | FL18: =(EX18+EY18)*UnitConv!$B18 -> 572.4660095 | FM18: 0 | FN18: 107.9726868 | FP18: 1927 | FQ18: 797.0951621 | FR18: 813.999131 | FS18: 0 | FT18: 2.904837938 | FV18: 1927 | FW18: 800 | FX18: 811.094293 | FY18: 1.00364428 | FZ18: 0.9964313992 | GB18: 1922-03-31 | GC18: =IFERROR(FE18,0)*$GC$6*VLOOKUP($FB18,$FV$13:$FZ$94,4,FALSE) -> 22.33616326 | GD18: =IFERROR(FF18,0)*$GD$6*VLOOKUP($FB18,$FV$13:$FZ$94,5,FALSE) -> 34.72032479
C19: Class 2/Other Delivery | S19: =VLOOKUP($T19,'SJRRP WY Types'!$B$13:$G$95,2,FALSE) -> Normal-Wet | T19: 1927 | U19: =GC78 -> 25.67723472 | V19: =GC79 -> 47.40412722 | W19: =GC80 -> 80.61270961 | X19: =GC81 -> 151.2210898 | Y19: =GC82 -> 191.3508085 | Z19: =GC83 -> 163.457524 | AA19: =GC84 -> 79.77767722 | AB19: =GC85 -> 26.76920007 | AC19: =GC86 -> 4.760440235 | AD19: =GC87 -> 4.608734317 | AE19: =GC88 -> 4.608734317 | AF19: =GC89 -> 19.75171992 | AG19: 800 | AI19: 1927 | AJ19: =GD78 -> 35.22089723 | AK19: =GD79 -> 75.22478304 | AL19: =GD80 -> 92.75464685 | AM19: =GD81 -> 86.58457929 | AN19: =GD82 -> 72.66713463 | AO19: =GD83 -> 66.89211238 | AP19: =GD84 -> 33.84313898 | AQ19: =GD85 -> 6.356416704 | AR19: =GD86 -> 0.524365349 | AS19: =GD87 -> 0.5888890697 | AT19: =GD88 -> 0.5759843249 | AU19: =GD89 -> 21.19005592 | AV19: 492.4230038 | AX19: 1927 | AY19: =FI78 -> 0 | AZ19: =FI79 -> 0 | BA19: =FI80 -> 0 | BB19: =FI81 -> 0 | BC19: =FI82 -> 0 | BD19: =FI83 -> 0 | BE19: =FI84 -> 0 | BF19: =FI85 -> 0 | BG19: =FI86 -> 0 | BH19: =FI87 -> 0 | BI19: =FI88 -> 0 | BJ19: =FI89 -> 0 | BK19: 0 | BM19: 1927 | BN19: =FL78 -> 442.952491 | BO19: =FL79 -> 89.25619835 | BP19: =FL80 -> 92.23140496 | BQ19: =FL81 -> 342.4692633 | BR19: =FL82 -> 713.5576017 | BS19: =FL83 -> 704.1790909 | BT19: =FL84 -> 656.2562274 | BU19: =FL85 -> 356.0682182 | BV19: =FL86 -> 494.4141255 | BW19: =FL87 -> 719.2359879 | BX19: =FL88 -> 421.3185821 | BY19: =FL89 -> 254.4384879 | BZ19: 5286.377679 | CB19: 1927 | CC19: 0 | CD19: 0 | CF19: 1927 | CG19: 800 | CH19: 492.4230038 | CI19: 0 | CJ19: 0 | CK19: 0 | CM19: 1927 | CN19: =FK78 -> 8.000000111 | CO19: =FK79 -> 8.899999899 | CP19: =FK80 -> 11.69999994 | CQ19: =FK81 -> 11.2999996 | CR19: =FK82 -> 14.10000082 | CS19: =FK83 -> 14.10000082 | CT19: =FK84 -> 12.4999999 | CU19: =FK85 -> 9.800000535 | CV19: =FK86 -> 7.300000101 | CW19: =FK87 -> 7.400000126 | CX19: =FK88 -> 6.099999768 | CY19: =FK89 -> 5.600000081 | CZ19: 116.8000017 | DB19: 1927 | DC19: =FJ78 -> 2.233119492 | DD19: =FJ79 -> 0 | DE19: =FJ80 -> 0 | DF19: =FJ81 -> 26.88962452 | DG19: =FJ82 -> 0 | DH19: =FJ83 -> 0 | DI19: =FJ84 -> 0 | DJ19: =FJ85 -> 0 | DK19: =FJ86 -> 0 | DL19: =FJ87 -> 0 | DM19: =FJ88 -> 5.829740496 | DN19: =FJ89 -> 1.628870862 | DO19: 36.58135536 | DQ19: 1927 | DR19: =FN78 -> 140.7630005 | DS19: =FN79 -> 230.2490082 | DT19: =FN80 -> 296.6333008 | DU19: =FN81 -> 377.065918 | DV19: =FN82 -> 207.3065338 | DW19: =FN83 -> 112.4511566 | DX19: =FN84 -> 97.87645721 | DY19: =FN85 -> 79.79933929 | DZ19: =FN86 -> 114.1478958 | EA19: =FN87 -> 66.51543427 | EB19: =FN88 -> 58.7048645 | EC19: =FN89 -> 71.56583405 | ED19: 1853.078743 | EF19: 1922-04-30 | EG19: 3129.976074 | EH19: 628.3933105 | EI19: 1234.360596 | EJ19: 1200 | EK19: 0 | EL19: 67.22222137 | EM19: 476.1965942 | EN19: 0 | EO19: 408.6809692 | EP19: 67.51560974 | EQ19: 0 | ER19: 0 | ES19: 0 | ET19: 1958.969849 | EU19: 149.5694427 | EV19: 0 | EW19: 1809.400391 | EX19: 966.6522217 | EY19: 966.6522217 | EZ19: 180.6772156 | FB19: 1922 | FC19: 4 | FD19: 1922-04-30 | FE19: =(EH19+EN19)*UnitConv!$B19 -> 37.39199864 | FF19: =(EI19+EO19)*UnitConv!$B19 -> 97.76776254 | FG19: =(EJ19+EP19)*UnitConv!$B19 -> 75.42241645 | FH19: 173.190179 | FI19: =(EK19+EQ19)*UnitConv!$B19 -> 0 | FJ19: =(ES19+EV19+EW19)*UnitConv!$B19 -> 107.6668001 | FK19: =EU19*UnitConv!$B19 -> 8.899999899 | FL19: =(EX19+EY19)*UnitConv!$B19 -> 115.0396032 | FM19: 0 | FN19: 180.6772156 | FP19: 1928 | FQ19: 780.3199982 | FR19: 353.7415016 | FS19: 0 | FT19: 19.6800018 | FV19: 1928 | FW19: 800 | FX19: 334.0614998 | FY19: 1.025220425 | FZ19: 0.9443661496 | GB19: 1922-04-30 | GC19: =IFERROR(FE19,0)*$GC$6*VLOOKUP($FB19,$FV$13:$FZ$94,4,FALSE) -> 37.44592027 | GD19: =IFERROR(FF19,0)*$GD$6*VLOOKUP($FB19,$FV$13:$FZ$94,5,FALSE) -> 97.66182248
C20: Mar | D20: Apr | E20: May | F20: Jun | G20: Jul | H20: Aug | I20: Sep | J20: Oct | K20: Nov | L20: Dec | M20: Jan | N20: Feb | O20: Total | S20: =VLOOKUP($T20,'SJRRP WY Types'!$B$13:$G$95,2,FALSE) -> Normal-Dry | T20: 1928 | U20: =GC90 -> 31.60959671 | V20: =GC91 -> 57.83883619 | W20: =GC92 -> 91.97457354 | X20: =GC93 -> 162.3949153 | Y20: =GC94 -> 186.1800289 | Z20: =GC95 -> 153.1269199 | AA20: =GC96 -> 66.43428445 | AB20: =GC97 -> 20.17633783 | AC20: =GC98 -> 3.362723035 | AD20: =GC99 -> 3.362722972 | AE20: =GC100 -> 3.362722972 | AF20: =GC101 -> 20.17633821 | AG20: 800 | AI20: 1928 | AJ20: =GD90 -> 19.19111255 | AK20: =GD91 -> 27.05618908 | AL20: =GD92 -> 35.45818158 | AM20: =GD93 -> 35.50667936 | AN20: =GD94 -> 41.13578685 | AO20: =GD95 -> 33.12513373 | AP20: =GD96 -> 13.4232571 | AQ20: =GD97 -> 3.897074609 | AR20: =GD98 -> 0.6495124038 | AS20: =GD99 -> 0.6495124163 | AT20: =GD100 -> 0.6495124163 | AU20: =GD101 -> 3.897074409 | AV20: 214.6390265 | AX20: 1928 | AY20: =FI90 -> 0 | AZ20: =FI91 -> 0 | BA20: =FI92 -> 0 | BB20: =FI93 -> 0 | BC20: =FI94 -> 0 | BD20: =FI95 -> 0 | BE20: =FI96 -> 0 | BF20: =FI97 -> 0 | BG20: =FI98 -> 0 | BH20: =FI99 -> 0 | BI20: =FI100 -> 0 | BJ20: =FI101 -> 0 | BK20: 0 | BM20: 1928 | BN20: =FL90 -> 555.1106831 | BO20: =FL91 -> 99.00923215 | BP20: =FL92 -> 92.23140496 | BQ20: =FL93 -> 299.3813275 | BR20: =FL94 -> 639.5801638 | BS20: =FL95 -> 697.7604817 | BT20: =FL96 -> 652.3542033 | BU20: =FL97 -> 348.6327742 | BV20: =FL98 -> 388.6104468 | BW20: =FL99 -> 578.274006 | BX20: =FL100 -> 400.9121136 | BY20: =FL101 -> 361.2261686 | BZ20: 5113.083006 | CB20: 1928 | CC20: 0 | CD20: 0 | CF20: 1928 | CG20: 800 | CH20: 214.6390265 | CI20: 0 | CJ20: 0 | CK20: 0 | CM20: 1928 | CN20: =FK90 -> 8.000000111 | CO20: =FK91 -> 8.899999899 | CP20: =FK92 -> 11.69999994 | CQ20: =FK93 -> 11.2999996 | CR20: =FK94 -> 14.10000082 | CS20: =FK95 -> 14.10000082 | CT20: =FK96 -> 12.4999999 | CU20: =FK97 -> 9.800000535 | CV20: =FK98 -> 7.300000101 | CW20: =FK99 -> 7.400000126 | CX20: =FK100 -> 6.099999768 | CY20: =FK101 -> 5.599999718 | CZ20: 116.8000013 | DB20: 1928 | DC20: =FJ90 -> 0 | DD20: =FJ91 -> 0 | DE20: =FJ92 -> 0 | DF20: =FJ93 -> 0 | DG20: =FJ94 -> 0 | DH20: =FJ95 -> 0 | DI20: =FJ96 -> 0 | DJ20: =FJ97 -> 0 | DK20: =FJ98 -> 0 | DL20: =FJ99 -> 0 | DM20: =FJ100 -> 0 | DN20: =FJ101 -> 0 | DO20: 0 | DQ20: 1928 | DR20: =FN90 -> 154.4087677 | DS20: =FN91 -> 162.7559967 | DT20: =FN92 -> 206.4176178 | DU20: =FN93 -> 135.3291321 | DV20: =FN94 -> 80.76552582 | DW20: =FN95 -> 110.7954712 | DX20: =FN96 -> 100.1871948 | DY20: =FN97 -> 31.34542084 | DZ20: =FN98 -> 28.92640686 | EA20: =FN99 -> 34.21055603 | EB20: =FN100 -> 33.79840088 | EC20: =FN101 -> 38.37289047 | ED20: 1117.313381 | EF20: 1922-05-31 | EG20: 3663.513672 | EH20: 970.8623657 | EI20: 1411.334106 | EJ20: 1200 | EK20: 0 | EL20: 81.31720734 | EM20: 988.9819946 | EN20: 0 | EO20: 756.4550781 | EP20: 200 | EQ20: 0 | ER20: 32.52688217 | ES20: 0 | ET20: 1767.552856 | EU20: 190.2822571 | EV20: 0 | EW20: 1577.27063 | EX20: 954.8895874 | EY20: 954.8895874 | EZ20: 405.8936768 | FB20: 1922 | FC20: 5 | FD20: 1922-05-31 | FE20: =(EH20+EN20)*UnitConv!$B20 -> 59.69600001 | FF20: =(EI20+EO20)*UnitConv!$B20 -> 133.2921614 | FG20: =(EJ20+EP20)*UnitConv!$B20 -> 86.08264463 | FH20: 219.3748061 | FI20: =(EK20+EQ20)*UnitConv!$B20 -> 0 | FJ20: =(ES20+EV20+EW20)*UnitConv!$B20 -> 96.9825908 | FK20: =EU20*UnitConv!$B20 -> 11.69999994 | FL20: =(EX20+EY20)*UnitConv!$B20 -> 117.4277443 | FM20: 0 | FN20: 405.8936768 | FP20: 1929 | FQ20: 653.9787449 | FR20: 0 | FS20: 0 | FT20: 0 | FV20: 1929 | FW20: 653.9787449 | FX20: 0 | FY20: 1 | FZ20: 0 | GB20: 1922-05-31 | GC20: 59.78208541 | GD20: 133.1477275
B21: SJRRP WY Type | C21: TAF | D21: TAF | E21: TAF | F21: TAF | G21: TAF | H21: TAF | I21: TAF | J21: TAF | K21: TAF | L21: TAF | M21: TAF | N21: TAF | O21: TAF | S21: =VLOOKUP($T21,'SJRRP WY Types'!$B$13:$G$95,2,FALSE) -> Dry | T21: 1929 | U21: =GC102 -> 26.78969729 | V21: =GC103 -> 48.22132578 | W21: =GC104 -> 80.29607345 | X21: =GC105 -> 132.1898462 | Y21: =GC106 -> 148.476477 | Z21: =GC107 -> 124.7987284 | AA21: =GC108 -> 52.98059132 | AB21: =GC109 -> 16.09040209 | AC21: =GC110 -> 2.681733641 | AD21: =GC111 -> 2.681733603 | AE21: =GC112 -> 2.681733603 | AF21: =GC113 -> 16.09040257 | AG21: 653.9787449 | AI21: 1929 | AJ21: =GD102 -> 0 | AK21: =GD103 -> 0 | AL21: =GD104 -> 0 | AM21: =GD105 -> 0 | AN21: =GD106 -> 0 | AO21: =GD107 -> 0 | AP21: =GD108 -> 0 | AQ21: =GD109 -> 0 | AR21: =GD110 -> 0 | AS21: =GD111 -> 0 | AT21: =GD112 -> 0 | AU21: =GD113 -> 0 | AV21: 0 | AX21: 1929 | AY21: =FI102 -> 0 | AZ21: =FI103 -> 0 | BA21: =FI104 -> 0 | BB21: =FI105 -> 0 | BC21: =FI106 -> 0 | BD21: =FI107 -> 0 | BE21: =FI108 -> 0 | BF21: =FI109 -> 0 | BG21: =FI110 -> 0 | BH21: =FI111 -> 0 | BI21: =FI112 -> 0 | BJ21: =FI113 -> 0 | BK21: 0 | BM21: 1929 | BN21: =FL102 -> 296.0355188 | BO21: =FL103 -> 121.0719436 | BP21: =FL104 -> 67.63636364 | BQ21: =FL105 -> 58.40986671 | BR21: =FL106 -> 162.4975758 | BS21: =FL107 -> 104.0388018 | BT21: =FL108 -> 224.8572649 | BU21: =FL109 -> 262.6537999 | BV21: =FL110 -> 241.940918 | BW21: =FL111 -> 376.1528451 | BX21: =FL112 -> 291.6545871 | BY21: =FL113 -> 275.645718 | BZ21: 2482.595203 | CB21: 1929 | CC21: 0 | CD21: 0 | CF21: 1929 | CG21: 653.9787449 | CH21: 0 | CI21: 0 | CJ21: 0 | CK21: 0 | CM21: 1929 | CN21: =FK102 -> 8.000000111 | CO21: =FK103 -> 8.899999899 | CP21: =FK104 -> 11.69999994 | CQ21: =FK105 -> 11.2999996 | CR21: =FK106 -> 14.10000082 | CS21: =FK107 -> 14.10000082 | CT21: =FK108 -> 12.4999999 | CU21: =FK109 -> 9.800000535 | CV21: =FK110 -> 7.300000101 | CW21: =FK111 -> 7.400000126 | CX21: =FK112 -> 6.099999768 | CY21: =FK113 -> 5.599999718 | CZ21: 116.8000013 | DB21: 1929 | DC21: =FJ102 -> 0 | DD21: =FJ103 -> 0 | DE21: =FJ104 -> 0 | DF21: =FJ105 -> 0 | DG21: =FJ106 -> 0 | DH21: =FJ107 -> 0 | DI21: =FJ108 -> 0 | DJ21: =FJ109 -> 0 | DK21: =FJ110 -> 0 | DL21: =FJ111 -> 0 | DM21: =FJ112 -> 0 | DN21: =FJ113 -> 0 | DO21: 0 | DQ21: 1929 | DR21: =FN102 -> 62.41098785 | DS21: =FN103 -> 79.43245697 | DT21: =FN104 -> 156.3974915 | DU21: =FN105 -> 118.9290314 | DV21: =FN106 -> 111.6281204 | DW21: =FN107 -> 84.94818878 | DX21: =FN108 -> 97.19247437 | DY21: =FN109 -> 28.01020813 | DZ21: =FN110 -> 22.06761932 | EA21: =FN111 -> 25.32331848 | EB21: =FN112 -> 33.82700348 | EC21: =FN113 -> 48.39509583 | ED21: 868.5619965 | EF21: 1922-06-30 | EG21: 4441.14502 | EH21: 1785.959961 | EI21: 1657.833862 | EJ21: 896.5175781 | EK21: 0 | EL21: 100.8333359 | EM21: 1250 | EN21: 532.4000244 | EO21: 522.9456787 | EP21: 144.2376404 | EQ21: 0 | ER21: 50.41666794 | ES21: 0 | ET21: 906.3978271 | EU21: 189.902771 | EV21: 681.75177 | EW21: 34.74330139 | EX21: 4600 | EY21: 5837.241211 | EZ21: 659.9800415 | FB21: 1922 | FC21: 6 | FD21: 1922-06-30 | FE21: =(EH21+EN21)*UnitConv!$B21 -> 137.9519991 | FF21: =(EI21+EO21)*UnitConv!$B21 -> 129.7653942 | FG21: =(EJ21+EP21)*UnitConv!$B21 -> 61.92923614 | FH21: 191.6946303 | FI21: =(EK21+EQ21)*UnitConv!$B21 -> 0 | FJ21: =(ES21+EV21+EW21)*UnitConv!$B21 -> 42.63441747 | FK21: =EU21*UnitConv!$B21 -> 11.2999996 | FL21: =(EX21+EY21)*UnitConv!$B21 -> 621.0589811 | FM21: 0 | FN21: 659.9800415 | FP21: 1930 | FQ21: 661.0984208 | FR21: 0 | FS21: 0 | FT21: 0 | FV21: 1930 | FW21: 661.0984208 | FX21: 0 | FY21: 1 | FZ21: 0 | GB21: 1922-06-30 | GC21: 138.1509346 | GD21: 129.6247818
B22: Wet | C22: =AJ4 -> 34.14347164 | D22: =AK4 -> 57.89576185 | E22: 113.0423329 | F22: 131.5870241 | G22: 107.2375318 | H22: 94.33379687 | I22: 58.33596931 | J22: 29.91556041 | K22: 7.758769927 | L22: 12.43241337 | M22: 11.65909417 | N22: 40.26189789 | O22: 698.6036242 | S22: =VLOOKUP($T22,'SJRRP WY Types'!$B$13:$G$95,2,FALSE) -> Dry | T22: 1930 | U22: =GC114 -> 27.09153409 | V22: =GC115 -> 48.76090885 | W22: =GC116 -> 81.14636643 | X22: =GC117 -> 133.6287174 | Y22: =GC118 -> 150.0926132 | Z22: =GC119 -> 126.157145 | AA22: =GC120 -> 53.55727867 | AB22: =GC121 -> 16.26554268 | AC22: =GC122 -> 2.710923906 | AD22: =GC123 -> 2.710923936 | AE22: =GC124 -> 2.710923936 | AF22: =GC125 -> 16.26554268 | AG22: 661.0984208 | AI22: 1930 | AJ22: =GD114 -> 0 | AK22: =GD115 -> 0 | AL22: =GD116 -> 0 | AM22: =GD117 -> 0 | AN22: =GD118 -> 0 | AO22: =GD119 -> 0 | AP22: =GD120 -> 0 | AQ22: =GD121 -> 0 | AR22: =GD122 -> 0 | AS22: =GD123 -> 0 | AT22: =GD124 -> 0 | AU22: =GD125 -> 0 | AV22: 0 | AX22: 1930 | AY22: =FI114 -> 0 | AZ22: =FI115 -> 0 | BA22: =FI116 -> 0 | BB22: =FI117 -> 0 | BC22: =FI118 -> 0 | BD22: =FI119 -> 0 | BE22: =FI120 -> 0 | BF22: =FI121 -> 0 | BG22: =FI122 -> 0 | BH22: =FI123 -> 0 | BI22: =FI124 -> 0 | BJ22: =FI125 -> 0 | BK22: 0 | BM22: 1930 | BN22: =FL114 -> 288.066269 | BO22: =FL115 -> 115.5583395 | BP22: =FL116 -> 120.5386928 | BQ22: =FL117 -> 190.6537239 | BR22: =FL118 -> 598.5986612 | BS22: =FL119 -> 334.4653985 | BT22: =FL120 -> 517.1215328 | BU22: =FL121 -> 303.5791365 | BV22: =FL122 -> 271.3731566 | BW22: =FL123 -> 283.0339681 | BX22: =FL124 -> 397.2070051 | BY22: =FL125 -> 309.8182283 | BZ22: 3730.014112 | CB22: 1930 | CC22: 0 | CD22: 0 | CF22: 1930 | CG22: 661.0984208 | CH22: 0 | CI22: 0 | CJ22: 0 | CK22: 0 | CM22: 1930 | CN22: =FK114 -> 8.000000111 | CO22: =FK115 -> 8.899999899 | CP22: =FK116 -> 11.69999994 | CQ22: =FK117 -> 11.2999996 | CR22: =FK118 -> 14.10000082 | CS22: =FK119 -> 14.10000082 | CT22: =FK120 -> 12.4999999 | CU22: =FK121 -> 9.800000535 | CV22: =FK122 -> 7.300000101 | CW22: =FK123 -> 7.400000126 | CX22: =FK124 -> 6.099999768 | CY22: =FK125 -> 5.599999718 | CZ22: 116.8000013 | DB22: 1930 | DC22: =FJ114 -> 0 | DD22: =FJ115 -> 0 | DE22: =FJ116 -> 0 | DF22: =FJ117 -> 0 | DG22: =FJ118 -> 0 | DH22: =FJ119 -> 0 | DI22: =FJ120 -> 0 | DJ22: =FJ121 -> 0 | DK22: =FJ122 -> 0 | DL22: =FJ123 -> 0 | DM22: =FJ124 -> 0 | DN22: =FJ125 -> 0 | DO22: 0 | DQ22: 1930 | DR22: =FN114 -> 68.70010376 | DS22: =FN115 -> 128.1804352 | DT22: =FN116 -> 80.61746979 | DU22: =FN117 -> 149.3657837 | DV22: =FN118 -> 93.94750214 | DW22: =FN119 -> 82.70478821 | DX22: =FN120 -> 97.55661774 | DY22: =FN121 -> 33.63848495 | DZ22: =FN122 -> 29.65402794 | EA22: =FN123 -> 27.45632744 | EB22: =FN124 -> 31.84295464 | EC22: =FN125 -> 37.06651688 | ED22: 860.7310123 | EF22: 1922-07-31 | EG22: 3724.273193 | EH22: 2368.477539 | EI22: 1241.95166 | EJ22: 0 | EK22: 0 | EL22: 113.8440857 | EM22: 1250 | EN22: 702.5806274 | EO22: 482.3656006 | EP22: 0 | EQ22: 0 | ER22: 65.05376434 | ES22: 0 | ET22: 229.3145294 | EU22: 229.3145294 | EV22: 0 | EW22: 0 | EX22: 4600 | EY22: 7004.901855 | EZ22: 305.6776123 | FB22: 1922 | FC22: 7 | FD22: 1922-07-31 | FE22: =(EH22+EN22)*UnitConv!$B22 -> 188.8320063 | FF22: =(EI22+EO22)*UnitConv!$B22 -> 106.0241357 | FG22: =(EJ22+EP22)*UnitConv!$B22 -> 0 | FH22: 106.0241357 | FI22: =(EK22+EQ22)*UnitConv!$B22 -> 0 | FJ22: =(ES22+EV22+EW22)*UnitConv!$B22 -> 0 | FK22: =EU22*UnitConv!$B22 -> 14.10000082 | FL22: =(EX22+EY22)*UnitConv!$B22 -> 713.5576017 | FM22: 0 | FN22: 305.6776123 | FP22: 1931 | FQ22: 308.7248188 | FR22: 5.816436999 | FS22: 0 | FT22: 5.816436999 | FV22: 1931 | FW22: 314.5412558 | FX22: 0 | FY22: 1.018840199 | FZ22: 0 | GB22: 1922-07-31 | GC22: 189.104314 | GD22: 105.9092491
B23: Normal-Wet | C23: 29.84019388 | D23: =AK5 -> 73.33527726 | E23: 94.78869722 | F23: 85.23925927 | G23: 71.2140134 | H23: 62.25526562 | I23: 28.18140576 | J23: 4.009108528 | K23: 0.5663141138 | L23: 0.5511704852 | M23: 0.4949440757 | N23: 16.32381725 | O23: 466.7994669 | S23: =VLOOKUP($T23,'SJRRP WY Types'!$B$13:$G$95,2,FALSE) -> Critical | T23: 1931 | U23: =GC126 -> 12.9155795 | V23: =GC127 -> 15.49670947 | W23: =GC128 -> 28.32527033 | X23: =GC129 -> 67.42268058 | Y23: =GC130 -> 86.85701467 | Z23: =GC131 -> 52.26515521 | AA23: =GC132 -> 22.89352157 | AB23: =GC133 -> 15.47199513 | AC23: =GC134 -> 5.157331792 | AD23: =GC135 -> 0 | AE23: =GC136 -> 0 | AF23: =GC137 -> 7.735997534 | AG23: 314.5412558 | AI23: 1931 | AJ23: =GD126 -> 0 | AK23: =GD127 -> 0 | AL23: =GD128 -> 0 | AM23: =GD129 -> 0 | AN23: =GD130 -> 0 | AO23: =GD131 -> 0 | AP23: =GD132 -> 0 | AQ23: =GD133 -> 0 | AR23: =GD134 -> 0 | AS23: =GD135 -> 0 | AT23: =GD136 -> 0 | AU23: =GD137 -> 0 | AV23: 0 | AX23: 1931 | AY23: =FI126 -> 0 | AZ23: =FI127 -> 0 | BA23: =FI128 -> 0 | BB23: =FI129 -> 0 | BC23: =FI130 -> 0 | BD23: =FI131 -> 0 | BE23: =FI132 -> 0 | BF23: =FI133 -> 0 | BG23: =FI134 -> 0 | BH23: =FI135 -> 0 | BI23: =FI136 -> 0 | BJ23: =FI137 -> 0 | BK23: 0 | BM23: 1931 | BN23: =FL126 -> 114.4267184 | BO23: =FL127 -> 65.45454545 | BP23: =FL128 -> 93.61569417 | BQ23: =FL129 -> 42.86575413 | BR23: =FL130 -> 88.14405181 | BS23: =FL131 -> 103.0981079 | BT23: =FL132 -> 187.2601887 | BU23: =FL133 -> 243.3287911 | BV23: =FL134 -> 247.2529039 | BW23: =FL135 -> 723.7223312 | BX23: =FL136 -> 419.9794854 | BY23: =FL137 -> 478.8563585 | BZ23: 2808.004931 | CB23: 1931 | CC23: 0 | CD23: 0 | CF23: 1931 | CG23: 314.5412558 | CH23: 0 | CI23: 0 | CJ23: 0 | CK23: 0 | CM23: 1931 | CN23: =FK126 -> 8.000000111 | CO23: =FK127 -> 8.899999899 | CP23: =FK128 -> 11.69999994 | CQ23: =FK129 -> 11.2999996 | CR23: =FK130 -> 14.10000082 | CS23: =FK131 -> 14.10000082 | CT23: =FK132 -> 12.4999999 | CU23: =FK133 -> 9.800000535 | CV23: =FK134 -> 7.300000101 | CW23: =FK135 -> 7.400000126 | CX23: =FK136 -> 6.099999768 | CY23: =FK137 -> 5.600000081 | CZ23: 116.8000017 | DB23: 1931 | DC23: =FJ126 -> 0 | DD23: =FJ127 -> 0 | DE23: =FJ128 -> 0 | DF23: =FJ129 -> 0 | DG23: =FJ130 -> 0 | DH23: =FJ131 -> 0 | DI23: =FJ132 -> 0 | DJ23: =FJ133 -> 0 | DK23: =FJ134 -> 0 | DL23: =FJ135 -> 0 | DM23: =FJ136 -> 0 | DN23: =FJ137 -> 0.7135607196 | DO23: 0.7135607196 | DQ23: 1931 | DR23: =FN126 -> 40.29229355 | DS23: =FN127 -> 76.68421173 | DT23: =FN128 -> 58.55266953 | DU23: =FN129 -> 17.54893684 | DV23: =FN130 -> 38.88272858 | DW23: =FN131 -> 46.40572357 | DX23: =FN132 -> 69.10694885 | DY23: =FN133 -> 28.14918709 | DZ23: =FN134 -> 15.26360989 | EA23: =FN135 -> 71.36732483 | EB23: =FN136 -> 79.16455078 | EC23: =FN137 -> 171.0598907 | ED23: 712.478076 | EF23: 1922-08-31 | EG23: 3261.397705 | EH23: 2123.094727 | EI23: 1024.458984 | EJ23: 0 | EK23: 0 | EL23: 113.8440857 | EM23: 1092.894897 | EN23: 702.5806274 | EO23: 341.5238953 | EP23: 0 | EQ23: 0 | ER23: 48.79032135 | ES23: 0 | ET23: 229.3145294 | EU23: 229.3145294 | EV23: 0 | EW23: 0 | EX23: 4600 | EY23: 7180 | EZ23: 126.833374 | FB23: 1922 | FC23: 8 | FD23: 1922-08-31 | FE23: =(EH23+EN23)*UnitConv!$B23 -> 173.7440052 | FF23: =(EI23+EO23)*UnitConv!$B23 -> 83.99101343 | FG23: =(EJ23+EP23)*UnitConv!$B23 -> 0 | FH23: 83.99101343 | FI23: =(EK23+EQ23)*UnitConv!$B23 -> 0 | FJ23: =(ES23+EV23+EW23)*UnitConv!$B23 -> 0 | FK23: =EU23*UnitConv!$B23 -> 14.10000082 | FL23: =(EX23+EY23)*UnitConv!$B23 -> 724.3239669 | FM23: 0 | FN23: 126.833374 | FP23: 1932 | FQ23: 798.8479966 | FR23: 803.9616066 | FS23: 0 | FT23: 1.152003353 | FV23: 1932 | FW23: 800 | FX23: 802.8096032 | FY23: 1.001442081 | FZ23: 0.9985670916 | GB23: 1922-08-31 | GC23: 173.9945551 | GD23: 83.9000017
B24: Normal-Dry | C24: 10.64768535 | D24: 27.76352779 | E24: 33.84870572 | F24: 34.38482655 | G24: 34.09749046 | H24: 29.63232411 | I24: 13.19223286 | J24: 3.460822049 | K24: 0.4056973421 | L24: 0.3897266807 | M24: 0.4944607968 | N24: 7.079530235 | O24: 195.3970299 | S24: =VLOOKUP($T24,'SJRRP WY Types'!$B$13:$G$95,2,FALSE) -> Normal-Wet | T24: 1932 | U24: =GC138 -> 25.62089366 | V24: =GC139 -> 42.70148903 | W24: =GC140 -> 64.38070734 | X24: =GC141 -> 146.6912407 | Y24: =GC142 -> 187.1334706 | Z24: =GC143 -> 170.7098187 | AA24: =GC144 -> 95.20910241 | AB24: =GC145 -> 33.76061606 | AC24: =GC146 -> 4.88703742 | AD24: =GC147 -> 4.598621819 | AE24: =GC148 -> 4.598621819 | AF24: =GC149 -> 19.70838039 | AG24: 800 | AI24: 1932 | AJ24: =GD138 -> 37.61191861 | AK24: =GD139 -> 85.17815351 | AL24: =GD140 -> 117.0643998 | AM24: =GD141 -> 103.5576436 | AN24: =GD142 -> 90.65840564 | AO24: =GD143 -> 71.70728631 | AP24: =GD144 -> 24.31417124 | AQ24: =GD145 -> 1.410249207 | AR24: =GD146 -> 0.7809248815 | AS24: =GD147 -> 0.780924855 | AT24: =GD148 -> 0.780924855 | AU24: =GD149 -> 23.27895985 | AV24: 557.1239624 | AX24: 1932 | AY24: =FI138 -> 0 | AZ24: =FI139 -> 0 | BA24: =FI140 -> 0 | BB24: =FI141 -> 0 | BC24: =FI142 -> 0 | BD24: =FI143 -> 0 | BE24: =FI144 -> 0 | BF24: =FI145 -> 0 | BG24: =FI146 -> 0 | BH24: =FI147 -> 0 | BI24: =FI148 -> 0 | BJ24: =FI149 -> 0 | BK24: 0 | BM24: 1932 | BN24: =FL138 -> 310.7881902 | BO24: =FL139 -> 89.25620016 | BP24: =FL140 -> 92.23140496 | BQ24: =FL141 -> 87.60861231 | BR24: =FL142 -> 479.9047091 | BS24: =FL143 -> 291.3592635 | BT24: =FL144 -> 416.0756424 | BU24: =FL145 -> 327.7848664 | BV24: =FL146 -> 275.0249758 | BW24: =FL147 -> 410.6300972 | BX24: =FL148 -> 400.1086615 | BY24: =FL149 -> 360.2584711 | BZ24: 3541.031095 | CB24: 1932 | CC24: 0 | CD24: 0 | CF24: 1932 | CG24: 800 | CH24: 557.1239624 | CI24: 0 | CJ24: 0 | CK24: 0 | CM24: 1932 | CN24: =FK138 -> 8.000000111 | CO24: =FK139 -> 8.899999899 | CP24: =FK140 -> 11.69999994 | CQ24: =FK141 -> 11.2999996 | CR24: =FK142 -> 14.10000082 | CS24: =FK143 -> 14.10000082 | CT24: =FK144 -> 12.4999999 | CU24: =FK145 -> 9.800000535 | CV24: =FK146 -> 7.300000101 | CW24: =FK147 -> 7.400000126 | CX24: =FK148 -> 6.099999768 | CY24: =FK149 -> 5.599999718 | CZ24: 116.8000013 | DB24: 1932 | DC24: =FJ138 -> 1.551544294 | DD24: =FJ139 -> 4.126098028 | DE24: =FJ140 -> 0 | DF24: =FJ141 -> 0 | DG24: =FJ142 -> 0 | DH24: =FJ143 -> 0 | DI24: =FJ144 -> 0 | DJ24: =FJ145 -> 0 | DK24: =FJ146 -> 0 | DL24: =FJ147 -> 0 | DM24: =FJ148 -> 0 | DN24: =FJ149 -> 0 | DO24: 5.677642321 | DQ24: 1932 | DR24: =FN138 -> 128.4414368 | DS24: =FN139 -> 208.640686 | DT24: =FN140 -> 244.6510773 | DU24: =FN141 -> 398.1664429 | DV24: =FN142 -> 258.5469666 | DW24: =FN143 -> 114.5404739 | DX24: =FN144 -> 97.06936646 | DY24: =FN145 -> 73.38000488 | DZ24: =FN146 -> 61.48080063 | EA24: =FN147 -> 41.48465347 | EB24: =FN148 -> 51.40251541 | EC24: =FN149 -> 54.45980072 | ED24: 1732.264225 | EF24: 1922-09-30 | EG24: 1822.730225 | EH24: 1278.835571 | EI24: 443.0613708 | EJ24: 0 | EK24: 0 | EL24: 100.8333359 | EM24: 411.0125732 | EN24: 363 | EO24: 48.01257706 | EP24: 0 | EQ24: 0 | ER24: 0 | ES24: 0 | ET24: 210.0694427 | EU24: 210.0694427 | EV24: 0 | EW24: 0 | EX24: 4600 | EY24: 6680 | EZ24: 102.9753647 | FB24: 1922 | FC24: 9 | FD24: 1922-09-30 | FE24: =(EH24+EN24)*UnitConv!$B24 -> 97.69600094 | FF24: =(EI24+EO24)*UnitConv!$B24 -> 29.22092913 | FG24: =(EJ24+EP24)*UnitConv!$B24 -> 0 | FH24: 29.22092913 | FI24: =(EK24+EQ24)*UnitConv!$B24 -> 0 | FJ24: =(ES24+EV24+EW24)*UnitConv!$B24 -> 0 | FK24: =EU24*UnitConv!$B24 -> 12.4999999 | FL24: =(EX24+EY24)*UnitConv!$B24 -> 671.2066116 | FM24: 0 | FN24: 102.9753647 | FP24: 1933 | FQ24: 800.0000052 | FR24: 234.8297401 | FS24: 5.180421681e-06 | FT24: 0 | FV24: 1933 | FW24: 800 | FX24: 234.8297453 | FY24: 0.9999999935 | FZ24: 1.000000022 | GB24: 1922-09-30 | GC24: 97.83688474 | GD24: 29.18926566
B25: Dry | C25: 0.5942124922 | D25: 1.907149912 | E25: 1.965833673 | F25: 3.281250263 | G25: 3.770024681 | H25: 3.062985667 | I25: 1.230218582 | J25: 0.3571602364 | K25: 0.05952670458 | L25: 0.05952670666 | M25: 0.04942771765 | N25: 0.2965663105 | O25: 16.63388295 | S25: =VLOOKUP($T25,'SJRRP WY Types'!$B$13:$G$95,2,FALSE) -> Normal-Dry | T25: 1933 | U25: =GC150 -> 32.79999959 | V25: =GC151 -> 56.41600033 | W25: =GC152 -> 89.71199824 | X25: =GC153 -> 158.399999 | Y25: =GC154 -> 188.1600023 | Z25: =GC155 -> 151.9839978 | AA25: =GC156 -> 70.70400234 | AB25: =GC157 -> 20.99200049 | AC25: =GC158 -> 3.936000023 | AD25: =GC159 -> 3.935999856 | AE25: =GC160 -> 3.279999959 | AF25: =GC161 -> 19.68000011 | AG25: 800 | AI25: 1933 | AJ25: =GD150 -> 8.821240167 | AK25: =GD151 -> 26.80278601 | AL25: =GD152 -> 36.69198032 | AM25: =GD153 -> 48.13846996 | AN25: =GD154 -> 45.04959873 | AO25: =GD155 -> 38.12508923 | AP25: =GD156 -> 12.29469044 | AQ25: =GD157 -> 3.971490728 | AR25: =GD158 -> 0.2245817754 | AS25: =GD159 -> 0.2245817849 | AT25: =GD160 -> 0.8805818188 | AU25: =GD161 -> 13.60465431 | AV25: 234.8297453 | AX25: 1933 | AY25: =FI150 -> 0 | AZ25: =FI151 -> 0 | BA25: =FI152 -> 0 | BB25: =FI153 -> 0 | BC25: =FI154 -> 0 | BD25: =FI155 -> 0 | BE25: =FI156 -> 0 | BF25: =FI157 -> 0 | BG25: =FI158 -> 0 | BH25: =FI159 -> 0 | BI25: =FI160 -> 0 | BJ25: =FI161 -> 0 | BK25: 0 | BM25: 1933 | BN25: =FL150 -> 164.7370434 | BO25: =FL151 -> 89.25619835 | BP25: =FL152 -> 92.23140496 | BQ25: =FL153 -> 49.01996465 | BR25: =FL154 -> 94.94911649 | BS25: =FL155 -> 316.6579483 | BT25: =FL156 -> 219.6068388 | BU25: =FL157 -> 265.0540456 | BV25: =FL158 -> 229.2065179 | BW25: =FL159 -> 410.7890853 | BX25: =FL160 -> 391.2934131 | BY25: =FL161 -> 281.3004473 | BZ25: 2604.102024 | CB25: 1933 | CC25: 0 | CD25: 0 | CF25: 1933 | CG25: 800 | CH25: 234.8297453 | CI25: -2.273736754e-13 | CJ25: 2.273736754e-13 | CK25: 0 | CM25: 1933 | CN25: =FK150 -> 8.000000111 | CO25: =FK151 -> 8.899999899 | CP25: =FK152 -> 11.69999994 | CQ25: =FK153 -> 11.2999996 | CR25: =FK154 -> 14.10000082 | CS25: =FK155 -> 14.10000082 | CT25: =FK156 -> 12.4999999 | CU25: =FK157 -> 9.800000535 | CV25: =FK158 -> 7.300000101 | CW25: =FK159 -> 7.400000126 | CX25: =FK160 -> 6.099999768 | CY25: =FK161 -> 5.599999718 | CZ25: 116.8000013 | DB25: 1933 | DC25: =FJ150 -> 0 | DD25: =FJ151 -> 0 | DE25: =FJ152 -> 0 | DF25: =FJ153 -> 0 | DG25: =FJ154 -> 0 | DH25: =FJ155 -> 0 | DI25: =FJ156 -> 0 | DJ25: =FJ157 -> 0 | DK25: =FJ158 -> 0 | DL25: =FJ159 -> 0 | DM25: =FJ160 -> 0 | DN25: =FJ161 -> 0 | DO25: 0 | DQ25: 1933 | DR25: =FN150 -> 95.23738861 | DS25: =FN151 -> 123.8041534 | DT25: =FN152 -> 57.16151047 | DU25: =FN153 -> 258.8632507 | DV25: =FN154 -> 185.9954834 | DW25: =FN155 -> 123.503479 | DX25: =FN156 -> 109.8262863 | DY25: =FN157 -> 48.8822403 | DZ25: =FN158 -> 32.27563095 | EA25: =FN159 -> 59.24550629 | EB25: =FN160 -> 66.1140976 | EC25: =FN161 -> 65.47246552 | ED25: 1226.381493 | EF25: 1922-10-31 | EG25: 636.7678223 | EH25: 544.1096802 | EI25: 11.34094906 | EJ25: 0 | EK25: 0 | EL25: 81.31720734 | EM25: 50.1569519 | EN25: 46.83871078 | EO25: 3.318242073 | EP25: 0 | EQ25: 0 | ER25: 0 | ES25: 0 | ET25: 159.3817291 | EU25: 159.3817291 | EV25: 0 | EW25: 0 | EX25: 4071.348145 | EY25: 4038.983154 | EZ25: 76.09957886 | FB25: 1922 | FC25: 10 | FD25: 1922-10-31 | FE25: =(EH25+EN25)*UnitConv!$B25 -> 36.33600024 | FF25: =(EI25+EO25)*UnitConv!$B25 -> 0.9013585291 | FG25: =(EJ25+EP25)*UnitConv!$B25 -> 0 | FH25: 0.9013585291 | FI25: =(EK25+EQ25)*UnitConv!$B25 -> 0 | FJ25: =(ES25+EV25+EW25)*UnitConv!$B25 -> 0 | FK25: =EU25*UnitConv!$B25 -> 9.800000535 | FL25: =(EX25+EY25)*UnitConv!$B25 -> 498.6848336 | FM25: 0 | FN25: 76.09957886 | FP25: 1934 | FQ25: 576.7752687 | FR25: 2.86791723 | FS25: 0 | FT25: 2.86791723 | FV25: 1934 | FW25: 579.6431859 | FX25: 0 | FY25: 1.00497233 | FZ25: 0 | GB25: 1922-10-31 | GC25: 36.38839905 | GD25: 0.900381827
B26: Critical | C26: 0 | D26: 0 | E26: 0 | F26: 0 | G26: 0 | H26: 0 | I26: 0 | J26: 0 | K26: 0 | L26: 0 | M26: 0 | N26: 0 | O26: 0 | S26: =VLOOKUP($T26,'SJRRP WY Types'!$B$13:$G$95,2,FALSE) -> Dry | T26: 1934 | U26: =GC162 -> 23.95646401 | V26: =GC163 -> 28.7308974 | W26: =GC164 -> 52.20903606 | X26: =GC165 -> 124.1591976 | Y26: =GC166 -> 159.9476252 | Z26: =GC167 -> 96.24654407 | AA26: =GC168 -> 42.15853416 | AB26: =GC169 -> 28.49175723 | AC26: =GC170 -> 9.497252228 | AD26: =GC171 -> 0 | AE26: =GC172 -> 0 | AF26: =GC173 -> 14.24587795 | AG26: 579.6431859 | AI26: 1934 | AJ26: =GD162 -> 0 | AK26: =GD163 -> 0 | AL26: =GD164 -> 0 | AM26: =GD165 -> 0 | AN26: =GD166 -> 0 | AO26: =GD167 -> 0 | AP26: =GD168 -> 0 | AQ26: =GD169 -> 0 | AR26: =GD170 -> 0 | AS26: =GD171 -> 0 | AT26: =GD172 -> 0 | AU26: =GD173 -> 0 | AV26: 0 | AX26: 1934 | AY26: =FI162 -> 0 | AZ26: =FI163 -> 0 | BA26: =FI164 -> 0 | BB26: =FI165 -> 0 | BC26: =FI166 -> 0 | BD26: =FI167 -> 0 | BE26: =FI168 -> 0 | BF26: =FI169 -> 0 | BG26: =FI170 -> 0 | BH26: =FI171 -> 0 | BI26: =FI172 -> 0 | BJ26: =FI173 -> 0 | BK26: 0 | BM26: 1934 | BN26: =FL162 -> 177.7535006 | BO26: =FL163 -> 65.45454545 | BP26: =FL164 -> 67.63636364 | BQ26: =FL165 -> 40.61554167 | BR26: =FL166 -> 76.01203803 | BS26: =FL167 -> 94.8385559 | BT26: =FL168 -> 196.0176669 | BU26: =FL169 -> 257.1293992 | BV26: =FL170 -> 392.1547488 | BW26: =FL171 -> 494.267859 | BX26: =FL172 -> 419.6012226 | BY26: =FL173 -> 335.1049103 | BZ26: 2616.586352 | CB26: 1934 | CC26: 0 | CD26: 0 | CF26: 1934 | CG26: 579.6431859 | CH26: 0 | CI26: 0 | CJ26: 0 | CK26: 0 | CM26: 1934 | CN26: =FK162 -> 8.000000111 | CO26: =FK163 -> 8.899999899 | CP26: =FK164 -> 11.69999994 | CQ26: =FK165 -> 11.2999996 | CR26: =FK166 -> 14.10000082 | CS26: =FK167 -> 14.10000082 | CT26: =FK168 -> 12.4999999 | CU26: =FK169 -> 9.800000535 | CV26: =FK170 -> 7.300000101 | CW26: =FK171 -> 7.400000126 | CX26: =FK172 -> 6.099999768 | CY26: =FK173 -> 5.599999718 | CZ26: 116.8000013 | DB26: 1934 | DC26: =FJ162 -> 0 | DD26: =FJ163 -> 0 | DE26: =FJ164 -> 0 | DF26: =FJ165 -> 0 | DG26: =FJ166 -> 0 | DH26: =FJ167 -> 0 | DI26: =FJ168 -> 0 | DJ26: =FJ169 -> 0 | DK26: =FJ170 -> 0 | DL26: =FJ171 -> 0 | DM26: =FJ172 -> 0 | DN26: =FJ173 -> 0 | DO26: 0 | DQ26: 1934 | DR26: =FN162 -> 121.3063354 | DS26: =FN163 -> 135.2984314 | DT26: =FN164 -> 43.85835648 | DU26: =FN165 -> 19.75132179 | DV26: =FN166 -> 50.76849365 | DW26: =FN167 -> 68.97006226 | DX26: =FN168 -> 69.82920074 | DY26: =FN169 -> 39.18245316 | DZ26: =FN170 -> 40.17870331 | EA26: =FN171 -> 50.15476227 | EB26: =FN172 -> 81.11394501 | EC26: =FN173 -> 93.17006683 | ED26: 813.5821323 | EF26: 1922-11-30 | EG26: 162.8831635 | EH26: 88.19555664 | EI26: 7.465385437 | EJ26: 0 | EK26: 0 | EL26: 67.22222137 | EM26: 4.840000153 | EN26: 4.840000153 | EO26: 0 | EP26: 0 | EQ26: 0 | ER26: 0 | ES26: 0 | ET26: 122.6805573 | EU26: 122.6805573 | EV26: 0 | EW26: 0 | EX26: 4600 | EY26: 5561.20752 | EZ26: 67.62300873 | FB26: 1922 | FC26: 11 | FD26: 1922-11-30 | FE26: =(EH26+EN26)*UnitConv!$B26 -> 5.536000074 | FF26: =(EI26+EO26)*UnitConv!$B26 -> 0.4442212822 | FG26: =(EJ26+EP26)*UnitConv!$B26 -> 0 | FH26: 0.4442212822 | FI26: =(EK26+EQ26)*UnitConv!$B26 -> 0 | FJ26: =(ES26+EV26+EW26)*UnitConv!$B26 -> 0 | FK26: =EU26*UnitConv!$B26 -> 7.300000101 | FL26: =(EX26+EY26)*UnitConv!$B26 -> 604.6338359 | FM26: 0 | FN26: 67.62300873 | FP26: 1935 | FQ26: 799.6544069 | FR26: 635.1551674 | FS26: 0 | FT26: 0.3455931219 | FV26: 1935 | FW26: 800 | FX26: 634.8095743 | FY26: 1.000432178 | FZ26: 0.9994558918 | GB26: 1922-11-30 | GC26: 5.543983336 | GD26: 0.443739929
B27: Long Term | C27: 18.8288296 | D27: 41.6739421 | E27: 60.73537039 | F27: 61.92278332 | G27: 52.94465304 | H27: 46.31356458 | I27: 23.96426493 | J27: 8.175471893 | K27: 1.829418694 | L27: 2.743388475 | M27: 2.603510571 | N27: 14.93122841 | O27: 336.666426 | S27: =VLOOKUP($T27,'SJRRP WY Types'!$B$13:$G$95,2,FALSE) -> Normal-Wet | T27: 1935 | U27: =GC174 -> 28.22018996 | V27: =GC175 -> 47.25241322 | W27: =GC176 -> 80.35471358 | X27: =GC177 -> 150.737116 | Y27: =GC178 -> 190.738402 | Z27: =GC179 -> 162.9343883 | AA27: =GC180 -> 79.52235366 | AB27: =GC181 -> 26.68352689 | AC27: =GC182 -> 4.68042196 | AD27: =GC183 -> 4.593984346 | AE27: =GC184 -> 4.593984346 | AF27: =GC185 -> 19.68850575 | AG27: 800 | AI27: 1935 | AJ27: =GD174 -> 26.32858049 | AK27: =GD175 -> 56.38031413 | AL27: =GD176 -> 86.42259352 | AM27: =GD177 -> 75.95530144 | AN27: =GD178 -> 56.69081708 | AO27: =GD179 -> 52.9596897 | AP27: =GD180 -> 27.07445863 | AQ27: =GD181 -> 4.736049586 | AR27: =GD182 -> 0.231468168 | AS27: =GD183 -> 0.2314681741 | AT27: =GD184 -> 0.2314681741 | AU27: =GD185 -> 6.904994437 | AV27: 394.1472035 | AX27: 1935 | AY27: =FI174 -> 0 | AZ27: =FI175 -> 0 | BA27: =FI176 -> 0 | BB27: =FI177 -> 0 | BC27: =FI178 -> 0 | BD27: =FI179 -> 0 | BE27: =FI180 -> 0 | BF27: =FI181 -> 0 | BG27: =FI182 -> 0 | BH27: =FI183 -> 0 | BI27: =FI184 -> 0 | BJ27: =FI185 -> 0 | BK27: 0 | BM27: 1935 | BN27: =FL174 -> 302.9893674 | BO27: =FL175 -> 89.25619835 | BP27: =FL176 -> 92.23140496 | BQ27: =FL177 -> 338.9517933 | BR27: =FL178 -> 633.0311036 | BS27: =FL179 -> 570.2218171 | BT27: =FL180 -> 614.8751711 | BU27: =FL181 -> 534.299261 | BV27: =FL182 -> 371.1915854 | BW27: =FL183 -> 475.8764905 | BX27: =FL184 -> 262.2521039 | BY27: =FL185 -> 682.6933478 | BZ27: 4967.869644 | CB27: 1935 | CC27: 0 | CD27: 0 | CF27: 1935 | CG27: 800 | CH27: 394.1472035 | CI27: 0 | CJ27: 0 | CK27: 0 | CM27: 1935 | CN27: =FK174 -> 8.000000111 | CO27: =FK175 -> 8.899999899 | CP27: =FK176 -> 11.69999994 | CQ27: =FK177 -> 11.2999996 | CR27: =FK178 -> 14.10000082 | CS27: =FK179 -> 14.10000082 | CT27: =FK180 -> 12.4999999 | CU27: =FK181 -> 9.800000535 | CV27: =FK182 -> 7.300000101 | CW27: =FK183 -> 7.400000126 | CX27: =FK184 -> 6.099999768 | CY27: =FK185 -> 5.600000081 | CZ27: 116.8000017 | DB27: 1935 | DC27: =FJ174 -> 0 | DD27: =FJ175 -> 11.67065924 | DE27: =FJ176 -> 11.50137273 | DF27: =FJ177 -> 9.692958277 | DG27: =FJ178 -> 0 | DH27: =FJ179 -> 0 | DI27: =FJ180 -> 0 | DJ27: =FJ181 -> 0 | DK27: =FJ182 -> 0 | DL27: =FJ183 -> 0 | DM27: =FJ184 -> 0 | DN27: =FJ185 -> 125.2071767 | DO27: 158.072167 | DQ27: 1935 | DR27: =FN174 -> 83.99311066 | DS27: =FN175 -> 250.9963837 | DT27: =FN176 -> 321.7894897 | DU27: =FN177 -> 385.0832825 | DV27: =FN178 -> 157.7556305 | DW27: =FN179 -> 101.0116882 | DX27: =FN180 -> 98.36791229 | DY27: =FN181 -> 76.51338959 | DZ27: =FN182 -> 67.91625977 | EA27: =FN183 -> 43.93613052 | EB27: =FN184 -> 63.71379852 | EC27: =FN185 -> 204.3296814 | ED27: 1855.406757 | EF27: 1922-12-31 | EG27: 509.5959167 | EH27: 85.35054016 | EI27: 7.224566936 | EJ27: 400.7573547 | EK27: 0 | EL27: 16.26344109 | EM27: 3.832189083 | EN27: 0 | EO27: 0 | EP27: 0 | EQ27: 0 | ER27: 0 | ES27: 3.832189083 | ET27: 175.0950165 | EU27: 120.3494644 | EV27: 54.74555969 | EW27: 0 | EX27: 4325.017578 | EY27: 4325.017578 | EZ27: 109.1074066 | FB27: 1922 | FC27: 12 | FD27: 1922-12-31 | FE27: =(EH27+EN27)*UnitConv!$B27 -> 5.248000155 | FF27: =(EI27+EO27)*UnitConv!$B27 -> 0.4442213058 | FG27: =(EJ27+EP27)*UnitConv!$B27 -> 24.64160925 | FH27: 25.08583056 | FI27: =(EK27+EQ27)*UnitConv!$B27 -> 0 | FJ27: =(ES27+EV27+EW27)*UnitConv!$B27 -> 3.601805379 | FK27: =EU27*UnitConv!$B27 -> 7.400000126 | FL27: =(EX27+EY27)*UnitConv!$B27 -> 531.8699303 | FM27: 0 | FN27: 109.1074066 | FP27: 1936 | FQ27: 799.9770113 | FR27: 598.1488811 | FS27: 0 | FT27: 0.02298871253 | FV27: 1936 | FW27: 800 | FX27: 598.1258924 | FY27: 1.000028737 | FZ27: 0.9999615669 | GB27: 1922-12-31 | GC27: 5.255568103 | GD27: 0.4437399526
S28: =VLOOKUP($T28,'SJRRP WY Types'!$B$13:$G$95,2,FALSE) -> Normal-Wet | T28: 1936 | U28: =GC186 -> 28.20880968 | V28: =GC187 -> 47.23335787 | W28: =GC188 -> 80.32230917 | X28: =GC189 -> 150.6763287 | Y28: =GC190 -> 190.6614835 | Z28: =GC191 -> 162.8686822 | AA28: =GC192 -> 79.49028491 | AB28: =GC193 -> 26.6727663 | AC28: =GC194 -> 5.001148422 | AD28: =GC195 -> 4.592131743 | AE28: =GC196 -> 4.592131743 | AF28: =GC197 -> 19.68056578 | AG28: 800 | AI28: 1936 | AJ28: =GD186 -> 27.89935694 | AK28: =GD187 -> 68.17460243 | AL28: =GD188 -> 85.13684711 | AM28: =GD189 -> 74.53171399 | AN28: =GD190 -> 59.14527718 | AO28: =GD191 -> 55.10352987 | AP28: =GD192 -> 28.11727487 | AQ28: =GD193 -> 4.442206338 | AR28: =GD194 -> 0.2756903719 | AS28: =GD195 -> 0.3937450232 | AT28: =GD196 -> 0.3701340861 | AU28: =GD197 -> 0 | AV28: 403.5903782 | AX28: 1936 | AY28: =FI186 -> 0 | AZ28: =FI187 -> 0 | BA28: =FI188 -> 0 | BB28: =FI189 -> 0 | BC28: =FI190 -> 0 | BD28: =FI191 -> 0 | BE28: =FI192 -> 0 | BF28: =FI193 -> 0 | BG28: =FI194 -> 0 | BH28: =FI195 -> 0 | BI28: =FI196 -> 0 | BJ28: =FI197 -> 0 | BK28: 0 | BM28: 1936 | BN28: =FL186 -> 460.5619941 | BO28: =FL187 -> 89.25619835 | BP28: =FL188 -> 92.23140496 | BQ28: =FL189 -> 343.0260686 | BR28: =FL190 -> 682.6526353 | BS28: =FL191 -> 647.6542547 | BT28: =FL192 -> 666.5776085 | BU28: =FL193 -> 655.5454891 | BV28: =FL194 -> 394.9972915 | BW28: =FL195 -> 548.2135634 | BX28: =FL196 -> 444.8229165 | BY28: =FL197 -> 532.2494405 | BZ28: 5557.788865 | CB28: 1936 | CC28: 0 | CD28: 0 | CF28: 1936 | CG28: 800 | CH28: 403.5903782 | CI28: -1.136868377e-13 | CJ28: 1.136868377e-13 | CK28: 0 | CM28: 1936 | CN28: =FK186 -> 8.000000111 | CO28: =FK187 -> 8.899999899 | CP28: =FK188 -> 11.69999994 | CQ28: =FK189 -> 11.2999996 | CR28: =FK190 -> 14.10000082 | CS28: =FK191 -> 14.10000082 | CT28: =FK192 -> 12.4999999 | CU28: =FK193 -> 9.800000535 | CV28: =FK194 -> 7.300000101 | CW28: =FK195 -> 7.400000126 | CX28: =FK196 -> 6.099999768 | CY28: =FK197 -> 5.599999718 | CZ28: 116.8000013 | DB28: 1936 | DC28: =FJ186 -> 12.36963028 | DD28: =FJ187 -> 81.51928106 | DE28: =FJ188 -> 73.42151387 | DF28: =FJ189 -> 0 | DG28: =FJ190 -> 0 | DH28: =FJ191 -> 0 | DI28: =FJ192 -> 0 | DJ28: =FJ193 -> 0 | DK28: =FJ194 -> 0 | DL28: =FJ195 -> 0 | DM28: =FJ196 -> 0 | DN28: =FJ197 -> 132.9812479 | DO28: 300.2916731 | DQ28: 1936 | DR28: =FN186 -> 185.646637 | DS28: =FN187 -> 265.3840027 | DT28: =FN188 -> 350.9680481 | DU28: =FN189 -> 253.0888214 | DV28: =FN190 -> 159.3327789 | DW28: =FN191 -> 109.3324661 | DX28: =FN192 -> 97.52622223 | DY28: =FN193 -> 65.58294678 | DZ28: =FN194 -> 60.10748291 | EA28: =FN195 -> 60.67635345 | EB28: =FN196 -> 59.12558365 | EC28: =FN197 -> 236.2050323 | ED28: 1902.976376 | EF28: 1923-01-31 | EG28: 1257.498413 | EH28: 85.35054016 | EI28: 7.224566936 | EJ28: 1148.659912 | EK28: 0 | EL28: 16.26344109 | EM28: 11.97493362 | EN28: 0 | EO28: 0 | EP28: 0 | EQ28: 0 | ER28: 0 | ES28: 11.97493362 | ET28: 270.2774658 | EU28: 99.20698547 | EV28: 171.0704803 | EW28: 0 | EX28: 3559.375244 | EY28: 3559.375244 | EZ28: 95.19195557 | FB28: 1922 | FC28: 1 | FD28: 1923-01-31 | FE28: =(EH28+EN28)*UnitConv!$B28 -> 5.248000155 | FF28: =(EI28+EO28)*UnitConv!$B28 -> 0.4442213058 | FG28: =(EJ28+EP28)*UnitConv!$B28 -> 70.62834501 | FH28: 71.07256631 | FI28: =(EK28+EQ28)*UnitConv!$B28 -> 0 | FJ28: =(ES28+EV28+EW28)*UnitConv!$B28 -> 11.2550238 | FK28: =EU28*UnitConv!$B28 -> 6.099999768 | FL28: =(EX28+EY28)*UnitConv!$B28 -> 437.7149061 | FM28: 0 | FN28: 95.19195557 | FP28: 1937 | FQ28: 787.3280089 | FR28: 673.9789589 | FS28: 0 | FT28: 12.67199106 | FV28: 1937 | FW28: 800 | FX28: 661.3069678 | FY28: 1.016094932 | FZ28: 0.9811982394 | GB28: 1923-01-31 | GC28: 5.255568103 | GD28: 0.4437399526
C29: 16b | S29: =VLOOKUP($T29,'SJRRP WY Types'!$B$13:$G$95,2,FALSE) -> Normal-Wet | T29: 1937 | U29: =GC198 -> 28.66200491 | V29: =GC199 -> 47.99219644 | W29: =GC200 -> 81.61274602 | X29: =GC201 -> 159.4862635 | Y29: =GC202 -> 191.0583655 | Z29: =GC203 -> 160.689316 | AA29: =GC204 -> 74.50821208 | AB29: =GC205 -> 23.99609816 | AC29: =GC206 -> 3.999349703 | AD29: =GC207 -> 3.999349534 | AE29: =GC208 -> 3.999349534 | AF29: =GC209 -> 19.99674852 | AG29: 800 | AI29: 1937 | AJ29: =GD198 -> 0.6020989567 | AK29: =GD199 -> 49.94066298 | AL29: =GD200 -> 70.48799877 | AM29: =GD201 -> 62.42865909 | AN29: =GD202 -> 55.55448644 | AO29: =GD203 -> 54.28861248 | AP29: =GD204 -> 31.48904118 | AQ29: =GD205 -> 7.32378547 | AR29: =GD206 -> 0.8222623844 | AS29: =GD207 -> 0.8222624066 | AT29: =GD208 -> 0.8222624066 | AU29: =GD209 -> 18.1640888 | AV29: 352.7462214 | AX29: 1937 | AY29: =FI198 -> 0 | AZ29: =FI199 -> 0 | BA29: =FI200 -> 0 | BB29: =FI201 -> 0 | BC29: =FI202 -> 0 | BD29: =FI203 -> 0 | BE29: =FI204 -> 0 | BF29: =FI205 -> 0 | BG29: =FI206 -> 0 | BH29: =FI207 -> 0 | BI29: =FI208 -> 0 | BJ29: =FI209 -> 0 | BK29: 0 | BM29: 1937 | BN29: =FL198 -> 408.1269205 | BO29: =FL199 -> 140.0348253 | BP29: =FL200 -> 146.9162066 | BQ29: =FL201 -> 350.6893321 | BR29: =FL202 -> 631.1001286 | BS29: =FL203 -> 450.482921 | BT29: =FL204 -> 415.1855937 | BU29: =FL205 -> 371.8272312 | BV29: =FL206 -> 671.2066116 | BW29: =FL207 -> 596.7688046 | BX29: =FL208 -> 505.0629565 | BY29: =FL209 -> 523.3069631 | BZ29: 5210.708495 | CB29: 1937 | CC29: 0 | CD29: 0 | CF29: 1937 | CG29: 800 | CH29: 352.7462214 | CI29: -1.136868377e-13 | CJ29: 1.136868377e-13 | CK29: 0 | CM29: 1937 | CN29: =FK198 -> 8.000000111 | CO29: =FK199 -> 8.899999899 | CP29: =FK200 -> 11.69999994 | CQ29: =FK201 -> 11.2999996 | CR29: =FK202 -> 14.10000082 | CS29: =FK203 -> 14.10000082 | CT29: =FK204 -> 12.4999999 | CU29: =FK205 -> 9.800000535 | CV29: =FK206 -> 7.300000101 | CW29: =FK207 -> 7.400000126 | CX29: =FK208 -> 6.099999768 | CY29: =FK209 -> 5.599999718 | CZ29: 116.8000013 | DB29: 1937 | DC29: =FJ198 -> 150.6011296 | DD29: =FJ199 -> 162.2485779 | DE29: =FJ200 -> 192.8584858 | DF29: =FJ201 -> 71.9999714 | DG29: =FJ202 -> 0 | DH29: =FJ203 -> 0 | DI29: =FJ204 -> 0 | DJ29: =FJ205 -> 0 | DK29: =FJ206 -> 0 | DL29: =FJ207 -> 10.73054717 | DM29: =FJ208 -> 25.03172155 | DN29: =FJ209 -> 221.6058897 | DO29: 835.0763231 | DQ29: 1937 | DR29: =FN198 -> 231.2797241 | DS29: =FN199 -> 269.0404968 | DT29: =FN200 -> 442.2276001 | DU29: =FN201 -> 400.6030884 | DV29: =FN202 -> 172.9453278 | DW29: =FN203 -> 87.44699097 | DX29: =FN204 -> 86.563797 | DY29: =FN205 -> 76.18574524 | DZ29: =FN206 -> 64.63589478 | EA29: =FN207 -> 213.630188 | EB29: =FN208 -> 122.2233429 | EC29: =FN209 -> 224.8252106 | ED29: 2391.607407 | EF29: 1923-02-28 | EG29: 1520.516479 | EH29: 519.7238159 | EI29: 300.2271118 | EJ29: 664.5537109 | EK29: 0 | EL29: 36.01190567 | EM29: 7.099374771 | EN29: 0 | EO29: 0 | EP29: 0 | EQ29: 0 | ER29: 0 | ES29: 7.099374771 | ET29: 202.2529755 | EU29: 100.8333282 | EV29: 101.4196396 | EW29: 0 | EX29: 4600 | EY29: 3634.234863 | EZ29: 96.79645538 | FB29: 1922 | FC29: 2 | FD29: 1923-02-28 | FE29: =(EH29+EN29)*UnitConv!$B29 -> 28.86400036 | FF29: =(EI29+EO29)*UnitConv!$B29 -> 16.67377018 | FG29: =(EJ29+EP29)*UnitConv!$B29 -> 36.90744576 | FH29: 53.58121594 | FI29: =(EK29+EQ29)*UnitConv!$B29 -> 0 | FJ29: =(ES29+EV29+EW29)*UnitConv!$B29 -> 6.026841128 | FK29: =EU29*UnitConv!$B29 -> 5.599999718 | FL29: =(EX29+EY29)*UnitConv!$B29 -> 457.3062668 | FM29: 0 | FN29: 96.79645538 | FP29: 1938 | FQ29: 795.391994 | FR29: 771.9824018 | FS29: 0 | FT29: 4.608006012 | FV29: 1938 | FW29: 800 | FX29: 767.3743957 | FY29: 1.005793377 | FZ29: 0.9940309442 | GB29: 1923-02-28 | GC29: 28.90562407 | GD29: 16.65570267
C30: Mar | D30: Apr | E30: May | F30: Jun | G30: Jul | H30: Aug | I30: Sep | J30: Oct | K30: Nov | L30: Dec | M30: Jan | N30: Feb | O30: Total | S30: =VLOOKUP($T30,'SJRRP WY Types'!$B$13:$G$95,2,FALSE) -> Wet | T30: 1938 | U30: =GC210 -> 17.15481212 | V30: =GC211 -> 28.37141994 | W30: =GC212 -> 52.12423529 | X30: =GC213 -> 115.8030278 | Y30: =GC214 -> 193.8847712 | Z30: =GC215 -> 182.0083714 | AA30: =GC216 -> 104.2001931 | AB30: =GC217 -> 49.87125815 | AC30: =GC218 -> 13.03508235 | AD30: =GC219 -> 6.598004515 | AE30: =GC220 -> 6.598004515 | AF30: =GC221 -> 30.35081963 | AG30: 800 | AI30: 1938 | AJ30: =GD210 -> 0 | AK30: =GD211 -> 28.06236655 | AL30: =GD212 -> 80.20457322 | AM30: =GD213 -> 131.3134424 | AN30: =GD214 -> 105.5605098 | AO30: =GD215 -> 86.58865029 | AP30: =GD216 -> 59.50008606 | AQ30: =GD217 -> 42.41022923 | AR30: =GD218 -> 13.23506736 | AS30: =GD219 -> 18.4517414 | AT30: =GD220 -> 18.4517414 | AU30: =GD221 -> 57.40817131 | AV30: 641.186579 | AX30: 1938 | AY30: =FI210 -> 0 | AZ30: =FI211 -> 0 | BA30: =FI212 -> 0 | BB30: =FI213 -> 0 | BC30: =FI214 -> 0 | BD30: =FI215 -> 0 | BE30: =FI216 -> 0 | BF30: =FI217 -> 0 | BG30: =FI218 -> 0 | BH30: =FI219 -> 0 | BI30: =FI220 -> 0 | BJ30: =FI221 -> 0 | BK30: 0 | BM30: 1938 | BN30: =FL210 -> 543.5092514 | BO30: =FL211 -> 275.8862313 | BP30: =FL212 -> 594.2082722 | BQ30: =FL213 -> 671.2066116 | BR30: =FL214 -> 713.5576017 | BS30: =FL215 -> 724.3239669 | BT30: =FL216 -> 623.8117446 | BU30: =FL217 -> 454.9830599 | BV30: =FL218 -> 210.566035 | BW30: =FL219 -> 680.5089456 | BX30: =FL220 -> 411.0448983 | BY30: =FL221 -> 376.7878629 | BZ30: 6280.394481 | CB30: 1938 | CC30: 0 | CD30: 0 | CF30: 1938 | CG30: 800 | CH30: 641.186579 | CI30: 0 | CJ30: 0 | CK30: 0 | CM30: 1938 | CN30: =FK210 -> 8.000000111 | CO30: =FK211 -> 8.899999899 | CP30: =FK212 -> 11.69999994 | CQ30: =FK213 -> 11.2999996 | CR30: =FK214 -> 14.10000082 | CS30: =FK215 -> 14.10000082 | CT30: =FK216 -> 12.4999999 | CU30: =FK217 -> 9.800000535 | CV30: =FK218 -> 7.300000101 | CW30: =FK219 -> 7.400000126 | CX30: =FK220 -> 6.099999768 | CY30: =FK221 -> 5.599999718 | CZ30: 116.8000013 | DB30: 1938 | DC30: =FJ210 -> 275.8039056 | DD30: =FJ211 -> 371.8238023 | DE30: =FJ212 -> 395.3876265 | DF30: =FJ213 -> 359.2551378 | DG30: =FJ214 -> 61.70289623 | DH30: =FJ215 -> 0 | DI30: =FJ216 -> 0 | DJ30: =FJ217 -> 0 | DK30: =FJ218 -> 0 | DL30: =FJ219 -> 0 | DM30: =FJ220 -> 0 | DN30: =FJ221 -> 0 | DO30: 1463.973369 | DQ30: 1938 | DR30: =FN210 -> 327.502594 | DS30: =FN211 -> 421.0978088 | DT30: =FN212 -> 594.9831543 | DU30: =FN213 -> 862.8809814 | DV30: =FN214 -> 433.1440125 | DW30: =FN215 -> 218.5465698 | DX30: =FN216 -> 106.5776291 | DY30: =FN217 -> 91.4808197 | DZ30: =FN218 -> 63.5148201 | EA30: =FN219 -> 55.15013885 | EB30: =FN220 -> 75.38897705 | EC30: =FN221 -> 82.87695312 | ED30: 3333.144459 | EF30: 1923-03-31 | EG30: 1057.246704 | EH30: 416.0838623 | EI30: 451.890625 | EJ30: 140.4819031 | EK30: 0 | EL30: 48.79032135 | EM30: 160.5784454 | EN30: 0 | EO30: 137.1647949 | EP30: 23.41365051 | EQ30: 0 | ER30: 0 | ES30: 0 | ET30: 130.1075287 | EU30: 130.1075287 | EV30: 0 | EW30: 0 | EX30: 3118.784424 | EY30: 3066.284424 | EZ30: 123.2811508 | FB30: 1923 | FC30: 3 | FD30: 1923-03-31 | FE30: =(EH30+EN30)*UnitConv!$B30 -> 25.58399947 | FF30: =(EI30+EO30)*UnitConv!$B30 -> 36.21960599 | FG30: =(EJ30+EP30)*UnitConv!$B30 -> 10.07754478 | FH30: 46.29715077 | FI30: =(EK30+EQ30)*UnitConv!$B30 -> 0 | FJ30: =(ES30+EV30+EW30)*UnitConv!$B30 -> 0 | FK30: =EU30*UnitConv!$B30 -> 8.000000111 | FL30: =(EX30+EY30)*UnitConv!$B30 -> 380.3050597 | FM30: 0 | FN30: 123.2811508 | FP30: 1939 | FQ30: 796.1372132 | FR30: 148.8558622 | FS30: 0 | FT30: 3.862786805 | FV30: 1939 | FW30: 800 | FX30: 144.9930754 | FY30: 1.004851911 | FZ30: 0.9740501533 | GB30: 1923-03-31 | GC30: 25.62089365 | GD30: 36.15249756
B31: SJRRP WY Type | C31: TAF | D31: TAF | E31: TAF | F31: TAF | G31: TAF | H31: TAF | I31: TAF | J31: TAF | K31: TAF | L31: TAF | M31: TAF | N31: TAF | O31: TAF | S31: =VLOOKUP($T31,'SJRRP WY Types'!$B$13:$G$95,2,FALSE) -> Dry | T31: 1939 | U31: =GC222 -> 36.91423806 | V31: =GC223 -> 59.32645755 | W31: =GC224 -> 97.80916786 | X31: =GC225 -> 160.6276537 | Y31: =GC226 -> 180.4179981 | Z31: =GC227 -> 151.6464932 | AA31: =GC228 -> 64.37822774 | AB31: =GC229 -> 19.55190555 | AC31: =GC230 -> 3.258650986 | AD31: =GC231 -> 3.258650925 | AE31: =GC232 -> 3.258650925 | AF31: =GC233 -> 19.55190543 | AG31: 800 | AI31: 1939 | AJ31: =GD222 -> 1.399259125 | AK31: =GD223 -> 6.109895097 | AL31: =GD224 -> 0.9010985189 | AM31: =GD225 -> 1.755640236 | AN31: =GD226 -> 1.997435035 | AO31: =GD227 -> 1.639999327 | AP31: =GD228 -> 0.6517945664 | AQ31: =GD229 -> 0.1892306817 | AR31: =GD230 -> 0.0315384481 | AS31: =GD231 -> 0.03153844695 | AT31: =GD232 -> 0 | AU31: =GD233 -> 0 | AV31: 14.70742948 | AX31: 1939 | AY31: =FI222 -> 0 | AZ31: =FI223 -> 0 | BA31: =FI224 -> 0 | BB31: =FI225 -> 0 | BC31: =FI226 -> 0 | BD31: =FI227 -> 0 | BE31: =FI228 -> 0 | BF31: =FI229 -> 0 | BG31: =FI230 -> 0 | BH31: =FI231 -> 0 | BI31: =FI232 -> 0 | BJ31: =FI233 -> 0 | BK31: 0 | BM31: 1939 | BN31: =FL222 -> 197.6155127 | BO31: =FL223 -> 97.62278296 | BP31: =FL224 -> 92.23140496 | BQ31: =FL225 -> 42.14732091 | BR31: =FL226 -> 701.6108726 | BS31: =FL227 -> 427.4892744 | BT31: =FL228 -> 322.4822669 | BU31: =FL229 -> 327.9187176 | BV31: =FL230 -> 265.7325324 | BW31: =FL231 -> 355.9207891 | BX31: =FL232 -> 315.3710582 | BY31: =FL233 -> 377.6240112 | BZ31: 3523.766544 | CB31: 1939 | CC31: 0 | CD31: 0 | CF31: 1939 | CG31: 800 | CH31: 14.70742948 | CI31: 0 | CJ31: 0 | CK31: 0 | CM31: 1939 | CN31: =FK222 -> 8.000000111 | CO31: =FK223 -> 8.899999899 | CP31: =FK224 -> 11.69999994 | CQ31: =FK225 -> 11.2999996 | CR31: =FK226 -> 14.10000082 | CS31: =FK227 -> 14.10000082 | CT31: =FK228 -> 12.4999999 | CU31: =FK229 -> 9.800000535 | CV31: =FK230 -> 7.300000101 | CW31: =FK231 -> 7.400000126 | CX31: =FK232 -> 6.099999768 | CY31: =FK233 -> 5.600000081 | CZ31: 116.8000017 | DB31: 1939 | DC31: =FJ222 -> 0 | DD31: =FJ223 -> 8.501717585 | DE31: =FJ224 -> 0 | DF31: =FJ225 -> 0 | DG31: =FJ226 -> 0 | DH31: =FJ227 -> 0 | DI31: =FJ228 -> 0 | DJ31: =FJ229 -> 0 | DK31: =FJ230 -> 0 | DL31: =FJ231 -> 0 | DM31: =FJ232 -> 0 | DN31: =FJ233 -> 18.95988248 | DO31: 27.46160007 | DQ31: 1939 | DR31: =FN222 -> 153.11409 | DS31: =FN223 -> 218.3312988 | DT31: =FN224 -> 105.416626 | DU31: =FN225 -> 66.2913208 | DV31: =FN226 -> 69.75328827 | DW31: =FN227 -> 83.38527679 | DX31: =FN228 -> 99.42325592 | DY31: =FN229 -> 60.42429733 | DZ31: =FN230 -> 30.06758118 | EA31: =FN231 -> 27.37858963 | EB31: =FN232 -> 141.399765 | EC31: =FN233 -> 133.322052 | ED31: 1188.307442 | EF31: 1923-04-30 | EG31: 2286.817871 | EH31: 716.5888672 | EI31: 1016.477539 | EJ31: 486.5292969 | EK31: 0 | EL31: 67.22222137 | EM31: 442.8540649 | EN31: 0 | EO31: 361.7658691 | EP31: 81.08821869 | EQ31: 0 | ER31: 0 | ES31: 0 | ET31: 149.5694427 | EU31: 149.5694427 | EV31: 0 | EW31: 0 | EX31: 852.7556763 | EY31: 852.7556763 | EZ31: 218.8833313 | FB31: 1923 | FC31: 4 | FD31: 1923-04-30 | FE31: =(EH31+EN31)*UnitConv!$B31 -> 42.63999871 | FF31: =(EI31+EO31)*UnitConv!$B31 -> 82.01117801 | FG31: =(EJ31+EP31)*UnitConv!$B31 -> 33.7755877 | FH31: 115.7867657 | FI31: =(EK31+EQ31)*UnitConv!$B31 -> 0 | FJ31: =(ES31+EV31+EW31)*UnitConv!$B31 -> 0 | FK31: =EU31*UnitConv!$B31 -> 8.899999899 | FL31: =(EX31+EY31)*UnitConv!$B31 -> 101.484973 | FM31: 0 | FN31: 218.8833313 | FP31: 1940 | FQ31: 800.0000117 | FR31: 647.858819 | FS31: 1.173287365e-05 | FT31: 0 | FV31: 1940 | FW31: 800 | FX31: 647.8588308 | FY31: 0.9999999853 | FZ31: 1.000000018 | GB31: 1923-04-30 | GC31: 42.70148902 | GD31: 81.85922602
B32: Wet | C32: =AY4 -> 0 | D32: =AZ4 -> 0 | E32: 0 | F32: 0 | G32: 0 | H32: 0 | I32: 0 | J32: 0 | K32: 0 | L32: 0 | M32: 0 | N32: 0 | O32: 0 | S32: =VLOOKUP($T32,'SJRRP WY Types'!$B$13:$G$95,2,FALSE) -> Normal-Wet | T32: 1940 | U32: =GC234 -> 30.83200011 | V32: =GC235 -> 51.82399806 | W32: =GC236 -> 85.77600285 | X32: =GC237 -> 156.9600006 | Y32: =GC238 -> 188.0320004 | Z32: =GC239 -> 158.1439967 | AA32: =GC240 -> 73.32800175 | AB32: =GC241 -> 23.61599988 | AC32: =GC242 -> 3.935999991 | AD32: =GC243 -> 3.935999824 | AE32: =GC244 -> 3.935999824 | AF32: =GC245 -> 19.67999995 | AG32: 800 | AI32: 1940 | AJ32: =GD234 -> 24.08627162 | AK32: =GD235 -> 57.63736182 | AL32: =GD236 -> 66.99006386 | AM32: =GD237 -> 48.50262251 | AN32: =GD238 -> 39.7597093 | AO32: =GD239 -> 40.61530891 | AP32: =GD240 -> 24.93999674 | AQ32: =GD241 -> 5.420570575 | AR32: =GD242 -> 0.531485594 | AS32: =GD243 -> 0.5314856034 | AT32: =GD244 -> 0.5314856034 | AU32: =GD245 -> 11.05988467 | AV32: 320.6062468 | AX32: 1940 | AY32: =FI234 -> 0 | AZ32: =FI235 -> 0 | BA32: =FI236 -> 0 | BB32: =FI237 -> 0 | BC32: =FI238 -> 0 | BD32: =FI239 -> 0 | BE32: =FI240 -> 0 | BF32: =FI241 -> 0 | BG32: =FI242 -> 0 | BH32: =FI243 -> 0 | BI32: =FI244 -> 0 | BJ32: =FI245 -> 0 | BK32: 0 | BM32: 1940 | BN32: =FL234 -> 626.2421426 | BO32: =FL235 -> 124.9451818 | BP32: =FL236 -> 92.80481889 | BQ32: =FL237 -> 324.3384879 | BR32: =FL238 -> 620.4829789 | BS32: =FL239 -> 662.9551356 | BT32: =FL240 -> 597.0154329 | BU32: =FL241 -> 414.7666397 | BV32: =FL242 -> 427.8204303 | BW32: =FL243 -> 511.9035724 | BX32: =FL244 -> 493.2257822 | BY32: =FL245 -> 727.5371901 | BZ32: 5624.037793 | CB32: 1940 | CC32: 0 | CD32: 0 | CF32: 1940 | CG32: 800 | CH32: 320.6062468 | CI32: -2.273736754e-13 | CJ32: 2.273736754e-13 | CK32: 0 | CM32: 1940 | CN32: =FK234 -> 8.000000111 | CO32: =FK235 -> 8.899999899 | CP32: =FK236 -> 11.69999994 | CQ32: =FK237 -> 11.2999996 | CR32: =FK238 -> 14.10000082 | CS32: =FK239 -> 14.10000082 | CT32: =FK240 -> 12.4999999 | CU32: =FK241 -> 9.800000535 | CV32: =FK242 -> 7.300000101 | CW32: =FK243 -> 7.400000126 | CX32: =FK244 -> 6.099999768 | CY32: =FK245 -> 5.599999718 | CZ32: 116.8000013 | DB32: 1940 | DC32: =FJ234 -> 8.88727727 | DD32: =FJ235 -> 1.889831392 | DE32: =FJ236 -> 50.72680948 | DF32: =FJ237 -> 0 | DG32: =FJ238 -> 0 | DH32: =FJ239 -> 0 | DI32: =FJ240 -> 0 | DJ32: =FJ241 -> 0 | DK32: =FJ242 -> 0 | DL32: =FJ243 -> 0 | DM32: =FJ244 -> 5.577932677 | DN32: =FJ245 -> 159.5362885 | DO32: 226.6181393 | DQ32: 1940 | DR32: =FN234 -> 180.0149689 | DS32: =FN235 -> 233.27565 | DT32: =FN236 -> 333.5620422 | DU32: =FN237 -> 277.9049988 | DV32: =FN238 -> 111.3175507 | DW32: =FN239 -> 81.40888977 | DX32: =FN240 -> 91.29068756 | DY32: =FN241 -> 63.68939209 | DZ32: =FN242 -> 58.68314743 | EA32: =FN243 -> 113.0399017 | EB32: =FN244 -> 136.3126221 | EC32: =FN245 -> 198.6971588 | ED32: 1879.19701 | EF32: 1923-05-31 | EG32: 3224.849365 | EH32: 1045.544067 | EI32: 1157.997437 | EJ32: 939.9906616 | EK32: 0 | EL32: 81.31720734 | EM32: 854.5574341 | EN32: 0 | EO32: 665.3654175 | EP32: 156.6651154 | EQ32: 0 | ER32: 32.52688217 | ES32: 0 | ET32: 190.2822571 | EU32: 190.2822571 | EV32: 0 | EW32: 0 | EX32: 800 | EY32: 700 | EZ32: 265.5421448 | FB32: 1923 | FC32: 5 | FD32: 1923-05-31 | FE32: =(EH32+EN32)*UnitConv!$B32 -> 64.28799885 | FF32: =(EI32+EO32)*UnitConv!$B32 -> 112.1142118 | FG32: =(EJ32+EP32)*UnitConv!$B32 -> 67.43073538 | FH32: 179.5449472 | FI32: =(EK32+EQ32)*UnitConv!$B32 -> 0 | FJ32: =(ES32+EV32+EW32)*UnitConv!$B32 -> 0 | FK32: =EU32*UnitConv!$B32 -> 11.69999994 | FL32: =(EX32+EY32)*UnitConv!$B32 -> 92.23140496 | FM32: 0 | FN32: 265.5421448 | FP32: 1941 | FQ32: 801.1360035 | FR32: 1069.351676 | FS32: 1.136003516 | FT32: 0 | FV32: 1941 | FW32: 800 | FX32: 1070.48768 | FY32: 0.9985820092 | FZ32: 1.001062329 | GB32: 1923-05-31 | GC32: 64.38070732 | GD32: 111.9064843
B33: Normal-Wet | C33: =AY5 -> 0 | D33: =AZ5 -> 0 | E33: =BA5 -> 0 | F33: =BB5 -> 0 | G33: =BC5 -> 0 | H33: =BD5 -> 0 | I33: =BE5 -> 0 | J33: =BF5 -> 0 | K33: =BG5 -> 0 | L33: =BH5 -> 0 | M33: =BI5 -> 0 | N33: =BJ5 -> 0 | O33: =BK5 -> 0 | S33: =VLOOKUP($T33,'SJRRP WY Types'!$B$13:$G$95,2,FALSE) -> Wet | T33: 1941 | U33: =GC246 -> 19.65209382 | V33: =GC247 -> 37.33897713 | W33: =GC248 -> 55.68093436 | X33: =GC249 -> 129.0487518 | Y33: =GC250 -> 190.5294472 | Z33: =GC251 -> 176.7729812 | AA33: =GC252 -> 100.1777481 | AB33: =GC253 -> 38.18577767 | AC33: =GC254 -> 11.34389178 | AD33: =GC255 -> 5.895628239 | AE33: =GC256 -> 5.895628239 | AF33: =GC257 -> 29.47814043 | AG33: 800 | AI33: 1941 | AJ33: =GD246 -> 40.10033202 | AK33: =GD247 -> 79.94497625 | AL33: =GD248 -> 111.2288413 | AM33: =GD249 -> 152.6372901 | AN33: =GD250 -> 106.6041782 | AO33: =GD251 -> 90.88492385 | AP33: =GD252 -> 43.37372391 | AQ33: =GD253 -> 11.18061103 | AR33: =GD254 -> 1.317584734 | AS33: =GD255 -> 5.914462863 | AT33: =GD256 -> 5.914462863 | AU33: =GD257 -> 17.74758005 | AV33: 666.8489672 | AX33: 1941 | AY33: =FI246 -> 0 | AZ33: =FI247 -> 0 | BA33: =FI248 -> 0 | BB33: =FI249 -> 0 | BC33: =FI250 -> 0 | BD33: =FI251 -> 0 | BE33: =FI252 -> 0 | BF33: =FI253 -> 0 | BG33: =FI254 -> 0 | BH33: =FI255 -> 0 | BI33: =FI256 -> 0 | BJ33: =FI257 -> 0 | BK33: 0 | BM33: 1941 | BN33: =FL246 -> 725.4991668 | BO33: =FL247 -> 149.3738798 | BP33: =FL248 -> 162.6320237 | BQ33: =FL249 -> 499.0341361 | BR33: =FL250 -> 713.5576017 | BS33: =FL251 -> 724.3239669 | BT33: =FL252 -> 626.1360666 | BU33: =FL253 -> 363.2067924 | BV33: =FL254 -> 435.274703 | BW33: =FL255 -> 521.5574264 | BX33: =FL256 -> 570.8738168 | BY33: =FL257 -> 521.8685214 | BZ33: 6013.338102 | CB33: 1941 | CC33: 0 | CD33: 0 | CF33: 1941 | CG33: 800 | CH33: 666.8489672 | CI33: -1.136868377e-13 | CJ33: 1.136868377e-13 | CK33: 0 | CM33: 1941 | CN33: =FK246 -> 8.000000111 | CO33: =FK247 -> 8.899999899 | CP33: =FK248 -> 11.69999994 | CQ33: =FK249 -> 11.2999996 | CR33: =FK250 -> 14.10000082 | CS33: =FK251 -> 14.10000082 | CT33: =FK252 -> 12.4999999 | CU33: =FK253 -> 9.800000535 | CV33: =FK254 -> 7.300000101 | CW33: =FK255 -> 7.400000126 | CX33: =FK256 -> 6.099999768 | CY33: =FK257 -> 5.599999718 | CZ33: 116.8000013 | DB33: 1941 | DC33: =FJ246 -> 27.292408 | DD33: =FJ247 -> 96.58087229 | DE33: =FJ248 -> 159.4305701 | DF33: =FJ249 -> 157.6166294 | DG33: =FJ250 -> 0 | DH33: =FJ251 -> 0 | DI33: =FJ252 -> 0 | DJ33: =FJ253 -> 0 | DK33: =FJ254 -> 0 | DL33: =FJ255 -> 5.413562747 | DM33: =FJ256 -> 54.31151536 | DN33: =FJ257 -> 14.40602665 | DO33: 515.0515846 | DQ33: 1941 | DR33: =FN246 -> 212.6722717 | DS33: =FN247 -> 248.0923615 | DT33: =FN248 -> 413.5001526 | DU33: =FN249 -> 556.2817993 | DV33: =FN250 -> 347.4816895 | DW33: =FN251 -> 159.0760956 | DX33: =FN252 -> 100.2829666 | DY33: =FN253 -> 83.64872742 | DZ33: =FN254 -> 69.79849243 | EA33: =FN255 -> 115.9778519 | EB33: =FN256 -> 148.2093964 | EC33: =FN257 -> 136.6126556 | ED33: 2591.63446 | EF33: 1923-06-30 | EG33: 3234.070557 | EH33: 1929.277832 | EI33: 1203.959473 | EJ33: 0 | EK33: 0 | EL33: 100.8333359 | EM33: 959.9119873 | EN33: 532.4000244 | EO33: 377.0953064 | EP33: 0 | EQ33: 0 | ER33: 50.41666794 | ES33: 0 | ET33: 189.902771 | EU33: 189.902771 | EV33: 0 | EW33: 0 | EX33: 3488.489258 | EY33: 2231.32959 | EZ33: 213.3022919 | FB33: 1923 | FC33: 6 | FD33: 1923-06-30 | FE33: =(EH33+EN33)*UnitConv!$B33 -> 146.4800047 | FF33: =(EI33+EO33)*UnitConv!$B33 -> 94.07929264 | FG33: =(EJ33+EP33)*UnitConv!$B33 -> 0 | FH33: 94.07929264 | FI33: =(EK33+EQ33)*UnitConv!$B33 -> 0 | FJ33: =(ES33+EV33+EW33)*UnitConv!$B33 -> 0 | FK33: =EU33*UnitConv!$B33 -> 11.2999996 | FL33: =(EX33+EY33)*UnitConv!$B33 -> 340.3528571 | FM33: 0 | FN33: 213.3022919 | FP33: 1942 | FQ33: 804.0960108 | FR33: 1007.125357 | FS33: 4.096010755 | FT33: 0 | FV33: 1942 | FW33: 800 | FX33: 1011.221368 | FY33: 0.9949060676 | FZ33: 1.004067032 | GB33: 1923-06-30 | GC33: 146.6912406 | GD33: 93.9049806
B34: Normal-Dry | C34: 0 | D34: 0 | E34: 0 | F34: 0 | G34: 0 | H34: 0 | I34: 0 | J34: 0 | K34: 0 | L34: 0 | M34: 0 | N34: 0 | O34: 0 | S34: =VLOOKUP($T34,'SJRRP WY Types'!$B$13:$G$95,2,FALSE) -> Normal-Wet | T34: 1942 | U34: =GC258 -> 22.19038442 | V34: =GC259 -> 42.42279344 | W34: =GC260 -> 59.39191262 | X34: =GC261 -> 137.249281 | Y34: =GC262 -> 187.8701088 | Z34: =GC263 -> 172.858965 | AA34: =GC264 -> 97.19834411 | AB34: =GC265 -> 36.15090711 | AC34: =GC266 -> 5.507800063 | AD34: =GC267 -> 5.221267197 | AE34: =GC268 -> 5.221267197 | AF34: =GC269 -> 28.71696909 | AG34: 800 | AI34: 1942 | AJ34: =GD258 -> 43.6512015 | AK34: =GD259 -> 91.14919262 | AL34: =GD260 -> 130.8810908 | AM34: =GD261 -> 126.0065985 | AN34: =GD262 -> 104.0271577 | AO34: =GD263 -> 81.76490205 | AP34: =GD264 -> 28.11147547 | AQ34: =GD265 -> 0.5386414138 | AR34: =GD266 -> 0.396474893 | AS34: =GD267 -> 0.3964749015 | AT34: =GD268 -> 0 | AU34: =GD269 -> 16.34515773 | AV34: 623.2683676 | AX34: 1942 | AY34: =FI258 -> 0 | AZ34: =FI259 -> 0 | BA34: =FI260 -> 0 | BB34: =FI261 -> 0 | BC34: =FI262 -> 0 | BD34: =FI263 -> 0 | BE34: =FI264 -> 0 | BF34: =FI265 -> 0 | BG34: =FI266 -> 0 | BH34: =FI267 -> 0 | BI34: =FI268 -> 0 | BJ34: =FI269 -> 0 | BK34: 0 | BM34: 1942 | BN34: =FL258 -> 572.0476956 | BO34: =FL259 -> 127.5888882 | BP34: =FL260 -> 127.4095046 | BQ34: =FL261 -> 486.1539321 | BR34: =FL262 -> 713.5576017 | BS34: =FL263 -> 724.3239669 | BT34: =FL264 -> 633.0883168 | BU34: =FL265 -> 489.8925116 | BV34: =FL266 -> 456.9817407 | BW34: =FL267 -> 480.0211693 | BX34: =FL268 -> 671.0355914 | BY34: =FL269 -> 576.858719 | BZ34: 6058.959638 | CB34: 1942 | CC34: 0 | CD34: 0 | CF34: 1942 | CG34: 800 | CH34: 623.2683676 | CI34: 0 | CJ34: 0 | CK34: 0 | CM34: 1942 | CN34: =FK258 -> 8.000000111 | CO34: =FK259 -> 8.899999899 | CP34: =FK260 -> 11.69999994 | CQ34: =FK261 -> 11.2999996 | CR34: =FK262 -> 14.10000082 | CS34: =FK263 -> 14.10000082 | CT34: =FK264 -> 12.4999999 | CU34: =FK265 -> 9.800000535 | CV34: =FK266 -> 7.300000101 | CW34: =FK267 -> 7.400000126 | CX34: =FK268 -> 6.099999768 | CY34: =FK269 -> 5.599999718 | CZ34: 116.8000013 | DB34: 1942 | DC34: =FJ258 -> 0 | DD34: =FJ259 -> 15.31145847 | DE34: =FJ260 -> 5.053614194 | DF34: =FJ261 -> 36.17074445 | DG34: =FJ262 -> 0 | DH34: =FJ263 -> 0 | DI34: =FJ264 -> 0 | DJ34: =FJ265 -> 0 | DK34: =FJ266 -> 0 | DL34: =FJ267 -> 1.138560758 | DM34: =FJ268 -> 166.9583027 | DN34: =FJ269 -> 30.93260709 | DO34: 255.5652877 | DQ34: 1942 | DR34: =FN258 -> 153.3928833 | DS34: =FN259 -> 267.0208435 | DT34: =FN260 -> 266.7024231 | DU34: =FN261 -> 489.374176 | DV34: =FN262 -> 299.7447815 | DW34: =FN263 -> 131.0395966 | DX34: =FN264 -> 94.56868744 | DY34: =FN265 -> 76.86445618 | DZ34: =FN266 -> 91.38025665 | EA34: =FN267 -> 70.3159256 | EB34: =FN268 -> 153.2518921 | EC34: =FN269 -> 178.060791 | ED34: 2271.716713 | EF34: 1923-07-31 | EG34: 3398.689697 | EH34: 2336.470947 | EI34: 948.3745728 | EJ34: 0 | EK34: 0 | EL34: 113.8440857 | EM34: 1121.241821 | EN34: 702.5806274 | EO34: 353.6074219 | EP34: 0 | EQ34: 0 | ER34: 65.05376434 | ES34: 0 | ET34: 229.3145294 | EU34: 229.3145294 | EV34: 0 | EW34: 0 | EX34: 4581.594727 | EY34: 7004.901855 | EZ34: 194.6710358 | FB34: 1923 | FC34: 7 | FD34: 1923-07-31 | FE34: =(EH34+EN34)*UnitConv!$B34 -> 186.8639977 | FF34: =(EI34+EO34)*UnitConv!$B34 -> 80.0557524 | FG34: =(EJ34+EP34)*UnitConv!$B34 -> 0 | FH34: 80.0557524 | FI34: =(EK34+EQ34)*UnitConv!$B34 -> 0 | FJ34: =(ES34+EV34+EW34)*UnitConv!$B34 -> 0 | FK34: =EU34*UnitConv!$B34 -> 14.10000082 | FL34: =(EX34+EY34)*UnitConv!$B34 -> 712.4259055 | FM34: 0 | FN34: 194.6710358 | FP34: 1943 | FQ34: 797.0304073 | FR34: 541.6640515 | FS34: 0 | FT34: 2.96959273 | FV34: 1943 | FW34: 800 | FX34: 538.6944587 | FY34: 1.003725821 | FZ34: 0.9945176485 | GB34: 1923-07-31 | GC34: 187.1334706 | GD34: 79.90742346
B35: Dry | C35: 0 | D35: 0 | E35: 0 | F35: 0 | G35: 0 | H35: 0 | I35: 0 | J35: 0 | K35: 0 | L35: 0 | M35: 0 | N35: 0 | O35: 0 | S35: =VLOOKUP($T35,'SJRRP WY Types'!$B$13:$G$95,2,FALSE) -> Normal-Wet | T35: 1943 | U35: =GC270 -> 25.67932087 | V35: =GC271 -> 47.40797857 | W35: =GC272 -> 80.619259 | X35: =GC273 -> 151.2333758 | Y35: =GC274 -> 191.3663548 | Z35: =GC275 -> 163.4708041 | AA35: =GC276 -> 79.78415876 | AB35: =GC277 -> 26.77137494 | AC35: =GC278 -> 4.69583094 | AD35: =GC279 -> 4.609108754 | AE35: =GC280 -> 4.609108754 | AF35: =GC281 -> 19.75332465 | AG35: 800 | AI35: 1943 | AJ35: =GD270 -> 2.644512612 | AK35: =GD271 -> 57.90935907 | AL35: =GD272 -> 88.31214417 | AM35: =GD273 -> 79.78562703 | AN35: =GD274 -> 65.13305563 | AO35: =GD275 -> 60.31024703 | AP35: =GD276 -> 30.64107388 | AQ35: =GD277 -> 5.769902914 | AR35: =GD278 -> 0.3889125679 | AS35: =GD279 -> 0.3889125942 | AT35: =GD280 -> 0.3889125942 | AU35: =GD281 -> 20.07379428 | AV35: 411.7464544 | AX35: 1943 | AY35: =FI270 -> 0 | AZ35: =FI271 -> 0 | BA35: =FI272 -> 0 | BB35: =FI273 -> 0 | BC35: =FI274 -> 0 | BD35: =FI275 -> 0 | BE35: =FI276 -> 0 | BF35: =FI277 -> 0 | BG35: =FI278 -> 0 | BH35: =FI279 -> 0 | BI35: =FI280 -> 0 | BJ35: =FI281 -> 0 | BK35: 0 | BM35: 1943 | BN35: =FL270 -> 726.78212 | BO35: =FL271 -> 134.4516206 | BP35: =FL272 -> 102.1362382 | BQ35: =FL273 -> 370.0902215 | BR35: =FL274 -> 705.6077169 | BS35: =FL275 -> 724.3239669 | BT35: =FL276 -> 605.7455869 | BU35: =FL277 -> 386.9642752 | BV35: =FL278 -> 414.4969961 | BW35: =FL279 -> 691.053319 | BX35: =FL280 -> 414.6298538 | BY35: =FL281 -> 419.4310557 | BZ35: 5695.712971 | CB35: 1943 | CC35: 0 | CD35: 0 | CF35: 1943 | CG35: 800 | CH35: 411.7464544 | CI35: 0 | CJ35: 0 | CK35: 0 | CM35: 1943 | CN35: =FK270 -> 8.000000111 | CO35: =FK271 -> 8.899999899 | CP35: =FK272 -> 11.69999994 | CQ35: =FK273 -> 11.2999996 | CR35: =FK274 -> 14.10000082 | CS35: =FK275 -> 14.10000082 | CT35: =FK276 -> 12.4999999 | CU35: =FK277 -> 9.800000535 | CV35: =FK278 -> 7.300000101 | CW35: =FK279 -> 7.400000126 | CX35: =FK280 -> 6.099999768 | CY35: =FK281 -> 5.600000081 | CZ35: 116.8000017 | DB35: 1943 | DC35: =FJ270 -> 174.7633235 | DD35: =FJ271 -> 102.2947231 | DE35: =FJ272 -> 66.52156799 | DF35: =FJ273 -> 0 | DG35: =FJ274 -> 0 | DH35: =FJ275 -> 0 | DI35: =FJ276 -> 0 | DJ35: =FJ277 -> 0 | DK35: =FJ278 -> 0 | DL35: =FJ279 -> 0 | DM35: =FJ280 -> 0 | DN35: =FJ281 -> 0 | DO35: 343.5796145 | DQ35: 1943 | DR35: =FN270 -> 254.8633728 | DS35: =FN271 -> 280.0142822 | DT35: =FN272 -> 343.7756348 | DU35: =FN273 -> 251.2643433 | DV35: =FN274 -> 169.5544586 | DW35: =FN275 -> 117.9853592 | DX35: =FN276 -> 102.337059 | DY35: =FN277 -> 66.71390533 | DZ35: =FN278 -> 63.49470901 | EA35: =FN279 -> 46.49264526 | EB35: =FN280 -> 54.86759186 | EC35: =FN281 -> 74.24542999 | ED35: 1825.608791 | EF35: 1923-08-31 | EG35: 2977.555664 | EH35: 2069.750488 | EI35: 793.9609375 | EJ35: 0 | EK35: 0 | EL35: 113.8440857 | EM35: 972.954895 | EN35: 702.5806274 | EO35: 221.5839233 | EP35: 0 | EQ35: 0 | ER35: 48.79032135 | ES35: 0 | ET35: 229.3145294 | EU35: 229.3145294 | EV35: 0 | EW35: 0 | EX35: 3917.094971 | EY35: 7180 | EZ35: 127.288208 | FB35: 1923 | FC35: 8 | FD35: 1923-08-31 | FE35: =(EH35+EN35)*UnitConv!$B35 -> 170.4639959 | FF35: =(EI35+EO35)*UnitConv!$B35 -> 62.44341954 | FG35: =(EJ35+EP35)*UnitConv!$B35 -> 0 | FH35: 62.44341954 | FI35: =(EK35+EQ35)*UnitConv!$B35 -> 0 | FJ35: =(ES35+EV35+EW35)*UnitConv!$B35 -> 0 | FK35: =EU35*UnitConv!$B35 -> 14.10000082 | FL35: =(EX35+EY35)*UnitConv!$B35 -> 682.3337734 | FM35: 0 | FN35: 127.288208 | FP35: 1944 | FQ35: 800.0000117 | FR35: 324.625277 | FS35: 1.173287365e-05 | FT35: 0 | FV35: 1944 | FW35: 800 | FX35: 324.6252887 | FY35: 0.9999999853 | FZ35: 1.000000036 | GB35: 1923-08-31 | GC35: 170.7098187 | GD35: 62.3277231
B36: Critical | C36: 0 | D36: 0 | E36: 0 | F36: 0 | G36: 0 | H36: 0 | I36: 0 | J36: 0 | K36: 0 | L36: 0 | M36: 0 | N36: 0 | O36: 0 | S36: =VLOOKUP($T36,'SJRRP WY Types'!$B$13:$G$95,2,FALSE) -> Normal-Dry | T36: 1944 | U36: =GC282 -> 30.83200011 | V36: =GC283 -> 51.82399806 | W36: =GC284 -> 85.77600285 | X36: =GC285 -> 156.9600006 | Y36: =GC286 -> 188.0320004 | Z36: =GC287 -> 158.1439967 | AA36: =GC288 -> 73.32800175 | AB36: =GC289 -> 23.61599988 | AC36: =GC290 -> 3.935999991 | AD36: =GC291 -> 3.935999824 | AE36: =GC292 -> 3.935999824 | AF36: =GC293 -> 19.67999995 | AG36: 800 | AI36: 1944 | AJ36: =GD282 -> 21.09225697 | AK36: =GD283 -> 56.51536817 | AL36: =GD284 -> 65.47448229 | AM36: =GD285 -> 50.65350681 | AN36: =GD286 -> 42.15765346 | AO36: =GD287 -> 42.70806304 | AP36: =GD288 -> 25.95730851 | AQ36: =GD289 -> 5.711230867 | AR36: =GD290 -> 0.5750845873 | AS36: =GD291 -> 0.5750846421 | AT36: =GD292 -> 0.5750846421 | AU36: =GD293 -> 10.40867705 | AV36: 322.403801 | AX36: 1944 | AY36: =FI282 -> 0 | AZ36: =FI283 -> 0 | BA36: =FI284 -> 0 | BB36: =FI285 -> 0 | BC36: =FI286 -> 0 | BD36: =FI287 -> 0 | BE36: =FI288 -> 0 | BF36: =FI289 -> 0 | BG36: =FI290 -> 0 | BH36: =FI291 -> 0 | BI36: =FI292 -> 0 | BJ36: =FI293 -> 0 | BK36: 0 | BM36: 1944 | BN36: =FL282 -> 303.30919 | BO36: =FL283 -> 89.55037408 | BP36: =FL284 -> 92.23140496 | BQ36: =FL285 -> 220.1205014 | BR36: =FL286 -> 614.8906694 | BS36: =FL287 -> 177.9279732 | BT36: =FL288 -> 340.7996756 | BU36: =FL289 -> 331.0926698 | BV36: =FL290 -> 671.2066116 | BW36: =FL291 -> 469.2600581 | BX36: =FL292 -> 422.3043953 | BY36: =FL293 -> 497.6197314 | BZ36: 4230.313255 | CB36: 1944 | CC36: 0 | CD36: 0 | CF36: 1944 | CG36: 800 | CH36: 322.403801 | CI36: -2.273736754e-13 | CJ36: 2.273736754e-13 | CK36: 0 | CM36: 1944 | CN36: =FK282 -> 8.000000111 | CO36: =FK283 -> 8.899999899 | CP36: =FK284 -> 11.69999994 | CQ36: =FK285 -> 11.2999996 | CR36: =FK286 -> 14.10000082 | CS36: =FK287 -> 14.10000082 | CT36: =FK288 -> 12.4999999 | CU36: =FK289 -> 9.800000535 | CV36: =FK290 -> 7.300000101 | CW36: =FK291 -> 7.400000126 | CX36: =FK292 -> 6.099999768 | CY36: =FK293 -> 5.599999718 | CZ36: 116.8000013 | DB36: 1944 | DC36: =FJ282 -> 0 | DD36: =FJ283 -> 0 | DE36: =FJ284 -> 0 | DF36: =FJ285 -> 0 | DG36: =FJ286 -> 0 | DH36: =FJ287 -> 0 | DI36: =FJ288 -> 0 | DJ36: =FJ289 -> 0 | DK36: =FJ290 -> 0 | DL36: =FJ291 -> 0 | DM36: =FJ292 -> 0 | DN36: =FJ293 -> 175.6290918 | DO36: 175.6290918 | DQ36: 1944 | DR36: =FN282 -> 110.5632401 | DS36: =FN283 -> 114.1585541 | DT36: =FN284 -> 200.4118652 | DU36: =FN285 -> 204.8749542 | DV36: =FN286 -> 165.9673767 | DW36: =FN287 -> 125.8204498 | DX36: =FN288 -> 106.1898346 | DY36: =FN289 -> 63.47483826 | DZ36: =FN290 -> 82.89672089 | EA36: =FN291 -> 79.8396759 | EB36: =FN292 -> 65.59272766 | EC36: =FN293 -> 242.4858246 | ED36: 1562.276062 | EF36: 1923-09-30 | EG36: 1667.452026 | EH36: 1234.737793 | EI36: 331.8808594 | EJ36: 0 | EK36: 0 | EL36: 100.8333359 | EM36: 363.7981262 | EN36: 363 | EO36: 0.7981169224 | EP36: 0 | EQ36: 0 | ER36: 0 | ES36: 0 | ET36: 210.0694427 | EU36: 210.0694427 | EV36: 0 | EW36: 0 | EX36: 4600 | EY36: 6680 | EZ36: 115.0653381 | FB36: 1923 | FC36: 9 | FD36: 1923-09-30 | FE36: =(EH36+EN36)*UnitConv!$B36 -> 95.0720009 | FF36: =(EI36+EO36)*UnitConv!$B36 -> 19.7957738 | FG36: =(EJ36+EP36)*UnitConv!$B36 -> 0 | FH36: 19.7957738 | FI36: =(EK36+EQ36)*UnitConv!$B36 -> 0 | FJ36: =(ES36+EV36+EW36)*UnitConv!$B36 -> 0 | FK36: =EU36*UnitConv!$B36 -> 12.4999999 | FL36: =(EX36+EY36)*UnitConv!$B36 -> 671.2066116 | FM36: 0 | FN36: 115.0653381 | FP36: 1945 | FQ36: 808.6880096 | FR36: 1017.785832 | FS36: 8.688009601 | FT36: 0 | FV36: 1945 | FW36: 800 | FX36: 1026.473842 | FY36: 0.9892566608 | FZ36: 1.008536186 | GB36: 1923-09-30 | GC36: 95.20910238 | GD36: 19.75909578
B37: Long Term | C37: 0 | D37: 0 | E37: 0 | F37: 0 | G37: 0 | H37: 0 | I37: 0 | J37: 0 | K37: 0 | L37: 0 | M37: 0 | N37: 0 | O37: 0 | S37: =VLOOKUP($T37,'SJRRP WY Types'!$B$13:$G$95,2,FALSE) -> Normal-Wet | T37: 1945 | U37: =GC294 -> 22.06438006 | V37: =GC295 -> 42.18190274 | W37: =GC296 -> 63.59733108 | X37: =GC297 -> 136.469934 | Y37: =GC298 -> 186.80332 | Z37: =GC299 -> 171.8774145 | AA37: =GC300 -> 96.64641966 | AB37: =GC301 -> 35.94563026 | AC37: =GC302 -> 5.476524947 | AD37: =GC303 -> 5.19161911 | AE37: =GC304 -> 5.19161911 | AF37: =GC305 -> 28.55390461 | AG37: 800 | AI37: 1945 | AJ37: =GD294 -> 42.796092 | AK37: =GD295 -> 89.23980604 | AL37: =GD296 -> 123.2300326 | AM37: =GD297 -> 120.9643736 | AN37: =GD298 -> 98.24350818 | AO37: =GD299 -> 76.67719648 | AP37: =GD300 -> 25.58649418 | AQ37: =GD301 -> 0.06068310484 | AR37: =GD302 -> 0.284663608 | AS37: =GD303 -> 0.284663607 | AT37: =GD304 -> 0.284663607 | AU37: =GD305 -> 15.50930381 | AV37: 593.1614809 | AX37: 1945 | AY37: =FI294 -> 0 | AZ37: =FI295 -> 0 | BA37: =FI296 -> 0 | BB37: =FI297 -> 0 | BC37: =FI298 -> 0 | BD37: =FI299 -> 0 | BE37: =FI300 -> 0 | BF37: =FI301 -> 0 | BG37: =FI302 -> 0 | BH37: =FI303 -> 0 | BI37: =FI304 -> 0 | BJ37: =FI305 -> 0 | BK37: 0 | BM37: 1945 | BN37: =FL294 -> 576.9402684 | BO37: =FL295 -> 89.25619835 | BP37: =FL296 -> 92.23140496 | BQ37: =FL297 -> 232.3515133 | BR37: =FL298 -> 707.1664637 | BS37: =FL299 -> 685.7815677 | BT37: =FL300 -> 661.4929397 | BU37: =FL301 -> 475.6865034 | BV37: =FL302 -> 671.2066116 | BW37: =FL303 -> 600.6350178 | BX37: =FL304 -> 471.714098 | BY37: =FL305 -> 426.5968989 | BZ37: 5691.059486 | CB37: 1945 | CC37: 0 | CD37: 0 | CF37: 1945 | CG37: 800 | CH37: 593.1614809 | CI37: 0 | CJ37: 0 | CK37: 0 | CM37: 1945 | CN37: =FK294 -> 8.000000111 | CO37: =FK295 -> 8.899999899 | CP37: =FK296 -> 11.69999994 | CQ37: =FK297 -> 11.2999996 | CR37: =FK298 -> 14.10000082 | CS37: =FK299 -> 14.10000082 | CT37: =FK300 -> 12.4999999 | CU37: =FK301 -> 9.800000535 | CV37: =FK302 -> 7.300000101 | CW37: =FK303 -> 7.400000126 | CX37: =FK304 -> 6.099999768 | CY37: =FK305 -> 5.599999718 | CZ37: 116.8000013 | DB37: 1945 | DC37: =FJ294 -> 3.408625728 | DD37: =FJ295 -> 9.640206026 | DE37: =FJ296 -> 0 | DF37: =FJ297 -> 0 | DG37: =FJ298 -> 0 | DH37: =FJ299 -> 0 | DI37: =FJ300 -> 0 | DJ37: =FJ301 -> 0 | DK37: =FJ302 -> 0 | DL37: =FJ303 -> 11.75982999 | DM37: =FJ304 -> 20.92729127 | DN37: =FJ305 -> 2.312751421 | DO37: 48.04870443 | DQ37: 1945 | DR37: =FN294 -> 146.3817444 | DS37: =FN295 -> 216.4146118 | DT37: =FN296 -> 295.4472351 | DU37: =FN297 -> 356.1552429 | DV37: =FN298 -> 253.6903687 | DW37: =FN299 -> 138.439743 | DX37: =FN300 -> 110.1003036 | DY37: =FN301 -> 110.0156326 | DZ37: =FN302 -> 119.2661972 | EA37: =FN303 -> 148.5010986 | EB37: =FN304 -> 107.8478928 | EC37: =FN305 -> 76.39634705 | ED37: 2078.656418 | EF37: 1923-10-31 | EG37: 586.6780396 | EH37: 501.4344177 | EI37: 3.92644453 | EJ37: 0 | EK37: 0 | EL37: 81.31720734 | EM37: 46.83871078 | EN37: 46.83871078 | EO37: 0 | EP37: 0 | EQ37: 0 | ER37: 0 | ES37: 0 | ET37: 159.3817291 | EU37: 159.3817291 | EV37: 0 | EW37: 0 | EX37: 4600 | EY37: 5279.936035 | EZ37: 82.15656281 | FB37: 1923 | FC37: 10 | FD37: 1923-10-31 | FE37: =(EH37+EN37)*UnitConv!$B37 -> 33.71200063 | FF37: =(EI37+EO37)*UnitConv!$B37 -> 0.2414276637 | FG37: =(EJ37+EP37)*UnitConv!$B37 -> 0 | FH37: 0.2414276637 | FI37: =(EK37+EQ37)*UnitConv!$B37 -> 0 | FJ37: =(ES37+EV37+EW37)*UnitConv!$B37 -> 0 | FK37: =EU37*UnitConv!$B37 -> 9.800000535 | FL37: =(EX37+EY37)*UnitConv!$B37 -> 607.4935876 | FM37: 0 | FN37: 82.15656281 | FP37: 1946 | FQ37: 797.3760102 | FR37: 613.7241513 | FS37: 0 | FT37: 2.623989752 | FV37: 1946 | FW37: 800 | FX37: 611.1001615 | FY37: 1.003290781 | FZ37: 0.9957244802 | GB37: 1923-10-31 | GC37: 33.76061605 | GD37: 0.2409803416
S38: =VLOOKUP($T38,'SJRRP WY Types'!$B$13:$G$95,2,FALSE) -> Normal-Wet | T38: 1946 | U38: =GC306 -> 28.30082542 | V38: =GC307 -> 51.99454025 | W38: =GC308 -> 86.05827414 | X38: =GC309 -> 157.4765239 | Y38: =GC310 -> 188.6507753 | Z38: =GC311 -> 158.6644163 | AA38: =GC312 -> 73.56930922 | AB38: =GC313 -> 23.69371531 | AC38: =GC314 -> 3.948952562 | AD38: =GC315 -> 3.948952395 | AE38: =GC316 -> 3.948952395 | AF38: =GC317 -> 19.74476281 | AG38: 800 | AI38: 1946 | AJ38: =GD306 -> 28.4682798 | AK38: =GD307 -> 61.52123589 | AL38: =GD308 -> 73.13061265 | AM38: =GD309 -> 55.73550098 | AN38: =GD310 -> 47.88459161 | AO38: =GD311 -> 47.68082111 | AP38: =GD312 -> 28.35240374 | AQ38: =GD313 -> 6.402834466 | AR38: =GD314 -> 0.6800291793 | AS38: =GD315 -> 0.6800291435 | AT38: =GD316 -> 0.6800291435 | AU38: =GD317 -> 17.19774821 | AV38: 368.4141159 | AX38: 1946 | AY38: =FI306 -> 0 | AZ38: =FI307 -> 0 | BA38: =FI308 -> 0 | BB38: =FI309 -> 0 | BC38: =FI310 -> 0 | BD38: =FI311 -> 0 | BE38: =FI312 -> 0 | BF38: =FI313 -> 0 | BG38: =FI314 -> 0 | BH38: =FI315 -> 0 | BI38: =FI316 -> 0 | BJ38: =FI317 -> 0 | BK38: 0 | BM38: 1946 | BN38: =FL306 -> 421.0027376 | BO38: =FL307 -> 89.25619835 | BP38: =FL308 -> 92.23140496 | BQ38: =FL309 -> 241.6968871 | BR38: =FL310 -> 702.3712413 | BS38: =FL311 -> 706.6505743 | BT38: =FL312 -> 671.2066116 | BU38: =FL313 -> 641.7672371 | BV38: =FL314 -> 511.0801927 | BW38: =FL315 -> 570.4982861 | BX38: =FL316 -> 423.5747839 | BY38: =FL317 -> 387.1501588 | BZ38: 5458.486314 | CB38: 1946 | CC38: 0 | CD38: 0 | CF38: 1946 | CG38: 800 | CH38: 368.4141159 | CI38: -1.136868377e-13 | CJ38: 1.136868377e-13 | CK38: 0 | CM38: 1946 | CN38: =FK306 -> 8.000000111 | CO38: =FK307 -> 8.899999899 | CP38: =FK308 -> 11.69999994 | CQ38: =FK309 -> 11.2999996 | CR38: =FK310 -> 14.10000082 | CS38: =FK311 -> 14.10000082 | CT38: =FK312 -> 12.4999999 | CU38: =FK313 -> 9.800000535 | CV38: =FK314 -> 7.300000101 | CW38: =FK315 -> 7.400000126 | CX38: =FK316 -> 6.099999768 | CY38: =FK317 -> 5.599999718 | CZ38: 116.8000013 | DB38: 1946 | DC38: =FJ306 -> 0 | DD38: =FJ307 -> 0 | DE38: =FJ308 -> 36.31335169 | DF38: =FJ309 -> 0 | DG38: =FJ310 -> 0 | DH38: =FJ311 -> 0 | DI38: =FJ312 -> 0 | DJ38: =FJ313 -> 0 | DK38: =FJ314 -> 0 | DL38: =FJ315 -> 0 | DM38: =FJ316 -> 5.731761106 | DN38: =FJ317 -> 3.18858252 | DO38: 45.23369531 | DQ38: 1946 | DR38: =FN306 -> 132.7275085 | DS38: =FN307 -> 236.4005585 | DT38: =FN308 -> 304.1033325 | DU38: =FN309 -> 207.7241211 | DV38: =FN310 -> 127.5235825 | DW38: =FN311 -> 95.97597504 | DX38: =FN312 -> 102.3008728 | DY38: =FN313 -> 81.42681122 | DZ38: =FN314 -> 107.1902771 | EA38: =FN315 -> 110.3541183 | EB38: =FN316 -> 71.8061676 | EC38: =FN317 -> 82.39219666 | ED38: 1659.925522 | EF38: 1923-11-30 | EG38: 154.2565918 | EH38: 77.17111206 | EI38: 9.863258362 | EJ38: 0 | EK38: 0 | EL38: 67.22222137 | EM38: 4.840000153 | EN38: 4.840000153 | EO38: 0 | EP38: 0 | EQ38: 0 | ER38: 0 | ES38: 0 | ET38: 122.6805573 | EU38: 122.6805573 | EV38: 0 | EW38: 0 | EX38: 2815.57959 | EY38: 3592.719727 | EZ38: 63.19744492 | FB38: 1923 | FC38: 11 | FD38: 1923-11-30 | FE38: =(EH38+EN38)*UnitConv!$B38 -> 4.880000066 | FF38: =(EI38+EO38)*UnitConv!$B38 -> 0.5869046298 | FG38: =(EJ38+EP38)*UnitConv!$B38 -> 0 | FH38: 0.5869046298 | FI38: =(EK38+EQ38)*UnitConv!$B38 -> 0 | FJ38: =(ES38+EV38+EW38)*UnitConv!$B38 -> 0 | FK38: =EU38*UnitConv!$B38 -> 7.300000101 | FL38: =(EX38+EY38)*UnitConv!$B38 -> 381.3202899 | FM38: 0 | FN38: 63.19744492 | FP38: 1947 | FQ38: 800.0000025 | FR38: 209.651234 | FS38: 2.501937047e-06 | FT38: 0 | FV38: 1947 | FW38: 800 | FX38: 209.6512365 | FY38: 0.9999999969 | FZ38: 1.000000012 | GB38: 1923-11-30 | GC38: 4.887037418 | GD38: 0.5858172009
C39: Delta Pumping | S39: =VLOOKUP($T39,'SJRRP WY Types'!$B$13:$G$95,2,FALSE) -> Normal-Dry | T39: 1947 | U39: =GC318 -> 36.73599816 | V39: =GC319 -> 62.32000239 | W39: =GC320 -> 97.58400298 | X39: =GC321 -> 158.3999995 | Y39: =GC322 -> 181.5999992 | Z39: =GC323 -> 149.3599968 | AA39: =GC324 -> 64.80000071 | AB39: =GC325 -> 19.67999982 | AC39: =GC326 -> 3.28000003 | AD39: =GC327 -> 3.27999997 | AE39: =GC328 -> 3.27999997 | AF39: =GC329 -> 19.68000042 | AG39: 800 | AI39: 1947 | AJ39: =GD318 -> 3.458381482 | AK39: =GD319 -> 15.32653444 | AL39: =GD320 -> 19.84655312 | AM39: =GD321 -> 21.17641102 | AN39: =GD322 -> 24.53364783 | AO39: =GD323 -> 19.75604242 | AP39: =GD324 -> 8.00571629 | AQ39: =GD325 -> 2.324240299 | AR39: =GD326 -> 0.3873733661 | AS39: =GD327 -> 0.3873733832 | AT39: =GD328 -> 0.3873733832 | AU39: =GD329 -> 2.324240322 | AV39: 117.9138874 | AX39: 1947 | AY39: =FI318 -> 0 | AZ39: =FI319 -> 0 | BA39: =FI320 -> 0 | BB39: =FI321 -> 0 | BC39: =FI322 -> 0 | BD39: =FI323 -> 0 | BE39: =FI324 -> 0 | BF39: =FI325 -> 0 | BG39: =FI326 -> 0 | BH39: =FI327 -> 0 | BI39: =FI328 -> 0 | BJ39: =FI329 -> 0 | BK39: 0 | BM39: 1947 | BN39: =FL318 -> 159.5597451 | BO39: =FL319 -> 92.87585389 | BP39: =FL320 -> 92.23140496 | BQ39: =FL321 -> 200.8723673 | BR39: =FL322 -> 708.8875161 | BS39: =FL323 -> 275.5306828 | BT39: =FL324 -> 350.8258022 | BU39: =FL325 -> 404.4987954 | BV39: =FL326 -> 458.9502437 | BW39: =FL327 -> 356.6377366 | BX39: =FL328 -> 245.7145957 | BY39: =FL329 -> 107.1661596 | BZ39: 3453.750903 | CB39: 1947 | CC39: 0 | CD39: 0 | CF39: 1947 | CG39: 800 | CH39: 117.9138874 | CI39: 0 | CJ39: 0 | CK39: 0 | CM39: 1947 | CN39: =FK318 -> 8.000000111 | CO39: =FK319 -> 8.899999899 | CP39: =FK320 -> 11.69999994 | CQ39: =FK321 -> 11.2999996 | CR39: =FK322 -> 14.10000082 | CS39: =FK323 -> 14.10000082 | CT39: =FK324 -> 12.4999999 | CU39: =FK325 -> 9.800000535 | CV39: =FK326 -> 7.300000101 | CW39: =FK327 -> 7.400000126 | CX39: =FK328 -> 6.099999768 | CY39: =FK329 -> 5.600000081 | CZ39: 116.8000017 | DB39: 1947 | DC39: =FJ318 -> 0 | DD39: =FJ319 -> 0 | DE39: =FJ320 -> 0 | DF39: =FJ321 -> 0 | DG39: =FJ322 -> 0 | DH39: =FJ323 -> 0 | DI39: =FJ324 -> 0 | DJ39: =FJ325 -> 0 | DK39: =FJ326 -> 0 | DL39: =FJ327 -> 0 | DM39: =FJ328 -> 0 | DN39: =FJ329 -> 0 | DO39: 0 | DQ39: 1947 | DR39: =FN318 -> 127.7008591 | DS39: =FN319 -> 133.6964264 | DT39: =FN320 -> 199.4672852 | DU39: =FN321 -> 98.26713562 | DV39: =FN322 -> 74.43117523 | DW39: =FN323 -> 98.19562531 | DX39: =FN324 -> 104.2249985 | DY39: =FN325 -> 45.27236938 | DZ39: =FN326 -> 35.65939713 | EA39: =FN327 -> 32.66261673 | EB39: =FN328 -> 35.1627655 | EC39: =FN329 -> 34.80155182 | ED39: 1019.542206 | EF39: 1923-12-31 | EG39: 100.4902496 | EH39: 74.68171692 | EI39: 9.545088768 | EJ39: 0 | EK39: 0 | EL39: 16.26344109 | EM39: 0 | EN39: 0 | EO39: 0 | EP39: 0 | EQ39: 0 | ER39: 0 | ES39: 0 | ET39: 120.3494644 | EU39: 120.3494644 | EV39: 0 | EW39: 0 | EX39: 2665.627197 | EY39: 3402.842529 | EZ39: 41.06128311 | FB39: 1923 | FC39: 12 | FD39: 1923-12-31 | FE39: =(EH39+EN39)*UnitConv!$B39 -> 4.591999784 | FF39: =(EI39+EO39)*UnitConv!$B39 -> 0.5869046317 | FG39: =(EJ39+EP39)*UnitConv!$B39 -> 0 | FH39: 0.5869046317 | FI39: =(EK39+EQ39)*UnitConv!$B39 -> 0 | FJ39: =(ES39+EV39+EW39)*UnitConv!$B39 -> 0 | FK39: =EU39*UnitConv!$B39 -> 7.400000126 | FL39: =(EX39+EY39)*UnitConv!$B39 -> 373.1356592 | FM39: 0 | FN39: 41.06128311 | FP39: 1948 | FQ39: 800.0000024 | FR39: 63.29727302 | FS39: 2.380875344e-06 | FT39: 0 | FV39: 1948 | FW39: 800 | FX39: 63.2972754 | FY39: 0.999999997 | FZ39: 1.000000038 | GB39: 1923-12-31 | GC39: 4.598621817 | GD39: 0.5858172028
C40: Mar | D40: Apr | E40: May | F40: Jun | G40: Jul | H40: Aug | I40: Sep | J40: Oct | K40: Nov | L40: Dec | M40: Jan | N40: Feb | O40: Total | S40: =VLOOKUP($T40,'SJRRP WY Types'!$B$13:$G$95,2,FALSE) -> Normal-Dry | T40: 1948 | U40: =GC330 -> 32.7999997 | V40: =GC331 -> 59.04000055 | W40: =GC332 -> 98.24000336 | X40: =GC333 -> 161.6799977 | Y40: =GC334 -> 181.5999993 | Z40: =GC335 -> 152.6399987 | AA40: =GC336 -> 64.80000072 | AB40: =GC337 -> 19.67999982 | AC40: =GC338 -> 3.280000031 | AD40: =GC339 -> 3.27999997 | AE40: =GC340 -> 3.27999997 | AF40: =GC341 -> 19.68000018 | AG40: 800 | AI40: 1948 | AJ40: =GD330 -> 2.349863087 | AK40: =GD331 -> 4.228284658 | AL40: =GD332 -> 7.564716253 | AM40: =GD333 -> 13.23997863 | AN40: =GD334 -> 15.06344915 | AO40: =GD335 -> 12.36788365 | AP40: =GD336 -> 4.915441089 | AQ40: =GD337 -> 1.427063588 | AR40: =GD338 -> 0.237843926 | AS40: =GD339 -> 0.2378439264 | AT40: =GD340 -> 0.2378439264 | AU40: =GD341 -> 1.427063516 | AV40: 63.2972754 | AX40: 1948 | AY40: =FI330 -> 0 | AZ40: =FI331 -> 0 | BA40: =FI332 -> 0 | BB40: =FI333 -> 0 | BC40: =FI334 -> 0 | BD40: =FI335 -> 0 | BE40: =FI336 -> 0 | BF40: =FI337 -> 0 | BG40: =FI338 -> 0 | BH40: =FI339 -> 0 | BI40: =FI340 -> 0 | BJ40: =FI341 -> 0 | BK40: 0 | BM40: 1948 | BN40: =FL330 -> 291.7970174 | BO40: =FL331 -> 89.25619835 | BP40: =FL332 -> 92.23140496 | BQ40: =FL333 -> 318.3623031 | BR40: =FL334 -> 668.7808308 | BS40: =FL335 -> 708.4354562 | BT40: =FL336 -> 671.2066116 | BU40: =FL337 -> 541.6465793 | BV40: =FL338 -> 464.6732745 | BW40: =FL339 -> 512.1475413 | BX40: =FL340 -> 392.1406428 | BY40: =FL341 -> 364.9143208 | BZ40: 5115.592181 | CB40: 1948 | CC40: 0 | CD40: 0 | CF40: 1948 | CG40: 800 | CH40: 63.2972754 | CI40: 0 | CJ40: 0 | CK40: 0 | CM40: 1948 | CN40: =FK330 -> 8.000000111 | CO40: =FK331 -> 8.899999899 | CP40: =FK332 -> 11.69999994 | CQ40: =FK333 -> 11.2999996 | CR40: =FK334 -> 14.10000082 | CS40: =FK335 -> 14.10000082 | CT40: =FK336 -> 12.4999999 | CU40: =FK337 -> 9.800000535 | CV40: =FK338 -> 7.300000101 | CW40: =FK339 -> 7.400000126 | CX40: =FK340 -> 6.099999768 | CY40: =FK341 -> 5.599999718 | CZ40: 116.8000013 | DB40: 1948 | DC40: =FJ330 -> 0 | DD40: =FJ331 -> 0 | DE40: =FJ332 -> 0 | DF40: =FJ333 -> 0 | DG40: =FJ334 -> 0 | DH40: =FJ335 -> 0 | DI40: =FJ336 -> 0 | DJ40: =FJ337 -> 0 | DK40: =FJ338 -> 0 | DL40: =FJ339 -> 0 | DM40: =FJ340 -> 0 | DN40: =FJ341 -> 0 | DO40: 0 | DQ40: 1948 | DR40: =FN330 -> 33.33656693 | DS40: =FN331 -> 128.7889404 | DT40: =FN332 -> 176.0026245 | DU40: =FN333 -> 235.0795135 | DV40: =FN334 -> 134.252121 | DW40: =FN335 -> 87.49200439 | DX40: =FN336 -> 98.78630829 | DY40: =FN337 -> 63.26188278 | DZ40: =FN338 -> 41.3056488 | EA40: =FN339 -> 40.12138748 | EB40: =FN340 -> 40.4419632 | EC40: =FN341 -> 46.30187225 | ED40: 1125.170834 | EF40: 1924-01-31 | EG40: 100.4902496 | EH40: 74.68171692 | EI40: 9.545088768 | EJ40: 0 | EK40: 0 | EL40: 16.26344109 | EM40: 0 | EN40: 0 | EO40: 0 | EP40: 0 | EQ40: 0 | ER40: 0 | ES40: 0 | ET40: 99.20698547 | EU40: 99.20698547 | EV40: 0 | EW40: 0 | EX40: 3496.648193 | EY40: 2957.82373 | EZ40: 39.82500076 | FB40: 1923 | FC40: 1 | FD40: 1924-01-31 | FE40: =(EH40+EN40)*UnitConv!$B40 -> 4.591999784 | FF40: =(EI40+EO40)*UnitConv!$B40 -> 0.5869046317 | FG40: =(EJ40+EP40)*UnitConv!$B40 -> 0 | FH40: 0.5869046317 | FI40: =(EK40+EQ40)*UnitConv!$B40 -> 0 | FJ40: =(ES40+EV40+EW40)*UnitConv!$B40 -> 0 | FK40: =EU40*UnitConv!$B40 -> 6.099999768 | FL40: =(EX40+EY40)*UnitConv!$B40 -> 396.8700092 | FM40: 0 | FN40: 39.82500076 | FP40: 1949 | FQ40: 800.0000023 | FR40: 180.7911125 | FS40: 2.259814096e-06 | FT40: 0 | FV40: 1949 | FW40: 800 | FX40: 180.7911148 | FY40: 0.9999999972 | FZ40: 1.000000012 | GB40: 1924-01-31 | GC40: 4.598621817 | GD40: 0.5858172028
B41: SJRRP WY Type | C41: TAF | D41: TAF | E41: TAF | F41: TAF | G41: TAF | H41: TAF | I41: TAF | J41: TAF | K41: TAF | L41: TAF | M41: TAF | N41: TAF | O41: TAF | S41: =VLOOKUP($T41,'SJRRP WY Types'!$B$13:$G$95,2,FALSE) -> Normal-Dry | T41: 1949 | U41: =GC342 -> 36.73599817 | V41: =GC343 -> 62.32000241 | W41: =GC344 -> 97.58400301 | X41: =GC345 -> 158.3999996 | Y41: =GC346 -> 181.5999993 | Z41: =GC347 -> 149.3599969 | AA41: =GC348 -> 64.80000072 | AB41: =GC349 -> 19.67999982 | AC41: =GC350 -> 3.280000031 | AD41: =GC351 -> 3.279999971 | AE41: =GC352 -> 3.279999971 | AF41: =GC353 -> 19.68000019 | AG41: 800 | AI41: 1949 | AJ41: =GD342 -> 2.873360745 | AK41: =GD343 -> 16.88379472 | AL41: =GD344 -> 22.39788667 | AM41: =GD345 -> 37.02982981 | AN41: =GD346 -> 42.90041438 | AO41: =GD347 -> 34.54612207 | AP41: =GD348 -> 13.99908194 | AQ41: =GD349 -> 4.064249848 | AR41: =GD350 -> 0.6773749507 | AS41: =GD351 -> 0.6773749356 | AT41: =GD352 -> 0.6773749356 | AU41: =GD353 -> 4.064249772 | AV41: 180.7911148 | AX41: 1949 | AY41: =FI342 -> 0 | AZ41: =FI343 -> 0 | BA41: =FI344 -> 0 | BB41: =FI345 -> 0 | BC41: =FI346 -> 0 | BD41: =FI347 -> 0 | BE41: =FI348 -> 0 | BF41: =FI349 -> 0 | BG41: =FI350 -> 0 | BH41: =FI351 -> 0 | BI41: =FI352 -> 0 | BJ41: =FI353 -> 0 | BK41: 0 | BM41: 1949 | BN41: =FL342 -> 214.3698337 | BO41: =FL343 -> 89.25619835 | BP41: =FL344 -> 92.23140496 | BQ41: =FL345 -> 204.122214 | BR41: =FL346 -> 708.02708 | BS41: =FL347 -> 371.0366667 | BT41: =FL348 -> 445.0400633 | BU41: =FL349 -> 299.3567275 | BV41: =FL350 -> 399.9665838 | BW41: =FL351 -> 389.2996783 | BX41: =FL352 -> 262.5470222 | BY41: =FL353 -> 281.7788081 | BZ41: 3757.032281 | CB41: 1949 | CC41: 0 | CD41: 0 | CF41: 1949 | CG41: 800 | CH41: 180.7911148 | CI41: 0 | CJ41: 0 | CK41: 0 | CM41: 1949 | CN41: =FK342 -> 8.000000111 | CO41: =FK343 -> 8.899999899 | CP41: =FK344 -> 11.69999994 | CQ41: =FK345 -> 11.2999996 | CR41: =FK346 -> 14.10000082 | CS41: =FK347 -> 14.10000082 | CT41: =FK348 -> 12.4999999 | CU41: =FK349 -> 9.800000535 | CV41: =FK350 -> 7.300000101 | CW41: =FK351 -> 7.400000126 | CX41: =FK352 -> 6.099999768 | CY41: =FK353 -> 5.599999718 | CZ41: 116.8000013 | DB41: 1949 | DC41: =FJ342 -> 0 | DD41: =FJ343 -> 0 | DE41: =FJ344 -> 0 | DF41: =FJ345 -> 0 | DG41: =FJ346 -> 0 | DH41: =FJ347 -> 0 | DI41: =FJ348 -> 0 | DJ41: =FJ349 -> 0 | DK41: =FJ350 -> 0 | DL41: =FJ351 -> 0 | DM41: =FJ352 -> 0 | DN41: =FJ353 -> 0 | DO41: 0 | DQ41: 1949 | DR41: =FN342 -> 71.47991943 | DS41: =FN343 -> 169.5276337 | DT41: =FN344 -> 217.8983765 | DU41: =FN345 -> 202.5661011 | DV41: =FN346 -> 82.82408905 | DW41: =FN347 -> 100.7907104 | DX41: =FN348 -> 104.5977249 | DY41: =FN349 -> 62.90665436 | DZ41: =FN350 -> 43.61854172 | EA41: =FN351 -> 42.02663422 | EB41: =FN352 -> 63.89109039 | EC41: =FN353 -> 104.7124634 | ED41: 1266.839939 | EF41: 1924-02-29 | EG41: 755.0545654 | EH41: 342.1379395 | EI41: 378.1465149 | EJ41: 0 | EK41: 0 | EL41: 34.7701149 | EM41: 0 | EN41: 0 | EO41: 0 | EP41: 0 | EQ41: 0 | ER41: 0 | ES41: 0 | ET41: 97.35632324 | EU41: 97.35632324 | EV41: 0 | EW41: 0 | EX41: 2089.17334 | EY41: 2089.17334 | EZ41: 44.29179764 | FB41: 1923 | FC41: 2 | FD41: 1924-02-29 | FE41: =(EH41+EN41)*UnitConv!$B41 -> 19.68000048 | FF41: =(EI41+EO41)*UnitConv!$B41 -> 21.75123755 | FG41: =(EJ41+EP41)*UnitConv!$B41 -> 0 | FH41: 21.75123755 | FI41: =(EK41+EQ41)*UnitConv!$B41 -> 0 | FJ41: =(ES41+EV41+EW41)*UnitConv!$B41 -> 0 | FK41: =EU41*UnitConv!$B41 -> 5.600000081 | FL41: =(EX41+EY41)*UnitConv!$B41 -> 240.3412636 | FM41: 0 | FN41: 44.29179764 | FP41: 1950 | FQ41: 800.0000052 | FR41: 519.5266063 | FS41: 5.180421681e-06 | FT41: 0 | FV41: 1950 | FW41: 800 | FX41: 519.5266115 | FY41: 0.9999999935 | FZ41: 1.00000001 | GB41: 1924-02-29 | GC41: 19.70838063 | GD41: 21.71093641
B42: Wet | C42: =BN4 -> 592.154604 | D42: =BO4 -> 219.3777439 | E42: 250.8171013 | F42: 551.174898 | G42: 702.3986206 | H42: 719.9462083 | I42: 639.5599849 | J42: 479.9566747 | K42: 407.6167368 | L42: 645.6422705 | M42: 462.2687747 | N42: 445.5611409 | O42: 6116.474759 | S42: =VLOOKUP($T42,'SJRRP WY Types'!$B$13:$G$95,2,FALSE) -> Normal-Dry | T42: 1950 | U42: =GC354 -> 32.79999959 | V42: =GC355 -> 56.41600033 | W42: =GC356 -> 89.71199824 | X42: =GC357 -> 158.399999 | Y42: =GC358 -> 188.1600023 | Z42: =GC359 -> 151.9839978 | AA42: =GC360 -> 70.70400234 | AB42: =GC361 -> 20.99200049 | AC42: =GC362 -> 3.936000023 | AD42: =GC363 -> 3.935999856 | AE42: =GC364 -> 3.279999959 | AF42: =GC365 -> 19.68000011 | AG42: 800 | AI42: 1950 | AJ42: =GD354 -> 11.01871448 | AK42: =GD355 -> 31.19430437 | AL42: =GD356 -> 43.66863826 | AM42: =GD357 -> 50.13725111 | AN42: =GD358 -> 47.32869642 | AO42: =GD359 -> 39.9532435 | AP42: =GD360 -> 13.05032745 | AQ42: =GD361 -> 4.190869117 | AR42: =GD362 -> 0 | AS42: =GD363 -> 0.2611448453 | AT42: =GD364 -> 0.9171448419 | AU42: =GD365 -> 13.89715911 | AV42: 255.6174935 | AX42: 1950 | AY42: =FI354 -> 0 | AZ42: =FI355 -> 0 | BA42: =FI356 -> 0 | BB42: =FI357 -> 0 | BC42: =FI358 -> 0 | BD42: =FI359 -> 0 | BE42: =FI360 -> 0 | BF42: =FI361 -> 0 | BG42: =FI362 -> 0 | BH42: =FI363 -> 0 | BI42: =FI364 -> 0 | BJ42: =FI365 -> 0 | BK42: 0 | BM42: 1950 | BN42: =FL354 -> 405.3229184 | BO42: =FL355 -> 89.25619835 | BP42: =FL356 -> 92.23140496 | BQ42: =FL357 -> 219.1150617 | BR42: =FL358 -> 705.7057729 | BS42: =FL359 -> 681.7977084 | BT42: =FL360 -> 671.2066116 | BU42: =FL361 -> 638.5778829 | BV42: =FL362 -> 671.2066116 | BW42: =FL363 -> 754.9487565 | BX42: =FL364 -> 681.0057703 | BY42: =FL365 -> 405.3287448 | BZ42: 6015.703442 | CB42: 1950 | CC42: 0 | CD42: 0 | CF42: 1950 | CG42: 800 | CH42: 255.6174935 | CI42: -2.273736754e-13 | CJ42: 2.273736754e-13 | CK42: 0 | CM42: 1950 | CN42: =FK354 -> 8.000000111 | CO42: =FK355 -> 8.899999899 | CP42: =FK356 -> 11.69999994 | CQ42: =FK357 -> 11.2999996 | CR42: =FK358 -> 14.10000082 | CS42: =FK359 -> 14.10000082 | CT42: =FK360 -> 12.4999999 | CU42: =FK361 -> 9.800000535 | CV42: =FK362 -> 7.300000101 | CW42: =FK363 -> 7.400000126 | CX42: =FK364 -> 6.099999768 | CY42: =FK365 -> 5.599999718 | CZ42: 116.8000013 | DB42: 1950 | DC42: =FJ354 -> 0 | DD42: =FJ355 -> 0 | DE42: =FJ356 -> 0 | DF42: =FJ357 -> 0 | DG42: =FJ358 -> 0 | DH42: =FJ359 -> 0 | DI42: =FJ360 -> 0 | DJ42: =FJ361 -> 0 | DK42: =FJ362 -> 14.82429528 | DL42: =FJ363 -> 221.7571805 | DM42: =FJ364 -> 73.18092964 | DN42: =FJ365 -> 24.08373275 | DO42: 333.8461382 | DQ42: 1950 | DR42: =FN354 -> 78.46286774 | DS42: =FN355 -> 207.497467 | DT42: =FN356 -> 205.4819641 | DU42: =FN357 -> 189.5518341 | DV42: =FN358 -> 105.9409866 | DW42: =FN359 -> 89.25563049 | DX42: =FN360 -> 101.9077988 | DY42: =FN361 -> 69.59976959 | DZ42: =FN362 -> 190.8209991 | EA42: =FN363 -> 312.7809448 | EB42: =FN364 -> 216.6887512 | EC42: =FN365 -> 134.8774109 | ED42: 1902.866425 | EF42: 1924-03-31 | EG42: 339.5079346 | EH42: 290.7176208 | EI42: 0 | EJ42: 0 | EK42: 0 | EL42: 48.79032135 | EM42: 0 | EN42: 0 | EO42: 0 | EP42: 0 | EQ42: 0 | ER42: 0 | ES42: 0 | ET42: 130.1075287 | EU42: 130.1075287 | EV42: 0 | EW42: 0 | EX42: 800 | EY42: 300 | EZ42: 81.22213745 | FB42: 1924 | FC42: 3 | FD42: 1924-03-31 | FE42: =(EH42+EN42)*UnitConv!$B42 -> 17.87552974 | FF42: =(EI42+EO42)*UnitConv!$B42 -> 0 | FG42: =(EJ42+EP42)*UnitConv!$B42 -> 0 | FH42: 0 | FI42: =(EK42+EQ42)*UnitConv!$B42 -> 0 | FJ42: =(ES42+EV42+EW42)*UnitConv!$B42 -> 0 | FK42: =EU42*UnitConv!$B42 -> 8.000000111 | FL42: =(EX42+EY42)*UnitConv!$B42 -> 67.63636364 | FM42: 0 | FN42: 81.22213745 | FP42: 1951 | FQ42: 800.000012 | FR42: 441.3676796 | FS42: 1.19749966e-05 | FT42: 0 | FV42: 1951 | FW42: 800 | FX42: 441.3676915 | FY42: 0.999999985 | FZ42: 1.000000027 | GB42: 1924-03-31 | GC42: 17.87552974 | GD42: 0
B43: Normal-Wet | C43: =BN5 -> 518.3725487 | D43: =BO5 -> 100.6883505 | E43: =BP5 -> 100.0907843 | F43: =BQ5 -> 334.9667019 | G43: =BR5 -> 678.321352 | H43: =BS5 -> 672.7810309 | I43: =BT5 -> 623.6909013 | J43: =BU5 -> 487.4806697 | K43: =BV5 -> 508.2829201 | L43: =BW5 -> 595.3698578 | M43: =BX5 -> 459.5242016 | N43: =BY5 -> 448.2039919 | O43: =BZ5 -> 5527.773311 | S43: =VLOOKUP($T43,'SJRRP WY Types'!$B$13:$G$95,2,FALSE) -> Normal-Wet | T43: 1951 | U43: =GC366 -> 30.8320001 | V43: =GC367 -> 51.82399805 | W43: =GC368 -> 85.77600282 | X43: =GC369 -> 156.9600006 | Y43: =GC370 -> 188.0320003 | Z43: =GC371 -> 158.1439967 | AA43: =GC372 -> 73.32800173 | AB43: =GC373 -> 23.61599988 | AC43: =GC374 -> 3.93599999 | AD43: =GC375 -> 3.935999823 | AE43: =GC376 -> 3.935999823 | AF43: =GC377 -> 19.68000019 | AG43: 800 | AI43: 1951 | AJ43: =GD366 -> 21.83086378 | AK43: =GD367 -> 56.6729443 | AL43: =GD368 -> 65.40960146 | AM43: =GD369 -> 50.49240048 | AN43: =GD370 -> 41.97803902 | AO43: =GD371 -> 42.55130566 | AP43: =GD372 -> 25.88110765 | AQ43: =GD373 -> 5.689459272 | AR43: =GD374 -> 0.5718188733 | AS43: =GD375 -> 0.5718189054 | AT43: =GD376 -> 0.5718189054 | AU43: =GD377 -> 16.38255109 | AV43: 328.6037294 | AX43: 1951 | AY43: =FI366 -> 0 | AZ43: =FI367 -> 0 | BA43: =FI368 -> 0 | BB43: =FI369 -> 0 | BC43: =FI370 -> 0 | BD43: =FI371 -> 0 | BE43: =FI372 -> 0 | BF43: =FI373 -> 0 | BG43: =FI374 -> 0 | BH43: =FI375 -> 0 | BI43: =FI376 -> 0 | BJ43: =FI377 -> 0 | BK43: 0 | BM43: 1951 | BN43: =FL366 -> 522.494662 | BO43: =FL367 -> 89.25619835 | BP43: =FL368 -> 92.23140496 | BQ43: =FL369 -> 219.9046827 | BR43: =FL370 -> 621.7550788 | BS43: =FL371 -> 693.5801653 | BT43: =FL372 -> 671.2066116 | BU43: =FL373 -> 459.8648244 | BV43: =FL374 -> 625.785492 | BW43: =FL375 -> 479.907111 | BX43: =FL376 -> 587.9843937 | BY43: =FL377 -> 543.4061118 | BZ43: 5607.376737 | CB43: 1951 | CC43: 0 | CD43: 0 | CF43: 1951 | CG43: 800 | CH43: 328.6037294 | CI43: -2.273736754e-13 | CJ43: 2.273736754e-13 | CK43: 0 | CM43: 1951 | CN43: =FK366 -> 8.000000111 | CO43: =FK367 -> 8.899999899 | CP43: =FK368 -> 11.69999994 | CQ43: =FK369 -> 11.2999996 | CR43: =FK370 -> 14.10000082 | CS43: =FK371 -> 14.10000082 | CT43: =FK372 -> 12.4999999 | CU43: =FK373 -> 9.800000535 | CV43: =FK374 -> 7.300000101 | CW43: =FK375 -> 7.400000126 | CX43: =FK376 -> 6.099999768 | CY43: =FK377 -> 5.600000081 | CZ43: 116.8000017 | DB43: 1951 | DC43: =FJ366 -> 0.307212461 | DD43: =FJ367 -> 0 | DE43: =FJ368 -> 0 | DF43: =FJ369 -> 0 | DG43: =FJ370 -> 0 | DH43: =FJ371 -> 0 | DI43: =FJ372 -> 0 | DJ43: =FJ373 -> 0 | DK43: =FJ374 -> 0 | DL43: =FJ375 -> 0 | DM43: =FJ376 -> 4.161340834 | DN43: =FJ377 -> 16.91558749 | DO43: 21.38414079 | DQ43: 1951 | DR43: =FN366 -> 119.1762314 | DS43: =FN367 -> 170.1451874 | DT43: =FN368 -> 141.0046844 | DU43: =FN369 -> 177.9518585 | DV43: =FN370 -> 145.6732483 | DW43: =FN371 -> 124.606842 | DX43: =FN372 -> 105.6389084 | DY43: =FN373 -> 56.69019318 | DZ43: =FN374 -> 42.40077209 | EA43: =FN375 -> 89.7096405 | EB43: =FN376 -> 162.6450958 | EC43: =FN377 -> 114.0793762 | ED43: 1449.722038 | EF43: 1924-04-30 | EG43: 427.4680481 | EH43: 360.2458191 | EI43: 0 | EJ43: 0 | EK43: 0 | EL43: 67.22222137 | EM43: 0 | EN43: 0 | EO43: 0 | EP43: 0 | EQ43: 0 | ER43: 0 | ES43: 0 | ET43: 149.5694427 | EU43: 149.5694427 | EV43: 0 | EW43: 0 | EX43: 1487.43335 | EY43: 300 | EZ43: 72.68158722 | FB43: 1924 | FC43: 4 | FD43: 1924-04-30 | FE43: =(EH43+EN43)*UnitConv!$B43 -> 21.43611486 | FF43: =(EI43+EO43)*UnitConv!$B43 -> 0 | FG43: =(EJ43+EP43)*UnitConv!$B43 -> 0 | FH43: 0 | FI43: =(EK43+EQ43)*UnitConv!$B43 -> 0 | FJ43: =(ES43+EV43+EW43)*UnitConv!$B43 -> 0 | FK43: =EU43*UnitConv!$B43 -> 8.899999899 | FL43: =(EX43+EY43)*UnitConv!$B43 -> 106.3596704 | FM43: 0 | FN43: 72.68158722 | FP43: 1952 | FQ43: 797.6960052 | FR43: 787.4758722 | FS43: 0 | FT43: 2.303994817 | FV43: 1952 | FW43: 800 | FX43: 785.1718774 | FY43: 1.002888312 | FZ43: 0.9970742027 | GB43: 1924-04-30 | GC43: 21.43611486 | GD43: 0
B44: Normal-Dry | C44: 330.3060067 | D44: 97.79580431 | E44: 93.07520729 | F44: 219.9198595 | G44: 626.5313052 | H44: 523.4426417 | I44: 525.8895766 | J44: 400.321775 | K44: 459.7713283 | L44: 485.2510754 | M44: 389.1975159 | N44: 378.6069096 | O44: 4530.109006 | S44: =VLOOKUP($T44,'SJRRP WY Types'!$B$13:$G$95,2,FALSE) -> Wet | T44: 1952 | U44: =GC378 -> 19.73684186 | V44: =GC379 -> 32.89473703 | W44: =GC380 -> 55.92105381 | X44: =GC381 -> 129.6052639 | Y44: =GC382 -> 191.3510898 | Z44: =GC383 -> 177.5353001 | AA44: =GC384 -> 100.6097564 | AB44: =GC385 -> 39.79460978 | AC44: =GC386 -> 11.10397954 | AD44: =GC387 -> 5.921052651 | AE44: =GC388 -> 5.921052651 | AF44: =GC389 -> 29.60526248 | AG44: 800 | AI44: 1952 | AJ44: =GD378 -> 21.7308481 | AK44: =GD379 -> 59.09283637 | AL44: =GD380 -> 98.3606471 | AM44: =GD381 -> 154.0280536 | AN44: =GD382 -> 108.3132664 | AO44: =GD383 -> 93.21816228 | AP44: =GD384 -> 44.62345516 | AQ44: =GD385 -> 11.58528772 | AR44: =GD386 -> 1.424640336 | AS44: =GD387 -> 6.003205266 | AT44: =GD388 -> 6.003205266 | AU44: =GD389 -> 18.12609369 | AV44: 622.5097013 | AX44: 1952 | AY44: =FI378 -> 0 | AZ44: =FI379 -> 0 | BA44: =FI380 -> 0 | BB44: =FI381 -> 0 | BC44: =FI382 -> 0 | BD44: =FI383 -> 0 | BE44: =FI384 -> 0 | BF44: =FI385 -> 0 | BG44: =FI386 -> 0 | BH44: =FI387 -> 0 | BI44: =FI388 -> 0 | BJ44: =FI389 -> 0 | BK44: 0 | BM44: 1952 | BN44: =FL378 -> 723.4847572 | BO44: =FL379 -> 184.3199768 | BP44: =FL380 -> 243.0375131 | BQ44: =FL381 -> 634.4420939 | BR44: =FL382 -> 693.5801653 | BS44: =FL383 -> 724.3239669 | BT44: =FL384 -> 671.2066116 | BU44: =FL385 -> 423.9144068 | BV44: =FL386 -> 407.3610618 | BW44: =FL387 -> 719.361515 | BX44: =FL388 -> 348.0953732 | BY44: =FL389 -> 419.1189166 | BZ44: 6192.246358 | CB44: 1952 | CC44: 0 | CD44: 0 | CF44: 1952 | CG44: 800 | CH44: 622.5097013 | CI44: -1.136868377e-13 | CJ44: 1.136868377e-13 | CK44: 0 | CM44: 1952 | CN44: =FK378 -> 8.000000111 | CO44: =FK379 -> 8.899999899 | CP44: =FK380 -> 11.69999994 | CQ44: =FK381 -> 11.2999996 | CR44: =FK382 -> 14.10000082 | CS44: =FK383 -> 14.10000082 | CT44: =FK384 -> 12.4999999 | CU44: =FK385 -> 9.800000535 | CV44: =FK386 -> 7.300000101 | CW44: =FK387 -> 7.400000126 | CX44: =FK388 -> 6.099999768 | CY44: =FK389 -> 5.599999718 | CZ44: 116.8000013 | DB44: 1952 | DC44: =FJ378 -> 172.7302817 | DD44: =FJ379 -> 167.8942649 | DE44: =FJ380 -> 266.8010456 | DF44: =FJ381 -> 188.49813 | DG44: =FJ382 -> 0 | DH44: =FJ383 -> 0 | DI44: =FJ384 -> 0 | DJ44: =FJ385 -> 0 | DK44: =FJ386 -> 0 | DL44: =FJ387 -> 0 | DM44: =FJ388 -> 28.49418017 | DN44: =FJ389 -> 2.557215165 | DO44: 826.9751176 | DQ44: 1952 | DR44: =FN378 -> 150.5338898 | DS44: =FN379 -> 287.1461487 | DT44: =FN380 -> 570.8070679 | DU44: =FN381 -> 591.489624 | DV44: =FN382 -> 334.1877441 | DW44: =FN383 -> 195.3909302 | DX44: =FN384 -> 109.8564682 | DY44: =FN385 -> 72.79974365 | DZ44: =FN386 -> 49.78330231 | EA44: =FN387 -> 66.91895294 | EB44: =FN388 -> 122.2537918 | EC44: =FN389 -> 83.06535339 | ED44: 2634.233017 | EF44: 1924-05-31 | EG44: 603.6976318 | EH44: 522.3804321 | EI44: 0 | EJ44: 0 | EK44: 0 | EL44: 81.31720734 | EM44: 147.195755 | EN44: 114.668869 | EO44: 0 | EP44: 0 | EQ44: 0 | ER44: 32.52688217 | ES44: 0 | ET44: 190.2822571 | EU44: 190.2822571 | EV44: 0 | EW44: 0 | EX44: 1128.090454 | EY44: 300 | EZ44: 52.14718246 | FB44: 1924 | FC44: 5 | FD44: 1924-05-31 | FE44: =(EH44+EN44)*UnitConv!$B44 -> 39.17063472 | FF44: =(EI44+EO44)*UnitConv!$B44 -> 0 | FG44: =(EJ44+EP44)*UnitConv!$B44 -> 0 | FH44: 0 | FI44: =(EK44+EQ44)*UnitConv!$B44 -> 0 | FJ44: =(ES44+EV44+EW44)*UnitConv!$B44 -> 0 | FK44: =EU44*UnitConv!$B44 -> 11.69999994 | FL44: =(EX44+EY44)*UnitConv!$B44 -> 87.80985933 | FM44: 0 | FN44: 52.14718246 | FP44: 1953 | FQ44: 800.0000117 | FR44: 337.53714 | FS44: 1.173287365e-05 | FT44: 0 | FV44: 1953 | FW44: 800 | FX44: 337.5371518 | FY44: 0.9999999853 | FZ44: 1.000000035 | GB44: 1924-05-31 | GC44: 39.17063472 | GD44: 0
B45: Dry | C45: 264.1286135 | D45: 91.90001841 | E45: 100.5219575 | F45: 100.969495 | G45: 472.6403698 | H45: 287.2945386 | I45: 350.1397121 | J45: 281.7829819 | K45: 318.5052756 | L45: 424.3601237 | M45: 374.7373808 | N45: 322.1638745 | O45: 3389.144342 | S45: =VLOOKUP($T45,'SJRRP WY Types'!$B$13:$G$95,2,FALSE) -> Normal-Dry | T45: 1953 | U45: =GC390 -> 30.83200011 | V45: =GC391 -> 51.82399806 | W45: =GC392 -> 85.77600285 | X45: =GC393 -> 156.9600006 | Y45: =GC394 -> 188.0320004 | Z45: =GC395 -> 158.1439967 | AA45: =GC396 -> 73.32800175 | AB45: =GC397 -> 23.61599988 | AC45: =GC398 -> 3.935999991 | AD45: =GC399 -> 3.935999824 | AE45: =GC400 -> 3.935999824 | AF45: =GC401 -> 19.67999995 | AG45: 800 | AI45: 1953 | AJ45: =GD390 -> 21.5094637 | AK45: =GD391 -> 56.97099565 | AL45: =GD392 -> 66.06735309 | AM45: =GD393 -> 51.49315052 | AN45: =GD394 -> 43.09374158 | AO45: =GD395 -> 43.52500767 | AP45: =GD396 -> 26.3544352 | AQ45: =GD397 -> 5.824695738 | AR45: =GD398 -> 0.5921043728 | AS45: =GD399 -> 0.5921043614 | AT45: =GD400 -> 0.5921043614 | AU45: =GD401 -> 16.54483593 | AV45: 333.1599922 | AX45: 1953 | AY45: =FI390 -> 0 | AZ45: =FI391 -> 0 | BA45: =FI392 -> 0 | BB45: =FI393 -> 0 | BC45: =FI394 -> 0 | BD45: =FI395 -> 0 | BE45: =FI396 -> 0 | BF45: =FI397 -> 0 | BG45: =FI398 -> 0 | BH45: =FI399 -> 0 | BI45: =FI400 -> 0 | BJ45: =FI401 -> 0 | BK45: 0 | BM45: 1953 | BN45: =FL390 -> 483.8888236 | BO45: =FL391 -> 91.97018458 | BP45: =FL392 -> 95.06018748 | BQ45: =FL393 -> 228.5318521 | BR45: =FL394 -> 713.5576017 | BS45: =FL395 -> 724.3239669 | BT45: =FL396 -> 655.9187565 | BU45: =FL397 -> 365.0833952 | BV45: =FL398 -> 357.8873854 | BW45: =FL399 -> 598.1495135 | BX45: =FL400 -> 251.8175555 | BY45: =FL401 -> 277.5761506 | BZ45: 4843.765373 | CB45: 1953 | CC45: =SUMIF($FB$13:$FB$996,$CB45,$FM$13:$FM$996) -> 0 | CD45: =IF(CC45<0,0,IF(CD44=0,MIN(MAX(CC44+CC45,0),CC45),CC45))*$GE$6 -> 0 | CF45: 1953 | CG45: =AG45 -> 800 | CH45: =AV45 -> 333.1599922 | CI45: -2.273736754e-13 | CJ45: 2.273736754e-13 | CK45: 0 | CM45: 1953 | CN45: =FK390 -> 8.000000111 | CO45: =FK391 -> 8.899999899 | CP45: =FK392 -> 11.69999994 | CQ45: =FK393 -> 11.2999996 | CR45: =FK394 -> 14.10000082 | CS45: =FK395 -> 14.10000082 | CT45: =FK396 -> 12.4999999 | CU45: =FK397 -> 9.800000535 | CV45: =FK398 -> 7.300000101 | CW45: =FK399 -> 7.400000126 | CX45: =FK400 -> 6.099999768 | CY45: =FK401 -> 5.599999718 | CZ45: 116.8000013 | DB45: 1953 | DC45: =FJ390 -> 0 | DD45: =FJ391 -> 0 | DE45: =FJ392 -> 0 | DF45: =FJ393 -> 0 | DG45: =FJ394 -> 0 | DH45: =FJ395 -> 0 | DI45: =FJ396 -> 0 | DJ45: =FJ397 -> 0 | DK45: =FJ398 -> 0 | DL45: =FJ399 -> 0 | DM45: =FJ400 -> 0 | DN45: =FJ401 -> 0 | DO45: 0 | DQ45: 1953 | DR45: =FN390 -> 108.1186218 | DS45: =FN391 -> 146.2342529 | DT45: =FN392 -> 102.8109283 | DU45: =FN393 -> 169.0410156 | DV45: =FN394 -> 211.2421417 | DW45: =FN395 -> 131.5620422 | DX45: =FN396 -> 108.0457153 | DY45: =FN397 -> 51.19480515 | DZ45: =FN398 -> 38.33364105 | EA45: =FN399 -> 39.18597031 | EB45: =FN400 -> 53.01723862 | EC45: =FN401 -> 79.43491364 | ED45: 1238.221287 | EF45: 1924-06-30 | EG45: 1298.473877 | EH45: 1197.640503 | EI45: 0 | EJ45: 0 | EK45: 0 | EL45: 100.8333359 | EM45: 418.4720459 | EN45: 368.0553894 | EO45: 0 | EP45: 0 | EQ45: 0 | ER45: 50.41666794 | ES45: 0 | ET45: 189.902771 | EU45: 189.902771 | EV45: 0 | EW45: 0 | EX45: 277.2866516 | EY45: 277.2866516 | EZ45: 4.877497196 | FB45: 1924 | FC45: 6 | FD45: 1924-06-30 | FE45: =(EH45+EN45)*UnitConv!$B45 -> 93.16537541 | FF45: =(EI45+EO45)*UnitConv!$B45 -> 0 | FG45: =(EJ45+EP45)*UnitConv!$B45 -> 0 | FH45: 0 | FI45: =(EK45+EQ45)*UnitConv!$B45 -> 0 | FJ45: =(ES45+EV45+EW45)*UnitConv!$B45 -> 0 | FK45: =EU45*UnitConv!$B45 -> 11.2999996 | FL45: =(EX45+EY45)*UnitConv!$B45 -> 32.99940317 | FM45: 0 | FN45: 4.877497196 | FP45: 1954 | FQ45: 782.2879974 | FR45: 288.5956422 | FS45: 0 | FT45: 17.71200256 | FV45: 1954 | FW45: 800 | FX45: 270.8836396 | FY45: 1.022641281 | FZ45: 0.938626923 | GB45: 1924-06-30 | GC45: 93.16537541 | GD45: 0
B46: Critical | C46: 201.5243544 | D46: 89.69209154 | E46: 89.17055477 | F46: 28.19475728 | G46: 299.9627873 | H46: 220.9138865 | I46: 258.3214558 | J46: 248.3119808 | K46: 256.7783315 | L46: 441.3735325 | M46: 374.1357425 | N46: 396.6233515 | O46: 2905.002826 | S46: =VLOOKUP($T46,'SJRRP WY Types'!$B$13:$G$95,2,FALSE) -> Normal-Dry | T46: 1954 | U46: =GC402 -> 33.54263382 | V46: =GC403 -> 57.69333123 | W46: =GC404 -> 91.74319342 | X46: =GC405 -> 161.9863789 | Y46: =GC406 -> 185.7116565 | Z46: =GC407 -> 152.741699 | AA46: =GC408 -> 66.26715595 | AB46: =GC409 -> 20.12558029 | AC46: =GC410 -> 3.354263444 | AD46: =GC411 -> 3.354263382 | AE46: =GC412 -> 3.354263382 | AF46: =GC413 -> 20.12558066 | AG46: 800 | AI46: 1954 | AJ46: =GD402 -> 8.94270126 | AK46: =GD403 -> 26.48541661 | AL46: =GD404 -> 36.52607089 | AM46: =GD405 -> 33.52197748 | AN46: =GD406 -> 38.83643785 | AO46: =GD407 -> 31.27355333 | AP46: =GD408 -> 12.67294252 | AQ46: =GD409 -> 3.679241478 | AR46: =GD410 -> 0.6132069012 | AS46: =GD411 -> 0.6132069314 | AT46: =GD412 -> 0.6132069314 | AU46: =GD413 -> 3.679241485 | AV46: 197.4572037 | AX46: 1954 | AY46: =FI402 -> 0 | AZ46: =FI403 -> 0 | BA46: =FI404 -> 0 | BB46: =FI405 -> 0 | BC46: =FI406 -> 0 | BD46: =FI407 -> 0 | BE46: =FI408 -> 0 | BF46: =FI409 -> 0 | BG46: =FI410 -> 0 | BH46: =FI411 -> 0 | BI46: =FI412 -> 0 | BJ46: =FI413 -> 0 | BK46: 0 | BM46: 1954 | BN46: =FL402 -> 407.9392339 | BO46: =FL403 -> 103.8390399 | BP46: =FL404 -> 92.23140496 | BQ46: =FL405 -> 309.8231405 | BR46: =FL406 -> 561.5912753 | BS46: =FL407 -> 715.0954523 | BT46: =FL408 -> 671.2066116 | BU46: =FL409 -> 471.2669168 | BV46: =FL410 -> 603.8874483 | BW46: =FL411 -> 714.6064337 | BX46: =FL412 -> 437.005697 | BY46: =FL413 -> 373.1785692 | BZ46: 5461.671224 | CB46: 1954 | CC46: 0 | CD46: 0 | CF46: 1954 | CG46: 800 | CH46: 197.4572037 | CI46: -1.136868377e-13 | CJ46: 1.136868377e-13 | CK46: 0 | CM46: 1954 | CN46: =FK402 -> 8.000000111 | CO46: =FK403 -> 8.899999899 | CP46: =FK404 -> 11.69999994 | CQ46: =FK405 -> 11.2999996 | CR46: =FK406 -> 14.10000082 | CS46: =FK407 -> 14.10000082 | CT46: =FK408 -> 12.4999999 | CU46: =FK409 -> 9.800000535 | CV46: =FK410 -> 7.300000101 | CW46: =FK411 -> 7.400000126 | CX46: =FK412 -> 6.099999768 | CY46: =FK413 -> 5.599999718 | CZ46: 116.8000013 | DB46: 1954 | DC46: =FJ402 -> 0 | DD46: =FJ403 -> 0 | DE46: =FJ404 -> 0 | DF46: =FJ405 -> 0 | DG46: =FJ406 -> 0 | DH46: =FJ407 -> 0 | DI46: =FJ408 -> 0 | DJ46: =FJ409 -> 0 | DK46: =FJ410 -> 0 | DL46: =FJ411 -> 0 | DM46: =FJ412 -> 0 | DN46: =FJ413 -> 0 | DO46: 0 | DQ46: 1954 | DR46: =FN402 -> 109.4714355 | DS46: =FN403 -> 206.1447906 | DT46: =FN404 -> 252.5826263 | DU46: =FN405 -> 163.7389526 | DV46: =FN406 -> 100.2491837 | DW46: =FN407 -> 81.54380798 | DX46: =FN408 -> 79.97328949 | DY46: =FN409 -> 60.66914749 | DZ46: =FN410 -> 49.95474625 | EA46: =FN411 -> 55.72585297 | EB46: =FN412 -> 63.39890289 | EC46: =FN413 -> 67.55841827 | ED46: 1291.011154 | EF46: 1924-07-31 | EG46: 1620.553101 | EH46: 1506.708984 | EI46: 0 | EJ46: 0 | EK46: 0 | EL46: 113.8440857 | EM46: 510.2820435 | EN46: 445.2282715 | EO46: 0 | EP46: 0 | EQ46: 0 | ER46: 65.05376434 | ES46: 0 | ET46: 229.3145294 | EU46: 229.3145294 | EV46: 0 | EW46: 0 | EX46: 1012.598938 | EY46: 550.0028687 | EZ46: 37.4133873 | FB46: 1924 | FC46: 7 | FD46: 1924-07-31 | FE46: =(EH46+EN46)*UnitConv!$B46 -> 120.0199437 | FF46: =(EI46+EO46)*UnitConv!$B46 -> 0 | FG46: =(EJ46+EP46)*UnitConv!$B46 -> 0 | FH46: 0 | FI46: =(EK46+EQ46)*UnitConv!$B46 -> 0 | FJ46: =(ES46+EV46+EW46)*UnitConv!$B46 -> 0 | FK46: =EU46*UnitConv!$B46 -> 14.10000082 | FL46: =(EX46+EY46)*UnitConv!$B46 -> 96.08064001 | FM46: 0 | FN46: 37.4133873 | FP46: 1955 | FQ46: 800.0000054 | FR46: 269.493781 | FS46: 5.422544632e-06 | FT46: 0 | FV46: 1955 | FW46: 800 | FX46: 269.4937864 | FY46: 0.9999999932 | FZ46: 1.00000002 | GB46: 1924-07-31 | GC46: 120.0199437 | GD46: 0
B47: Long Term | C47: 419.9990633 | D47: 121.2953617 | E47: 127.1749837 | F47: 289.9837478 | G47: 613.9054331 | H47: 552.847054 | I47: 534.7675933 | J47: 414.9323599 | K47: 430.3842558 | L47: 537.8317021 | M47: 421.3969 | N47: 405.2039894 | O47: 4869.722444 | S47: =VLOOKUP($T47,'SJRRP WY Types'!$B$13:$G$95,2,FALSE) -> Normal-Dry | T47: 1955 | U47: =GC414 -> 32.79999958 | V47: =GC415 -> 56.41600031 | W47: =GC416 -> 89.71199822 | X47: =GC417 -> 158.3999989 | Y47: =GC418 -> 188.1600022 | Z47: =GC419 -> 151.9839978 | AA47: =GC420 -> 70.70400232 | AB47: =GC421 -> 20.99200048 | AC47: =GC422 -> 3.936000022 | AD47: =GC423 -> 3.935999855 | AE47: =GC424 -> 3.279999958 | AF47: =GC425 -> 19.68000035 | AG47: 800 | AI47: 1955 | AJ47: =GD414 -> 7.559145988 | AK47: =GD415 -> 24.2798147 | AL47: =GD416 -> 32.70875044 | AM47: =GD417 -> 41.26360784 | AN47: =GD418 -> 37.21057831 | AO47: =GD419 -> 31.83710622 | AP47: =GD420 -> 9.695656535 | AQ47: =GD421 -> 3.216932703 | AR47: =GD422 -> 0.0988221015 | AS47: =GD423 -> 0 | AT47: =GD424 -> 0 | AU47: =GD425 -> 12.59857681 | AV47: 200.4689916 | AX47: 1955 | AY47: =FI414 -> 0 | AZ47: =FI415 -> 0 | BA47: =FI416 -> 0 | BB47: =FI417 -> 0 | BC47: =FI418 -> 0 | BD47: =FI419 -> 0 | BE47: =FI420 -> 0 | BF47: =FI421 -> 0 | BG47: =FI422 -> 0 | BH47: =FI423 -> 0 | BI47: =FI424 -> 0 | BJ47: =FI425 -> 0 | BK47: 0 | BM47: 1955 | BN47: =FL414 -> 283.8994631 | BO47: =FL415 -> 89.25619835 | BP47: =FL416 -> 92.23140496 | BQ47: =FL417 -> 53.43308731 | BR47: =FL418 -> 637.4346278 | BS47: =FL419 -> 222.0255432 | BT47: =FL420 -> 406.6962164 | BU47: =FL421 -> 342.7141421 | BV47: =FL422 -> 416.330133 | BW47: =FL423 -> 683.8256434 | BX47: =FL424 -> 805.4876033 | BY47: =FL425 -> 616.5385208 | BZ47: 4649.872584 | CB47: 1955 | CC47: 0 | CD47: 0 | CF47: 1955 | CG47: 800 | CH47: 200.4689916 | CI47: -3.410605132e-13 | CJ47: 3.410605132e-13 | CK47: 0 | CM47: 1955 | CN47: =FK414 -> 8.000000111 | CO47: =FK415 -> 8.899999899 | CP47: =FK416 -> 11.69999994 | CQ47: =FK417 -> 11.2999996 | CR47: =FK418 -> 14.10000082 | CS47: =FK419 -> 14.10000082 | CT47: =FK420 -> 12.4999999 | CU47: =FK421 -> 9.800000535 | CV47: =FK422 -> 7.300000101 | CW47: =FK423 -> 7.400000126 | CX47: =FK424 -> 6.099999768 | CY47: =FK425 -> 5.600000081 | CZ47: 116.8000017 | DB47: 1955 | DC47: =FJ414 -> 0 | DD47: =FJ415 -> 0 | DE47: =FJ416 -> 0 | DF47: =FJ417 -> 0 | DG47: =FJ418 -> 0 | DH47: =FJ419 -> 0 | DI47: =FJ420 -> 0 | DJ47: =FJ421 -> 0 | DK47: =FJ422 -> 0 | DL47: =FJ423 -> 180.6648452 | DM47: =FJ424 -> 273.2714337 | DN47: =FJ425 -> 25.56514303 | DO47: 479.5014219 | DQ47: 1955 | DR47: =FN414 -> 83.35705566 | DS47: =FN415 -> 99.18713379 | DT47: =FN416 -> 144.0743103 | DU47: =FN417 -> 247.0443878 | DV47: =FN418 -> 122.9260101 | DW47: =FN419 -> 120.7724686 | DX47: =FN420 -> 106.2925644 | DY47: =FN421 -> 48.10932159 | DZ47: =FN422 -> 34.86602783 | EA47: =FN423 -> 318.6621399 | EB47: =FN424 -> 284.1885986 | EC47: =FN425 -> 223.5601807 | ED47: 1833.040199 | EF47: 1924-08-31 | EG47: 983.0993042 | EH47: 869.255188 | EI47: 0 | EJ47: 0 | EK47: 0 | EL47: 113.8440857 | EM47: 354.0897217 | EN47: 305.299408 | EO47: 0 | EP47: 0 | EQ47: 0 | ER47: 48.79032135 | ES47: 0 | ET47: 229.3145294 | EU47: 229.3145294 | EV47: 0 | EW47: 0 | EX47: 1425.147217 | EY47: 300 | EZ47: 52.3717041 | FB47: 1924 | FC47: 8 | FD47: 1924-08-31 | FE47: =(EH47+EN47)*UnitConv!$B47 -> 72.22054706 | FF47: =(EI47+EO47)*UnitConv!$B47 -> 0 | FG47: =(EJ47+EP47)*UnitConv!$B47 -> 0 | FH47: 0 | FI47: =(EK47+EQ47)*UnitConv!$B47 -> 0 | FJ47: =(ES47+EV47+EW47)*UnitConv!$B47 -> 0 | FK47: =EU47*UnitConv!$B47 -> 14.10000082 | FL47: =(EX47+EY47)*UnitConv!$B47 -> 106.0751677 | FM47: 0 | FN47: 52.3717041 | FP47: 1956 | FQ47: 792.4925581 | FR47: 1061.17858 | FS47: 0 | FT47: 7.507441938 | FV47: 1956 | FW47: 800 | FX47: 1053.671138 | FY47: 1.009473202 | FZ47: 0.9929253737 | GB47: 1924-08-31 | GC47: 72.22054706 | GD47: 0
S48: =VLOOKUP($T48,'SJRRP WY Types'!$B$13:$G$95,2,FALSE) -> Wet | T48: 1956 | U48: =GC426 -> 19.86643249 | V48: =GC427 -> 37.74622059 | W48: =GC428 -> 56.28822728 | X48: =GC429 -> 139.2588463 | Y48: =GC430 -> 190.62085 | Z48: =GC431 -> 175.3899173 | AA48: =GC432 -> 98.62149487 | AB48: =GC433 -> 36.6802185 | AC48: =GC434 -> 5.794926875 | AD48: =GC435 -> 5.29771552 | AE48: =GC436 -> 5.29771552 | AF48: =GC437 -> 29.13743486 | AG48: 800 | AI48: 1956 | AJ48: =GD426 -> 49.08914039 | AK48: =GD427 -> 102.6660341 | AL48: =GD428 -> 109.5216075 | AM48: =GD429 -> 135.8059383 | AN48: =GD430 -> 112.2150691 | AO48: =GD431 -> 93.75169888 | AP48: =GD432 -> 33.85727166 | AQ48: =GD433 -> 2.42664283 | AR48: =GD434 -> 0.6190533014 | AS48: =GD435 -> 0.6190533127 | AT48: =GD436 -> 0.6190533127 | AU48: =GD437 -> 17.97960672 | AV48: 659.1701694 | AX48: 1956 | AY48: =FI426 -> 0 | AZ48: =FI427 -> 0 | BA48: =FI428 -> 0 | BB48: =FI429 -> 0 | BC48: =FI430 -> 0 | BD48: =FI431 -> 0 | BE48: =FI432 -> 0 | BF48: =FI433 -> 0 | BG48: =FI434 -> 0 | BH48: =FI435 -> 0 | BI48: =FI436 -> 0 | BJ48: =FI437 -> 0 | BK48: 0 | BM48: 1956 | BN48: =FL426 -> 501.1504474 | BO48: =FL427 -> 89.25619835 | BP48: =FL428 -> 101.6600771 | BQ48: =FL429 -> 486.6745061 | BR48: =FL430 -> 713.5576017 | BS48: =FL431 -> 724.3239669 | BT48: =FL432 -> 644.8251872 | BU48: =FL433 -> 427.3823917 | BV48: =FL434 -> 419.4149632 | BW48: =FL435 -> 711.1229268 | BX48: =FL436 -> 401.8866981 | BY48: =FL437 -> 204.2612971 | BZ48: 5425.516262 | CB48: 1956 | CC48: 0 | CD48: 0 | CF48: 1956 | CG48: 800 | CH48: 659.1701694 | CI48: 0 | CJ48: 0 | CK48: 0 | CM48: 1956 | CN48: =FK426 -> 8.000000111 | CO48: =FK427 -> 8.899999899 | CP48: =FK428 -> 11.69999994 | CQ48: =FK429 -> 11.2999996 | CR48: =FK430 -> 14.10000082 | CS48: =FK431 -> 14.10000082 | CT48: =FK432 -> 12.4999999 | CU48: =FK433 -> 9.800000535 | CV48: =FK434 -> 7.300000101 | CW48: =FK435 -> 7.400000126 | CX48: =FK436 -> 6.099999768 | CY48: =FK437 -> 5.599999718 | CZ48: 116.8000013 | DB48: 1956 | DC48: =FJ426 -> 24.46158484 | DD48: =FJ427 -> 15.47945304 | DE48: =FJ428 -> 96.91806334 | DF48: =FJ429 -> 59.3069231 | DG48: =FJ430 -> 0 | DH48: =FJ431 -> 0 | DI48: =FJ432 -> 0 | DJ48: =FJ433 -> 0 | DK48: =FJ434 -> 0 | DL48: =FJ435 -> 2.705775976 | DM48: =FJ436 -> 6.344109352 | DN48: =FJ437 -> 2.489195287 | DO48: 207.7051049 | DQ48: 1956 | DR48: =FN426 -> 225.8224182 | DS48: =FN427 -> 251.2992706 | DT48: =FN428 -> 326.538208 | DU48: =FN429 -> 504.9887085 | DV48: =FN430 -> 305.8413696 | DW48: =FN431 -> 181.7005463 | DX48: =FN432 -> 112.0447845 | DY48: =FN433 -> 92.27856445 | DZ48: =FN434 -> 67.28223419 | EA48: =FN435 -> 46.99317932 | EB48: =FN436 -> 60.60474396 | EC48: =FN437 -> 92.22306061 | ED48: 2267.617088 | EF48: 1924-09-30 | EG48: 579.8895264 | EH48: 479.0562134 | EI48: 0 | EJ48: 0 | EK48: 0 | EL48: 100.8333359 | EM48: 52.57933807 | EN48: 52.57933807 | EO48: 0 | EP48: 0 | EQ48: 0 | ER48: 0 | ES48: 0 | ET48: 210.0694427 | EU48: 210.0694427 | EV48: 0 | EW48: 0 | EX48: 2901.21582 | EY48: 568.274292 | EZ48: 69.82881165 | FB48: 1924 | FC48: 9 | FD48: 1924-09-30 | FE48: =(EH48+EN48)*UnitConv!$B48 -> 31.63451215 | FF48: =(EI48+EO48)*UnitConv!$B48 -> 0 | FG48: =(EJ48+EP48)*UnitConv!$B48 -> 0 | FH48: 0 | FI48: =(EK48+EQ48)*UnitConv!$B48 -> 0 | FJ48: =(ES48+EV48+EW48)*UnitConv!$B48 -> 0 | FK48: =EU48*UnitConv!$B48 -> 12.4999999 | FL48: =(EX48+EY48)*UnitConv!$B48 -> 206.4489984 | FM48: 0 | FN48: 69.82881165 | FP48: 1957 | FQ48: 799.6544066 | FR48: 486.9900418 | FS48: 0 | FT48: 0.345593364 | FV48: 1957 | FW48: 800 | FX48: 486.6444484 | FY48: 1.000432178 | FZ48: 0.9992903482 | GB48: 1924-09-30 | GC48: 31.63451215 | GD48: 0
C49: SJRRP Recapture Class 1 | S49: =VLOOKUP($T49,'SJRRP WY Types'!$B$13:$G$95,2,FALSE) -> Normal-Dry | T49: 1957 | U49: =GC438 -> 28.22018996 | V49: =GC439 -> 47.25241323 | W49: =GC440 -> 80.35471361 | X49: =GC441 -> 150.7371161 | Y49: =GC442 -> 190.7384021 | Z49: =GC443 -> 162.9343883 | AA49: =GC444 -> 79.52235369 | AB49: =GC445 -> 26.6835269 | AC49: =GC446 -> 4.680421961 | AD49: =GC447 -> 4.593984347 | AE49: =GC448 -> 4.593984347 | AF49: =GC449 -> 19.68850551 | AG49: 800 | AI49: 1957 | AJ49: =GD438 -> 27.73362109 | AK49: =GD439 -> 69.57172996 | AL49: =GD440 -> 82.9137602 | AM49: =GD441 -> 73.39779815 | AN49: =GD442 -> 57.89719006 | AO49: =GD443 -> 54.01194475 | AP49: =GD444 -> 27.58575196 | AQ49: =GD445 -> 4.882630201 | AR49: =GD446 -> 0.2535345865 | AS49: =GD447 -> 0.2535345978 | AT49: =GD448 -> 0.2535345978 | AU49: =GD449 -> 19.07217352 | AV49: 417.8272037 | AX49: 1957 | AY49: =FI438 -> 0 | AZ49: =FI439 -> 0 | BA49: =FI440 -> 0 | BB49: =FI441 -> 0 | BC49: =FI442 -> 0 | BD49: =FI443 -> 0 | BE49: =FI444 -> 0 | BF49: =FI445 -> 0 | BG49: =FI446 -> 0 | BH49: =FI447 -> 0 | BI49: =FI448 -> 0 | BJ49: =FI449 -> 0 | BK49: 0 | BM49: 1957 | BN49: =FL438 -> 339.3393944 | BO49: =FL439 -> 89.25619835 | BP49: =FL440 -> 92.23140496 | BQ49: =FL441 -> 207.2233584 | BR49: =FL442 -> 648.4704366 | BS49: =FL443 -> 724.3239669 | BT49: =FL444 -> 620.1068133 | BU49: =FL445 -> 652.9230488 | BV49: =FL446 -> 537.6722785 | BW49: =FL447 -> 451.3541955 | BX49: =FL448 -> 309.9171859 | BY49: =FL449 -> 453.4192872 | BZ49: 5126.237569 | CB49: 1957 | CC49: 0 | CD49: 0 | CF49: 1957 | CG49: 800 | CH49: 417.8272037 | CI49: -1.136868377e-13 | CJ49: 1.136868377e-13 | CK49: 0 | CM49: 1957 | CN49: =FK438 -> 8.000000111 | CO49: =FK439 -> 8.899999899 | CP49: =FK440 -> 11.69999994 | CQ49: =FK441 -> 11.2999996 | CR49: =FK442 -> 14.10000082 | CS49: =FK443 -> 14.10000082 | CT49: =FK444 -> 12.4999999 | CU49: =FK445 -> 9.800000535 | CV49: =FK446 -> 7.300000101 | CW49: =FK447 -> 7.400000126 | CX49: =FK448 -> 6.099999768 | CY49: =FK449 -> 5.599999718 | CZ49: 116.8000013 | DB49: 1957 | DC49: =FJ438 -> 0 | DD49: =FJ439 -> 0 | DE49: =FJ440 -> 0 | DF49: =FJ441 -> 0 | DG49: =FJ442 -> 0 | DH49: =FJ443 -> 0 | DI49: =FJ444 -> 0 | DJ49: =FJ445 -> 0 | DK49: =FJ446 -> 0 | DL49: =FJ447 -> 0 | DM49: =FJ448 -> 0 | DN49: =FJ449 -> 19.60893135 | DO49: 19.60893135 | DQ49: 1957 | DR49: =FN438 -> 102.5226669 | DS49: =FN439 -> 114.5788193 | DT49: =FN440 -> 156.7557831 | DU49: =FN441 -> 291.2165833 | DV49: =FN442 -> 167.5691376 | DW49: =FN443 -> 119.8148346 | DX49: =FN444 -> 105.0380859 | DY49: =FN445 -> 69.18154144 | DZ49: =FN446 -> 49.8498764 | EA49: =FN447 -> 67.56406403 | EB49: =FN448 -> 63.5885582 | EC49: =FN449 -> 125.3850098 | ED49: 1433.06496 | EF49: 1924-10-31 | EG49: 429.0192871 | EH49: 347.7020874 | EI49: 0 | EJ49: 0 | EK49: 0 | EL49: 81.31720734 | EM49: 0 | EN49: 0 | EO49: 0 | EP49: 0 | EQ49: 0 | ER49: 0 | ES49: 0 | ET49: 159.3817291 | EU49: 159.3817291 | EV49: 0 | EW49: 0 | EX49: 3156.266113 | EY49: 2329.72168 | EZ49: 30.83887291 | FB49: 1924 | FC49: 10 | FD49: 1924-10-31 | FE49: =(EH49+EN49)*UnitConv!$B49 -> 21.37936802 | FF49: =(EI49+EO49)*UnitConv!$B49 -> 0 | FG49: =(EJ49+EP49)*UnitConv!$B49 -> 0 | FH49: 0 | FI49: =(EK49+EQ49)*UnitConv!$B49 -> 0 | FJ49: =(ES49+EV49+EW49)*UnitConv!$B49 -> 0 | FK49: =EU49*UnitConv!$B49 -> 9.800000535 | FL49: =(EX49+EY49)*UnitConv!$B49 -> 337.3202412 | FM49: 0 | FN49: 30.83887291 | FP49: 1958 | FQ49: 792.2880126 | FR49: 770.433742 | FS49: 0 | FT49: 7.711987393 | FV49: 1958 | FW49: 800 | FX49: 762.7217546 | FY49: 1.009733818 | FZ49: 0.9899900706 | GB49: 1924-10-31 | GC49: 21.37936802 | GD49: 0
C50: Total | S50: =VLOOKUP($T50,'SJRRP WY Types'!$B$13:$G$95,2,FALSE) -> Wet | T50: 1958 | U50: =GC450 -> 19.87156142 | V50: =GC451 -> 37.75596556 | W50: =GC452 -> 56.30275925 | X50: =GC453 -> 139.2947988 | Y50: =GC454 -> 190.6700627 | Z50: =GC455 -> 175.4351978 | AA50: =GC456 -> 98.64695604 | AB50: =GC457 -> 36.68968825 | AC50: =GC458 -> 5.589886491 | AD50: =GC459 -> 5.299083234 | AE50: =GC460 -> 5.299083234 | AF50: =GC461 -> 29.14495728 | AG50: 800 | AI50: 1958 | AJ50: =GD450 -> 38.63136044 | AK50: =GD451 -> 55.80738677 | AL50: =GD452 -> 107.9697807 | AM50: =GD453 -> 143.4052324 | AN50: =GD454 -> 113.0443507 | AO50: =GD455 -> 95.20659503 | AP50: =GD456 -> 34.56727746 | AQ50: =GD457 -> 2.67566866 | AR50: =GD458 -> 0.6469928872 | AS50: =GD459 -> 0.646992876 | AT50: =GD460 -> 0.646992876 | AU50: =GD461 -> 18.16461217 | AV50: 611.4132431 | AX50: 1958 | AY50: =FI450 -> 0 | AZ50: =FI451 -> 0 | BA50: =FI452 -> 0 | BB50: =FI453 -> 0 | BC50: =FI454 -> 0 | BD50: =FI455 -> 0 | BE50: =FI456 -> 0 | BF50: =FI457 -> 0 | BG50: =FI458 -> 0 | BH50: =FI459 -> 0 | BI50: =FI460 -> 0 | BJ50: =FI461 -> 0 | BK50: 0 | BM50: 1958 | BN50: =FL450 -> 728.6853835 | BO50: =FL451 -> 281.8588133 | BP50: =FL452 -> 188.5367089 | BQ50: =FL453 -> 582.859827 | BR50: =FL454 -> 713.5576017 | BS50: =FL455 -> 724.3239669 | BT50: =FL456 -> 671.2066116 | BU50: =FL457 -> 462.6454121 | BV50: =FL458 -> 392.4400229 | BW50: =FL459 -> 717.7078948 | BX50: =FL460 -> 265.2304997 | BY50: =FL461 -> 313.2890586 | BZ50: 6042.341801 | CB50: 1958 | CC50: 0 | CD50: 0 | CF50: 1958 | CG50: 800 | CH50: 611.4132431 | CI50: -3.410605132e-13 | CJ50: 3.410605132e-13 | CK50: 0 | CM50: 1958 | CN50: =FK450 -> 8.000000111 | CO50: =FK451 -> 8.899999899 | CP50: =FK452 -> 11.69999994 | CQ50: =FK453 -> 11.2999996 | CR50: =FK454 -> 14.10000082 | CS50: =FK455 -> 14.10000082 | CT50: =FK456 -> 12.4999999 | CU50: =FK457 -> 9.800000535 | CV50: =FK458 -> 7.300000101 | CW50: =FK459 -> 7.400000126 | CX50: =FK460 -> 6.099999768 | CY50: =FK461 -> 5.599999718 | CZ50: 116.8000013 | DB50: 1958 | DC50: =FJ450 -> 170.1500841 | DD50: =FJ451 -> 161.1936725 | DE50: =FJ452 -> 161.914243 | DF50: =FJ453 -> 169.4512728 | DG50: =FJ454 -> 0 | DH50: =FJ455 -> 0 | DI50: =FJ456 -> 0 | DJ50: =FJ457 -> 0 | DK50: =FJ458 -> 0 | DL50: =FJ459 -> 0 | DM50: =FJ460 -> 5.703233747 | DN50: =FJ461 -> 6.762637765 | DO50: 675.1751439 | DQ50: 1958 | DR50: =FN450 -> 170.0372772 | DS50: =FN451 -> 284.6962585 | DT50: =FN452 -> 541.3654785 | DU50: =FN453 -> 560.6271973 | DV50: =FN454 -> 313.0844116 | DW50: =FN455 -> 176.1766205 | DX50: =FN456 -> 116.6248093 | DY50: =FN457 -> 76.97907257 | DZ50: =FN458 -> 51.1040802 | EA50: =FN459 -> 41.16884613 | EB50: =FN460 -> 71.27092743 | EC50: =FN461 -> 117.4559708 | ED50: 2520.59095 | EF50: 1924-11-30 | EG50: 186.9862671 | EH50: 119.7640533 | EI50: 0 | EJ50: 0 | EK50: 0 | EL50: 67.22222137 | EM50: 0 | EN50: 0 | EO50: 0 | EP50: 0 | EQ50: 0 | ER50: 0 | ES50: 0 | ET50: 122.6805573 | EU50: 122.6805573 | EV50: 0 | EW50: 0 | EX50: 1324.890381 | EY50: 3044.954834 | EZ50: 37.24936676 | FB50: 1924 | FC50: 11 | FD50: 1924-11-30 | FE50: =(EH50+EN50)*UnitConv!$B50 -> 7.126456067 | FF50: =(EI50+EO50)*UnitConv!$B50 -> 0 | FG50: =(EJ50+EP50)*UnitConv!$B50 -> 0 | FH50: 0 | FI50: =(EK50+EQ50)*UnitConv!$B50 -> 0 | FJ50: =(ES50+EV50+EW50)*UnitConv!$B50 -> 0 | FK50: =EU50*UnitConv!$B50 -> 7.300000101 | FL50: =(EX50+EY50)*UnitConv!$B50 -> 260.0238475 | FM50: 0 | FN50: 37.24936676 | FP50: 1959 | FQ50: 803.9360011 | FR50: 175.9550995 | FS50: 3.936001098 | FT50: 0 | FV50: 1959 | FW50: 800 | FX50: 179.8911006 | FY50: 0.9951040865 | FZ50: 1.022369349 | GB50: 1924-11-30 | GC50: 7.126456067 | GD50: 0
B51: SJRRP WY Type | C51: TAF | S51: =VLOOKUP($T51,'SJRRP WY Types'!$B$13:$G$95,2,FALSE) -> Normal-Dry | T51: 1959 | U51: =GC462 -> 36.556142 | V51: =GC463 -> 58.75094599 | W51: =GC464 -> 97.75902909 | X51: =GC465 -> 160.8884269 | Y51: =GC466 -> 180.7109019 | Z51: =GC467 -> 151.8926869 | AA51: =GC468 -> 64.48274571 | AB51: =GC469 -> 19.5836483 | AC51: =GC470 -> 3.263941444 | AD51: =GC471 -> 3.263941384 | AE51: =GC472 -> 3.263941384 | AF51: =GC473 -> 19.5836489 | AG51: 800 | AI51: 1959 | AJ51: =GD462 -> 2.652483933 | AK51: =GD463 -> 6.676231194 | AL51: =GD464 -> 6.294517248 | AM51: =GD465 -> 10.80271107 | AN51: =GD466 -> 12.29050963 | AO51: =GD467 -> 10.09115522 | AP51: =GD468 -> 4.010587264 | AQ51: =GD469 -> 1.164364073 | AR51: =GD470 -> 0.194060683 | AS51: =GD471 -> 0.1940606738 | AT51: =GD472 -> 0.1940606738 | AU51: =GD473 -> 1.164364053 | AV51: 55.72910571 | AX51: 1959 | AY51: =FI462 -> 0 | AZ51: =FI463 -> 0 | BA51: =FI464 -> 0 | BB51: =FI465 -> 0 | BC51: =FI466 -> 0 | BD51: =FI467 -> 0 | BE51: =FI468 -> 0 | BF51: =FI469 -> 0 | BG51: =FI470 -> 0 | BH51: =FI471 -> 0 | BI51: =FI472 -> 0 | BJ51: =FI473 -> 0 | BK51: 0 | BM51: 1959 | BN51: =FL462 -> 416.8821375 | BO51: =FL463 -> 99.79439324 | BP51: =FL464 -> 92.23140496 | BQ51: =FL465 -> 195.8288837 | BR51: =FL466 -> 704.7872117 | BS51: =FL467 -> 708.9488536 | BT51: =FL468 -> 630.7723915 | BU51: =FL469 -> 488.6830252 | BV51: =FL470 -> 397.2834356 | BW51: =FL471 -> 381.0969978 | BX51: =FL472 -> 395.5942765 | BY51: =FL473 -> 252.7422463 | BZ51: 4764.645258 | CB51: 1959 | CC51: 0 | CD51: 0 | CF51: 1959 | CG51: 800 | CH51: 55.72910571 | CI51: 0 | CJ51: 0 | CK51: 0 | CM51: 1959 | CN51: =FK462 -> 8.000000111 | CO51: =FK463 -> 8.899999899 | CP51: =FK464 -> 11.69999994 | CQ51: =FK465 -> 11.2999996 | CR51: =FK466 -> 14.10000082 | CS51: =FK467 -> 14.10000082 | CT51: =FK468 -> 12.4999999 | CU51: =FK469 -> 9.800000535 | CV51: =FK470 -> 7.300000101 | CW51: =FK471 -> 7.400000126 | CX51: =FK472 -> 6.099999768 | CY51: =FK473 -> 5.600000081 | CZ51: 116.8000017 | DB51: 1959 | DC51: =FJ462 -> 0 | DD51: =FJ463 -> 0 | DE51: =FJ464 -> 0 | DF51: =FJ465 -> 0 | DG51: =FJ466 -> 0 | DH51: =FJ467 -> 0 | DI51: =FJ468 -> 0 | DJ51: =FJ469 -> 0 | DK51: =FJ470 -> 0 | DL51: =FJ471 -> 0 | DM51: =FJ472 -> 0 | DN51: =FJ473 -> 0 | DO51: 0 | DQ51: 1959 | DR51: =FN462 -> 167.6761017 | DS51: =FN463 -> 170.526413 | DT51: =FN464 -> 103.1365967 | DU51: =FN465 -> 98.20348358 | DV51: =FN466 -> 71.05902863 | DW51: =FN467 -> 79.01395416 | DX51: =FN468 -> 123.3296967 | DY51: =FN469 -> 48.9928093 | DZ51: =FN470 -> 25.62782288 | EA51: =FN471 -> 25.82856941 | EB51: =FN472 -> 33.0161972 | EC51: =FN473 -> 66.05632019 | ED51: 1012.466993 | EF51: 1924-12-31 | EG51: 16.26344109 | EH51: 0 | EI51: 0 | EJ51: 0 | EK51: 0 | EL51: 16.26344109 | EM51: 0 | EN51: 0 | EO51: 0 | EP51: 0 | EQ51: 0 | ER51: 0 | ES51: 0 | ET51: 120.3494644 | EU51: 120.3494644 | EV51: 0 | EW51: 0 | EX51: 3695.136963 | EY51: 3695.136963 | EZ51: 38.59021378 | FB51: 1924 | FC51: 12 | FD51: 1924-12-31 | FE51: =(EH51+EN51)*UnitConv!$B51 -> 0 | FF51: =(EI51+EO51)*UnitConv!$B51 -> 0 | FG51: =(EJ51+EP51)*UnitConv!$B51 -> 0 | FH51: 0 | FI51: =(EK51+EQ51)*UnitConv!$B51 -> 0 | FJ51: =(ES51+EV51+EW51)*UnitConv!$B51 -> 0 | FK51: =EU51*UnitConv!$B51 -> 7.400000126 | FL51: =(EX51+EY51)*UnitConv!$B51 -> 454.4102315 | FM51: 0 | FN51: 38.59021378 | FP51: 1960 | FQ51: 628.64411 | FR51: 0 | FS51: 0 | FT51: 0 | FV51: 1960 | FW51: 628.64411 | FX51: 0 | FY51: 1 | FZ51: 0 | GB51: 1924-12-31 | GC51: 0 | GD51: 0
B52: Wet | C52: =CI4 -> -6.394884622e-14 | S52: =VLOOKUP($T52,'SJRRP WY Types'!$B$13:$G$95,2,FALSE) -> Dry | T52: 1960 | U52: =GC474 -> 25.79687365 | V52: =GC475 -> 30.9499427 | W52: =GC476 -> 56.60212538 | X52: =GC477 -> 134.763705 | Y52: =GC478 -> 173.6088331 | Z52: =GC479 -> 104.4670139 | AA52: =GC480 -> 45.75931916 | AB52: =GC481 -> 30.92525276 | AC52: =GC482 -> 10.30841811 | AD52: =GC483 -> 0 | AE52: =GC484 -> 0 | AF52: =GC485 -> 15.46262623 | AG52: 628.64411 | AI52: 1960 | AJ52: =GD474 -> 0 | AK52: =GD475 -> 0 | AL52: =GD476 -> 0 | AM52: =GD477 -> 0 | AN52: =GD478 -> 0 | AO52: =GD479 -> 0 | AP52: =GD480 -> 0 | AQ52: =GD481 -> 0 | AR52: =GD482 -> 0 | AS52: =GD483 -> 0 | AT52: =GD484 -> 0 | AU52: =GD485 -> 0 | AV52: 0 | AX52: 1960 | AY52: =FI474 -> 0 | AZ52: =FI475 -> 0 | BA52: =FI476 -> 0 | BB52: =FI477 -> 0 | BC52: =FI478 -> 0 | BD52: =FI479 -> 0 | BE52: =FI480 -> 0 | BF52: =FI481 -> 0 | BG52: =FI482 -> 0 | BH52: =FI483 -> 0 | BI52: =FI484 -> 0 | BJ52: =FI485 -> 0 | BK52: 0 | BM52: 1960 | BN52: =FL474 -> 281.0867355 | BO52: =FL475 -> 65.45454545 | BP52: =FL476 -> 127.309546 | BQ52: =FL477 -> 179.8038078 | BR52: =FL478 -> 708.0266897 | BS52: =FL479 -> 439.5009738 | BT52: =FL480 -> 410.4462116 | BU52: =FL481 -> 343.5380625 | BV52: =FL482 -> 480.2218233 | BW52: =FL483 -> 408.1429717 | BX52: =FL484 -> 404.0141752 | BY52: =FL485 -> 221.8240386 | BZ52: 4069.369581 | CB52: 1960 | CC52: 0 | CD52: 0 | CF52: 1960 | CG52: 628.64411 | CH52: 0 | CI52: 0 | CJ52: 0 | CK52: 0 | CM52: 1960 | CN52: =FK474 -> 8.000000111 | CO52: =FK475 -> 8.899999899 | CP52: =FK476 -> 11.69999994 | CQ52: =FK477 -> 11.2999996 | CR52: =FK478 -> 14.10000082 | CS52: =FK479 -> 14.10000082 | CT52: =FK480 -> 12.4999999 | CU52: =FK481 -> 9.800000535 | CV52: =FK482 -> 7.300000101 | CW52: =FK483 -> 7.400000126 | CX52: =FK484 -> 6.099999768 | CY52: =FK485 -> 5.599999718 | CZ52: 116.8000013 | DB52: 1960 | DC52: =FJ474 -> 0 | DD52: =FJ475 -> 0 | DE52: =FJ476 -> 0 | DF52: =FJ477 -> 0 | DG52: =FJ478 -> 0 | DH52: =FJ479 -> 0 | DI52: =FJ480 -> 0 | DJ52: =FJ481 -> 0 | DK52: =FJ482 -> 0 | DL52: =FJ483 -> 0 | DM52: =FJ484 -> 0 | DN52: =FJ485 -> 0 | DO52: 0 | DQ52: 1960 | DR52: =FN474 -> 73.29749298 | DS52: =FN475 -> 139.546875 | DT52: =FN476 -> 105.2063217 | DU52: =FN477 -> 92.13851166 | DV52: =FN478 -> 72.08857727 | DW52: =FN479 -> 78.04373932 | DX52: =FN480 -> 77.39137268 | DY52: =FN481 -> 30.77359581 | DZ52: =FN482 -> 37.84908676 | EA52: =FN483 -> 47.79481125 | EB52: =FN484 -> 34.05365753 | EC52: =FN485 -> 43.64768982 | ED52: 831.8317318 | EF52: 1925-01-31 | EG52: 16.26344109 | EH52: 0 | EI52: 0 | EJ52: 0 | EK52: 0 | EL52: 16.26344109 | EM52: 0 | EN52: 0 | EO52: 0 | EP52: 0 | EQ52: 0 | ER52: 0 | ES52: 0 | ET52: 99.20698547 | EU52: 99.20698547 | EV52: 0 | EW52: 0 | EX52: 3220.013428 | EY52: 3220.013428 | EZ52: 40.10510635 | FB52: 1924 | FC52: 1 | FD52: 1925-01-31 | FE52: =(EH52+EN52)*UnitConv!$B52 -> 0 | FF52: =(EI52+EO52)*UnitConv!$B52 -> 0 | FG52: =(EJ52+EP52)*UnitConv!$B52 -> 0 | FH52: 0 | FI52: =(EK52+EQ52)*UnitConv!$B52 -> 0 | FJ52: =(ES52+EV52+EW52)*UnitConv!$B52 -> 0 | FK52: =EU52*UnitConv!$B52 -> 6.099999768 | FL52: =(EX52+EY52)*UnitConv!$B52 -> 395.9818166 | FM52: 0 | FN52: 40.10510635 | FP52: 1961 | FQ52: 451.4518019 | FR52: 0 | FS52: 0 | FT52: 0 | FV52: 1961 | FW52: 451.4518019 | FX52: 0 | FY52: 1 | FZ52: 0 | GB52: 1925-01-31 | GC52: 0 | GD52: 0
B53: Normal-Wet | C53: -6.158037043e-14 | S53: =VLOOKUP($T53,'SJRRP WY Types'!$B$13:$G$95,2,FALSE) -> Critical | T53: 1961 | U53: =GC486 -> 18.51476964 | V53: =GC487 -> 22.21220723 | W53: =GC488 -> 40.62202118 | X53: =GC489 -> 96.79195143 | Y53: =GC490 -> 124.6918681 | Z53: =GC491 -> 75.0318204 | AA53: =GC492 -> 32.86592291 | AB53: =GC493 -> 22.21158607 | AC53: =GC494 -> 7.40386176 | AD53: =GC495 -> 0 | AE53: =GC496 -> 0 | AF53: =GC497 -> 11.10579315 | AG53: 451.4518019 | AI53: 1961 | AJ53: =GD486 -> 0 | AK53: =GD487 -> 0 | AL53: =GD488 -> 0 | AM53: =GD489 -> 0 | AN53: =GD490 -> 0 | AO53: =GD491 -> 0 | AP53: =GD492 -> 0 | AQ53: =GD493 -> 0 | AR53: =GD494 -> 0 | AS53: =GD495 -> 0 | AT53: =GD496 -> 0 | AU53: =GD497 -> 0 | AV53: 0 | AX53: 1961 | AY53: =FI486 -> 0 | AZ53: =FI487 -> 0 | BA53: =FI488 -> 0 | BB53: =FI489 -> 0 | BC53: =FI490 -> 0 | BD53: =FI491 -> 0 | BE53: =FI492 -> 0 | BF53: =FI493 -> 0 | BG53: =FI494 -> 0 | BH53: =FI495 -> 0 | BI53: =FI496 -> 0 | BJ53: =FI497 -> 0 | BK53: 0 | BM53: 1961 | BN53: =FL486 -> 387.9412916 | BO53: =FL487 -> 91.61730009 | BP53: =FL488 -> 96.66690014 | BQ53: =FL489 -> 26.17644805 | BR53: =FL490 -> 683.5069467 | BS53: =FL491 -> 310.8973979 | BT53: =FL492 -> 463.6119334 | BU53: =FL493 -> 269.0620023 | BV53: =FL494 -> 319.7016109 | BW53: =FL495 -> 383.8799874 | BX53: =FL496 -> 375.8012129 | BY53: =FL497 -> 349.8912668 | BZ53: 3758.754298 | CB53: 1961 | CC53: 0 | CD53: 0 | CF53: 1961 | CG53: 451.4518019 | CH53: 0 | CI53: 0 | CJ53: 0 | CK53: 0 | CM53: 1961 | CN53: =FK486 -> 8.000000111 | CO53: =FK487 -> 8.899999899 | CP53: =FK488 -> 11.69999994 | CQ53: =FK489 -> 11.2999996 | CR53: =FK490 -> 14.10000082 | CS53: =FK491 -> 14.10000082 | CT53: =FK492 -> 12.4999999 | CU53: =FK493 -> 9.800000535 | CV53: =FK494 -> 7.300000101 | CW53: =FK495 -> 7.400000126 | CX53: =FK496 -> 6.099999768 | CY53: =FK497 -> 5.599999718 | CZ53: 116.8000013 | DB53: 1961 | DC53: =FJ486 -> 0 | DD53: =FJ487 -> 0 | DE53: =FJ488 -> 0 | DF53: =FJ489 -> 0 | DG53: =FJ490 -> 0 | DH53: =FJ491 -> 0 | DI53: =FJ492 -> 0 | DJ53: =FJ493 -> 0 | DK53: =FJ494 -> 0 | DL53: =FJ495 -> 0 | DM53: =FJ496 -> 0 | DN53: =FJ497 -> 0 | DO53: 0 | DQ53: 1961 | DR53: =FN486 -> 46.34994125 | DS53: =FN487 -> 96.93499756 | DT53: =FN488 -> 55.41759491 | DU53: =FN489 -> 54.67157364 | DV53: =FN490 -> 53.50037003 | DW53: =FN491 -> 79.26279449 | DX53: =FN492 -> 71.39270782 | DY53: =FN493 -> 36.73480988 | DZ53: =FN494 -> 28.67339897 | EA53: =FN495 -> 37.84512329 | EB53: =FN496 -> 36.87260056 | EC53: =FN497 -> 183.3740387 | ED53: 781.0299511 | EF53: 1925-02-28 | EG53: 228.4898529 | EH53: 192.4779358 | EI53: 0 | EJ53: 0 | EK53: 0 | EL53: 36.01190567 | EM53: 0 | EN53: 0 | EO53: 0 | EP53: 0 | EQ53: 0 | ER53: 0 | ES53: 0 | ET53: 100.8333282 | EU53: 100.8333282 | EV53: 0 | EW53: 0 | EX53: 2331.300049 | EY53: 2331.300049 | EZ53: 89.9592514 | FB53: 1924 | FC53: 2 | FD53: 1925-02-28 | FE53: =(EH53+EN53)*UnitConv!$B53 -> 10.68968371 | FF53: =(EI53+EO53)*UnitConv!$B53 -> 0 | FG53: =(EJ53+EP53)*UnitConv!$B53 -> 0 | FH53: 0 | FI53: =(EK53+EQ53)*UnitConv!$B53 -> 0 | FJ53: =(ES53+EV53+EW53)*UnitConv!$B53 -> 0 | FK53: =EU53*UnitConv!$B53 -> 5.599999718 | FL53: =(EX53+EY53)*UnitConv!$B53 -> 258.9477079 | FM53: 0 | FN53: 89.9592514 | FP53: 1962 | FQ53: 803.4399985 | FR53: 777.4328214 | FS53: 3.43999852 | FT53: 0 | FV53: 1962 | FW53: 800 | FX53: 780.8728199 | FY53: 0.9957184127 | FZ53: 1.004424818 | GB53: 1925-02-28 | GC53: 10.68968371 | GD53: 0
B54: Normal-Dry | C54: -9.473903143e-14 | S54: =VLOOKUP($T54,'SJRRP WY Types'!$B$13:$G$95,2,FALSE) -> Normal-Wet | T54: 1962 | U54: =GC498 -> 25.47445934 | V54: =GC499 -> 47.02977265 | W54: =GC500 -> 64.01274417 | X54: =GC501 -> 145.8528377 | Y54: =GC502 -> 186.0639231 | Z54: =GC503 -> 169.7341394 | AA54: =GC504 -> 94.66494183 | AB54: =GC505 -> 33.56765975 | AC54: =GC506 -> 4.859105919 | AD54: =GC507 -> 4.572338736 | AE54: =GC508 -> 4.572338736 | AF54: =GC509 -> 19.5957386 | AG54: 800 | AI54: 1962 | AJ54: =GD498 -> 33.56368567 | AK54: =GD499 -> 77.37594394 | AL54: =GD500 -> 112.0750111 | AM54: =GD501 -> 95.25179081 | AN54: =GD502 -> 81.29645673 | AO54: =GD503 -> 63.49476199 | AP54: =GD504 -> 20.20383403 | AQ54: =GD505 -> 0.3744229388 | AR54: =GD506 -> 0.5944968814 | AS54: =GD507 -> 0.5944968871 | AT54: =GD508 -> 0.5944968871 | AU54: =GD509 -> 21.88744492 | AV54: 507.3068428 | AX54: 1962 | AY54: =FI498 -> 0 | AZ54: =FI499 -> 0 | BA54: =FI500 -> 0 | BB54: =FI501 -> 0 | BC54: =FI502 -> 0 | BD54: =FI503 -> 0 | BE54: =FI504 -> 0 | BF54: =FI505 -> 0 | BG54: =FI506 -> 0 | BH54: =FI507 -> 0 | BI54: =FI508 -> 0 | BJ54: =FI509 -> 0 | BK54: 0 | BM54: 1962 | BN54: =FL498 -> 447.0027466 | BO54: =FL499 -> 89.25619835 | BP54: =FL500 -> 92.23140496 | BQ54: =FL501 -> 200.2491284 | BR54: =FL502 -> 723.3106524 | BS54: =FL503 -> 678.2480603 | BT54: =FL504 -> 623.536538 | BU54: =FL505 -> 693.5801653 | BV54: =FL506 -> 671.2066116 | BW54: =FL507 -> 434.2706996 | BX54: =FL508 -> 293.5683888 | BY54: =FL509 -> 322.5188623 | BZ54: 5268.979457 | CB54: 1962 | CC54: 0 | CD54: 0 | CF54: 1962 | CG54: 800 | CH54: 507.3068428 | CI54: 0 | CJ54: 0 | CK54: 0 | CM54: 1962 | CN54: =FK498 -> 8.000000111 | CO54: =FK499 -> 8.899999899 | CP54: =FK500 -> 11.69999994 | CQ54: =FK501 -> 11.2999996 | CR54: =FK502 -> 14.10000082 | CS54: =FK503 -> 14.10000082 | CT54: =FK504 -> 12.4999999 | CU54: =FK505 -> 9.800000535 | CV54: =FK506 -> 7.300000101 | CW54: =FK507 -> 7.400000126 | CX54: =FK508 -> 6.099999768 | CY54: =FK509 -> 5.599999718 | CZ54: 116.8000013 | DB54: 1962 | DC54: =FJ498 -> 0 | DD54: =FJ499 -> 0 | DE54: =FJ500 -> 0 | DF54: =FJ501 -> 0 | DG54: =FJ502 -> 0 | DH54: =FJ503 -> 0 | DI54: =FJ504 -> 0 | DJ54: =FJ505 -> 0 | DK54: =FJ506 -> 0 | DL54: =FJ507 -> 0 | DM54: =FJ508 -> 0 | DN54: =FJ509 -> 52.82305207 | DO54: 52.82305207 | DQ54: 1962 | DR54: =FN498 -> 87.48910522 | DS54: =FN499 -> 263.8915405 | DT54: =FN500 -> 270.3426208 | DU54: =FN501 -> 334.5516968 | DV54: =FN502 -> 213.1090088 | DW54: =FN503 -> 115.4230042 | DX54: =FN504 -> 102.5785828 | DY54: =FN505 -> 78.88667297 | DZ54: =FN506 -> 63.16822433 | EA54: =FN507 -> 38.35629654 | EB54: =FN508 -> 62.68241501 | EC54: =FN509 -> 243.4277496 | ED54: 1873.906918 | EF54: 1925-03-31 | EG54: 743.446167 | EH54: 533.4408569 | EI54: 161.2149811 | EJ54: 0 | EK54: 0 | EL54: 48.79032135 | EM54: 0 | EN54: 0 | EO54: 0 | EP54: 0 | EQ54: 0 | ER54: 0 | ES54: 0 | ET54: 130.1075287 | EU54: 130.1075287 | EV54: 0 | EW54: 0 | EX54: 2726.879395 | EY54: 3784.214355 | EZ54: 80.32684326 | FB54: 1925 | FC54: 3 | FD54: 1925-03-31 | FE54: =(EH54+EN54)*UnitConv!$B54 -> 32.7999998 | FF54: =(EI54+EO54)*UnitConv!$B54 -> 9.912722804 | FG54: =(EJ54+EP54)*UnitConv!$B54 -> 0 | FH54: 9.912722804 | FI54: =(EK54+EQ54)*UnitConv!$B54 -> 0 | FJ54: =(ES54+EV54+EW54)*UnitConv!$B54 -> 0 | FK54: =EU54*UnitConv!$B54 -> 8.000000111 | FL54: =(EX54+EY54)*UnitConv!$B54 -> 400.3515496 | FM54: 0 | FN54: 80.32684326 | FP54: 1963 | FQ54: 798.5563895 | FR54: 835.1574109 | FS54: 0 | FT54: 1.443610517 | FV54: 1963 | FW54: 800 | FX54: 833.7138003 | FY54: 1.001807775 | FZ54: 0.998271451 | GB54: 1925-03-31 | GC54: 32.79999959 | GD54: 9.912722998
B55: Dry | C55: -9.473903143e-15 | S55: =VLOOKUP($T55,'SJRRP WY Types'!$B$13:$G$95,2,FALSE) -> Normal-Wet | T55: 1963 | U55: =GC510 -> 22.34432011 | V55: =GC511 -> 37.45959498 | W55: =GC512 -> 59.80391696 | X55: =GC513 -> 138.2013853 | Y55: =GC514 -> 189.1733721 | Z55: =GC515 -> 174.0580954 | AA55: =GC516 -> 97.87261335 | AB55: =GC517 -> 35.98528099 | AC55: =GC518 -> 5.670265972 | AD55: =GC519 -> 5.25748736 | AE55: =GC520 -> 5.25748736 | AF55: =GC521 -> 28.9161801 | AG55: 800 | AI55: 1963 | AJ55: =GD510 -> 43.8561591 | AK55: =GD511 -> 96.8700183 | AL55: =GD512 -> 131.6941518 | AM55: =GD513 -> 127.7189132 | AN55: =GD514 -> 105.8480909 | AO55: =GD515 -> 83.8566018 | AP55: =GD516 -> 29.17545841 | AQ55: =GD517 -> 0.6972331661 | AR55: =GD518 -> 0.4436385544 | AS55: =GD519 -> 0.4844706813 | AT55: =GD520 -> 0.4763042575 | AU55: =GD521 -> 16.64642937 | AV55: 637.7674696 | AX55: 1963 | AY55: =FI510 -> 0 | AZ55: =FI511 -> 0 | BA55: =FI512 -> 0 | BB55: =FI513 -> 0 | BC55: =FI514 -> 0 | BD55: =FI515 -> 0 | BE55: =FI516 -> 0 | BF55: =FI517 -> 0 | BG55: =FI518 -> 0 | BH55: =FI519 -> 0 | BI55: =FI520 -> 0 | BJ55: =FI521 -> 0 | BK55: 0 | BM55: 1963 | BN55: =FL510 -> 439.8246094 | BO55: =FL511 -> 89.25619835 | BP55: =FL512 -> 92.23140496 | BQ55: =FL513 -> 345.4472011 | BR55: =FL514 -> 713.5576017 | BS55: =FL515 -> 722.6337184 | BT55: =FL516 -> 661.0084517 | BU55: =FL517 -> 382.6088708 | BV55: =FL518 -> 602.2840619 | BW55: =FL519 -> 610.0411799 | BX55: =FL520 -> 414.9781234 | BY55: =FL521 -> 364.0405969 | BZ55: 5437.912018 | CB55: 1963 | CC55: 0 | CD55: 0 | CF55: 1963 | CG55: 800 | CH55: 637.7674696 | CI55: -1.136868377e-13 | CJ55: 1.136868377e-13 | CK55: 0 | CM55: 1963 | CN55: =FK510 -> 8.000000111 | CO55: =FK511 -> 8.899999899 | CP55: =FK512 -> 11.69999994 | CQ55: =FK513 -> 11.2999996 | CR55: =FK514 -> 14.10000082 | CS55: =FK515 -> 14.10000082 | CT55: =FK516 -> 12.4999999 | CU55: =FK517 -> 9.800000535 | CV55: =FK518 -> 7.300000101 | CW55: =FK519 -> 7.400000126 | CX55: =FK520 -> 6.099999768 | CY55: =FK521 -> 5.600000081 | CZ55: 116.8000017 | DB55: 1963 | DC55: =FJ510 -> 0.5011616961 | DD55: =FJ511 -> 0 | DE55: =FJ512 -> 0 | DF55: =FJ513 -> 0 | DG55: =FJ514 -> 0 | DH55: =FJ515 -> 0 | DI55: =FJ516 -> 0 | DJ55: =FJ517 -> 0 | DK55: =FJ518 -> 0 | DL55: =FJ519 -> 0 | DM55: =FJ520 -> 1.544916282 | DN55: =FJ521 -> 0 | DO55: 2.046077978 | DQ55: 1963 | DR55: =FN510 -> 141.7854462 | DS55: =FN511 -> 197.2460632 | DT55: =FN512 -> 228.7212982 | DU55: =FN513 -> 364.8365479 | DV55: =FN514 -> 268.7802734 | DW55: =FN515 -> 148.6837158 | DX55: =FN516 -> 118.0604401 | DY55: =FN517 -> 83.27524567 | DZ55: =FN518 -> 109.4737854 | EA55: =FN519 -> 68.79855347 | EB55: =FN520 -> 55.75261307 | EC55: =FN521 -> 53.86579132 | ED55: 1839.279774 | EF55: 1925-04-30 | EG55: 1502.571655 | EH55: 948.1022339 | EI55: 487.2471619 | EJ55: 0 | EK55: 0 | EL55: 67.22222137 | EM55: 0 | EN55: 0 | EO55: 0 | EP55: 0 | EQ55: 0 | ER55: 0 | ES55: 0 | ET55: 149.5694427 | EU55: 149.5694427 | EV55: 0 | EW55: 0 | EX55: 928.2126465 | EY55: 928.2126465 | EZ55: 187.7992096 | FB55: 1925 | FC55: 4 | FD55: 1925-04-30 | FE55: =(EH55+EN55)*UnitConv!$B55 -> 56.41600069 | FF55: =(EI55+EO55)*UnitConv!$B55 -> 28.99321955 | FG55: =(EJ55+EP55)*UnitConv!$B55 -> 0 | FH55: 28.99321955 | FI55: =(EK55+EQ55)*UnitConv!$B55 -> 0 | FJ55: =(ES55+EV55+EW55)*UnitConv!$B55 -> 0 | FK55: =EU55*UnitConv!$B55 -> 8.899999899 | FL55: =(EX55+EY55)*UnitConv!$B55 -> 110.4649761 | FM55: 0 | FN55: 187.7992096 | FP55: 1964 | FQ55: 800.0000023 | FR55: 252.2658524 | FS55: 2.259814096e-06 | FT55: 0 | FV55: 1964 | FW55: 800 | FX55: 252.2658547 | FY55: 0.9999999972 | FZ55: 1.000000009 | GB55: 1925-04-30 | GC55: 56.41600033 | GD55: 28.99322012
B56: Critical | C56: 0 | S56: =VLOOKUP($T56,'SJRRP WY Types'!$B$13:$G$95,2,FALSE) -> Dry | T56: 1964 | U56: =GC522 -> 36.73599817 | V56: =GC523 -> 62.32000241 | W56: =GC524 -> 97.58400301 | X56: =GC525 -> 158.3999996 | Y56: =GC526 -> 181.5999993 | Z56: =GC527 -> 149.3599969 | AA56: =GC528 -> 64.80000072 | AB56: =GC529 -> 19.67999982 | AC56: =GC530 -> 3.280000031 | AD56: =GC531 -> 3.279999971 | AE56: =GC532 -> 3.279999971 | AF56: =GC533 -> 19.68000019 | AG56: 800 | AI56: 1964 | AJ56: =GD522 -> 0.2090743512 | AK56: =GD523 -> 11.11873345 | AL56: =GD524 -> 13.14257541 | AM56: =GD525 -> 21.2563828 | AN56: =GD526 -> 24.62629668 | AO56: =GD527 -> 19.83064966 | AP56: =GD528 -> 8.035949552 | AQ56: =GD529 -> 2.333017634 | AR56: =GD530 -> 0.3888362604 | AS56: =GD531 -> 0.3888362822 | AT56: =GD532 -> 0.3888362822 | AU56: =GD533 -> 2.33301771 | AV56: 104.0522061 | AX56: 1964 | AY56: =FI522 -> 0 | AZ56: =FI523 -> 0 | BA56: =FI524 -> 0 | BB56: =FI525 -> 0 | BC56: =FI526 -> 0 | BD56: =FI527 -> 0 | BE56: =FI528 -> 0 | BF56: =FI529 -> 0 | BG56: =FI530 -> 0 | BH56: =FI531 -> 0 | BI56: =FI532 -> 0 | BJ56: =FI533 -> 0 | BK56: 0 | BM56: 1964 | BN56: =FL522 -> 292.4063091 | BO56: =FL523 -> 89.25619835 | BP56: =FL524 -> 92.23140496 | BQ56: =FL525 -> 59.47067932 | BR56: =FL526 -> 708.0266897 | BS56: =FL527 -> 375.9521547 | BT56: =FL528 -> 366.7314485 | BU56: =FL529 -> 328.0880336 | BV56: =FL530 -> 376.7008168 | BW56: =FL531 -> 489.4509898 | BX56: =FL532 -> 547.0570681 | BY56: =FL533 -> 503.7212293 | BZ56: 4229.093022 | CB56: 1964 | CC56: 0 | CD56: 0 | CF56: 1964 | CG56: 800 | CH56: 104.0522061 | CI56: 0 | CJ56: 0 | CK56: 0 | CM56: 1964 | CN56: =FK522 -> 8.000000111 | CO56: =FK523 -> 8.899999899 | CP56: =FK524 -> 11.69999994 | CQ56: =FK525 -> 11.2999996 | CR56: =FK526 -> 14.10000082 | CS56: =FK527 -> 14.10000082 | CT56: =FK528 -> 12.4999999 | CU56: =FK529 -> 9.800000535 | CV56: =FK530 -> 7.300000101 | CW56: =FK531 -> 7.400000126 | CX56: =FK532 -> 6.099999768 | CY56: =FK533 -> 5.599999718 | CZ56: 116.8000013 | DB56: 1964 | DC56: =FJ522 -> 0 | DD56: =FJ523 -> 0 | DE56: =FJ524 -> 0 | DF56: =FJ525 -> 0 | DG56: =FJ526 -> 0 | DH56: =FJ527 -> 0 | DI56: =FJ528 -> 0 | DJ56: =FJ529 -> 0 | DK56: =FJ530 -> 0 | DL56: =FJ531 -> 0 | DM56: =FJ532 -> 72.28487842 | DN56: =FJ533 -> 41.83632393 | DO56: 114.1212024 | DQ56: 1964 | DR56: =FN522 -> 94.0318222 | DS56: =FN523 -> 94.43998718 | DT56: =FN524 -> 117.2505951 | DU56: =FN525 -> 133.7835083 | DV56: =FN526 -> 91.36908722 | DW56: =FN527 -> 118.7470245 | DX56: =FN528 -> 99.83763123 | DY56: =FN529 -> 31.46156311 | DZ56: =FN530 -> 49.85370255 | EA56: =FN531 -> 148.3775482 | EB56: =FN532 -> 247.9366913 | EC56: =FN533 -> 141.047287 | ED56: 1368.136448 | EF56: 1925-05-31 | EG56: 1886.697632 | EH56: 1248.251587 | EI56: 557.1288452 | EJ56: 0 | EK56: 0 | EL56: 81.31720734 | EM56: 339.8628235 | EN56: 210.7742004 | EO56: 96.56174469 | EP56: 0 | EQ56: 0 | ER56: 32.52688217 | ES56: 0 | ET56: 190.2822571 | EU56: 190.2822571 | EV56: 0 | EW56: 0 | EX56: 931.163269 | EY56: 931.163269 | EZ56: 207.7732544 | FB56: 1925 | FC56: 5 | FD56: 1925-05-31 | FE56: =(EH56+EN56)*UnitConv!$B56 -> 89.71199883 | FF56: =(EI56+EO56)*UnitConv!$B56 -> 40.19386768 | FG56: =(EJ56+EP56)*UnitConv!$B56 -> 0 | FH56: 40.19386768 | FI56: =(EK56+EQ56)*UnitConv!$B56 -> 0 | FJ56: =(ES56+EV56+EW56)*UnitConv!$B56 -> 0 | FK56: =EU56*UnitConv!$B56 -> 11.69999994 | FL56: =(EX56+EY56)*UnitConv!$B56 -> 114.5099954 | FM56: 0 | FN56: 207.7732544 | FP56: 1965 | FQ56: 792.2880126 | FR56: 918.3719665 | FS56: 0 | FT56: 7.711987393 | FV56: 1965 | FW56: 800 | FX56: 910.6599791 | FY56: 1.009733818 | FZ56: 0.9916025449 | GB56: 1925-05-31 | GC56: 89.71199824 | GD56: 40.19386847
B57: Long Term | C57: -6.035227188e-14 | S57: =VLOOKUP($T57,'SJRRP WY Types'!$B$13:$G$95,2,FALSE) -> Normal-Wet | T57: 1965 | U57: =GC534 -> 19.87156142 | V57: =GC535 -> 37.75596556 | W57: =GC536 -> 56.30275925 | X57: =GC537 -> 139.2947988 | Y57: =GC538 -> 190.6700627 | Z57: =GC539 -> 175.4351978 | AA57: =GC540 -> 98.64695604 | AB57: =GC541 -> 36.68968825 | AC57: =GC542 -> 5.589886491 | AD57: =GC543 -> 5.299083234 | AE57: =GC544 -> 5.299083234 | AF57: =GC545 -> 29.14495728 | AG57: 800 | AI57: 1965 | AJ57: =GD534 -> 49.10933038 | AK57: =GD535 -> 102.7180736 | AL57: =GD536 -> 109.6205383 | AM57: =GD537 -> 136.0729349 | AN57: =GD538 -> 112.4196679 | AO57: =GD539 -> 94.15505293 | AP57: =GD540 -> 34.0592373 | AQ57: =GD541 -> 2.501548604 | AR57: =GD542 -> 0.6273080643 | AS57: =GD543 -> 0.6273080718 | AT57: =GD544 -> 0.6273080718 | AU57: =GD545 -> 18.02829006 | AV57: 660.5665982 | AX57: 1965 | AY57: =FI534 -> 0 | AZ57: =FI535 -> 0 | BA57: =FI536 -> 0 | BB57: =FI537 -> 0 | BC57: =FI538 -> 0 | BD57: =FI539 -> 0 | BE57: =FI540 -> 0 | BF57: =FI541 -> 0 | BG57: =FI542 -> 0 | BH57: =FI543 -> 0 | BI57: =FI544 -> 0 | BJ57: =FI545 -> 0 | BK57: 0 | BM57: 1965 | BN57: =FL534 -> 482.8226081 | BO57: =FL535 -> 117.7283663 | BP57: =FL536 -> 92.23140496 | BQ57: =FL537 -> 338.364466 | BR57: =FL538 -> 713.5576017 | BS57: =FL539 -> 724.3239669 | BT57: =FL540 -> 664.4059401 | BU57: =FL541 -> 441.0805717 | BV57: =FL542 -> 671.2066116 | BW57: =FL543 -> 735.5829536 | BX57: =FL544 -> 483.1916238 | BY57: =FL545 -> 423.2087913 | BZ57: 5887.704906 | CB57: 1965 | CC57: 0 | CD57: 0 | CF57: 1965 | CG57: 800 | CH57: 660.5665982 | CI57: -3.410605132e-13 | CJ57: 3.410605132e-13 | CK57: 0 | CM57: 1965 | CN57: =FK534 -> 8.000000111 | CO57: =FK535 -> 8.899999899 | CP57: =FK536 -> 11.69999994 | CQ57: =FK537 -> 11.2999996 | CR57: =FK538 -> 14.10000082 | CS57: =FK539 -> 14.10000082 | CT57: =FK540 -> 12.4999999 | CU57: =FK541 -> 9.800000535 | CV57: =FK542 -> 7.300000101 | CW57: =FK543 -> 7.400000126 | CX57: =FK544 -> 6.099999768 | CY57: =FK545 -> 5.599999718 | CZ57: 116.8000013 | DB57: 1965 | DC57: =FJ534 -> 0 | DD57: =FJ535 -> 0 | DE57: =FJ536 -> 0 | DF57: =FJ537 -> 0 | DG57: =FJ538 -> 0 | DH57: =FJ539 -> 0 | DI57: =FJ540 -> 0 | DJ57: =FJ541 -> 0 | DK57: =FJ542 -> 0 | DL57: =FJ543 -> 9.352856976 | DM57: =FJ544 -> 10.2315676 | DN57: =FJ545 -> 2.3654123 | DO57: 21.94983688 | DQ57: 1965 | DR57: =FN534 -> 104.3725357 | DS57: =FN535 -> 191.7280273 | DT57: =FN536 -> 237.3688812 | DU57: =FN537 -> 318.4465942 | DV57: =FN538 -> 263.6860352 | DW57: =FN539 -> 215.7306976 | DX57: =FN540 -> 122.088028 | DY57: =FN541 -> 76.89150238 | DZ57: =FN542 -> 140.3262024 | EA57: =FN543 -> 101.1897049 | EB57: =FN544 -> 88.45021057 | EC57: =FN545 -> 76.83578491 | ED57: 1937.114204 | EF57: 1925-06-30 | EG57: 2682.634033 | EH57: 1984.400024 | EI57: 597.4007568 | EJ57: 0 | EK57: 0 | EL57: 100.8333359 | EM57: 1037.780029 | EN57: 677.5999756 | EO57: 309.7633667 | EP57: 0 | EQ57: 0 | ER57: 50.41666794 | ES57: 0 | ET57: 189.902771 | EU57: 189.902771 | EV57: 0 | EW57: 0 | EX57: 2989.900146 | EY57: 2378.375488 | EZ57: 201.373291 | FB57: 1925 | FC57: 6 | FD57: 1925-06-30 | FE57: =(EH57+EN57)*UnitConv!$B57 -> 158.4 | FF57: =(EI57+EO57)*UnitConv!$B57 -> 53.98001396 | FG57: =(EJ57+EP57)*UnitConv!$B57 -> 0 | FH57: 53.98001396 | FI57: =(EK57+EQ57)*UnitConv!$B57 -> 0 | FJ57: =(ES57+EV57+EW57)*UnitConv!$B57 -> 0 | FK57: =EU57*UnitConv!$B57 -> 11.2999996 | FL57: =(EX57+EY57)*UnitConv!$B57 -> 319.4345832 | FM57: 0 | FN57: 201.373291 | FP57: 1966 | FQ57: 780.3199982 | FR57: 494.5863409 | FS57: 0 | FT57: 19.6800018 | FV57: 1966 | FW57: 800 | FX57: 474.9063391 | FY57: 1.025220425 | FZ57: 0.9602091684 | GB57: 1925-06-30 | GC57: 158.399999 | GD57: 53.98001502
S58: =VLOOKUP($T58,'SJRRP WY Types'!$B$13:$G$95,2,FALSE) -> Normal-Dry | T58: 1966 | U58: =GC546 -> 31.60959671 | V58: =GC547 -> 57.83883619 | W58: =GC548 -> 91.97457354 | X58: =GC549 -> 162.3949153 | Y58: =GC550 -> 186.1800289 | Z58: =GC551 -> 153.1269199 | AA58: =GC552 -> 66.43428445 | AB58: =GC553 -> 20.17633783 | AC58: =GC554 -> 3.362723035 | AD58: =GC555 -> 3.362722972 | AE58: =GC556 -> 3.362722972 | AF58: =GC557 -> 20.17633821 | AG58: 800 | AI58: 1966 | AJ58: =GD546 -> 20.2985094 | AK58: =GD547 -> 29.59192631 | AL58: =GD548 -> 32.50360817 | AM58: =GD549 -> 29.82715717 | AN58: =GD550 -> 34.55585361 | AO58: =GD551 -> 27.82655528 | AP58: =GD552 -> 11.27612032 | AQ58: =GD553 -> 3.273712293 | AR58: =GD554 -> 0.5456187567 | AS58: =GD555 -> 0 | AT58: =GD556 -> 0.5456187531 | AU58: =GD557 -> 3.273712417 | AV58: 193.5183925 | AX58: 1966 | AY58: =FI546 -> 0 | AZ58: =FI547 -> 0 | BA58: =FI548 -> 0 | BB58: =FI549 -> 0 | BC58: =FI550 -> 0 | BD58: =FI551 -> 0 | BE58: =FI552 -> 0 | BF58: =FI553 -> 0 | BG58: =FI554 -> 0 | BH58: =FI555 -> 0 | BI58: =FI556 -> 0 | BJ58: =FI557 -> 0 | BK58: 0 | BM58: 1966 | BN58: =FL546 -> 383.2967259 | BO58: =FL547 -> 89.25619835 | BP58: =FL548 -> 92.23140496 | BQ58: =FL549 -> 198.4728951 | BR58: =FL550 -> 708.0266897 | BS58: =FL551 -> 708.9487936 | BT58: =FL552 -> 629.4664966 | BU58: =FL553 -> 340.9592084 | BV58: =FL554 -> 450.3272727 | BW58: =FL555 -> 478.2348764 | BX58: =FL556 -> 456.4623202 | BY58: =FL557 -> 402.4881043 | BZ58: 4938.170986 | CB58: 1966 | CC58: 0 | CD58: 0 | CF58: 1966 | CG58: 800 | CH58: 193.5183925 | CI58: 0 | CJ58: 0 | CK58: 0 | CM58: 1966 | CN58: =FK546 -> 8.000000111 | CO58: =FK547 -> 8.899999899 | CP58: =FK548 -> 11.69999994 | CQ58: =FK549 -> 11.2999996 | CR58: =FK550 -> 14.10000082 | CS58: =FK551 -> 14.10000082 | CT58: =FK552 -> 12.4999999 | CU58: =FK553 -> 9.800000535 | CV58: =FK554 -> 7.300000101 | CW58: =FK555 -> 7.400000126 | CX58: =FK556 -> 6.099999768 | CY58: =FK557 -> 5.599999718 | CZ58: 116.8000013 | DB58: 1966 | DC58: =FJ546 -> 0 | DD58: =FJ547 -> 0 | DE58: =FJ548 -> 0 | DF58: =FJ549 -> 0 | DG58: =FJ550 -> 0 | DH58: =FJ551 -> 0 | DI58: =FJ552 -> 0 | DJ58: =FJ553 -> 0 | DK58: =FJ554 -> 0 | DL58: =FJ555 -> 0 | DM58: =FJ556 -> 7.492764737 | DN58: =FJ557 -> 20.49767723 | DO58: 27.99044197 | DQ58: 1966 | DR58: =FN546 -> 144.4962158 | DS58: =FN547 -> 224.1809082 | DT58: =FN548 -> 204.3262024 | DU58: =FN549 -> 115.5819626 | DV58: =FN550 -> 74.2285614 | DW58: =FN551 -> 99.55685425 | DX58: =FN552 -> 106.4665222 | DY58: =FN553 -> 36.7950592 | DZ58: =FN554 -> 46.43638229 | EA58: =FN555 -> 231.8037567 | EB58: =FN556 -> 101.0858612 | EC58: =FN557 -> 120.7404175 | ED58: 1505.698704 | EF58: 1925-07-31 | EG58: 2820.570801 | EH58: 2240.45166 | EI58: 466.2749939 | EJ58: 0 | EK58: 0 | EL58: 113.8440857 | EM58: 1250 | EN58: 819.6774292 | EO58: 365.2688293 | EP58: 0 | EQ58: 0 | ER58: 65.05376434 | ES58: 0 | ET58: 229.3145294 | EU58: 229.3145294 | EV58: 0 | EW58: 0 | EX58: 4296.926758 | EY58: 6201.070801 | EZ58: 154.7457886 | FB58: 1925 | FC58: 7 | FD58: 1925-07-31 | FE58: =(EH58+EN58)*UnitConv!$B58 -> 188.1600035 | FF58: =(EI58+EO58)*UnitConv!$B58 -> 51.12963673 | FG58: =(EJ58+EP58)*UnitConv!$B58 -> 0 | FH58: 51.12963673 | FI58: =(EK58+EQ58)*UnitConv!$B58 -> 0 | FJ58: =(ES58+EV58+EW58)*UnitConv!$B58 -> 0 | FK58: =EU58*UnitConv!$B58 -> 14.10000082 | FL58: =(EX58+EY58)*UnitConv!$B58 -> 645.4967094 | FM58: 0 | FN58: 154.7457886 | FP58: 1967 | FQ58: 796.0557532 | FR58: 1057.792624 | FS58: 0 | FT58: 3.944246783 | FV58: 1967 | FW58: 800 | FX58: 1053.848377 | FY58: 1.004954737 | FZ58: 0.9962712476 | GB58: 1925-07-31 | GC58: 188.1600023 | GD58: 51.12963774
C59: SJRRP Recapture Class 2/Other | S59: =VLOOKUP($T59,'SJRRP WY Types'!$B$13:$G$95,2,FALSE) -> Wet | T59: 1967 | U59: =GC558 -> 11.20725497 | V59: =GC559 -> 19.11825915 | W59: =GC560 -> 43.51051851 | X59: =GC561 -> 101.8943703 | Y59: =GC562 -> 185.4422931 | Z59: =GC563 -> 188.4491178 | AA59: =GC564 -> 122.4115251 | AB59: =GC565 -> 64.57436939 | AC59: =GC566 -> 15.37178786 | AD59: =GC567 -> 7.287127733 | AE59: =GC568 -> 7.148202817 | AF59: =GC569 -> 33.58517322 | AG59: 800 | AI59: 1967 | AJ59: =GD558 -> 74.92028794 | AK59: =GD559 -> 44.90956543 | AL59: =GD560 -> 116.1005403 | AM59: =GD561 -> 144.7222033 | AN59: =GD562 -> 121.5773955 | AO59: =GD563 -> 105.0409737 | AP59: =GD564 -> 74.10328321 | AQ59: =GD565 -> 53.92538917 | AR59: =GD566 -> 14.72550128 | AS59: =GD567 -> 22.56814839 | AT59: =GD568 -> 22.56814839 | AU59: =GD569 -> 71.14587536 | AV59: 866.307312 | AX59: 1967 | AY59: =FI558 -> 0 | AZ59: =FI559 -> 0 | BA59: =FI560 -> 0 | BB59: =FI561 -> 0 | BC59: =FI562 -> 0 | BD59: =FI563 -> 0 | BE59: =FI564 -> 0 | BF59: =FI565 -> 0 | BG59: =FI566 -> 0 | BH59: =FI567 -> 0 | BI59: =FI568 -> 0 | BJ59: =FI569 -> 0 | BK59: 0 | BM59: 1967 | BN59: =FL558 -> 619.9460883 | BO59: =FL559 -> 242.8242333 | BP59: =FL560 -> 190.555757 | BQ59: =FL561 -> 671.2066116 | BR59: =FL562 -> 711.4064363 | BS59: =FL563 -> 724.3239669 | BT59: =FL564 -> 664.6780378 | BU59: =FL565 -> 520.9250468 | BV59: =FL566 -> 333.9522404 | BW59: =FL567 -> 715.6187274 | BX59: =FL568 -> 415.5025394 | BY59: =FL569 -> 258.9513882 | BZ59: 6069.891073 | CB59: 1967 | CC59: 0 | CD59: 0 | CF59: 1967 | CG59: 800 | CH59: 866.307312 | CI59: 0 | CJ59: 0 | CK59: 0 | CM59: 1967 | CN59: =FK558 -> 8.000000111 | CO59: =FK559 -> 8.899999899 | CP59: =FK560 -> 11.69999994 | CQ59: =FK561 -> 11.2999996 | CR59: =FK562 -> 14.10000082 | CS59: =FK563 -> 14.10000082 | CT59: =FK564 -> 12.4999999 | CU59: =FK565 -> 9.800000535 | CV59: =FK566 -> 7.300000101 | CW59: =FK567 -> 7.400000126 | CX59: =FK568 -> 6.099999768 | CY59: =FK569 -> 5.600000081 | CZ59: 116.8000017 | DB59: 1967 | DC59: =FJ558 -> 107.5012268 | DD59: =FJ559 -> 164.1454029 | DE59: =FJ560 -> 172.3687117 | DF59: =FJ561 -> 213.9384782 | DG59: =FJ562 -> 223.5927791 | DH59: =FJ563 -> 0 | DI59: =FJ564 -> 0 | DJ59: =FJ565 -> 0 | DK59: =FJ566 -> 0 | DL59: =FJ567 -> 0 | DM59: =FJ568 -> 0 | DN59: =FJ569 -> 0 | DO59: 881.5465987 | DQ59: 1967 | DR59: =FN558 -> 181.2911835 | DS59: =FN559 -> 232.5255737 | DT59: =FN560 -> 390.7748413 | DU59: =FN561 -> 720.0438843 | DV59: =FN562 -> 595.6062622 | DW59: =FN563 -> 245.8282318 | DX59: =FN564 -> 141.1253204 | DY59: =FN565 -> 83.29143524 | DZ59: =FN566 -> 50.55532455 | EA59: =FN567 -> 60.84366989 | EB59: =FN568 -> 76.56814575 | EC59: =FN569 -> 109.1397705 | ED59: 2887.593643 | EF59: 1925-08-31 | EG59: 2473.554443 | EH59: 1909.718262 | EI59: 449.9920959 | EJ59: 0 | EK59: 0 | EL59: 113.8440857 | EM59: 875.8970337 | EN59: 562.0645142 | EO59: 265.0422058 | EP59: 0 | EQ59: 0 | ER59: 48.79032135 | ES59: 0 | ET59: 229.3145294 | EU59: 229.3145294 | EV59: 0 | EW59: 0 | EX59: 3919.008057 | EY59: 3613.611572 | EZ59: 105.5435638 | FB59: 1925 | FC59: 8 | FD59: 1925-08-31 | FE59: =(EH59+EN59)*UnitConv!$B59 -> 151.9839988 | FF59: =(EI59+EO59)*UnitConv!$B59 -> 43.9657455 | FG59: =(EJ59+EP59)*UnitConv!$B59 -> 0 | FH59: 43.9657455 | FI59: =(EK59+EQ59)*UnitConv!$B59 -> 0 | FJ59: =(ES59+EV59+EW59)*UnitConv!$B59 -> 0 | FK59: =EU59*UnitConv!$B59 -> 14.10000082 | FL59: =(EX59+EY59)*UnitConv!$B59 -> 463.1627276 | FM59: 0 | FN59: 105.5435638 | FP59: 1968 | FQ59: 800.0000024 | FR59: 27.16284815 | FS59: 2.380875344e-06 | FT59: 0 | FV59: 1968 | FW59: 800 | FX59: 27.16285053 | FY59: 0.999999997 | FZ59: 1.000000088 | GB59: 1925-08-31 | GC59: 151.9839978 | GD59: 43.96574636
C60: Total | S60: =VLOOKUP($T60,'SJRRP WY Types'!$B$13:$G$95,2,FALSE) -> Dry | T60: 1968 | U60: =GC570 -> 32.7999997 | V60: =GC571 -> 59.04000055 | W60: =GC572 -> 98.24000336 | X60: =GC573 -> 161.6799977 | Y60: =GC574 -> 181.5999993 | Z60: =GC575 -> 152.6399987 | AA60: =GC576 -> 64.80000072 | AB60: =GC577 -> 19.67999982 | AC60: =GC578 -> 3.280000031 | AD60: =GC579 -> 3.27999997 | AE60: =GC580 -> 3.27999997 | AF60: =GC581 -> 19.68000018 | AG60: 800 | AI60: 1968 | AJ60: =GD570 -> 1.079673705 | AK60: =GD571 -> 1.915601309 | AL60: =GD572 -> 2.943804704 | AM60: =GD573 -> 4.990484489 | AN60: =GD574 -> 5.677796992 | AO60: =GD575 -> 4.661769872 | AP60: =GD576 -> 1.85275474 | AQ60: =GD577 -> 0.5378965417 | AR60: =GD578 -> 0.08964942425 | AS60: =GD579 -> 0.08964942118 | AT60: =GD580 -> 0 | AU60: =GD581 -> 0 | AV60: 23.8390812 | AX60: 1968 | AY60: =FI570 -> 0 | AZ60: =FI571 -> 0 | BA60: =FI572 -> 0 | BB60: =FI573 -> 0 | BC60: =FI574 -> 0 | BD60: =FI575 -> 0 | BE60: =FI576 -> 0 | BF60: =FI577 -> 0 | BG60: =FI578 -> 0 | BH60: =FI579 -> 0 | BI60: =FI580 -> 0 | BJ60: =FI581 -> 0 | BK60: 0 | BM60: 1968 | BN60: =FL570 -> 436.8339941 | BO60: =FL571 -> 107.2334412 | BP60: =FL572 -> 92.23140496 | BQ60: =FL573 -> 195.5358374 | BR60: =FL574 -> 706.9886961 | BS60: =FL575 -> 708.9487936 | BT60: =FL576 -> 639.9772421 | BU60: =FL577 -> 489.6803974 | BV60: =FL578 -> 466.5223915 | BW60: =FL579 -> 715.7868576 | BX60: =FL580 -> 658.729364 | BY60: =FL581 -> 541.184508 | BZ60: 5759.652928 | CB60: 1968 | CC60: 0 | CD60: 0 | CF60: 1968 | CG60: 800 | CH60: 23.8390812 | CI60: 0 | CJ60: 0 | CK60: 0 | CM60: 1968 | CN60: =FK570 -> 8.000000111 | CO60: =FK571 -> 8.899999899 | CP60: =FK572 -> 11.69999994 | CQ60: =FK573 -> 11.2999996 | CR60: =FK574 -> 14.10000082 | CS60: =FK575 -> 14.10000082 | CT60: =FK576 -> 12.4999999 | CU60: =FK577 -> 9.800000535 | CV60: =FK578 -> 7.300000101 | CW60: =FK579 -> 7.400000126 | CX60: =FK580 -> 6.099999768 | CY60: =FK581 -> 5.599999718 | CZ60: 116.8000013 | DB60: 1968 | DC60: =FJ570 -> 0 | DD60: =FJ571 -> 0 | DE60: =FJ572 -> 0 | DF60: =FJ573 -> 0 | DG60: =FJ574 -> 0 | DH60: =FJ575 -> 0 | DI60: =FJ576 -> 0 | DJ60: =FJ577 -> 0 | DK60: =FJ578 -> 0 | DL60: =FJ579 -> 0 | DM60: =FJ580 -> 172.4204784 | DN60: =FJ581 -> 299.640062 | DO60: 472.0605404 | DQ60: 1968 | DR60: =FN570 -> 137.2069244 | DS60: =FN571 -> 125.8252792 | DT60: =FN572 -> 117.3722916 | DU60: =FN573 -> 87.02218628 | DV60: =FN574 -> 73.63449097 | DW60: =FN575 -> 85.45269775 | DX60: =FN576 -> 94.13856506 | DY60: =FN577 -> 38.19230652 | DZ60: =FN578 -> 54.99677277 | EA60: =FN579 -> 67.13973236 | EB60: =FN580 -> 257.5172729 | EC60: =FN581 -> 244.6846619 | ED60: 1383.183182 | EF60: 1925-09-30 | EG60: 1391.733765 | EH60: 1091.420044 | EI60: 199.4803772 | EJ60: 0 | EK60: 0 | EL60: 100.8333359 | EM60: 142.4461517 | EN60: 96.80000305 | EO60: 45.64616013 | EP60: 0 | EQ60: 0 | ER60: 0 | ES60: 0 | ET60: 210.0694427 | EU60: 210.0694427 | EV60: 0 | EW60: 0 | EX60: 4379.99707 | EY60: 3043.502686 | EZ60: 88.88672638 | FB60: 1925 | FC60: 9 | FD60: 1925-09-30 | FE60: =(EH60+EN60)*UnitConv!$B60 -> 70.7040028 | FF60: =(EI60+EO60)*UnitConv!$B60 -> 14.58604189 | FG60: =(EJ60+EP60)*UnitConv!$B60 -> 0 | FH60: 14.58604189 | FI60: =(EK60+EQ60)*UnitConv!$B60 -> 0 | FJ60: =(ES60+EV60+EW60)*UnitConv!$B60 -> 0 | FK60: =EU60*UnitConv!$B60 -> 12.4999999 | FL60: =(EX60+EY60)*UnitConv!$B60 -> 441.7289111 | FM60: 0 | FN60: 88.88672638 | FP60: 1969 | FQ60: 792.111994 | FR60: 821.1173238 | FS60: 0 | FT60: 7.888005992 | FV60: 1969 | FW60: 800 | FX60: 813.2293178 | FY60: 1.009958195 | FZ60: 0.9903935701 | GB60: 1925-09-30 | GC60: 70.70400234 | GD60: 14.58604218
B61: SJRRP WY Type | C61: TAF | S61: =VLOOKUP($T61,'SJRRP WY Types'!$B$13:$G$95,2,FALSE) -> Wet | T61: 1969 | U61: =GC582 -> 13.91318439 | V61: =GC583 -> 28.48890113 | W61: =GC584 -> 52.34007282 | X61: =GC585 -> 116.2825483 | Y61: =GC586 -> 194.6876148 | Z61: =GC587 -> 182.7620369 | AA61: =GC588 -> 104.6316682 | AB61: =GC589 -> 50.07776648 | AC61: =GC590 -> 13.0890584 | AD61: =GC591 -> 6.625325721 | AE61: =GC592 -> 6.625325721 | AF61: =GC593 -> 30.47649717 | AG61: 800 | AI61: 1969 | AJ61: =GD582 -> 23.15832274 | AK61: =GD583 -> 16.79336077 | AL61: =GD584 -> 77.65533828 | AM61: =GD585 -> 130.063902 | AN61: =GD586 -> 111.7110563 | AO61: =GD587 -> 94.44282468 | AP61: =GD588 -> 64.24549658 | AQ61: =GD589 -> 44.79713835 | AR61: =GD590 -> 13.91295072 | AS61: =GD591 -> 19.11053654 | AT61: =GD592 -> 19.11053654 | AU61: =GD593 -> 59.74019612 | AV61: 674.7416597 | AX61: 1969 | AY61: =FI582 -> 0 | AZ61: =FI583 -> 0 | BA61: =FI584 -> 0 | BB61: =FI585 -> 0 | BC61: =FI586 -> 0 | BD61: =FI587 -> 0 | BE61: =FI588 -> 0 | BF61: =FI589 -> 0 | BG61: =FI590 -> 0 | BH61: =FI591 -> 0 | BI61: =FI592 -> 0 | BJ61: =FI593 -> 0 | BK61: 0 | BM61: 1969 | BN61: =FL582 -> 345.0549493 | BO61: =FL583 -> 309.6061306 | BP61: =FL584 -> 594.2082722 | BQ61: =FL585 -> 671.2066116 | BR61: =FL586 -> 713.5576017 | BS61: =FL587 -> 724.3239669 | BT61: =FL588 -> 613.2756198 | BU61: =FL589 -> 520.6593561 | BV61: =FL590 -> 175.1979904 | BW61: =FL591 -> 507.6447153 | BX61: =FL592 -> 805.4876033 | BY61: =FL593 -> 540.2007296 | BZ61: 6520.423547 | CB61: 1969 | CC61: 0 | CD61: 0 | CF61: 1969 | CG61: 800 | CH61: 674.7416597 | CI61: 0 | CJ61: 0 | CK61: 0 | CM61: 1969 | CN61: =FK582 -> 8.000000111 | CO61: =FK583 -> 8.899999899 | CP61: =FK584 -> 11.69999994 | CQ61: =FK585 -> 11.2999996 | CR61: =FK586 -> 14.10000082 | CS61: =FK587 -> 14.10000082 | CT61: =FK588 -> 12.4999999 | CU61: =FK589 -> 9.800000535 | CV61: =FK590 -> 7.300000101 | CW61: =FK591 -> 7.400000126 | CX61: =FK592 -> 6.099999768 | CY61: =FK593 -> 5.599999718 | CZ61: 116.8000013 | DB61: 1969 | DC61: =FJ582 -> 289.5462348 | DD61: =FJ583 -> 381.9934304 | DE61: =FJ584 -> 413.0046355 | DF61: =FJ585 -> 448.793022 | DG61: =FJ586 -> 93.79206571 | DH61: =FJ587 -> 0 | DI61: =FJ588 -> 0 | DJ61: =FJ589 -> 0 | DK61: =FJ590 -> 0 | DL61: =FJ591 -> 0 | DM61: =FJ592 -> 36.30692273 | DN61: =FJ593 -> 2.116445166 | DO61: 1665.552756 | DQ61: 1969 | DR61: =FN582 -> 237.3473663 | DS61: =FN583 -> 409.9292908 | DT61: =FN584 -> 836.3049316 | DU61: =FN585 -> 848.4712524 | DV61: =FN586 -> 465.6468506 | DW61: =FN587 -> 228.4728851 | DX61: =FN588 -> 104.3643875 | DY61: =FN589 -> 85.64720917 | DZ61: =FN590 -> 60.75788879 | EA61: =FN591 -> 72.98606873 | EB61: =FN592 -> 186.3046417 | EC61: =FN593 -> 118.7906494 | ED61: 3655.023422 | EF61: 1925-10-31 | EG61: 497.7366943 | EH61: 341.4021606 | EI61: 75.01732635 | EJ61: 0 | EK61: 0 | EL61: 81.31720734 | EM61: 0 | EN61: 0 | EO61: 0 | EP61: 0 | EQ61: 0 | ER61: 0 | ES61: 0 | ET61: 159.3817291 | EU61: 159.3817291 | EV61: 0 | EW61: 0 | EX61: 3276.525879 | EY61: 2198.550293 | EZ61: 73.61367035 | FB61: 1925 | FC61: 10 | FD61: 1925-10-31 | FE61: =(EH61+EN61)*UnitConv!$B61 -> 20.99200062 | FF61: =(EI61+EO61)*UnitConv!$B61 -> 4.612635604 | FG61: =(EJ61+EP61)*UnitConv!$B61 -> 0 | FH61: 4.612635604 | FI61: =(EK61+EQ61)*UnitConv!$B61 -> 0 | FJ61: =(ES61+EV61+EW61)*UnitConv!$B61 -> 0 | FK61: =EU61*UnitConv!$B61 -> 9.800000535 | FL61: =(EX61+EY61)*UnitConv!$B61 -> 336.6493117 | FM61: 0 | FN61: 73.61367035 | FP61: 1970 | FQ61: 797.3760102 | FR61: 454.5796377 | FS61: 0 | FT61: 2.623989752 | FV61: 1970 | FW61: 800 | FX61: 451.955648 | FY61: 1.003290781 | FZ61: 0.9942276566 | GB61: 1925-10-31 | GC61: 20.99200049 | GD61: 4.612635695
B62: Wet | C62: =CJ4 -> 6.394884622e-14 | S62: =VLOOKUP($T62,'SJRRP WY Types'!$B$13:$G$95,2,FALSE) -> Normal-Dry | T62: 1970 | U62: =GC594 -> 28.30082542 | V62: =GC595 -> 51.99454025 | W62: =GC596 -> 86.05827414 | X62: =GC597 -> 157.4765239 | Y62: =GC598 -> 188.6507753 | Z62: =GC599 -> 158.6644163 | AA62: =GC600 -> 73.56930922 | AB62: =GC601 -> 23.69371531 | AC62: =GC602 -> 3.948952562 | AD62: =GC603 -> 3.948952395 | AE62: =GC604 -> 3.948952395 | AF62: =GC605 -> 19.74476281 | AG62: 800 | AI62: 1970 | AJ62: =GD594 -> 28.51864929 | AK62: =GD595 -> 60.38037483 | AL62: =GD596 -> 71.03195665 | AM62: =GD597 -> 58.41790862 | AN62: =GD598 -> 50.89654015 | AO62: =GD599 -> 50.30057585 | AP62: =GD600 -> 29.61811664 | AQ62: =GD601 -> 6.767019258 | AR62: =GD602 -> 0.7350783584 | AS62: =GD603 -> 0.7350783678 | AT62: =GD604 -> 0.7350783678 | AU62: =GD605 -> 17.62046661 | AV62: 375.756843 | AX62: 1970 | AY62: =FI594 -> 0 | AZ62: =FI595 -> 0 | BA62: =FI596 -> 0 | BB62: =FI597 -> 0 | BC62: =FI598 -> 0 | BD62: =FI599 -> 0 | BE62: =FI600 -> 0 | BF62: =FI601 -> 0 | BG62: =FI602 -> 0 | BH62: =FI603 -> 0 | BI62: =FI604 -> 0 | BJ62: =FI605 -> 0 | BK62: 0 | BM62: 1970 | BN62: =FL594 -> 585.6722136 | BO62: =FL595 -> 89.25619835 | BP62: =FL596 -> 92.23140496 | BQ62: =FL597 -> 218.5785947 | BR62: =FL598 -> 644.0411825 | BS62: =FL599 -> 715.0954523 | BT62: =FL600 -> 663.4630262 | BU62: =FL601 -> 444.7133542 | BV62: =FL602 -> 473.6250218 | BW62: =FL603 -> 484.8823528 | BX62: =FL604 -> 415.5663688 | BY62: =FL605 -> 381.918843 | BZ62: 5209.044013 | CB62: 1970 | CC62: 0 | CD62: 0 | CF62: 1970 | CG62: 800 | CH62: 375.756843 | CI62: -1.136868377e-13 | CJ62: 1.136868377e-13 | CK62: 0 | CM62: 1970 | CN62: =FK594 -> 8.000000111 | CO62: =FK595 -> 8.899999899 | CP62: =FK596 -> 11.69999994 | CQ62: =FK597 -> 11.2999996 | CR62: =FK598 -> 14.10000082 | CS62: =FK599 -> 14.10000082 | CT62: =FK600 -> 12.4999999 | CU62: =FK601 -> 9.800000535 | CV62: =FK602 -> 7.300000101 | CW62: =FK603 -> 7.400000126 | CX62: =FK604 -> 6.099999768 | CY62: =FK605 -> 5.599999718 | CZ62: 116.8000013 | DB62: 1970 | DC62: =FJ594 -> 9.32134852 | DD62: =FJ595 -> 0 | DE62: =FJ596 -> 0 | DF62: =FJ597 -> 0 | DG62: =FJ598 -> 0 | DH62: =FJ599 -> 0 | DI62: =FJ600 -> 0 | DJ62: =FJ601 -> 0 | DK62: =FJ602 -> 0 | DL62: =FJ603 -> 0 | DM62: =FJ604 -> 0 | DN62: =FJ605 -> 1.404743712 | DO62: 10.72609223 | DQ62: 1970 | DR62: =FN594 -> 176.3164673 | DS62: =FN595 -> 142.3086548 | DT62: =FN596 -> 165.8804474 | DU62: =FN597 -> 221.5913544 | DV62: =FN598 -> 138.7748413 | DW62: =FN599 -> 128.5868835 | DX62: =FN600 -> 106.2942581 | DY62: =FN601 -> 52.19126129 | DZ62: =FN602 -> 58.18267822 | EA62: =FN603 -> 96.215271 | EB62: =FN604 -> 91.89949799 | EC62: =FN605 -> 87.69191742 | ED62: 1465.933533 | EF62: 1925-11-30 | EG62: 138.9389038 | EH62: 66.14666748 | EI62: 5.570021152 | EJ62: 0 | EK62: 0 | EL62: 67.22222137 | EM62: 0 | EN62: 0 | EO62: 0 | EP62: 0 | EQ62: 0 | ER62: 0 | ES62: 0 | ET62: 122.6805573 | EU62: 122.6805573 | EV62: 0 | EW62: 0 | EX62: 3218.991211 | EY62: 3172.601074 | EZ62: 54.54426193 | FB62: 1925 | FC62: 11 | FD62: 1925-11-30 | FE62: =(EH62+EN62)*UnitConv!$B62 -> 3.936000048 | FF62: =(EI62+EO62)*UnitConv!$B62 -> 0.3314392752 | FG62: =(EJ62+EP62)*UnitConv!$B62 -> 0 | FH62: 0.3314392752 | FI62: =(EK62+EQ62)*UnitConv!$B62 -> 0 | FJ62: =(ES62+EV62+EW62)*UnitConv!$B62 -> 0 | FK62: =EU62*UnitConv!$B62 -> 7.300000101 | FL62: =(EX62+EY62)*UnitConv!$B62 -> 380.3261525 | FM62: 0 | FN62: 54.54426193 | FP62: 1971 | FQ62: 800.000012 | FR62: 354.3944128 | FS62: 1.19749966e-05 | FT62: 0 | FV62: 1971 | FW62: 800 | FX62: 354.3944247 | FY62: 0.999999985 | FZ62: 1.000000034 | GB62: 1925-11-30 | GC62: 3.936000023 | GD62: 0.3314392817
B63: Normal-Wet | C63: 6.158037043e-14 | S63: =VLOOKUP($T63,'SJRRP WY Types'!$B$13:$G$95,2,FALSE) -> Normal-Dry | T63: 1971 | U63: =GC606 -> 30.8320001 | V63: =GC607 -> 51.82399805 | W63: =GC608 -> 85.77600282 | X63: =GC609 -> 156.9600006 | Y63: =GC610 -> 188.0320003 | Z63: =GC611 -> 158.1439967 | AA63: =GC612 -> 73.32800173 | AB63: =GC613 -> 23.61599988 | AC63: =GC614 -> 3.93599999 | AD63: =GC615 -> 3.935999823 | AE63: =GC616 -> 3.935999823 | AF63: =GC617 -> 19.68000019 | AG63: 800 | AI63: 1971 | AJ63: =GD606 -> 22.27180031 | AK63: =GD607 -> 58.99720325 | AL63: =GD608 -> 68.96686853 | AM63: =GD609 -> 55.4601557 | AN63: =GD610 -> 47.51641601 | AO63: =GD611 -> 47.38479785 | AP63: =GD612 -> 28.23072212 | AQ63: =GD613 -> 6.360777422 | AR63: =GD614 -> 0.6725166359 | AS63: =GD615 -> 0.6725166378 | AT63: =GD616 -> 0.6725166378 | AU63: =GD617 -> 17.18813363 | AV63: 354.3944247 | AX63: 1971 | AY63: =FI606 -> 0 | AZ63: =FI607 -> 0 | BA63: =FI608 -> 0 | BB63: =FI609 -> 0 | BC63: =FI610 -> 0 | BD63: =FI611 -> 0 | BE63: =FI612 -> 0 | BF63: =FI613 -> 0 | BG63: =FI614 -> 0 | BH63: =FI615 -> 0 | BI63: =FI616 -> 0 | BJ63: =FI617 -> 0 | BK63: 0 | BM63: 1971 | BN63: =FL606 -> 497.3703109 | BO63: =FL607 -> 92.63041024 | BP63: =FL608 -> 92.23140496 | BQ63: =FL609 -> 312.967039 | BR63: =FL610 -> 708.4375578 | BS63: =FL611 -> 724.3239669 | BT63: =FL612 -> 651.5674877 | BU63: =FL613 -> 431.1410016 | BV63: =FL614 -> 227.5971898 | BW63: =FL615 -> 715.365001 | BX63: =FL616 -> 388.7986654 | BY63: =FL617 -> 207.5667744 | BZ63: 5049.99681 | CB63: 1971 | CC63: 0 | CD63: 0 | CF63: 1971 | CG63: 800 | CH63: 354.3944247 | CI63: -2.273736754e-13 | CJ63: 2.273736754e-13 | CK63: 0 | CM63: 1971 | CN63: =FK606 -> 8.000000111 | CO63: =FK607 -> 8.899999899 | CP63: =FK608 -> 11.69999994 | CQ63: =FK609 -> 11.2999996 | CR63: =FK610 -> 14.10000082 | CS63: =FK611 -> 14.10000082 | CT63: =FK612 -> 12.4999999 | CU63: =FK613 -> 9.800000535 | CV63: =FK614 -> 7.300000101 | CW63: =FK615 -> 7.400000126 | CX63: =FK616 -> 6.099999768 | CY63: =FK617 -> 5.600000081 | CZ63: 116.8000017 | DB63: 1971 | DC63: =FJ606 -> 0 | DD63: =FJ607 -> 0 | DE63: =FJ608 -> 0 | DF63: =FJ609 -> 0 | DG63: =FJ610 -> 0 | DH63: =FJ611 -> 0 | DI63: =FJ612 -> 0 | DJ63: =FJ613 -> 0 | DK63: =FJ614 -> 0 | DL63: =FJ615 -> 0 | DM63: =FJ616 -> 0 | DN63: =FJ617 -> 0 | DO63: 0 | DQ63: 1971 | DR63: =FN606 -> 92.44852448 | DS63: =FN607 -> 146.5343933 | DT63: =FN608 -> 144.3443451 | DU63: =FN609 -> 199.3579407 | DV63: =FN610 -> 158.3586578 | DW63: =FN611 -> 138.3537598 | DX63: =FN612 -> 114.5979233 | DY63: =FN613 -> 65.40084839 | DZ63: =FN614 -> 52.64306641 | EA63: =FN615 -> 80.50819397 | EB63: =FN616 -> 62.81105042 | EC63: =FN617 -> 68.41075134 | ED63: 1323.769455 | EF63: 1925-12-31 | EG63: 85.66668701 | EH63: 64.01290131 | EI63: 5.390343189 | EJ63: 0 | EK63: 0 | EL63: 16.26344109 | EM63: 0 | EN63: 0 | EO63: 0 | EP63: 0 | EQ63: 0 | ER63: 0 | ES63: 0 | ET63: 120.3494644 | EU63: 120.3494644 | EV63: 0 | EW63: 0 | EX63: 2621.17627 | EY63: 3675.415039 | EZ63: 46.90171051 | FB63: 1925 | FC63: 12 | FD63: 1925-12-31 | FE63: =(EH63+EN63)*UnitConv!$B63 -> 3.935999882 | FF63: =(EI63+EO63)*UnitConv!$B63 -> 0.3314392837 | FG63: =(EJ63+EP63)*UnitConv!$B63 -> 0 | FH63: 0.3314392837 | FI63: =(EK63+EQ63)*UnitConv!$B63 -> 0 | FJ63: =(ES63+EV63+EW63)*UnitConv!$B63 -> 0 | FK63: =EU63*UnitConv!$B63 -> 7.400000126 | FL63: =(EX63+EY63)*UnitConv!$B63 -> 387.1623086 | FM63: 0 | FN63: 46.90171051 | FP63: 1972 | FQ63: 800.0000023 | FR63: 174.0989962 | FS63: 2.259814096e-06 | FT63: 0 | FV63: 1972 | FW63: 800 | FX63: 174.0989985 | FY63: 0.9999999972 | FZ63: 1.000000013 | GB63: 1925-12-31 | GC63: 3.935999856 | GD63: 0.3314392902
B64: Normal-Dry | C64: 9.473903143e-14 | S64: =VLOOKUP($T64,'SJRRP WY Types'!$B$13:$G$95,2,FALSE) -> Normal-Dry | T64: 1972 | U64: =GC618 -> 36.73599817 | V64: =GC619 -> 62.32000241 | W64: =GC620 -> 97.58400301 | X64: =GC621 -> 158.3999996 | Y64: =GC622 -> 181.5999993 | Z64: =GC623 -> 149.3599969 | AA64: =GC624 -> 64.80000072 | AB64: =GC625 -> 19.67999982 | AC64: =GC626 -> 3.280000031 | AD64: =GC627 -> 3.279999971 | AE64: =GC628 -> 3.279999971 | AF64: =GC629 -> 19.68000019 | AG64: 800 | AI64: 1972 | AJ64: =GD618 -> 1.962354307 | AK64: =GD619 -> 13.01324137 | AL64: =GD620 -> 16.18181909 | AM64: =GD621 -> 26.37337741 | AN64: =GD622 -> 30.55452332 | AO64: =GD623 -> 24.60443094 | AP64: =GD624 -> 9.970423287 | AQ64: =GD625 -> 2.894639017 | AR64: =GD626 -> 0.4824398639 | AS64: =GD627 -> 0.482439846 | AT64: =GD628 -> 0.482439846 | AU64: =GD629 -> 2.894639002 | AV64: 129.8967673 | AX64: 1972 | AY64: =FI618 -> 0 | AZ64: =FI619 -> 0 | BA64: =FI620 -> 0 | BB64: =FI621 -> 0 | BC64: =FI622 -> 0 | BD64: =FI623 -> 0 | BE64: =FI624 -> 0 | BF64: =FI625 -> 0 | BG64: =FI626 -> 0 | BH64: =FI627 -> 0 | BI64: =FI628 -> 0 | BJ64: =FI629 -> 0 | BK64: 0 | BM64: 1972 | BN64: =FL618 -> 288.136013 | BO64: =FL619 -> 94.54989427 | BP64: =FL620 -> 92.23140496 | BQ64: =FL621 -> 194.5568811 | BR64: =FL622 -> 706.9956315 | BS64: =FL623 -> 724.3239669 | BT64: =FL624 -> 674.4276214 | BU64: =FL625 -> 520.5817761 | BV64: =FL626 -> 671.2066116 | BW64: =FL627 -> 464.2789017 | BX64: =FL628 -> 354.3591526 | BY64: =FL629 -> 481.0025052 | BZ64: 5266.65036 | CB64: 1972 | CC64: 0 | CD64: 0 | CF64: 1972 | CG64: 800 | CH64: 129.8967673 | CI64: 0 | CJ64: 0 | CK64: 0 | CM64: 1972 | CN64: =FK618 -> 8.000000111 | CO64: =FK619 -> 8.899999899 | CP64: =FK620 -> 11.69999994 | CQ64: =FK621 -> 11.2999996 | CR64: =FK622 -> 14.10000082 | CS64: =FK623 -> 14.10000082 | CT64: =FK624 -> 12.4999999 | CU64: =FK625 -> 9.800000535 | CV64: =FK626 -> 7.300000101 | CW64: =FK627 -> 7.400000126 | CX64: =FK628 -> 6.099999768 | CY64: =FK629 -> 5.599999718 | CZ64: 116.8000013 | DB64: 1972 | DC64: =FJ618 -> 0 | DD64: =FJ619 -> 0 | DE64: =FJ620 -> 0 | DF64: =FJ621 -> 0 | DG64: =FJ622 -> 0 | DH64: =FJ623 -> 0 | DI64: =FJ624 -> 0 | DJ64: =FJ625 -> 0 | DK64: =FJ626 -> 0 | DL64: =FJ627 -> 0 | DM64: =FJ628 -> 0 | DN64: =FJ629 -> 2.058621926 | DO64: 2.058621926 | DQ64: 1972 | DR64: =FN618 -> 150.0574493 | DS64: =FN619 -> 92.49479675 | DT64: =FN620 -> 126.3144073 | DU64: =FN621 -> 140.7424774 | DV64: =FN622 -> 81.41411591 | DW64: =FN623 -> 106.8984833 | DX64: =FN624 -> 131.0419312 | DY64: =FN625 -> 43.97450638 | DZ64: =FN626 -> 49.36071396 | EA64: =FN627 -> 63.79333115 | EB64: =FN628 -> 93.50134277 | EC64: =FN629 -> 131.1901855 | ED64: 1210.783741 | EF64: 1926-01-31 | EG64: 85.66668701 | EH64: 53.34408569 | EI64: 16.05916023 | EJ64: 0 | EK64: 0 | EL64: 16.26344109 | EM64: 0 | EN64: 0 | EO64: 0 | EP64: 0 | EQ64: 0 | ER64: 0 | ES64: 0 | ET64: 99.20698547 | EU64: 99.20698547 | EV64: 0 | EW64: 0 | EX64: 3185.026367 | EY64: 3185.026367 | EZ64: 41.62717056 | FB64: 1925 | FC64: 1 | FD64: 1926-01-31 | FE64: =(EH64+EN64)*UnitConv!$B64 -> 3.27999998 | FF64: =(EI64+EO64)*UnitConv!$B64 -> 0.9874392738 | FG64: =(EJ64+EP64)*UnitConv!$B64 -> 0 | FH64: 0.9874392738 | FI64: =(EK64+EQ64)*UnitConv!$B64 -> 0 | FJ64: =(ES64+EV64+EW64)*UnitConv!$B64 -> 0 | FK64: =EU64*UnitConv!$B64 -> 6.099999768 | FL64: =(EX64+EY64)*UnitConv!$B64 -> 391.6792756 | FM64: 0 | FN64: 41.62717056 | FP64: 1973 | FQ64: 797.3760102 | FR64: 782.8726611 | FS64: 0 | FT64: 2.623989752 | FV64: 1973 | FW64: 800 | FX64: 780.2486713 | FY64: 1.003290781 | FZ64: 0.9966482547 | GB64: 1926-01-31 | GC64: 3.279999959 | GD64: 0.9874392932
B65: Dry | C65: 9.473903143e-15 | S65: =VLOOKUP($T65,'SJRRP WY Types'!$B$13:$G$95,2,FALSE) -> Normal-Wet | T65: 1973 | U65: =GC630 -> 28.30082542 | V65: =GC631 -> 51.99454025 | W65: =GC632 -> 86.05827414 | X65: =GC633 -> 157.4765239 | Y65: =GC634 -> 188.6507753 | Z65: =GC635 -> 158.6644163 | AA65: =GC636 -> 73.56930922 | AB65: =GC637 -> 23.69371531 | AC65: =GC638 -> 3.948952562 | AD65: =GC639 -> 3.948952395 | AE65: =GC640 -> 3.948952395 | AF65: =GC641 -> 19.74476281 | AG65: 800 | AI65: 1973 | AJ65: =GD630 -> 25.28525131 | AK65: =GD631 -> 62.88683178 | AL65: =GD632 -> 68.9436877 | AM65: =GD633 -> 60.8020868 | AN65: =GD634 -> 53.51992413 | AO65: =GD635 -> 52.60439782 | AP65: =GD636 -> 30.75060905 | AQ65: =GD637 -> 6.537147209 | AR65: =GD638 -> 0.8921756154 | AS65: =GD639 -> 0.8702030839 | AT65: =GD640 -> 0.7823129384 | AU65: =GD641 -> 18.02692679 | AV65: 381.9015542 | AX65: 1973 | AY65: =FI630 -> 0 | AZ65: =FI631 -> 0 | BA65: =FI632 -> 0 | BB65: =FI633 -> 0 | BC65: =FI634 -> 0 | BD65: =FI635 -> 0 | BE65: =FI636 -> 0 | BF65: =FI637 -> 0 | BG65: =FI638 -> 0 | BH65: =FI639 -> 0 | BI65: =FI640 -> 0 | BJ65: =FI641 -> 0 | BK65: 0 | BM65: 1973 | BN65: =FL630 -> 590.6012497 | BO65: =FL631 -> 89.25619835 | BP65: =FL632 -> 92.23140496 | BQ65: =FL633 -> 339.6182512 | BR65: =FL634 -> 699.7889721 | BS65: =FL635 -> 707.4596107 | BT65: =FL636 -> 508.4833589 | BU65: =FL637 -> 551.6052592 | BV65: =FL638 -> 671.2066116 | BW65: =FL639 -> 511.8587177 | BX65: =FL640 -> 539.5527583 | BY65: =FL641 -> 418.7897611 | BZ65: 5720.452154 | CB65: 1973 | CC65: 0 | CD65: 0 | CF65: 1973 | CG65: 800 | CH65: 381.9015542 | CI65: -1.136868377e-13 | CJ65: 1.136868377e-13 | CK65: 0 | CM65: 1973 | CN65: =FK630 -> 8.000000111 | CO65: =FK631 -> 8.899999899 | CP65: =FK632 -> 11.69999994 | CQ65: =FK633 -> 11.2999996 | CR65: =FK634 -> 14.10000082 | CS65: =FK635 -> 14.10000082 | CT65: =FK636 -> 12.4999999 | CU65: =FK637 -> 9.800000535 | CV65: =FK638 -> 7.300000101 | CW65: =FK639 -> 7.400000126 | CX65: =FK640 -> 6.099999768 | CY65: =FK641 -> 5.599999718 | CZ65: 116.8000013 | DB65: 1973 | DC65: =FJ630 -> 5.680954096 | DD65: =FJ631 -> 1.678307008 | DE65: =FJ632 -> 92.68428284 | DF65: =FJ633 -> 66.27017931 | DG65: =FJ634 -> 0 | DH65: =FJ635 -> 0 | DI65: =FJ636 -> 0 | DJ65: =FJ637 -> 0 | DK65: =FJ638 -> 0 | DL65: =FJ639 -> 5.748487131 | DM65: =FJ640 -> 78.55797439 | DN65: =FJ641 -> 5.084829035 | DO65: 255.7050138 | DQ65: 1973 | DR65: =FN630 -> 110.1820755 | DS65: =FN631 -> 190.1418304 | DT65: =FN632 -> 424.4468689 | DU65: =FN633 -> 392.5836182 | DV65: =FN634 -> 146.8795471 | DW65: =FN635 -> 96.06259155 | DX65: =FN636 -> 93.11638641 | DY65: =FN637 -> 84.04410553 | DZ65: =FN638 -> 129.9113617 | EA65: =FN639 -> 117.660614 | EB65: =FN640 -> 164.7286987 | EC65: =FN641 -> 91.41828156 | ED65: 2041.17598 | EF65: 1926-02-28 | EG65: 650.7263794 | EH65: 354.3571472 | EI65: 260.3573303 | EJ65: 0 | EK65: 0 | EL65: 36.01190567 | EM65: 0 | EN65: 0 | EO65: 0 | EP65: 0 | EQ65: 0 | ER65: 0 | ES65: 0 | ET65: 100.8333282 | EU65: 100.8333282 | EV65: 0 | EW65: 0 | EX65: 1692.353027 | EY65: 1692.353027 | EZ65: 75.10087585 | FB65: 1925 | FC65: 2 | FD65: 1926-02-28 | FE65: =(EH65+EN65)*UnitConv!$B65 -> 19.68000024 | FF65: =(EI65+EO65)*UnitConv!$B65 -> 14.45951454 | FG65: =(EJ65+EP65)*UnitConv!$B65 -> 0 | FH65: 14.45951454 | FI65: =(EK65+EQ65)*UnitConv!$B65 -> 0 | FJ65: =(ES65+EV65+EW65)*UnitConv!$B65 -> 0 | FK65: =EU65*UnitConv!$B65 -> 5.599999718 | FL65: =(EX65+EY65)*UnitConv!$B65 -> 187.9770635 | FM65: 0 | FN65: 75.10087585 | FP65: 1974 | FQ65: 797.030407 | FR65: 825.5131872 | FS65: 0 | FT65: 2.969592973 | FV65: 1974 | FW65: 800 | FX65: 822.5435942 | FY65: 1.003725821 | FZ65: 0.996402731 | GB65: 1926-02-28 | GC65: 19.68000011 | GD65: 14.45951483
B66: Critical | C66: 0 | S66: =VLOOKUP($T66,'SJRRP WY Types'!$B$13:$G$95,2,FALSE) -> Normal-Wet | T66: 1974 | U66: =GC642 -> 25.67932088 | V66: =GC643 -> 47.40797858 | W66: =GC644 -> 80.61925902 | X66: =GC645 -> 151.2333758 | Y66: =GC646 -> 191.3663549 | Z66: =GC647 -> 163.4708042 | AA66: =GC648 -> 79.78415879 | AB66: =GC649 -> 26.77137495 | AC66: =GC650 -> 4.695830941 | AD66: =GC651 -> 4.609108755 | AE66: =GC652 -> 4.609108755 | AF66: =GC653 -> 19.75332441 | AG66: 800 | AI66: 1974 | AJ66: =GD642 -> 34.03826549 | AK66: =GD643 -> 72.61583472 | AL66: =GD644 -> 88.69568266 | AM66: =GD645 -> 80.27304503 | AN66: =GD646 -> 65.63131799 | AO66: =GD647 -> 60.75166522 | AP66: =GD648 -> 30.85815969 | AQ66: =GD649 -> 5.826270119 | AR66: =GD650 -> 0.3964643554 | AS66: =GD651 -> 0.3964643375 | AT66: =GD652 -> 0.3964643375 | AU66: =GD653 -> 20.16635952 | AV66: 460.0459935 | AX66: 1974 | AY66: =FI642 -> 0 | AZ66: =FI643 -> 0 | BA66: =FI644 -> 0 | BB66: =FI645 -> 0 | BC66: =FI646 -> 0 | BD66: =FI647 -> 0 | BE66: =FI648 -> 0 | BF66: =FI649 -> 0 | BG66: =FI650 -> 0 | BH66: =FI651 -> 0 | BI66: =FI652 -> 0 | BJ66: =FI653 -> 0 | BK66: 0 | BM66: 1974 | BN66: =FL642 -> 577.4570135 | BO66: =FL643 -> 106.2498943 | BP66: =FL644 -> 92.23140496 | BQ66: =FL645 -> 401.9939082 | BR66: =FL646 -> 713.5576017 | BS66: =FL647 -> 724.3239669 | BT66: =FL648 -> 671.2066116 | BU66: =FL649 -> 515.6575738 | BV66: =FL650 -> 447.3147598 | BW66: =FL651 -> 721.1188356 | BX66: =FL652 -> 411.320872 | BY66: =FL653 -> 337.1161945 | BZ66: 5719.548637 | CB66: 1974 | CC66: 0 | CD66: 0 | CF66: 1974 | CG66: 800 | CH66: 460.0459935 | CI66: 0 | CJ66: 0 | CK66: 0 | CM66: 1974 | CN66: =FK642 -> 8.000000111 | CO66: =FK643 -> 8.899999899 | CP66: =FK644 -> 11.69999994 | CQ66: =FK645 -> 11.2999996 | CR66: =FK646 -> 14.10000082 | CS66: =FK647 -> 14.10000082 | CT66: =FK648 -> 12.4999999 | CU66: =FK649 -> 9.800000535 | CV66: =FK650 -> 7.300000101 | CW66: =FK651 -> 7.400000126 | CX66: =FK652 -> 6.099999768 | CY66: =FK653 -> 5.599999718 | CZ66: 116.8000013 | DB66: 1974 | DC66: =FJ642 -> 26.0052162 | DD66: =FJ643 -> 0 | DE66: =FJ644 -> 75.99405284 | DF66: =FJ645 -> 48.40807021 | DG66: =FJ646 -> 0 | DH66: =FJ647 -> 0 | DI66: =FJ648 -> 0 | DJ66: =FJ649 -> 0 | DK66: =FJ650 -> 0 | DL66: =FJ651 -> 0 | DM66: =FJ652 -> 0 | DN66: =FJ653 -> 4.076933343 | DO66: 154.4842726 | DQ66: 1974 | DR66: =FN642 -> 217.7430573 | DS66: =FN643 -> 262.1170654 | DT66: =FN644 -> 353.7122803 | DU66: =FN645 -> 388.0103455 | DV66: =FN646 -> 169.5641022 | DW66: =FN647 -> 122.5145035 | DX66: =FN648 -> 99.20252991 | DY66: =FN649 -> 79.5729599 | DZ66: =FN650 -> 70.37852478 | EA66: =FN651 -> 60.12974167 | EB66: =FN652 -> 62.81845856 | EC66: =FN653 -> 97.34178925 | ED66: 1983.105358 | EF66: 1926-03-31 | EG66: 719.0841064 | EH66: 533.4408569 | EI66: 136.8529205 | EJ66: 0 | EK66: 0 | EL66: 48.79032135 | EM66: 0 | EN66: 0 | EO66: 0 | EP66: 0 | EQ66: 0 | ER66: 0 | ES66: 0 | ET66: 130.1075287 | EU66: 130.1075287 | EV66: 0 | EW66: 0 | EX66: 1239.396606 | EY66: 300 | EZ66: 99.28487396 | FB66: 1926 | FC66: 3 | FD66: 1926-03-31 | FE66: =(EH66+EN66)*UnitConv!$B66 -> 32.7999998 | FF66: =(EI66+EO66)*UnitConv!$B66 -> 8.414758089 | FG66: =(EJ66+EP66)*UnitConv!$B66 -> 0 | FH66: 8.414758089 | FI66: =(EK66+EQ66)*UnitConv!$B66 -> 0 | FJ66: =(ES66+EV66+EW66)*UnitConv!$B66 -> 0 | FK66: =EU66*UnitConv!$B66 -> 8.000000111 | FL66: =(EX66+EY66)*UnitConv!$B66 -> 94.65380787 | FM66: 0 | FN66: 99.28487396 | FP66: 1975 | FQ66: 797.0304073 | FR66: 753.84892 | FS66: 0 | FT66: 2.96959273 | FV66: 1975 | FW66: 800 | FX66: 750.8793273 | FY66: 1.003725821 | FZ66: 0.9960607588 | GB66: 1926-03-31 | GC66: 33.20846382 | GD66: 8.1163994
B67: Long Term | C67: 6.035227188e-14 | S67: =VLOOKUP($T67,'SJRRP WY Types'!$B$13:$G$95,2,FALSE) -> Normal-Wet | T67: 1975 | U67: =GC654 -> 25.67932087 | V67: =GC655 -> 47.40797857 | W67: =GC656 -> 80.619259 | X67: =GC657 -> 151.2333758 | Y67: =GC658 -> 191.3663548 | Z67: =GC659 -> 163.4708041 | AA67: =GC660 -> 79.78415876 | AB67: =GC661 -> 26.77137494 | AC67: =GC662 -> 4.69583094 | AD67: =GC663 -> 4.609108754 | AE67: =GC664 -> 4.609108754 | AF67: =GC665 -> 19.75332465 | AG67: 800 | AI67: 1975 | AJ67: =GD654 -> 29.18205447 | AK67: =GD655 -> 73.54952367 | AL67: =GD656 -> 90.1568925 | AM67: =GD657 -> 82.56556072 | AN67: =GD658 -> 68.19534705 | AO67: =GD659 -> 62.98817412 | AP67: =GD660 -> 31.94489554 | AQ67: =GD661 -> 6.137792625 | AR67: =GD662 -> 0.4433565818 | AS67: =GD663 -> 0.4433565866 | AT67: =GD664 -> 0.4433565866 | AU67: =GD665 -> 20.53566428 | AV67: 466.5859747 | AX67: 1975 | AY67: =FI654 -> 0 | AZ67: =FI655 -> 0 | BA67: =FI656 -> 0 | BB67: =FI657 -> 0 | BC67: =FI658 -> 0 | BD67: =FI659 -> 0 | BE67: =FI660 -> 0 | BF67: =FI661 -> 0 | BG67: =FI662 -> 0 | BH67: =FI663 -> 0 | BI67: =FI664 -> 0 | BJ67: =FI665 -> 0 | BK67: 0 | BM67: 1975 | BN67: =FL654 -> 623.0320874 | BO67: =FL655 -> 89.25619835 | BP67: =FL656 -> 92.23140496 | BQ67: =FL657 -> 470.1563856 | BR67: =FL658 -> 713.5576017 | BS67: =FL659 -> 724.3239669 | BT67: =FL660 -> 671.2066116 | BU67: =FL661 -> 600.5221904 | BV67: =FL662 -> 381.968545 | BW67: =FL663 -> 716.0029048 | BX67: =FL664 -> 400.1667865 | BY67: =FL665 -> 381.160942 | BZ67: 5863.585625 | CB67: 1975 | CC67: 0 | CD67: 0 | CF67: 1975 | CG67: 800 | CH67: 466.5859747 | CI67: 0 | CJ67: 0 | CK67: 0 | CM67: 1975 | CN67: =FK654 -> 8.000000111 | CO67: =FK655 -> 8.899999899 | CP67: =FK656 -> 11.69999994 | CQ67: =FK657 -> 11.2999996 | CR67: =FK658 -> 14.10000082 | CS67: =FK659 -> 14.10000082 | CT67: =FK660 -> 12.4999999 | CU67: =FK661 -> 9.800000535 | CV67: =FK662 -> 7.300000101 | CW67: =FK663 -> 7.400000126 | CX67: =FK664 -> 6.099999768 | CY67: =FK665 -> 5.600000081 | CZ67: 116.8000017 | DB67: 1975 | DC67: =FJ654 -> 10.29687848 | DD67: =FJ655 -> 16.34951394 | DE67: =FJ656 -> 8.262323513 | DF67: =FJ657 -> 15.86095102 | DG67: =FJ658 -> 0 | DH67: =FJ659 -> 0 | DI67: =FJ660 -> 0 | DJ67: =FJ661 -> 0 | DK67: =FJ662 -> 0 | DL67: =FJ663 -> 0 | DM67: =FJ664 -> 0 | DN67: =FJ665 -> 0 | DO67: 50.76966695 | DQ67: 1975 | DR67: =FN654 -> 149.7587738 | DS67: =FN655 -> 136.0583801 | DT67: =FN656 -> 279.3417053 | DU67: =FN657 -> 472.7650757 | DV67: =FN658 -> 184.5695953 | DW67: =FN659 -> 106.661438 | DX67: =FN660 -> 109.7443924 | DY67: =FN661 -> 104.5174789 | DZ67: =FN662 -> 82.99008179 | EA67: =FN663 -> 52.62746048 | EB67: =FN664 -> 43.81310654 | EC67: =FN665 -> 59.12919235 | ED67: 1781.976681 | EF67: 1926-04-30 | EG67: 1812.749634 | EH67: 948.1022339 | EI67: 436.7463989 | EJ67: 360.678833 | EK67: 0 | EL67: 67.22222137 | EM67: 60.11314011 | EN67: 0 | EO67: 0 | EP67: 60.11314011 | EQ67: 0 | ER67: 0 | ES67: 0 | ET67: 149.5694427 | EU67: 149.5694427 | EV67: 0 | EW67: 0 | EX67: 883.0779419 | EY67: 883.0779419 | EZ67: 232.4797668 | FB67: 1926 | FC67: 4 | FD67: 1926-04-30 | FE67: =(EH67+EN67)*UnitConv!$B67 -> 56.41600069 | FF67: =(EI67+EO67)*UnitConv!$B67 -> 25.98821547 | FG67: =(EJ67+EP67)*UnitConv!$B67 -> 25.03886121 | FH67: 51.02707668 | FI67: =(EK67+EQ67)*UnitConv!$B67 -> 0 | FJ67: =(ES67+EV67+EW67)*UnitConv!$B67 -> 0 | FK67: =EU67*UnitConv!$B67 -> 8.899999899 | FL67: =(EX67+EY67)*UnitConv!$B67 -> 105.0935733 | FM67: 0 | FN67: 232.4797668 | FP67: 1976 | FQ67: 617.1651096 | FR67: 16.72123571 | FS67: 0 | FT67: 16.72123571 | FV67: 1976 | FW67: 633.8863453 | FX67: 0 | FY67: 1.027093618 | FZ67: 0 | GB67: 1926-04-30 | GC67: 57.11855883 | GD67: 25.06676178
S68: =VLOOKUP($T68,'SJRRP WY Types'!$B$13:$G$95,2,FALSE) -> Critical | T68: 1976 | U68: =GC666 -> 26.72668816 | V68: =GC667 -> 31.20497591 | W68: =GC668 -> 57.05142448 | X68: =GC669 -> 135.7073177 | Y68: =GC670 -> 174.8244486 | Z68: =GC671 -> 105.1984853 | AA68: =GC672 -> 46.07972361 | AB68: =GC673 -> 31.14178987 | AC68: =GC674 -> 10.38059706 | AD68: =GC675 -> 0 | AE68: =GC676 -> 0 | AF68: =GC677 -> 15.57089459 | AG68: 633.8863453 | AI68: 1976 | AJ68: =GD666 -> 0 | AK68: =GD667 -> 0 | AL68: =GD668 -> 0 | AM68: =GD669 -> 0 | AN68: =GD670 -> 0 | AO68: =GD671 -> 0 | AP68: =GD672 -> 0 | AQ68: =GD673 -> 0 | AR68: =GD674 -> 0 | AS68: =GD675 -> 0 | AT68: =GD676 -> 0 | AU68: =GD677 -> 0 | AV68: =SUM(AJ68:AU68) -> 0 | AX68: 1976 | AY68: =FI666 -> 0 | AZ68: =FI667 -> 0 | BA68: =FI668 -> 0 | BB68: =FI669 -> 0 | BC68: =FI670 -> 0 | BD68: =FI671 -> 0 | BE68: =FI672 -> 0 | BF68: =FI673 -> 0 | BG68: =FI674 -> 0 | BH68: =FI675 -> 0 | BI68: =FI676 -> 0 | BJ68: =FI677 -> 0 | BK68: 0 | BM68: 1976 | BN68: =FL666 -> 343.3208068 | BO68: =FL667 -> 119.5743963 | BP68: =FL668 -> 97.49946346 | BQ68: =FL669 -> 30.89795648 | BR68: =FL670 -> 570.4286322 | BS68: =FL671 -> 274.6786494 | BT68: =FL672 -> 260.4597632 | BU68: =FL673 -> 260.9895815 | BV68: =FL674 -> 247.1482995 | BW68: =FL675 -> 297.4959094 | BX68: =FL676 -> 325.614974 | BY68: =FL677 -> 348.3330527 | BZ68: 3176.441485 | CB68: 1976 | CC68: 0 | CD68: 0 | CF68: 1976 | CG68: 633.8863453 | CH68: 0 | CI68: 0 | CJ68: 0 | CK68: 0 | CM68: 1976 | CN68: =FK666 -> 8.000000111 | CO68: =FK667 -> 8.899999899 | CP68: =FK668 -> 11.69999994 | CQ68: =FK669 -> 11.2999996 | CR68: =FK670 -> 14.10000082 | CS68: =FK671 -> 14.10000082 | CT68: =FK672 -> 12.4999999 | CU68: =FK673 -> 9.800000535 | CV68: =FK674 -> 7.300000101 | CW68: =FK675 -> 7.400000126 | CX68: =FK676 -> 6.099999768 | CY68: =FK677 -> 5.599999718 | CZ68: 116.8000013 | DB68: 1976 | DC68: =FJ666 -> 0 | DD68: =FJ667 -> 0 | DE68: =FJ668 -> 0 | DF68: =FJ669 -> 0 | DG68: =FJ670 -> 0 | DH68: =FJ671 -> 0 | DI68: =FJ672 -> 0 | DJ68: =FJ673 -> 0 | DK68: =FJ674 -> 0 | DL68: =FJ675 -> 0 | DM68: =FJ676 -> 0 | DN68: =FJ677 -> 0 | DO68: 0 | DQ68: 1976 | DR68: =FN666 -> 117.0857315 | DS68: =FN667 -> 62.6975975 | DT68: =FN668 -> 56.31030273 | DU68: =FN669 -> 19.77789307 | DV68: =FN670 -> 58.48512268 | DW68: =FN671 -> 79.65615845 | DX68: =FN672 -> 102.4048309 | DY68: =FN673 -> 45.74833679 | DZ68: =FN674 -> 22.96323395 | EA68: =FN675 -> 20.74173546 | EB68: =FN676 -> 25.29085732 | EC68: =FN677 -> 26.44781303 | ED68: 637.6096134 | EF68: 1926-05-31 | EG68: 2982.173096 | EH68: 1376.277466 | EI68: 324.5785217 | EJ68: 1200 | EK68: 0 | EL68: 81.31720734 | EM68: 526.7485962 | EN68: 210.7742004 | EO68: 72.44069672 | EP68: 200 | EQ68: 0 | ER68: 32.52688217 | ES68: 11.00681877 | ET68: 347.522522 | EU68: 190.2822571 | EV68: 157.2402649 | EW68: 0 | EX68: 800 | EY68: 700 | EZ68: 241.8592377 | FB68: 1926 | FC68: 5 | FD68: 1926-05-31 | FE68: =(EH68+EN68)*UnitConv!$B68 -> 97.58400328 | FF68: =(EI68+EO68)*UnitConv!$B68 -> 24.41176021 | FG68: =(EJ68+EP68)*UnitConv!$B68 -> 86.08264463 | FH68: 110.4944048 | FI68: =(EK68+EQ68)*UnitConv!$B68 -> 0 | FJ68: =(ES68+EV68+EW68)*UnitConv!$B68 -> 10.34510994 | FK68: =EU68*UnitConv!$B68 -> 11.69999994 | FL68: =(EX68+EY68)*UnitConv!$B68 -> 92.23140496 | FM68: 0 | FN68: 241.8592377 | FP68: 1977 | FQ68: 182.126438 | FR68: 2.221487603 | FS68: 0 | FT68: 2.221487603 | FV68: 1977 | FW68: 184.3479256 | FX68: 0 | FY68: 1.012197502 | FZ68: 0 | GB68: 1926-05-31 | GC68: 98.79923362 | GD68: 23.54620226
C69: SJRRP Total Recapture | S69: =VLOOKUP($T69,'SJRRP WY Types'!$B$13:$G$95,2,FALSE) -> Critical | T69: 1977 | U69: =GC678 -> 7.589602389 | V69: =GC679 -> 9.108954062 | W69: =GC680 -> 16.66102415 | X69: =GC681 -> 39.85445319 | Y69: =GC682 -> 51.34234921 | Z69: =GC683 -> 21.46137315 | AA69: =GC684 -> 21.56304425 | AB69: =GC685 -> 9.145704744 | AC69: =GC686 -> 3.048568309 | AD69: =GC687 -> 0 | AE69: =GC688 -> 0 | AF69: =GC689 -> 4.572852173 | AG69: 184.3479256 | AI69: 1977 | AJ69: =GD678 -> 0 | AK69: =GD679 -> 0 | AL69: =GD680 -> 0 | AM69: =GD681 -> 0 | AN69: =GD682 -> 0 | AO69: =GD683 -> 0 | AP69: =GD684 -> 0 | AQ69: =GD685 -> 0 | AR69: =GD686 -> 0 | AS69: =GD687 -> 0 | AT69: =GD688 -> 0 | AU69: =GD689 -> 0 | AV69: 0 | AX69: 1977 | AY69: =FI678 -> 0 | AZ69: =FI679 -> 0 | BA69: =FI680 -> 0 | BB69: =FI681 -> 0 | BC69: =FI682 -> 0 | BD69: =FI683 -> 0 | BE69: =FI684 -> 0 | BF69: =FI685 -> 0 | BG69: =FI686 -> 0 | BH69: =FI687 -> 0 | BI69: =FI688 -> 0 | BJ69: =FI689 -> 0 | BK69: 0 | BM69: 1977 | BN69: =FL678 -> 94.29659131 | BO69: =FL679 -> 65.45454545 | BP69: =FL680 -> 70.26085675 | BQ69: =FL681 -> 8.034224581 | BR69: =FL682 -> 61.65366562 | BS69: =FL683 -> 309.8201095 | BT69: =FL684 -> 173.8263954 | BU69: =FL685 -> 130.8592879 | BV69: =FL686 -> 209.7649955 | BW69: =FL687 -> 347.3592033 | BX69: =FL688 -> 353.3012235 | BY69: =FL689 -> 547.0883716 | BZ69: 2371.71947 | CB69: 1977 | CC69: 0 | CD69: 0 | CF69: 1977 | CG69: 184.3479256 | CH69: 0 | CI69: 0 | CJ69: 0 | CK69: 0 | CM69: 1977 | CN69: =FK678 -> 8.000000111 | CO69: =FK679 -> 8.899999899 | CP69: =FK680 -> 11.69999994 | CQ69: =FK681 -> 11.2999996 | CR69: =FK682 -> 14.10000082 | CS69: =FK683 -> 14.10000082 | CT69: =FK684 -> 12.4999999 | CU69: =FK685 -> 9.800000535 | CV69: =FK686 -> 7.300000101 | CW69: =FK687 -> 7.400000126 | CX69: =FK688 -> 6.099999768 | CY69: =FK689 -> 5.599999718 | CZ69: 116.8000013 | DB69: 1977 | DC69: =FJ678 -> 0 | DD69: =FJ679 -> 0 | DE69: =FJ680 -> 0 | DF69: =FJ681 -> 0 | DG69: =FJ682 -> 0 | DH69: =FJ683 -> 0 | DI69: =FJ684 -> 0 | DJ69: =FJ685 -> 0 | DK69: =FJ686 -> 0 | DL69: =FJ687 -> 0 | DM69: =FJ688 -> 0 | DN69: =FJ689 -> 175.4682199 | DO69: 175.4682199 | DQ69: 1977 | DR69: =FN678 -> 21.3479023 | DS69: =FN679 -> 44.84851837 | DT69: =FN680 -> 10.08335304 | DU69: =FN681 -> 29.33901024 | DV69: =FN682 -> 38.094841 | DW69: =FN683 -> 36.24938965 | DX69: =FN684 -> 61.78655243 | DY69: =FN685 -> 24.77711678 | DZ69: =FN686 -> 15.24430847 | EA69: =FN687 -> 86.1900177 | EB69: =FN688 -> 165.7044678 | EC69: =FN689 -> 198.3729553 | ED69: 732.0384331 | EF69: 1926-06-30 | EG69: 2313.137939 | EH69: 1984.400024 | EI69: 227.9046936 | EJ69: 0 | EK69: 0 | EL69: 100.8333359 | EM69: 846.1894531 | EN69: 677.5999756 | EO69: 118.1728058 | EP69: 0 | EQ69: 0 | ER69: 50.41666794 | ES69: 0 | ET69: 189.902771 | EU69: 189.902771 | EV69: 0 | EW69: 0 | EX69: 2356.977295 | EY69: 2356.977295 | EZ69: 128.7597198 | FB69: 1926 | FC69: 6 | FD69: 1926-06-30 | FE69: =(EH69+EN69)*UnitConv!$B69 -> 158.4 | FF69: =(EI69+EO69)*UnitConv!$B69 -> 20.59304129 | FG69: =(EJ69+EP69)*UnitConv!$B69 -> 0 | FH69: 20.59304129 | FI69: =(EK69+EQ69)*UnitConv!$B69 -> 0 | FJ69: =(ES69+EV69+EW69)*UnitConv!$B69 -> 0 | FK69: =EU69*UnitConv!$B69 -> 11.2999996 | FL69: =(EX69+EY69)*UnitConv!$B69 -> 280.4997772 | FM69: 0 | FN69: 128.7597198 | FP69: 1978 | FQ69: 786.5439909 | FR69: 1069.039819 | FS69: 0 | FT69: 13.45600915 | FV69: 1978 | FW69: 800 | FX69: 1055.58381 | FY69: 1.017107764 | FZ69: 0.9874129954 | GB69: 1926-06-30 | GC69: 160.3725824 | GD69: 19.86288211
C70: Total | S70: =VLOOKUP($T70,'SJRRP WY Types'!$B$13:$G$95,2,FALSE) -> Wet | T70: 1978 | U70: =GC690 -> 11.34278553 | V70: =GC691 -> 19.34945834 | W70: =GC692 -> 44.03669596 | X70: =GC693 -> 116.178121 | Y70: =GC694 -> 197.400269 | Z70: =GC695 -> 187.3919306 | AA70: =GC696 -> 108.0412544 | AB70: =GC697 -> 58.29248077 | AC70: =GC698 -> 13.93030812 | AD70: =GC699 -> 6.672226892 | AE70: =GC700 -> 6.672226892 | AF70: =GC701 -> 30.69224255 | AG70: 800 | AI70: 1978 | AJ70: =GD690 -> 38.25252866 | AK70: =GD691 -> 45.53647038 | AL70: =GD692 -> 134.2116852 | AM70: =GD693 -> 138.1148362 | AN70: =GD694 -> 116.2383597 | AO70: =GD695 -> 113.0634993 | AP70: =GD696 -> 78.80371607 | AQ70: =GD697 -> 51.28557823 | AR70: =GD698 -> 14.80197111 | AS70: =GD699 -> 21.2793999 | AT70: =GD700 -> 21.2793999 | AU70: =GD701 -> 67.35272696 | AV70: 840.2201715 | AX70: 1978 | AY70: =FI690 -> 0 | AZ70: =FI691 -> 0 | BA70: =FI692 -> 0 | BB70: =FI693 -> 0 | BC70: =FI694 -> 0 | BD70: =FI695 -> 0 | BE70: =FI696 -> 0 | BF70: =FI697 -> 0 | BG70: =FI698 -> 0 | BH70: =FI699 -> 0 | BI70: =FI700 -> 0 | BJ70: =FI701 -> 0 | BK70: 0 | BM70: 1978 | BN70: =FL690 -> 606.0142073 | BO70: =FL691 -> 189.707091 | BP70: =FL692 -> 171.1256894 | BQ70: =FL693 -> 454.0212939 | BR70: =FL694 -> 713.5576017 | BS70: =FL695 -> 724.3239669 | BT70: =FL696 -> 671.2066116 | BU70: =FL697 -> 470.8167333 | BV70: =FL698 -> 547.2512526 | BW70: =FL699 -> 719.7315815 | BX70: =FL700 -> 477.0853764 | BY70: =FL701 -> 509.3634065 | BZ70: 6254.204812 | CB70: 1978 | CC70: 0 | CD70: 0 | CF70: 1978 | CG70: 800 | CH70: 840.2201715 | CI70: 0 | CJ70: 0 | CK70: 0 | CM70: 1978 | CN70: =FK690 -> 8.000000111 | CO70: =FK691 -> 8.899999899 | CP70: =FK692 -> 11.69999994 | CQ70: =FK693 -> 11.2999996 | CR70: =FK694 -> 14.10000082 | CS70: =FK695 -> 14.10000082 | CT70: =FK696 -> 12.4999999 | CU70: =FK697 -> 9.800000535 | CV70: =FK698 -> 7.300000101 | CW70: =FK699 -> 7.400000126 | CX70: =FK700 -> 6.099999768 | CY70: =FK701 -> 5.599999718 | CZ70: 116.8000013 | DB70: 1978 | DC70: =FJ690 -> 173.0078616 | DD70: =FJ691 -> 254.9004487 | DE70: =FJ692 -> 265.5450833 | DF70: =FJ693 -> 198.1327221 | DG70: =FJ694 -> 91.85472584 | DH70: =FJ695 -> 0 | DI70: =FJ696 -> 0 | DJ70: =FJ697 -> 0 | DK70: =FJ698 -> 0 | DL70: =FJ699 -> 1.451881029 | DM70: =FJ700 -> 21.07521239 | DN70: =FJ701 -> 3.872711414 | DO70: 1009.840646 | DQ70: 1978 | DR70: =FN690 -> 241.0001831 | DS70: =FN691 -> 263.3284607 | DT70: =FN692 -> 491.5386963 | DU70: =FN693 -> 724.7850952 | DV70: =FN694 -> 464.0742188 | DW70: =FN695 -> 241.6741028 | DX70: =FN696 -> 216.3823395 | DY70: =FN697 -> 90.29705048 | DZ70: =FN698 -> 58.53116608 | EA70: =FN699 -> 59.2517662 | EB70: =FN700 -> 130.5836487 | EC70: =FN701 -> 134.4110565 | ED70: 3115.857784 | EF70: 1926-07-31 | EG70: 2492.66626 | EH70: 2133.763428 | EI70: 245.0588226 | EJ70: 0 | EK70: 0 | EL70: 113.8440857 | EM70: 1027.682129 | EN70: 819.6774292 | EO70: 142.9509735 | EP70: 0 | EQ70: 0 | ER70: 65.05376434 | ES70: 0 | ET70: 229.3145294 | EU70: 229.3145294 | EV70: 0 | EW70: 0 | EX70: 3546.419678 | EY70: 6914.950195 | EZ70: 57.95531845 | FB70: 1926 | FC70: 7 | FD70: 1926-07-31 | FE70: =(EH70+EN70)*UnitConv!$B70 -> 181.5999998 | FF70: =(EI70+EO70)*UnitConv!$B70 -> 23.85779242 | FG70: =(EJ70+EP70)*UnitConv!$B70 -> 0 | FH70: 23.85779242 | FI70: =(EK70+EQ70)*UnitConv!$B70 -> 0 | FJ70: =(ES70+EV70+EW70)*UnitConv!$B70 -> 0 | FK70: =EU70*UnitConv!$B70 -> 14.10000082 | FL70: =(EX70+EY70)*UnitConv!$B70 -> 643.2445608 | FM70: 0 | FN70: 57.95531845 | FP70: 1979 | FQ70: 797.3760105 | FR70: 664.0632452 | FS70: 0 | FT70: 2.62398951 | FV70: 1979 | FW70: 800 | FX70: 661.4392557 | FY70: 1.003290781 | FZ70: 0.9960485849 | GB70: 1926-07-31 | GC70: 183.8614958 | GD70: 23.01187628
B71: SJRRP WY Type | C71: TAF | S71: =VLOOKUP($T71,'SJRRP WY Types'!$B$13:$G$95,2,FALSE) -> Normal-Wet | T71: 1979 | U71: =GC702 -> 28.30082541 | V71: =GC703 -> 51.99454023 | W71: =GC704 -> 86.05827411 | X71: =GC705 -> 157.4765238 | Y71: =GC706 -> 188.6507752 | Z71: =GC707 -> 158.6644163 | AA71: =GC708 -> 73.5693092 | AB71: =GC709 -> 23.69371531 | AC71: =GC710 -> 3.948952561 | AD71: =GC711 -> 3.948952394 | AE71: =GC712 -> 3.948952394 | AF71: =GC713 -> 19.74476305 | AG71: 800 | AI71: 1979 | AJ71: =GD702 -> 21.54135166 | AK71: =GD703 -> 62.1397009 | AL71: =GD704 -> 74.08562538 | AM71: =GD705 -> 59.75890752 | AN71: =GD706 -> 52.36550472 | AO71: =GD707 -> 51.59335649 | AP71: =GD708 -> 30.25601489 | AQ71: =GD709 -> 6.946170738 | AR71: =GD710 -> 0.7614383193 | AS71: =GD711 -> 0.7614382929 | AT71: =GD712 -> 0 | AU71: =GD713 -> 0 | AV71: 360.2095089 | AX71: 1979 | AY71: =FI702 -> 0 | AZ71: =FI703 -> 0 | BA71: =FI704 -> 0 | BB71: =FI705 -> 0 | BC71: =FI706 -> 0 | BD71: =FI707 -> 0 | BE71: =FI708 -> 0 | BF71: =FI709 -> 0 | BG71: =FI710 -> 0 | BH71: =FI711 -> 0 | BI71: =FI712 -> 0 | BJ71: =FI713 -> 0 | BK71: 0 | BM71: 1979 | BN71: =FL702 -> 567.0814908 | BO71: =FL703 -> 97.77190648 | BP71: =FL704 -> 121.9845597 | BQ71: =FL705 -> 339.4421649 | BR71: =FL706 -> 695.4847198 | BS71: =FL707 -> 724.3239669 | BT71: =FL708 -> 573.8287965 | BU71: =FL709 -> 584.4088956 | BV71: =FL710 -> 472.5013075 | BW71: =FL711 -> 717.2966364 | BX71: =FL712 -> 636.0414142 | BY71: =FL713 -> 336.3578238 | BZ71: 5866.523683 | CB71: 1979 | CC71: 0 | CD71: 0 | CF71: 1979 | CG71: 800 | CH71: 360.2095089 | CI71: 0 | CJ71: 0 | CK71: 0 | CM71: 1979 | CN71: =FK702 -> 8.000000111 | CO71: =FK703 -> 8.899999899 | CP71: =FK704 -> 11.69999994 | CQ71: =FK705 -> 11.2999996 | CR71: =FK706 -> 14.10000082 | CS71: =FK707 -> 14.10000082 | CT71: =FK708 -> 12.4999999 | CU71: =FK709 -> 9.800000535 | CV71: =FK710 -> 7.300000101 | CW71: =FK711 -> 7.400000126 | CX71: =FK712 -> 6.099999768 | CY71: =FK713 -> 5.600000081 | CZ71: 116.8000017 | DB71: 1979 | DC71: =FJ702 -> 33.09523477 | DD71: =FJ703 -> 10.26456632 | DE71: =FJ704 -> 52.17685217 | DF71: =FJ705 -> 0 | DG71: =FJ706 -> 0 | DH71: =FJ707 -> 0 | DI71: =FJ708 -> 0 | DJ71: =FJ709 -> 0 | DK71: =FJ710 -> 0 | DL71: =FJ711 -> 0 | DM71: =FJ712 -> 209.2196465 | DN71: =FJ713 -> 220.2124201 | DO71: 524.9687198 | DQ71: 1979 | DR71: =FN702 -> 208.5721283 | DS71: =FN703 -> 250.3184052 | DT71: =FN704 -> 337.071228 | DU71: =FN705 -> 282.5024109 | DV71: =FN706 -> 125.5945206 | DW71: =FN707 -> 104.3548203 | DX71: =FN708 -> 101.9031219 | DY71: =FN709 -> 79.60183716 | DZ71: =FN710 -> 76.66359711 | EA71: =FN711 -> 56.70306778 | EB71: =FN712 -> 260.9117432 | EC71: =FN713 -> 273.8258057 | ED71: 2158.022686 | EF71: 1926-08-31 | EG71: 2195.313477 | EH71: 1867.042969 | EI71: 214.4264679 | EJ71: 0 | EK71: 0 | EL71: 113.8440857 | EM71: 708.8783569 | EN71: 562.0645142 | EO71: 98.02352905 | EP71: 0 | EQ71: 0 | ER71: 48.79032135 | ES71: 0 | ET71: 229.3145294 | EU71: 229.3145294 | EV71: 0 | EW71: 0 | EX71: 3386.331055 | EY71: 2909.891602 | EZ71: 76.70858002 | FB71: 1926 | FC71: 8 | FD71: 1926-08-31 | FE71: =(EH71+EN71)*UnitConv!$B71 -> 149.3599973 | FF71: =(EI71+EO71)*UnitConv!$B71 -> 19.21180147 | FG71: =(EJ71+EP71)*UnitConv!$B71 -> 0 | FH71: 19.21180147 | FI71: =(EK71+EQ71)*UnitConv!$B71 -> 0 | FJ71: =(ES71+EV71+EW71)*UnitConv!$B71 -> 0 | FK71: =EU71*UnitConv!$B71 -> 14.10000082 | FL71: =(EX71+EY71)*UnitConv!$B71 -> 387.139641 | FM71: 0 | FN71: 76.70858002 | FP71: 1980 | FQ71: 786.5440033 | FR71: 1014.577154 | FS71: 0 | FT71: 13.45599671 | FV71: 1980 | FW71: 800 | FX71: 1001.121157 | FY71: 1.017107748 | FZ71: 0.9867373352 | GB71: 1926-08-31 | GC71: 151.220003 | GD71: 18.53061636
B72: Wet | C72: =CK4 -> 0 | S72: =VLOOKUP($T72,'SJRRP WY Types'!$B$13:$G$95,2,FALSE) -> Wet | T72: 1980 | U72: =GC714 -> 17.34779003 | V72: =GC715 -> 28.69057571 | W72: =GC716 -> 52.71059123 | X72: =GC717 -> 131.4428701 | Y72: =GC718 -> 194.0641582 | Z72: =GC719 -> 180.0524816 | AA72: =GC720 -> 102.0362503 | AB72: =GC721 -> 40.35883704 | AC72: =GC722 -> 11.26141714 | AD72: =GC723 -> 6.005004204 | AE72: =GC724 -> 6.005004204 | AF72: =GC725 -> 30.02502023 | AG72: 800 | AI72: 1980 | AJ72: =GD714 -> 37.38359935 | AK72: =GD715 -> 66.30961856 | AL72: =GD716 -> 100.1664641 | AM72: =GD717 -> 161.6670425 | AN72: =GD718 -> 117.7245273 | AO72: =GD719 -> 105.5580687 | AP72: =GD720 -> 51.18361214 | AQ72: =GD721 -> 13.68289943 | AR72: =GD722 -> 1.964300659 | AS72: =GD723 -> 6.495398513 | AT72: =GD724 -> 6.495398513 | AU72: =GD725 -> 20.1558961 | AV72: 688.7868259 | AX72: 1980 | AY72: =FI714 -> 0 | AZ72: =FI715 -> 0 | BA72: =FI716 -> 0 | BB72: =FI717 -> 0 | BC72: =FI718 -> 0 | BD72: =FI719 -> 0 | BE72: =FI720 -> 0 | BF72: =FI721 -> 0 | BG72: =FI722 -> 0 | BH72: =FI723 -> 0 | BI72: =FI724 -> 0 | BJ72: =FI725 -> 0 | BK72: 0 | BM72: 1980 | BN72: =FL714 -> 336.7412579 | BO72: =FL715 -> 111.3027118 | BP72: =FL716 -> 93.62006255 | BQ72: =FL717 -> 497.0356921 | BR72: =FL718 -> 713.5576017 | BS72: =FL719 -> 724.3239669 | BT72: =FL720 -> 579.0299748 | BU72: =FL721 -> 418.4487803 | BV72: =FL722 -> 381.7191535 | BW72: =FL723 -> 716.2509869 | BX72: =FL724 -> 412.5971601 | BY72: =FL725 -> 371.6885021 | BZ72: 5356.315851 | CB72: 1980 | CC72: 0 | CD72: 0 | CF72: 1980 | CG72: 800 | CH72: 688.7868259 | CI72: -1.136868377e-13 | CJ72: 1.136868377e-13 | CK72: 0 | CM72: 1980 | CN72: =FK714 -> 8.000000111 | CO72: =FK715 -> 8.899999899 | CP72: =FK716 -> 11.69999994 | CQ72: =FK717 -> 11.2999996 | CR72: =FK718 -> 14.10000082 | CS72: =FK719 -> 14.10000082 | CT72: =FK720 -> 12.4999999 | CU72: =FK721 -> 9.800000535 | CV72: =FK722 -> 7.300000101 | CW72: =FK723 -> 7.400000126 | CX72: =FK724 -> 6.099999768 | CY72: =FK725 -> 5.599999718 | CZ72: 116.8000013 | DB72: 1980 | DC72: =FJ714 -> 119.2655264 | DD72: =FJ715 -> 111.6617704 | DE72: =FJ716 -> 75.75032541 | DF72: =FJ717 -> 131.2660866 | DG72: =FJ718 -> 53.01816632 | DH72: =FJ719 -> 0 | DI72: =FJ720 -> 0 | DJ72: =FJ721 -> 0 | DK72: =FJ722 -> 0 | DL72: =FJ723 -> 1.010528035 | DM72: =FJ724 -> 6.493452355 | DN72: =FJ725 -> 2.138786142 | DO72: 500.6046417 | DQ72: 1980 | DR72: =FN714 -> 259.6018677 | DS72: =FN715 -> 289.7061768 | DT72: =FN716 -> 385.1959839 | DU72: =FN717 -> 499.4859924 | DV72: =FN718 -> 425.0420837 | DW72: =FN719 -> 210.9156036 | DX72: =FN720 -> 114.1321106 | DY72: =FN721 -> 86.978508 | DZ72: =FN722 -> 60.16096497 | EA72: =FN723 -> 55.29518509 | EB72: =FN724 -> 69.20152283 | EC72: =FN725 -> 86.85180664 | ED72: 2542.567806 | EF72: 1926-09-30 | EG72: 1206.985718 | EH72: 992.2000122 | EI72: 113.9523468 | EJ72: 0 | EK72: 0 | EL72: 100.8333359 | EM72: 113.6818314 | EN72: 96.80000305 | EO72: 16.88183022 | EP72: 0 | EQ72: 0 | ER72: 0 | ES72: 0 | ET72: 210.0694427 | EU72: 210.0694427 | EV72: 0 | EW72: 0 | EX72: 3843.022461 | EY72: 2744.23999 | EZ72: 97.51551056 | FB72: 1926 | FC72: 9 | FD72: 1926-09-30 | FE72: =(EH72+EN72)*UnitConv!$B72 -> 64.80000091 | FF72: =(EI72+EO72)*UnitConv!$B72 -> 7.78517417 | FG72: =(EJ72+EP72)*UnitConv!$B72 -> 0 | FH72: 7.78517417 | FI72: =(EK72+EQ72)*UnitConv!$B72 -> 0 | FJ72: =(ES72+EV72+EW72)*UnitConv!$B72 -> 0 | FK72: =EU72*UnitConv!$B72 -> 12.4999999 | FL72: =(EX72+EY72)*UnitConv!$B72 -> 391.9693359 | FM72: 0 | FN72: 97.51551056 | FP72: 1981 | FQ72: 782.2879974 | FR72: 375.1985923 | FS72: 0 | FT72: 17.71200256 | FV72: 1981 | FW72: 800 | FX72: 357.4865897 | FY72: 1.022641281 | FZ72: 0.952792993 | GB72: 1926-09-30 | GC72: 65.60696644 | GD72: 7.509138384
B73: Normal-Wet | C73: 0 | S73: =VLOOKUP($T73,'SJRRP WY Types'!$B$13:$G$95,2,FALSE) -> Normal-Dry | T73: 1981 | U73: =GC726 -> 33.54263382 | V73: =GC727 -> 57.69333123 | W73: =GC728 -> 91.74319342 | X73: =GC729 -> 161.9863789 | Y73: =GC730 -> 185.7116565 | Z73: =GC731 -> 152.741699 | AA73: =GC732 -> 66.26715595 | AB73: =GC733 -> 20.12558029 | AC73: =GC734 -> 3.354263444 | AD73: =GC735 -> 3.354263382 | AE73: =GC736 -> 3.354263382 | AF73: =GC737 -> 20.12558066 | AG73: 800 | AI73: 1981 | AJ73: =GD726 -> 9.813523015 | AK73: =GD727 -> 25.82577785 | AL73: =GD728 -> 34.51496626 | AM73: =GD729 -> 36.46951501 | AN73: =GD730 -> 42.25126652 | AO73: =GD731 -> 34.02338933 | AP73: =GD732 -> 13.78725572 | AQ73: =GD733 -> 4.002751791 | AR73: =GD734 -> 0.6671252733 | AS73: =GD735 -> 0.6671252985 | AT73: =GD736 -> 0.6671252985 | AU73: =GD737 -> 4.00275156 | AV73: 206.6925729 | AX73: 1981 | AY73: =FI726 -> 0 | AZ73: =FI727 -> 0 | BA73: =FI728 -> 0 | BB73: =FI729 -> 0 | BC73: =FI730 -> 0 | BD73: =FI731 -> 0 | BE73: =FI732 -> 0 | BF73: =FI733 -> 0 | BG73: =FI734 -> 0 | BH73: =FI735 -> 0 | BI73: =FI736 -> 0 | BJ73: =FI737 -> 0 | BK73: 0 | BM73: 1981 | BN73: =FL726 -> 360.6672162 | BO73: =FL727 -> 114.2197217 | BP73: =FL728 -> 97.04372187 | BQ73: =FL729 -> 194.2867155 | BR73: =FL730 -> 708.887366 | BS73: =FL731 -> 513.197244 | BT73: =FL732 -> 541.3602418 | BU73: =FL733 -> 499.8437158 | BV73: =FL734 -> 671.2066116 | BW73: =FL735 -> 449.9797614 | BX73: =FL736 -> 476.9261331 | BY73: =FL737 -> 708.9716064 | BZ73: 5336.590055 | CB73: 1981 | CC73: 0 | CD73: 0 | CF73: 1981 | CG73: 800 | CH73: 206.6925729 | CI73: -1.136868377e-13 | CJ73: 1.136868377e-13 | CK73: 0 | CM73: 1981 | CN73: =FK726 -> 8.000000111 | CO73: =FK727 -> 8.899999899 | CP73: =FK728 -> 11.69999994 | CQ73: =FK729 -> 11.2999996 | CR73: =FK730 -> 14.10000082 | CS73: =FK731 -> 14.10000082 | CT73: =FK732 -> 12.4999999 | CU73: =FK733 -> 9.800000535 | CV73: =FK734 -> 7.300000101 | CW73: =FK735 -> 7.400000126 | CX73: =FK736 -> 6.099999768 | CY73: =FK737 -> 5.599999718 | CZ73: 116.8000013 | DB73: 1981 | DC73: =FJ726 -> 0 | DD73: =FJ727 -> 0 | DE73: =FJ728 -> 0 | DF73: =FJ729 -> 0 | DG73: =FJ730 -> 0 | DH73: =FJ731 -> 0 | DI73: =FJ732 -> 0 | DJ73: =FJ733 -> 0 | DK73: =FJ734 -> 0 | DL73: =FJ735 -> 0 | DM73: =FJ736 -> 0.2163838914 | DN73: =FJ737 -> 120.6438611 | DO73: 120.8602449 | DQ73: 1981 | DR73: =FN726 -> 129.7518158 | DS73: =FN727 -> 151.37146 | DT73: =FN728 -> 191.0562439 | DU73: =FN729 -> 136.70755 | DV73: =FN730 -> 81.50617981 | DW73: =FN731 -> 114.2259674 | DX73: =FN732 -> 108.8406067 | DY73: =FN733 -> 44.20749283 | DZ73: =FN734 -> 88.05639648 | EA73: =FN735 -> 82.37295532 | EB73: =FN736 -> 132.4660797 | EC73: =FN737 -> 176.9521332 | ED73: 1437.514881 | EF73: 1926-10-31 | EG73: 438.1405334 | EH73: 320.0645142 | EI73: 36.75882339 | EJ73: 0 | EK73: 0 | EL73: 81.31720734 | EM73: 0 | EN73: 0 | EO73: 0 | EP73: 0 | EQ73: 0 | ER73: 0 | ES73: 0 | ET73: 159.3817291 | EU73: 159.3817291 | EV73: 0 | EW73: 0 | EX73: 2867.991455 | EY73: 2048.830322 | EZ73: 50.45800018 | FB73: 1926 | FC73: 10 | FD73: 1926-10-31 | FE73: =(EH73+EN73)*UnitConv!$B73 -> 19.67999988 | FF73: =(EI73+EO73)*UnitConv!$B73 -> 2.260211951 | FG73: =(EJ73+EP73)*UnitConv!$B73 -> 0 | FH73: 2.260211951 | FI73: =(EK73+EQ73)*UnitConv!$B73 -> 0 | FJ73: =(ES73+EV73+EW73)*UnitConv!$B73 -> 0 | FK73: =EU73*UnitConv!$B73 -> 9.800000535 | FL73: =(EX73+EY73)*UnitConv!$B73 -> 302.323587 | FM73: 0 | FN73: 50.45800018 | FP73: 1982 | FQ73: 797.6959938 | FR73: 1036.325035 | FS73: 0 | FT73: 2.304006196 | FV73: 1982 | FW73: 800 | FX73: 1034.021029 | FY73: 1.002888326 | FZ73: 0.9977767533 | GB73: 1926-10-31 | GC73: 19.92507829 | GD73: 2.180072526
